Workbook

Sheet Menu
A2: FULL COST MODEL
A6: MODEL STRUCTURE | I6: EXCHANGE RATES
K8: POUND | L8: (GBP) | N8: 1
K9: EURO | L9: (EUR) | N9: 1.26
K10: DOLLAR | L10: (USD) | N10: 1.5514
K11: YUAN | L11: (CNY) | N11: 9.68574
K12: YEN | L12: (JPY) | N12: 193.413938
K13: WON | L13: (KRW) | N13: 1817.82051
K14: RUBLE | L14: (RUB) | N14: 98.5523822

Sheet Dashboard
A1: DASHBOARD orders | G1: POUND
R4: TOTALS
R5: =O!C6 -> 96928.88711
R7: Total contribution margin
R9: REVENUES | S9: =SUM(O!C25:K25) -> 434000
R11: COSTS | S11: =SUM(O!C37:K37) -> 337071.1129
R14: PROCESS COST | S14: =SUM(S15:S17) -> 324552.5881 | T14: =SUM(T15:T17) -> 0.9628608793
R15: COST NP | S15: =SUM(O!C26:K26) -> 321759.4251 | T15: =IF(ISERROR(S15/$S$11)=TRUE,0,S15/$S$11) -> 0.9545743104
R16: COST PPF | S16: =SUM(O!C31:K31) -> 423.0061682 | T16: =IF(ISERROR(S16/$S$11)=TRUE,0,S16/$S$11) -> 0.001254946366
R17: COST NEU | S17: =SUM(O!C34:K34) -> 2370.15683 | T17: =IF(ISERROR(S17/$S$11)=TRUE,0,S17/$S$11) -> 0.007031622527
R18: OTHER COST | S18: =SUM(S19:S20) -> 12518.52474 | T18: =SUM(T19:T20) -> 0.03713912068
R19: STAFF COSTS | S19: =SUM(O!C35:K35) -> 6781.575987 | T19: =IF(ISERROR(S19/$S$11)=TRUE,0,S19/$S$11) -> 0.02011912539
R20: OVERHEADS | S20: =SUM(O!C36:K36) -> 5736.948753 | T20: =IF(ISERROR(S20/$S$11)=TRUE,0,S20/$S$11) -> 0.01701999529
R23: CAPACITY
R24: =CP_CapRU -> 312.8380058
R26: ="Use capacity (from "&CP_CapR&" h)" -> Use capacity (from 2080 h)
R28: =IF(CP!CP_ChrtData=1,CP!C5,CP!CP_CapPFUt) -> 0.1504028874
R29: 1
S33: =CP_CapRPercent -> 0.1504028874
C40: OR01 | F40: =IF(ISERROR(HLOOKUP($C$40,O!$C$8:$K$45,5,FALSE))=TRUE,"-",IF(HLOOKUP($C$40,O!$C$8:$K$45,5,FALSE)=0,"-",HLOOKUP($C$40,O!$C$8:$K$45,5,FALSE))) -> TiO2 (TiOS - 400C) (wt 8%)
A41: 1 | D41: Type of nanoparticles | F41: =IF(ISERROR(HLOOKUP($C$40,O!$C$8:$K$45,6,FALSE))=TRUE,"-",IF(HLOOKUP($C$40,O!$C$8:$K$45,6,FALSE)=0,"-",HLOOKUP($C$40,O!$C$8:$K$45,6,FALSE))) -> Unstable | W41: 0
A42: 2 | D42: Amount of product | F42: =IF(ISERROR(HLOOKUP($C$40,O!$C$8:$K$45,7,FALSE))=TRUE,0,HLOOKUP($C$40,O!$C$8:$K$45,7,FALSE)) -> 2000 | G42: 1 | W42: 0
A43: 3 | D43: Selling price | F43: =IF(ISERROR(HLOOKUP($C$40,O!$C$8:$K$45,17,FALSE)*PL_Convert)=TRUE,0,HLOOKUP($C$40,O!$C$8:$K$45,17,FALSE)*PL_Convert) -> 25 | G43: =IF(ISERROR(HLOOKUP($C$40,O!$C$8:$K$45,17,FALSE)*PL_Convert)=TRUE,0,HLOOKUP($C$40,O!$C$8:$K$45,17,FALSE)*PL_Convert) -> 25 | W43: 0
A44: 4 | D44: Revenues | F44: =IF(ISERROR(HLOOKUP($C$40,O!$C$8:$K$45,18,FALSE))=TRUE,0,HLOOKUP($C$40,O!$C$8:$K$45,18,FALSE)) -> 50000 | G44: =IF(ISERROR(F44/F42)=TRUE,0,F44/F42) -> 25 | W44: 0
A45: 5 | D45: Output flow rate | F45: =IF(ISERROR(HLOOKUP($C$40,O!$C$8:$K$45,38,FALSE))=TRUE,0,HLOOKUP($C$40,O!$C$8:$K$45,38,FALSE)) -> 59.9 | G45: =F45 -> 59.9 | W45: 0
D46: Processing time NP | F46: =IF(ISERROR(HLOOKUP($C$40,O!$C$8:$K$45,10,FALSE))=TRUE,0,HLOOKUP($C$40,O!$C$8:$K$45,10,FALSE)) -> 33.48898164 | G46: =IF(ISERROR(F46/$F$42)=TRUE,0,F46/$F$42) -> 0.01674449082 | W46: 0
D47: Cost NP | F47: =IF(ISERROR(HLOOKUP($C$40,O!$C$8:$K$45,19,FALSE))=TRUE,0,HLOOKUP($C$40,O!$C$8:$K$45,19,FALSE)) -> 40596.34018 | G47: =IF(ISERROR(F47/$F$42)=TRUE,0,F47/$F$42) -> 20.29817009 | S47: =O!C4 -> 2080 | W47: 0
D48: Inputs NP | F48: =IF(ISERROR(HLOOKUP($C$40,O!$C$8:$K$45,20,FALSE))=TRUE,0,HLOOKUP($C$40,O!$C$8:$K$45,20,FALSE)) -> 34558.15854 | G48: =IF(ISERROR(F48/$F$42)=TRUE,0,F48/$F$42) -> 17.27907927 | K48: =IF(ISERROR(F48/$F$42)=TRUE,0,F48/$F$42) -> 17.27907927 | S48: =O!C5 -> 6240 | W48: 0
D49: Equipment NP | F49: =IF(ISERROR(HLOOKUP($C$40,O!$C$8:$K$45,21,FALSE))=TRUE,0,HLOOKUP($C$40,O!$C$8:$K$45,21,FALSE)) -> 4055.822204 | G49: =IF(ISERROR(F49/$F$42)=TRUE,0,F49/$F$42) -> 2.027911102 | K49: =IF(ISERROR(F49/$F$42)=TRUE,0,F49/$F$42) -> 2.027911102 | W49: 0
D50: Electricity NP | F50: =IF(ISERROR(HLOOKUP($C$40,O!$C$8:$K$45,22,FALSE))=TRUE,0,HLOOKUP($C$40,O!$C$8:$K$45,22,FALSE)) -> 331.2742905 | G50: =IF(ISERROR(F50/$F$42)=TRUE,0,F50/$F$42) -> 0.1656371452 | K50: 0.1656371452 | W50: 0
D51: Gas NP | F51: =IF(ISERROR(HLOOKUP($C$40,O!$C$8:$K$45,23,FALSE))=TRUE,0,HLOOKUP($C$40,O!$C$8:$K$45,23,FALSE)) -> 1651.085142 | G51: 0.825542571 | K51: 0.825542571 | W51: 0
D52: Filtration time PPF | F52: =IF(ISERROR(HLOOKUP($C$40,O!$C$8:$K$45,13,FALSE))=TRUE,0,HLOOKUP($C$40,O!$C$8:$K$45,13,FALSE)) -> 0 | G52: 0 | W52: 0
D53: Cost PPF | F53: =IF(ISERROR(HLOOKUP($C$40,O!$C$8:$K$45,24,FALSE))=TRUE,0,HLOOKUP($C$40,O!$C$8:$K$45,24,FALSE)) -> 0 | G53: 0 | W53: 0
D54: Inputs PPF | F54: =IF(ISERROR(HLOOKUP($C$40,O!$C$8:$K$45,25,FALSE))=TRUE,0,HLOOKUP($C$40,O!$C$8:$K$45,25,FALSE)) -> 0 | G54: 0 | K54: 0 | W54: 0
D55: Equipment PPF | F55: =IF(ISERROR(HLOOKUP($C$40,O!$C$8:$K$45,26,FALSE))=TRUE,0,HLOOKUP($C$40,O!$C$8:$K$45,26,FALSE)) -> 0 | G55: 0 | K55: =F55/$F$42 -> 0 | W55: 0
D56: Sedimentation time PPS | F56: =IF(ISERROR(HLOOKUP($C$40,O!$C$8:$K$45,15,FALSE))=TRUE,0,HLOOKUP($C$40,O!$C$8:$K$45,15,FALSE)) -> 25.04173623 | G56: 0.01252086811 | W56: 0
D57: Cost Neu | F57: =IF(ISERROR(HLOOKUP($C$40,O!$C$8:$K$45,27,FALSE))=TRUE,0,HLOOKUP($C$40,O!$C$8:$K$45,27,FALSE)) -> 432.4749821 | G57: 0.2162374911 | K57: 0.2162374911 | W57: 0
D58: Staff cost | F58: =IF(ISERROR(HLOOKUP($C$40,O!$C$8:$K$45,28,FALSE))=TRUE,0,HLOOKUP($C$40,O!$C$8:$K$45,28,FALSE)) -> 725.6485168 | G58: 0.3628242584 | K58: 0.3628242584 | W58: 0
D59: Overheads | F59: =IF(ISERROR(HLOOKUP($C$40,O!$C$8:$K$45,29,FALSE))=TRUE,0,HLOOKUP($C$40,O!$C$8:$K$45,29,FALSE)) -> 613.8703395 | G59: 0.3069351697 | K59: 0.3069351697 | W59: 0
D60: Total cost | F60: =IF(ISERROR(HLOOKUP($C$40,O!$C$8:$K$45,30,FALSE))=TRUE,0,HLOOKUP($C$40,O!$C$8:$K$45,30,FALSE)) -> 42368.33401 | G60: 21.18416701 | W60: 0
C61: Profit (CM) | F61: =F44-F60 -> 7631.665985 | G61: =IF(ISERROR(F61/$F$42)=TRUE,0,F61/$F$42) -> 3.815832993

Sheet DChI
A2: DATABASE of INPUTS
A4: =IF(AND(L5<>0,N5<>0)=TRUE,"Name/ID of chemicals must be unique!!!",IF(L5<>0,"Name of chemicals must be unique!!!",IF(N5<>0,"ID of chemicals must be unique!!!",""))) -> 
A5: NAME | B5: FORMULA / DESIGNATION | C5: ID | D5: CAS NUMBER | E5: TYPE | F5: NANOPARTICLES | G5: SUPPLIER | H5: PRICE / UNIT | I5: NOTES | K5: =ROW(DChI_StartRow) -> 5 | L5: =IF(MAX(L6:L39)>1,1,0) -> 0 | N5: =IF(MAX(N6:N39)>1,1,0) -> 0
A6: Dionised water | B6: H2O | C6: ICH00001 | D6: 7732-18-5 | E6: Water | H6: 0.001815 | L6: =COUNTIF(INDIRECT(ADDRESS(DChI_StartRow+1,1,1,1,"DChI"),TRUE):INDIRECT(ADDRESS(DChI_RemRow-1,1,1,1,"DChI"),TRUE),DChI_Tab[[#This Row],[NAME]]) -> 1 | M6: =IF(L6>1,1,0) -> 0 | N6: =COUNTIF(INDIRECT(ADDRESS(DChI_StartRow+1,3,1,1,"DChI"),TRUE):INDIRECT(ADDRESS(DChI_RemRow-1,3,1,1,"DChI"),TRUE),DChI_Tab[[#This Row],[ID]]) -> 1 | O6: =IF(N6>1,1,0) -> 0
A7: Waste water disposal | B7: H2O | C7: ICH00002 | D7: 7732-18-5 | E7: Water | H7: 0.001815 | L7: =COUNTIF(INDIRECT(ADDRESS(DChI_StartRow+1,1,1,1,"DChI"),TRUE):INDIRECT(ADDRESS(DChI_RemRow-1,1,1,1,"DChI"),TRUE),DChI_Tab[[#This Row],[NAME]]) -> 1 | M7: 0 | N7: =COUNTIF(INDIRECT(ADDRESS(DChI_StartRow+1,3,1,1,"DChI"),TRUE):INDIRECT(ADDRESS(DChI_RemRow-1,3,1,1,"DChI"),TRUE),DChI_Tab[[#This Row],[ID]]) -> 1 | O7: =IF(N7>1,1,0) -> 0
A8: Hydrogen peroxide (30%) | B8: H2O2 | C8: ICH00003 | D8: 7722-84-1 | E8: Other | G8: Molbase | H8: 0.032 | L8: =COUNTIF(INDIRECT(ADDRESS(DChI_StartRow+1,1,1,1,"DChI"),TRUE):INDIRECT(ADDRESS(DChI_RemRow-1,1,1,1,"DChI"),TRUE),DChI_Tab[[#This Row],[NAME]]) -> 1 | M8: 0 | N8: =COUNTIF(INDIRECT(ADDRESS(DChI_StartRow+1,3,1,1,"DChI"),TRUE):INDIRECT(ADDRESS(DChI_RemRow-1,3,1,1,"DChI"),TRUE),DChI_Tab[[#This Row],[ID]]) -> 1 | O8: 0
A9: Sodium hydroxide Solution (32%) | B9: NaOH | C9: ICH00004 | D9: 1310-73-2 | E9: Other | G9: Stowlin | H9: 0.239 | L9: =COUNTIF(INDIRECT(ADDRESS(DChI_StartRow+1,1,1,1,"DChI"),TRUE):INDIRECT(ADDRESS(DChI_RemRow-1,1,1,1,"DChI"),TRUE),DChI_Tab[[#This Row],[NAME]]) -> 1 | M9: 0 | N9: =COUNTIF(INDIRECT(ADDRESS(DChI_StartRow+1,3,1,1,"DChI"),TRUE):INDIRECT(ADDRESS(DChI_RemRow-1,3,1,1,"DChI"),TRUE),DChI_Tab[[#This Row],[ID]]) -> 1 | O9: 0
A10: Sodium hydroxide (100%) | B10: NaOH | C10: ICH00005 | D10: 1310-73-2 | G10: Molbase | H10: 0.32 | L10: =COUNTIF(INDIRECT(ADDRESS(DChI_StartRow+1,1,1,1,"DChI"),TRUE):INDIRECT(ADDRESS(DChI_RemRow-1,1,1,1,"DChI"),TRUE),DChI_Tab[[#This Row],[NAME]]) -> 1 | M10: =IF(L10>1,1,0) -> 0 | N10: =COUNTIF(INDIRECT(ADDRESS(DChI_StartRow+1,3,1,1,"DChI"),TRUE):INDIRECT(ADDRESS(DChI_RemRow-1,3,1,1,"DChI"),TRUE),DChI_Tab[[#This Row],[ID]]) -> 1 | O10: =IF(N10>1,1,0) -> 0
A11: Nitric acid | B11: HNO3 | C11: ICH00006 | D11: 7697-37-2 | G11: Molbase | H11: 0.14 | L11: =COUNTIF(INDIRECT(ADDRESS(DChI_StartRow+1,1,1,1,"DChI"),TRUE):INDIRECT(ADDRESS(DChI_RemRow-1,1,1,1,"DChI"),TRUE),DChI_Tab[[#This Row],[NAME]]) -> 1 | M11: 0 | N11: =COUNTIF(INDIRECT(ADDRESS(DChI_StartRow+1,3,1,1,"DChI"),TRUE):INDIRECT(ADDRESS(DChI_RemRow-1,3,1,1,"DChI"),TRUE),DChI_Tab[[#This Row],[ID]]) -> 1 | O11: 0
A12: Solplus | C12: ICH00007 | F12: TiO2 | H12: ??? | L12: =COUNTIF(INDIRECT(ADDRESS(DChI_StartRow+1,1,1,1,"DChI"),TRUE):INDIRECT(ADDRESS(DChI_RemRow-1,1,1,1,"DChI"),TRUE),DChI_Tab[[#This Row],[NAME]]) -> 1 | M12: =IF(L12>1,1,0) -> 0 | N12: =COUNTIF(INDIRECT(ADDRESS(DChI_StartRow+1,3,1,1,"DChI"),TRUE):INDIRECT(ADDRESS(DChI_RemRow-1,3,1,1,"DChI"),TRUE),DChI_Tab[[#This Row],[ID]]) -> 1 | O12: 0
A13: TiBALD | B13: C6H18N2O8Ti | C13: ICH00008 | D13: 65104-06-5 | E13: Precursor | F13: TiO2 | H13: 7.5 | L13: =COUNTIF(INDIRECT(ADDRESS(DChI_StartRow+1,1,1,1,"DChI"),TRUE):INDIRECT(ADDRESS(DChI_RemRow-1,1,1,1,"DChI"),TRUE),DChI_Tab[[#This Row],[NAME]]) -> 1 | M13: 0 | N13: =COUNTIF(INDIRECT(ADDRESS(DChI_StartRow+1,3,1,1,"DChI"),TRUE):INDIRECT(ADDRESS(DChI_RemRow-1,3,1,1,"DChI"),TRUE),DChI_Tab[[#This Row],[ID]]) -> 1 | O13: 0
A14: Titanium dioxide | B14: TiO2 | C14: ICH00009 | D14: 13463-67-7 | F14: TiO2 | H14: 25 | L14: =COUNTIF(INDIRECT(ADDRESS(DChI_StartRow+1,1,1,1,"DChI"),TRUE):INDIRECT(ADDRESS(DChI_RemRow-1,1,1,1,"DChI"),TRUE),DChI_Tab[[#This Row],[NAME]]) -> 1 | M14: 0 | N14: =COUNTIF(INDIRECT(ADDRESS(DChI_StartRow+1,3,1,1,"DChI"),TRUE):INDIRECT(ADDRESS(DChI_RemRow-1,3,1,1,"DChI"),TRUE),DChI_Tab[[#This Row],[ID]]) -> 1 | O14: 0
A15: PTOOD | B15: C4H2K2O10Ti | C15: ICH00010 | D15: 14481-26-6 | E15: Precursor | F15: TiO2 | H15: 4 | L15: =COUNTIF(INDIRECT(ADDRESS(DChI_StartRow+1,1,1,1,"DChI"),TRUE):INDIRECT(ADDRESS(DChI_RemRow-1,1,1,1,"DChI"),TRUE),DChI_Tab[[#This Row],[NAME]]) -> 1 | M15: 0 | N15: =COUNTIF(INDIRECT(ADDRESS(DChI_StartRow+1,3,1,1,"DChI"),TRUE):INDIRECT(ADDRESS(DChI_RemRow-1,3,1,1,"DChI"),TRUE),DChI_Tab[[#This Row],[ID]]) -> 1 | O15: 0
B16: KO(CO)2OH | C16: ICH00011 | F16: TiO2 | H16: ??? | L16: =COUNTIF(INDIRECT(ADDRESS(DChI_StartRow+1,1,1,1,"DChI"),TRUE):INDIRECT(ADDRESS(DChI_RemRow-1,1,1,1,"DChI"),TRUE),DChI_Tab[[#This Row],[NAME]]) -> 0 | M16: 0 | N16: =COUNTIF(INDIRECT(ADDRESS(DChI_StartRow+1,3,1,1,"DChI"),TRUE):INDIRECT(ADDRESS(DChI_RemRow-1,3,1,1,"DChI"),TRUE),DChI_Tab[[#This Row],[ID]]) -> 1 | O16: 0
A17: Isopropanol | B17: C3H8O | C17: ICH00012 | D17: 67-63-0 | E17: Precursor | F17: TiO2 | G17: Molbase | H17: 1.5 | L17: =COUNTIF(INDIRECT(ADDRESS(DChI_StartRow+1,1,1,1,"DChI"),TRUE):INDIRECT(ADDRESS(DChI_RemRow-1,1,1,1,"DChI"),TRUE),DChI_Tab[[#This Row],[NAME]]) -> 1 | M17: 0 | N17: =COUNTIF(INDIRECT(ADDRESS(DChI_StartRow+1,3,1,1,"DChI"),TRUE):INDIRECT(ADDRESS(DChI_RemRow-1,3,1,1,"DChI"),TRUE),DChI_Tab[[#This Row],[ID]]) -> 1 | O17: 0
A18: Triisopropyl orthoformate (TiPO) | B18: CH[OCH(CH3)2]3 | C18: ICH00013 | D18: 4447-60-3 | E18: Precursor | F18: TiO2 | H18: 2.6 | L18: =COUNTIF(INDIRECT(ADDRESS(DChI_StartRow+1,1,1,1,"DChI"),TRUE):INDIRECT(ADDRESS(DChI_RemRow-1,1,1,1,"DChI"),TRUE),DChI_Tab[[#This Row],[NAME]]) -> 1 | M18: 0 | N18: =COUNTIF(INDIRECT(ADDRESS(DChI_StartRow+1,3,1,1,"DChI"),TRUE):INDIRECT(ADDRESS(DChI_RemRow-1,3,1,1,"DChI"),TRUE),DChI_Tab[[#This Row],[ID]]) -> 1 | O18: 0
A19: Titanium tetrachloride | B19: TiCl4 | C19: ICH00014 | D19: 7550-45-0 | E19: Precursor | F19: TiO2 | H19: 1 | L19: =COUNTIF(INDIRECT(ADDRESS(DChI_StartRow+1,1,1,1,"DChI"),TRUE):INDIRECT(ADDRESS(DChI_RemRow-1,1,1,1,"DChI"),TRUE),DChI_Tab[[#This Row],[NAME]]) -> 1 | M19: 0 | N19: =COUNTIF(INDIRECT(ADDRESS(DChI_StartRow+1,3,1,1,"DChI"),TRUE):INDIRECT(ADDRESS(DChI_RemRow-1,3,1,1,"DChI"),TRUE),DChI_Tab[[#This Row],[ID]]) -> 1 | O19: 0
A20: Titanium oxysulfate | B20: TiOSO4.xH2O | C20: ICH00015 | D20: 13825-74-6 | E20: Precursor | F20: TiO2 | G20: Crystal | H20: 1.22 | L20: =COUNTIF(INDIRECT(ADDRESS(DChI_StartRow+1,1,1,1,"DChI"),TRUE):INDIRECT(ADDRESS(DChI_RemRow-1,1,1,1,"DChI"),TRUE),DChI_Tab[[#This Row],[NAME]]) -> 1 | M20: 0 | N20: =COUNTIF(INDIRECT(ADDRESS(DChI_StartRow+1,3,1,1,"DChI"),TRUE):INDIRECT(ADDRESS(DChI_RemRow-1,3,1,1,"DChI"),TRUE),DChI_Tab[[#This Row],[ID]]) -> 1 | O20: 0
A21: Zinc nitrate hexahydrate | B21: Zn(NO3)2.6H2O | C21: ICH00016 | D21: 10196-18-6 | F21: ZnO | G21: Thomas & Joseph | H21: 2.75 | L21: =COUNTIF(INDIRECT(ADDRESS(DChI_StartRow+1,1,1,1,"DChI"),TRUE):INDIRECT(ADDRESS(DChI_RemRow-1,1,1,1,"DChI"),TRUE),DChI_Tab[[#This Row],[NAME]]) -> 1 | M21: 0 | N21: =COUNTIF(INDIRECT(ADDRESS(DChI_StartRow+1,3,1,1,"DChI"),TRUE):INDIRECT(ADDRESS(DChI_RemRow-1,3,1,1,"DChI"),TRUE),DChI_Tab[[#This Row],[ID]]) -> 1 | O21: 0
A22: Zinc nitrate | B22: Zn(NO3)2 | C22: ICH00017 | D22: 7779-88-6 | G22: Thomson & Joseph | H22: 3.25 | L22: =COUNTIF(INDIRECT(ADDRESS(DChI_StartRow+1,1,1,1,"DChI"),TRUE):INDIRECT(ADDRESS(DChI_RemRow-1,1,1,1,"DChI"),TRUE),DChI_Tab[[#This Row],[NAME]]) -> 1 | M22: =IF(L22>1,1,0) -> 0 | N22: =COUNTIF(INDIRECT(ADDRESS(DChI_StartRow+1,3,1,1,"DChI"),TRUE):INDIRECT(ADDRESS(DChI_RemRow-1,3,1,1,"DChI"),TRUE),DChI_Tab[[#This Row],[ID]]) -> 1 | O22: =IF(N22>1,1,0) -> 0
A23: Zinc nitrate Solution (32%) | C23: ICH00018 | G23: Estimation Solution | H23: 0.0012342 | L23: =COUNTIF(INDIRECT(ADDRESS(DChI_StartRow+1,1,1,1,"DChI"),TRUE):INDIRECT(ADDRESS(DChI_RemRow-1,1,1,1,"DChI"),TRUE),DChI_Tab[[#This Row],[NAME]]) -> 1 | M23: 0 | N23: =COUNTIF(INDIRECT(ADDRESS(DChI_StartRow+1,3,1,1,"DChI"),TRUE):INDIRECT(ADDRESS(DChI_RemRow-1,3,1,1,"DChI"),TRUE),DChI_Tab[[#This Row],[ID]]) -> 1 | O23: 0
A24: Potassium hydroxide | B24: KOH | C24: ICH00019 | D24: 1310-58-3 | F24: ZnO | H24: 0.03789062872 | L24: =COUNTIF(INDIRECT(ADDRESS(DChI_StartRow+1,1,1,1,"DChI"),TRUE):INDIRECT(ADDRESS(DChI_RemRow-1,1,1,1,"DChI"),TRUE),DChI_Tab[[#This Row],[NAME]]) -> 1 | M24: 0 | N24: =COUNTIF(INDIRECT(ADDRESS(DChI_StartRow+1,3,1,1,"DChI"),TRUE):INDIRECT(ADDRESS(DChI_RemRow-1,3,1,1,"DChI"),TRUE),DChI_Tab[[#This Row],[ID]]) -> 1 | O24: 0
A25: Zinc oxide | B25: ZnO | C25: ICH00020 | D25: 1314-13-2 | F25: ZnO | H25: 7.5 | L25: =COUNTIF(INDIRECT(ADDRESS(DChI_StartRow+1,1,1,1,"DChI"),TRUE):INDIRECT(ADDRESS(DChI_RemRow-1,1,1,1,"DChI"),TRUE),DChI_Tab[[#This Row],[NAME]]) -> 1 | M25: 0 | N25: =COUNTIF(INDIRECT(ADDRESS(DChI_StartRow+1,3,1,1,"DChI"),TRUE):INDIRECT(ADDRESS(DChI_RemRow-1,3,1,1,"DChI"),TRUE),DChI_Tab[[#This Row],[ID]]) -> 1 | O25: 0
A26: Zirconium acetate (Zr(Ac)) (22%) | B26: C8H12O8Zr | C26: ICH00021 | D26: 7585-20-8 | E26: Precursor | F26: ZrO2 | G26: Oxchem | H26: 1.98 | L26: =COUNTIF(INDIRECT(ADDRESS(DChI_StartRow+1,1,1,1,"DChI"),TRUE):INDIRECT(ADDRESS(DChI_RemRow-1,1,1,1,"DChI"),TRUE),DChI_Tab[[#This Row],[NAME]]) -> 1 | M26: 0 | N26: =COUNTIF(INDIRECT(ADDRESS(DChI_StartRow+1,3,1,1,"DChI"),TRUE):INDIRECT(ADDRESS(DChI_RemRow-1,3,1,1,"DChI"),TRUE),DChI_Tab[[#This Row],[ID]]) -> 1 | O26: 0
A27: Zirconium dioxide | B27: ZrO2 | C27: ICH00022 | D27: 1314-23-4 | F27: ZrO2 | H27: 35 | L27: =COUNTIF(INDIRECT(ADDRESS(DChI_StartRow+1,1,1,1,"DChI"),TRUE):INDIRECT(ADDRESS(DChI_RemRow-1,1,1,1,"DChI"),TRUE),DChI_Tab[[#This Row],[NAME]]) -> 1 | M27: 0 | N27: =COUNTIF(INDIRECT(ADDRESS(DChI_StartRow+1,3,1,1,"DChI"),TRUE):INDIRECT(ADDRESS(DChI_RemRow-1,3,1,1,"DChI"),TRUE),DChI_Tab[[#This Row],[ID]]) -> 1 | O27: 0
A28: Ascorbic acid | B28: C6H8O6 | C28: ICH00023 | D28: 50-81-7 | F28: LiFePO4 | G28: Molbase | H28: 5.5 | L28: =COUNTIF(INDIRECT(ADDRESS(DChI_StartRow+1,1,1,1,"DChI"),TRUE):INDIRECT(ADDRESS(DChI_RemRow-1,1,1,1,"DChI"),TRUE),DChI_Tab[[#This Row],[NAME]]) -> 1 | M28: 0 | N28: =COUNTIF(INDIRECT(ADDRESS(DChI_StartRow+1,3,1,1,"DChI"),TRUE):INDIRECT(ADDRESS(DChI_RemRow-1,3,1,1,"DChI"),TRUE),DChI_Tab[[#This Row],[ID]]) -> 1 | O28: 0
A29: Ferrous sulfate | B29: FeSO4.7H2O | C29: ICH00024 | D29: 7782-63-0 | F29: LiFePO4 | G29: AJW Notes | H29: 0.2 | L29: =COUNTIF(INDIRECT(ADDRESS(DChI_StartRow+1,1,1,1,"DChI"),TRUE):INDIRECT(ADDRESS(DChI_RemRow-1,1,1,1,"DChI"),TRUE),DChI_Tab[[#This Row],[NAME]]) -> 1 | M29: 0 | N29: =COUNTIF(INDIRECT(ADDRESS(DChI_StartRow+1,3,1,1,"DChI"),TRUE):INDIRECT(ADDRESS(DChI_RemRow-1,3,1,1,"DChI"),TRUE),DChI_Tab[[#This Row],[ID]]) -> 1 | O29: 0
A30: Lithium hydroxide monohydrate | B30: LiOH.H2O | C30: ICH00025 | D30: 1310-66-3 | F30: LiFePO4 | G30: Melrob | H30: 19 | L30: =COUNTIF(INDIRECT(ADDRESS(DChI_StartRow+1,1,1,1,"DChI"),TRUE):INDIRECT(ADDRESS(DChI_RemRow-1,1,1,1,"DChI"),TRUE),DChI_Tab[[#This Row],[NAME]]) -> 1 | M30: 0 | N30: =COUNTIF(INDIRECT(ADDRESS(DChI_StartRow+1,3,1,1,"DChI"),TRUE):INDIRECT(ADDRESS(DChI_RemRow-1,3,1,1,"DChI"),TRUE),DChI_Tab[[#This Row],[ID]]) -> 1 | O30: 0
A31: Phosphoric acid (85%) | B31: H3PO4 | C31: ICH00026 | D31: 7664-38-2 | F31: LiFePO4 | G31: Chemicals.co.uk | H31: 1.2 | L31: =COUNTIF(INDIRECT(ADDRESS(DChI_StartRow+1,1,1,1,"DChI"),TRUE):INDIRECT(ADDRESS(DChI_RemRow-1,1,1,1,"DChI"),TRUE),DChI_Tab[[#This Row],[NAME]]) -> 1 | M31: 0 | N31: =COUNTIF(INDIRECT(ADDRESS(DChI_StartRow+1,3,1,1,"DChI"),TRUE):INDIRECT(ADDRESS(DChI_RemRow-1,3,1,1,"DChI"),TRUE),DChI_Tab[[#This Row],[ID]]) -> 1 | O31: 0
A32: Lithium iron(II) phosphate | B32: LiFePO4 | C32: ICH00027 | D32: 15365-14-7 | F32: LiFePO4 | G32: Phostech | H32: 20 | L32: =COUNTIF(INDIRECT(ADDRESS(DChI_StartRow+1,1,1,1,"DChI"),TRUE):INDIRECT(ADDRESS(DChI_RemRow-1,1,1,1,"DChI"),TRUE),DChI_Tab[[#This Row],[NAME]]) -> 1 | M32: 0 | N32: =COUNTIF(INDIRECT(ADDRESS(DChI_StartRow+1,3,1,1,"DChI"),TRUE):INDIRECT(ADDRESS(DChI_RemRow-1,3,1,1,"DChI"),TRUE),DChI_Tab[[#This Row],[ID]]) -> 1 | O32: 0
A33: Cerium(III) acetate hydrate (Ce(Ac)3) | B33: C6H11CeO7 | C33: ICH00028 | D33: 17829-82-2 | F33: CeO2 | G33: Molbase | H33: 3.5 | L33: =COUNTIF(INDIRECT(ADDRESS(DChI_StartRow+1,1,1,1,"DChI"),TRUE):INDIRECT(ADDRESS(DChI_RemRow-1,1,1,1,"DChI"),TRUE),DChI_Tab[[#This Row],[NAME]]) -> 1 | M33: 0 | N33: =COUNTIF(INDIRECT(ADDRESS(DChI_StartRow+1,3,1,1,"DChI"),TRUE):INDIRECT(ADDRESS(DChI_RemRow-1,3,1,1,"DChI"),TRUE),DChI_Tab[[#This Row],[ID]]) -> 1 | O33: 0
A34: Diammonium phosphate | B34: (NH4)2HPO4 | C34: ICH00029 | D34: 287488-11-3 | F34: HA | G34: Molbase | H34: 0.75 | L34: =COUNTIF(INDIRECT(ADDRESS(DChI_StartRow+1,1,1,1,"DChI"),TRUE):INDIRECT(ADDRESS(DChI_RemRow-1,1,1,1,"DChI"),TRUE),DChI_Tab[[#This Row],[NAME]]) -> 1 | M34: 0 | N34: =COUNTIF(INDIRECT(ADDRESS(DChI_StartRow+1,3,1,1,"DChI"),TRUE):INDIRECT(ADDRESS(DChI_RemRow-1,3,1,1,"DChI"),TRUE),DChI_Tab[[#This Row],[ID]]) -> 1 | O34: 0
A35: Calcium nitrate tetrahydrate | B35: Ca(NO3)2.4H2O | C35: ICH00030 | D35: 13477-34-4 | F35: HA | G35: Molbase | H35: 0.18 | L35: =COUNTIF(INDIRECT(ADDRESS(DChI_StartRow+1,1,1,1,"DChI"),TRUE):INDIRECT(ADDRESS(DChI_RemRow-1,1,1,1,"DChI"),TRUE),DChI_Tab[[#This Row],[NAME]]) -> 1 | M35: 0 | N35: =COUNTIF(INDIRECT(ADDRESS(DChI_StartRow+1,3,1,1,"DChI"),TRUE):INDIRECT(ADDRESS(DChI_RemRow-1,3,1,1,"DChI"),TRUE),DChI_Tab[[#This Row],[ID]]) -> 1 | O35: 0
A36: Ammonium hydroxide | B36: NH4OH | C36: ICH00031 | D36: 1336-21-6 | F36: HA | G36: Molbase | H36: 0.32 | L36: =COUNTIF(INDIRECT(ADDRESS(DChI_StartRow+1,1,1,1,"DChI"),TRUE):INDIRECT(ADDRESS(DChI_RemRow-1,1,1,1,"DChI"),TRUE),DChI_Tab[[#This Row],[NAME]]) -> 1 | M36: 0 | N36: =COUNTIF(INDIRECT(ADDRESS(DChI_StartRow+1,3,1,1,"DChI"),TRUE):INDIRECT(ADDRESS(DChI_RemRow-1,3,1,1,"DChI"),TRUE),DChI_Tab[[#This Row],[ID]]) -> 1 | O36: 0
A37: Terepthalic acid | B37: C8H6O4 | C37: ICH00032 | D37: 100-21-0 | F37: ZIF8 | G37: ICIS | H37: 0.69 | L37: =COUNTIF(INDIRECT(ADDRESS(DChI_StartRow+1,1,1,1,"DChI"),TRUE):INDIRECT(ADDRESS(DChI_RemRow-1,1,1,1,"DChI"),TRUE),DChI_Tab[[#This Row],[NAME]]) -> 1 | M37: 0 | N37: =COUNTIF(INDIRECT(ADDRESS(DChI_StartRow+1,3,1,1,"DChI"),TRUE):INDIRECT(ADDRESS(DChI_RemRow-1,3,1,1,"DChI"),TRUE),DChI_Tab[[#This Row],[ID]]) -> 1 | O37: =IF(N37>1,1,0) -> 0
A38: Hydrochloric acid | B38: HCl | C38: ICH00033 | G38: Promethean Supplier | H38: 0.198 | L38: =COUNTIF(INDIRECT(ADDRESS(DChI_StartRow+1,1,1,1,"DChI"),TRUE):INDIRECT(ADDRESS(DChI_RemRow-1,1,1,1,"DChI"),TRUE),DChI_Tab[[#This Row],[NAME]]) -> 1 | M38: =IF(L38>1,1,0) -> 0 | N38: =COUNTIF(INDIRECT(ADDRESS(DChI_StartRow+1,3,1,1,"DChI"),TRUE):INDIRECT(ADDRESS(DChI_RemRow-1,3,1,1,"DChI"),TRUE),DChI_Tab[[#This Row],[ID]]) -> 1 | O38: =IF(N38>1,1,0) -> 0
A39: ="The database contains "&SUBTOTAL(103,DChI_Tab[NAME])&" input(s)" -> The database contains 32 input(s) | K39: =ROW(DChI_RemRow) -> 39

Sheet DChO
A2: DATABASE of OUTPUTS
A4: =IF(AND(M5<>0,O5<>0)=TRUE,"Name/ID of chemicals must be unique!!!",IF(M5<>0,"Name of chemicals must be unique!!!",IF(O5<>0,"ID of chemicals must be unique!!!",""))) -> 
A5: NAME | B5: FORMULA / DESIGNATION | C5: ID | D5: CAS NUMBER | E5: TYPE | F5: STB / UNSTB | G5: NANOPARTICLES | H5: CUSTOMER | I5: PRICE / UNIT | J5: NOTES | L5: =ROW(DChO_StartRow) -> 5 | M5: =IF(MAX(M6:M18)>1,1,0) -> 0 | O5: =IF(MAX(O6:O18)>1,1,0) -> 0
A6: TiO2 (TiOS) (wt 2%) | B6: TiO2 | C6: OCH00001 | E6: Semi-product | F6: Unstable | G6: TiO2 | I6: 0 | M6: =COUNTIF(INDIRECT(ADDRESS(DChO_StartRow+1,1,1,1,"DChO"),TRUE):INDIRECT(ADDRESS(DChO_RemRow-1,1,1,1,"DChO"),TRUE),DChO_Tab[[#This Row],[NAME]]) -> 1 | N6: =IF(M6>1,1,0) -> 0 | O6: =COUNTIF(INDIRECT(ADDRESS(DChO_StartRow+1,3,1,1,"DChO"),TRUE):INDIRECT(ADDRESS(DChO_RemRow-1,3,1,1,"DChO"),TRUE),DChO_Tab[[#This Row],[ID]]) -> 1 | P6: =IF(O6>1,1,0) -> 0
A7: TiO2 (TiOS - 400C) (wt 8%) | B7: TiO2 | C7: OCH00002 | E7: Product | F7: Unstable | G7: TiO2 | I7: 25 | M7: =COUNTIF(INDIRECT(ADDRESS(DChO_StartRow+1,1,1,1,"DChO"),TRUE):INDIRECT(ADDRESS(DChO_RemRow-1,1,1,1,"DChO"),TRUE),DChO_Tab[[#This Row],[NAME]]) -> 1 | N7: 0 | O7: =COUNTIF(INDIRECT(ADDRESS(DChO_StartRow+1,3,1,1,"DChO"),TRUE):INDIRECT(ADDRESS(DChO_RemRow-1,3,1,1,"DChO"),TRUE),DChO_Tab[[#This Row],[ID]]) -> 1 | P7: =IF(O7>1,1,0) -> 0
A8: TiO2 (TiOS - 350C) (wt 8%) | B8: TiO2 | C8: OCH00003 | E8: Product | F8: Unstable | G8: TiO2 | I8: 25 | M8: =COUNTIF(INDIRECT(ADDRESS(DChO_StartRow+1,1,1,1,"DChO"),TRUE):INDIRECT(ADDRESS(DChO_RemRow-1,1,1,1,"DChO"),TRUE),DChO_Tab[[#This Row],[NAME]]) -> 1 | N8: 0 | O8: =COUNTIF(INDIRECT(ADDRESS(DChO_StartRow+1,3,1,1,"DChO"),TRUE):INDIRECT(ADDRESS(DChO_RemRow-1,3,1,1,"DChO"),TRUE),DChO_Tab[[#This Row],[ID]]) -> 1 | P8: =IF(O8>1,1,0) -> 0
A9: TiO2 (TiOS - 300C) (wt 8%) | B9: TiO2 | C9: OCH00004 | E9: Product | F9: Unstable | G9: TiO2 | I9: 25 | M9: =COUNTIF(INDIRECT(ADDRESS(DChO_StartRow+1,1,1,1,"DChO"),TRUE):INDIRECT(ADDRESS(DChO_RemRow-1,1,1,1,"DChO"),TRUE),DChO_Tab[[#This Row],[NAME]]) -> 1 | N9: 0 | O9: =COUNTIF(INDIRECT(ADDRESS(DChO_StartRow+1,3,1,1,"DChO"),TRUE):INDIRECT(ADDRESS(DChO_RemRow-1,3,1,1,"DChO"),TRUE),DChO_Tab[[#This Row],[ID]]) -> 1 | P9: 0
A10: TiO2 (TiOS - 250C) (wt 8%) | B10: TiO2 | C10: OCH00005 | E10: Product | F10: Unstable | G10: TiO2 | I10: 25 | M10: =COUNTIF(INDIRECT(ADDRESS(DChO_StartRow+1,1,1,1,"DChO"),TRUE):INDIRECT(ADDRESS(DChO_RemRow-1,1,1,1,"DChO"),TRUE),DChO_Tab[[#This Row],[NAME]]) -> 1 | N10: 0 | O10: =COUNTIF(INDIRECT(ADDRESS(DChO_StartRow+1,3,1,1,"DChO"),TRUE):INDIRECT(ADDRESS(DChO_RemRow-1,3,1,1,"DChO"),TRUE),DChO_Tab[[#This Row],[ID]]) -> 1 | P10: 0
A11: TiO2 (TiOS - 200C) (wt 8%) | B11: TiO2 | C11: OCH00006 | E11: Product | F11: Unstable | G11: TiO2 | I11: 25 | M11: =COUNTIF(INDIRECT(ADDRESS(DChO_StartRow+1,1,1,1,"DChO"),TRUE):INDIRECT(ADDRESS(DChO_RemRow-1,1,1,1,"DChO"),TRUE),DChO_Tab[[#This Row],[NAME]]) -> 1 | N11: 0 | O11: =COUNTIF(INDIRECT(ADDRESS(DChO_StartRow+1,3,1,1,"DChO"),TRUE):INDIRECT(ADDRESS(DChO_RemRow-1,3,1,1,"DChO"),TRUE),DChO_Tab[[#This Row],[ID]]) -> 1 | P11: 0
A12: ZrO2 (Zr(AC)) (wt 2%) | B12: ZrO2 | C12: OCH00007 | E12: Semi-product | F12: Stable | G12: ZrO2 | I12: 0 | M12: =COUNTIF(INDIRECT(ADDRESS(DChO_StartRow+1,1,1,1,"DChO"),TRUE):INDIRECT(ADDRESS(DChO_RemRow-1,1,1,1,"DChO"),TRUE),DChO_Tab[[#This Row],[NAME]]) -> 1 | N12: =IF(M12>1,1,0) -> 0 | O12: =COUNTIF(INDIRECT(ADDRESS(DChO_StartRow+1,3,1,1,"DChO"),TRUE):INDIRECT(ADDRESS(DChO_RemRow-1,3,1,1,"DChO"),TRUE),DChO_Tab[[#This Row],[ID]]) -> 1 | P12: 0
A13: ZrO2 (Zr(AC) - xxxC) (wt 8%) | B13: ZrO2 | C13: OCH00008 | E13: Product | F13: Stable | G13: ZrO2 | I13: 35 | M13: =COUNTIF(INDIRECT(ADDRESS(DChO_StartRow+1,1,1,1,"DChO"),TRUE):INDIRECT(ADDRESS(DChO_RemRow-1,1,1,1,"DChO"),TRUE),DChO_Tab[[#This Row],[NAME]]) -> 1 | N13: 0 | O13: =COUNTIF(INDIRECT(ADDRESS(DChO_StartRow+1,3,1,1,"DChO"),TRUE):INDIRECT(ADDRESS(DChO_RemRow-1,3,1,1,"DChO"),TRUE),DChO_Tab[[#This Row],[ID]]) -> 1 | P13: 0
A14: ZnO - (Zn(NO3)2 - 400C) (wt 2%) | B14: ZnO | C14: OCH00009 | E14: Semi-product | F14: Unstable | G14: ZnO | I14: 0 | M14: =COUNTIF(INDIRECT(ADDRESS(DChO_StartRow+1,1,1,1,"DChO"),TRUE):INDIRECT(ADDRESS(DChO_RemRow-1,1,1,1,"DChO"),TRUE),DChO_Tab[[#This Row],[NAME]]) -> 1 | N14: 0 | O14: =COUNTIF(INDIRECT(ADDRESS(DChO_StartRow+1,3,1,1,"DChO"),TRUE):INDIRECT(ADDRESS(DChO_RemRow-1,3,1,1,"DChO"),TRUE),DChO_Tab[[#This Row],[ID]]) -> 1 | P14: =IF(O14>1,1,0) -> 0
A15: ZnO - (Zn(NO3)2 - 400C) (wt 3,4%) | B15: ZnO | C15: OCH00010 | E15: Product | F15: Unstable | G15: ZnO | I15: 35 | M15: =COUNTIF(INDIRECT(ADDRESS(DChO_StartRow+1,1,1,1,"DChO"),TRUE):INDIRECT(ADDRESS(DChO_RemRow-1,1,1,1,"DChO"),TRUE),DChO_Tab[[#This Row],[NAME]]) -> 1 | N15: 0 | O15: =COUNTIF(INDIRECT(ADDRESS(DChO_StartRow+1,3,1,1,"DChO"),TRUE):INDIRECT(ADDRESS(DChO_RemRow-1,3,1,1,"DChO"),TRUE),DChO_Tab[[#This Row],[ID]]) -> 1 | P15: =IF(O15>1,1,0) -> 0
A16: LiFePO4 - (400C) (wt x,x%) | B16: LiFePO4 | C16: OCH00011 | E16: Semi-product | F16: Unstable | G16: LiFePO4 | I16: 0 | M16: =COUNTIF(INDIRECT(ADDRESS(DChO_StartRow+1,1,1,1,"DChO"),TRUE):INDIRECT(ADDRESS(DChO_RemRow-1,1,1,1,"DChO"),TRUE),DChO_Tab[[#This Row],[NAME]]) -> 1 | N16: 0 | O16: =COUNTIF(INDIRECT(ADDRESS(DChO_StartRow+1,3,1,1,"DChO"),TRUE):INDIRECT(ADDRESS(DChO_RemRow-1,3,1,1,"DChO"),TRUE),DChO_Tab[[#This Row],[ID]]) -> 1 | P16: =IF(O16>1,1,0) -> 0
A17: LiFePO4 - (400C) (wt 9.5%) | B17: LiFePO4 | C17: OCH00012 | E17: Product | F17: Unstable | G17: LiFePO4 | I17: 22 | M17: =COUNTIF(INDIRECT(ADDRESS(DChO_StartRow+1,1,1,1,"DChO"),TRUE):INDIRECT(ADDRESS(DChO_RemRow-1,1,1,1,"DChO"),TRUE),DChO_Tab[[#This Row],[NAME]]) -> 1 | N17: 0 | O17: =COUNTIF(INDIRECT(ADDRESS(DChO_StartRow+1,3,1,1,"DChO"),TRUE):INDIRECT(ADDRESS(DChO_RemRow-1,3,1,1,"DChO"),TRUE),DChO_Tab[[#This Row],[ID]]) -> 1 | P17: =IF(O17>1,1,0) -> 0
A18: ="The database contains "&SUBTOTAL(103,DChO_Tab[NAME])&" output(s)" -> The database contains 12 output(s) | L18: =ROW(DChO_RemRow) -> 18

Sheet DE
A2: DATABASE of EQUIPMENT
D3: SET DEP. PERIOD | E3: ELECTRICITY PRICE | F3: GAS PRICE
D4: 3 | E4: 0.13 | F4: 0.043
A5: NANO-PRODUCTION EQUIPMENT | B5: DESIGNATION | C5: PURCHASE PRICE | D5: DEP. PERIOD | E5: POWER CONS. | F5: GAS CONS. | G5: BASIC | H5: NOTES
A6: Sloupec1 | B6: Sloupec2 | C6: Sloupec3 | D6: ON | E6: Sloupec4 | F6: Sloupec5 | G6: Sloupec6 | H6: Sloupec7 | J6: =ROW(J6) -> 6
A7: Fittings | B7: Fitt | C7: 20804.88 | D7: 3 | E7: 0 | F7: 0 | G7: B
A8: Pipework | B8: PipeW | C8: 15898.44 | D8: 3 | E8: 0 | F8: 0 | G8: B
A9: Standard Valves | B9: Svalves | C9: 25879.73 | D9: 3 | E9: 2.2 | F9: 0 | G9: B
A10: BPR Valves | B10: Bvalves | C10: 9775 | D10: 3 | E10: 0 | F10: 0 | G10: B
A11: Structure | B11: Structure | C11: 14952 | D11: 3 | E11: 0 | F11: 0 | G11: B
A12: Tanks | B12: Tanks | C12: 21408 | D12: 3 | E12: 0.25 | F12: 0 | G12: B | H12: Power Cons. = Mixing
A13: Agitators | B13: Agitators | C13: 2880 | D13: 3 | E13: 0 | F13: 0 | G13: B
A14: Heat Exchanger | B14: E-201 | C14: 33670 | D14: 3 | E14: 0 | F14: 0 | G14: B
A15: Heat Exchanger | B15: E-310 | C15: 26911.2 | D15: 3 | E15: 0 | F15: 0 | G15: B
A16: Pump 101 | B16: P-101 | C16: 359.33 | D16: 3 | E16: 4 | F16: 0 | G16: B
A17: Pump 103 | B17: P-103 | C17: 359.33 | D17: 3 | E17: 4 | F17: 0 | G17: B
A18: Pump 105 | B18: P-105 | C18: 374.26 | D18: 3 | E18: 4 | F18: 0 | G18: B
A19: Pump 107 | B19: P-107 | C19: 370.42 | D19: 3 | E19: 4 | F19: 0 | G19: B
A20: Pump 301 | B20: P-301 | C20: 1000 | D20: 3 | E20: 4 | F20: 0 | G20: B
A21: Pump 102 | B21: P-102 | C21: 22398 | D21: 3 | E21: 18.5 | F21: 0 | G21: B
A22: Pump 104 | B22: P-104 | C22: 22398 | D22: 3 | E22: 18.5 | F22: 0 | G22: B
A23: Pump 106 | B23: P-106 | C23: 16614 | D23: 3 | E23: 18.5 | F23: 0 | G23: B
A24: Pump 108 | B24: P-108 | C24: 45306 | D24: 3 | E24: 18.5 | F24: 0 | G24: B
A25: Level Control | B25: L-control | C25: 2516.88 | D25: 3 | E25: 0 | F25: 0 | G25: B
A26: Flow Control | B26: F-control | C26: 13981.2 | D26: 3 | E26: 0 | F26: 0 | G26: B
A27: Pressure Control | B27: P-control | C27: 3025.73 | D27: 3 | E27: 0 | F27: 0 | G27: B
A28: Control Panel 1 | B28: CP-1 | C28: 3798 | D28: 3 | E28: 0 | F28: 0 | G28: B
A29: Control Panel 2 | B29: CP-2 | C29: 4170 | D29: 3 | E29: 0 | F29: 0 | G29: B
A30: Control Panel 3 | B30: CP-3 | C30: 3798 | D30: 3 | E30: 0 | F30: 0 | G30: B
A31: PLC HMI Panel | B31: PLC | C31: 9330 | D31: 3 | E31: 0 | F31: 0 | G31: B
A32: Software HMI inc Hardware | B32: Software | C32: 15414 | D32: 3 | E32: 0 | F32: 0 | G32: B
A33: DI Water System | B33: DIWS | C33: 31189.2 | D33: 3 | E33: 1.5 | F33: 0 | G33: B
A34: Cooling Water System | B34: CWS | C34: 24332.4 | D34: 3 | E34: 10.15 | F34: 0 | G34: B
A35: Equipment Installation | B35: Install | C35: 40000 | D35: 3 | E35: 0 | F35: 0 | G35: B
A36: Neutralization Equipment | B36: Neu-E | C36: 4040.5 | D36: 3 | E36: 1.5 | F36: 0 | G36: B
A37: ="The database contains "&SUBTOTAL(103,DE_TabR[Sloupec1])&" equipment(s)" -> The database contains 30 equipment(s) | J37: =ROW(DE_RemRowNP) -> 37
A38: Sloupec1 | B38: Sloupec2 | C38: Sloupec3 | D38: Sloupec4 | E38: Sloupec5 | F38: Sloupec6 | G38: Sloupec7 | H38: Sloupec8
A39: Heater + Contingency | B39: Heater | C39: 275724 | D39: 3 | E39: 4
A40: POST-PROCESS EQUIPMENT | B40: DESIGNATION | C40: PURCHASE PRICE | D40: OPERATIONS HOURS | H40: NOTES
A41: Sloupec1 | B41: Sloupec2 | C41: Sloupec3 | D41: Sloupec4 | E41: Sloupec5 | F41: Sloupec6 | G41: Sloupec7 | H41: Sloupec8 | J41: =ROW(DE_StartRowPP) -> 41
A42: Filtr 101 | B42: F-101 | C42: 9000 | D42: 10000
A43: Filtr 102A | B43: F-102A | C43: 3000 | D43: 6000
A44: Filtr 102B | B44: F-102B | C44: 3000 | D44: 3000
A45: ="The database contains "&SUBTOTAL(103,DE_TabP[Sloupec1])&" equipment(s)" -> The database contains 3 equipment(s) | J45: =ROW(DE_RemRowPP) -> 45

Sheet DS
A2: DATABASE of STAFF | E2: Σ STAFF COSTS | F2: =DS_Tab[[#Totals],[COSTS]] -> 180820
A4: =IF(I5<>0,IF(K5<>0,"Check number of workers!!!",""),"") -> 
A5: POSITION | B5: SW | C5: ANNUAL WAGE | D5: OTHER | E5: COSTS | F5: NOTES | H5: =ROW(DS_StartRow) -> 5 | I5: =SUM(I6:I10) -> 0 | K5: =SUM(K6:K10) -> 0
A6: Postdoc | B6: 1 | C6: 33000 | D6: 10490 | E6: =C6+D6 -> 43490 | I6: =IF(B6=">1",IF(DS_NoS>1,1,0),0) -> 0 | J6: =COUNTIF(INDIRECT(ADDRESS(DS_StartRow+1,1,1,1,"DS"),TRUE):INDIRECT(ADDRESS(DS_RemRow-1,1,1,1,"DS"),TRUE),A6) -> 1 | K6: =IF(B6=">1",IF(J6>=DS_NoS,0,1),0) -> 0
A7: Intern | B7: 1 | C7: 16000 | D7: 5280 | E7: =C7+D7 -> 21280 | I7: =IF(B7=">1",IF(DS_NoS>1,1,0),0) -> 0 | J7: =COUNTIF(INDIRECT(ADDRESS(DS_StartRow+1,1,1,1,"DS"),TRUE):INDIRECT(ADDRESS(DS_RemRow-1,1,1,1,"DS"),TRUE),A7) -> 1 | K7: =IF(B7=">1",IF(J7>=DS_NoS,0,1),0) -> 0
A8: Engineer | B8: 1 | C8: 35000 | D8: 11550 | E8: =C8+D8 -> 46550 | I8: =IF(B8=">1",IF(DS_NoS>1,1,0),0) -> 0 | J8: =COUNTIF(INDIRECT(ADDRESS(DS_StartRow+1,1,1,1,"DS"),TRUE):INDIRECT(ADDRESS(DS_RemRow-1,1,1,1,"DS"),TRUE),A8) -> 1 | K8: =IF(B8=">1",IF(J8>=DS_NoS,0,1),0) -> 0
A9: Manager | B9: 1 | C9: 50000 | D9: 19500 | E9: =C9+D9 -> 69500 | I9: =IF(B9=">1",IF(DS_NoS>1,1,0),0) -> 0 | J9: =COUNTIF(INDIRECT(ADDRESS(DS_StartRow+1,1,1,1,"DS"),TRUE):INDIRECT(ADDRESS(DS_RemRow-1,1,1,1,"DS"),TRUE),A9) -> 1 | K9: =IF(B9=">1",IF(J9>=DS_NoS,0,1),0) -> 0
A10: ="The database contains "&SUBTOTAL(103,DS_Tab[POSITION])&" position(s)" -> The database contains 4 position(s) | C10: =SUBTOTAL(109,DS_Tab[ANNUAL WAGE]) -> 134000 | D10: =SUBTOTAL(109,DS_Tab[OTHER]) -> 46820 | E10: =SUBTOTAL(109,DS_Tab[COSTS]) -> 180820 | H10: =ROW(DS_RemRow) -> 10
A12: CAPACITY
A13: Days | C13: 300
A14: Working Hours | C14: 8
A15: Worker capacity | C15: =C13*C14 -> 2400
A16: Nano-process capacity | C16: =O_CapR -> 2080
A17: Filtration capacity | C17: =O_CapPF -> 6240
A19: Number of shifts | B19: =DS_NoS*C15 -> 7200 | C19: =CEILING(MAX(C16:C17)/C15,1) -> 3

Sheet DO
A2: DATABASE of OTHER COSTS | B2: Σ OTHER COSTS | C2: =DO_HTab[[#Totals],[1]]+DO_STab[[#Totals],[1]]+DO_SOTab[[#Totals],[1]] -> 152966.6667
A5: COST ITEM | B5: ANNUAL COSTS | C5: NOTES
A6: HARDWARE / SOFTWARE | B6: 1 | C6: 2 | E6: =ROW(DO_StartRowH) -> 6
A7: Depreciation hardware
A8: Rental hardware
A9: Maintenance (hardware)
A10: Maintenance, upgrade (sofware)
A11: Small assets
A12: Overhead material
A13: Laboratory equipment | B13: 1000
A14: ∑ Total | B14: =SUBTOTAL(109,DO_HTab[1]) -> 1000 | E14: =ROW(E14) -> 14
A15: COST OF SPACE | B15: 1 | C15: 2 | E15: =ROW(DO_StartRowS) -> 15
A16: Depreciation on buildings | B16: 0
A17: Repair, maintenance | B17: 500
A18: Heating | B18: 2000
A19: Energy | B19: 2000
A20: Gas | B20: 1000
A21: Water | B21: 1000
A22: Security | B22: 1000
A23: Cleaning of buildings | B23: 500
A24: Insurance | B24: 3000
A25: Property tax | B25: 15000
A26: Rent of space | B26: 40000
A27: Electrical Supply | B27: =14000/30 -> 466.6666667
A28: Gas Supply | B28: =10000/30 -> 333.3333333
A29: Water Supply | B29: =3000/30 -> 100
A30: Floor Structural Survey | B30: =2000/30 -> 66.66666667
A31: ∑ Total | B31: =SUBTOTAL(109,DO_STab[1]) -> 66966.66667 | E31: =ROW(DO_RemRowS) -> 31
A32: COST OF SERVICES AND OTHER COSTS | B32: 1 | C32: 2 | E32: =ROW(DO_StartRowSO) -> 32
A33: Telecommunications costs | B33: 2000
A34: Water and sewerage
A35: Financial costs | B35: 5000
A36: Compliance regulatory | B36: 1000
A37: Administrative
A38: Electrical Supply | B38: 14000
A39: Gas Supply | B39: 10000
A40: Water Supply | B40: 3000
A41: Floor Structural Survey | B41: 2000
A42: Accounting, tax, audit | B42: 3000
A43: Legal services, patent fees, etc. | B43: 20000
A44: Marketing and distribution costs | B44: 5000 | C44: Posters, web design, advertising,…
A45: Travel costs | B45: 15000
A46: Laboratory tests | B46: 5000
A47: ∑ Total | B47: =SUBTOTAL(109,DO_SOTab[1]) -> 85000 | E47: =ROW(DO_RemRowSO) -> 47

Sheet PM
A2: PROCESS MENU
D4: Blue text is hypertext | F4: =PM_RemRow-1-PM_StartRow -> 8 | J4: 11 | K4: 12 | L4: 13 | M4: 14 | N4: 15 | O4: 16 | P4: 17 | Q4: 18 | R4: 19 | S4: 20 | T4: 21 | U4: 22 | V4: 23 | W4: 24 | X4: 25 | Y4: 26 | Z4: 27
A5: PROCESS | B5: ID | C5: PRODUCT | D5: NOTES | F5: =ROW(PM_StartRow) -> 5 | G5: 8 | H5: Proc | I5: Prod | J5: Prod | K5: Type | L5: OutNPs | M5: OutPPF | N5: OutPPS | O5: Den | P5: OutF/S | Q5: TPPF/S | R5: STNP | S5: STPPF | T5: InNP | U5: DepNP | V5: En | W5: Gas | X5: InPPF | Y5: DepPPF | Z5: InNeu
A6: TiO2 - TiOS 400C | B6: P00001 | C6: =IF(ISERROR(J6)=TRUE,"-",J6) -> TiO2 (TiOS - 400C) (wt 8%) | F6: 1 | G6: ="P"&F6 -> P1 | H6: =PM_Tab[ID] -> P00001 | I6: =PM_Tab[PROCESS] -> TiO2 - TiOS 400C | J6: =IF(ISERROR(INDIRECT(ADDRESS(2,J$4,1,1,$G6),TRUE))=TRUE,"-",INDIRECT(ADDRESS(2,J$4,1,1,$G6),TRUE)) -> TiO2 (TiOS - 400C) (wt 8%) | K6: Unstable | L6: 59.9 | M6: 0 | N6: 79.86666667 | O6: 4500 | P6: 500 | Q6: 0.01252086811 | R6: 0.1 | S6: 0.1 | T6: 1035.016848 | U6: 121.471875 | V6: 9.921665 | W6: 49.45 | X6: 0 | Y6: 0 | Z6: 12.95262571 | AA6: 1
A7: TiO2 - TiOS 350C | B7: P00002 | C7: TiO2 (TiOS - 350C) (wt 8%) | F7: 2 | G7: P2 | H7: =PM_Tab[ID] -> P00002 | I7: =PM_Tab[PROCESS] -> TiO2 - TiOS 350C | J7: =IF(ISERROR(INDIRECT(ADDRESS(2,J$4,1,1,$G7),TRUE))=TRUE,"-",INDIRECT(ADDRESS(2,J$4,1,1,$G7),TRUE)) -> TiO2 (TiOS - 350C) (wt 8%) | K7: Unstable | L7: 58.7 | M7: 0 | N7: 78.26666667 | O7: 4500 | P7: 500 | Q7: 0.01277683135 | R7: 0.1 | S7: 0.1 | T7: =IF(ISERROR(INDIRECT(ADDRESS(2,T$4,1,1,$G7),TRUE))=TRUE,"-",INDIRECT(ADDRESS(2,T$4,1,1,$G7),TRUE)) -> 1035.016848 | U7: 121.471875 | V7: 9.921665 | W7: 40.85 | X7: 0 | Y7: 0 | Z7: 12.95262571 | AA7: 0
A8: TiO2 - TiOS 300C | B8: P00003 | C8: TiO2 (TiOS - 300C) (wt 8%) | F8: 3 | G8: P3 | H8: =PM_Tab[ID] -> P00003 | I8: =PM_Tab[PROCESS] -> TiO2 - TiOS 300C | J8: TiO2 (TiOS - 300C) (wt 8%) | K8: Unstable | L8: 59.9 | M8: 0 | N8: 79.86666667 | O8: 4500 | P8: 500 | Q8: 0.01252086811 | R8: 0.1 | S8: 0.1 | T8: 1035.016848 | U8: 121.471875 | V8: 9.921665 | W8: 28.165 | X8: 0 | Y8: 0 | Z8: 12.95262571 | AA8: 0
A9: TiO2 - TiOS 250C | B9: P00004 | C9: TiO2 (TiOS - 250C) (wt 8%) | F9: 4 | G9: P4 | H9: =PM_Tab[ID] -> P00004 | I9: =PM_Tab[PROCESS] -> TiO2 - TiOS 250C | J9: TiO2 (TiOS - 250C) (wt 8%) | K9: Unstable | L9: 59.9 | M9: 0 | N9: 79.86666667 | O9: 4500 | P9: 500 | Q9: 0.01252086811 | R9: 0.1 | S9: 0.1 | T9: 1035.016848 | U9: 121.471875 | V9: 9.921665 | W9: 22.575 | X9: 0 | Y9: 0 | Z9: 12.95262571 | AA9: 0
A10: TiO2 - TiOS 200C | B10: P00005 | C10: TiO2 (TiOS - 200C) (wt 8%) | F10: 5 | G10: P5 | H10: =PM_Tab[ID] -> P00005 | I10: =PM_Tab[PROCESS] -> TiO2 - TiOS 200C | J10: TiO2 (TiOS - 200C) (wt 8%) | K10: Unstable | L10: 41.33 | M10: 0 | N10: 55.10666667 | O10: 4500 | P10: 500 | Q10: 0.01814662473 | R10: 0.1 | S10: 0.1 | T10: 1035.016848 | U10: 121.471875 | V10: 9.921665 | W10: 16.555 | X10: 0 | Y10: 0 | Z10: 12.95262571 | AA10: 0
A11: ZrO2 - Zr(AC) xxxC | B11: P00006 | C11: ZrO2 (Zr(AC) - xxxC) (wt 8%) | F11: 6 | G11: P6 | H11: =PM_Tab[ID] -> P00006 | I11: =PM_Tab[PROCESS] -> ZrO2 - Zr(AC) xxxC | J11: =IF(ISERROR(INDIRECT(ADDRESS(2,J$4,1,1,$G11),TRUE))=TRUE,"-",INDIRECT(ADDRESS(2,J$4,1,1,$G11),TRUE)) -> ZrO2 (Zr(AC) - xxxC) (wt 8%) | K11: Stable | L11: 92.41 | M11: 92.41 | N11: 0 | O11: 4593.300305 | P11: 813 | Q11: 3 | R11: 0.1 | S11: 0.1 | T11: 866.7341875 | U11: 121.471875 | V11: 9.937265 | W11: 43.1634 | X11: 0.05892219457 | Y11: 14.1 | Z11: 0.21371405 | AA11: 0
A12: ZnO - Zn(NO3)2 400C | B12: P00007 | C12: =IF(ISERROR(J12)=TRUE,"-",J12) -> ZnO - (Zn(NO3)2 - 400C) (wt 3,4%) | F12: 7 | G12: ="P"&F12 -> P7 | H12: =PM_Tab[ID] -> P00007 | I12: =PM_Tab[PROCESS] -> ZnO - Zn(NO3)2 400C | J12: =IF(ISERROR(INDIRECT(ADDRESS(2,J$4,1,1,$G12),TRUE))=TRUE,"-",INDIRECT(ADDRESS(2,J$4,1,1,$G12),TRUE)) -> ZnO - (Zn(NO3)2 - 400C) (wt 3,4%) | K12: Unstable | L12: 30.53 | M12: 0 | N12: 39.86593832 | O12: 4594.9 | P12: 900 | Q12: 0.02508407031 | R12: 0.1 | S12: 0.1 | T12: 251.0178242 | U12: 121.471875 | V12: 9.969765 | W12: 49.45 | X12: 0 | Y12: 0 | Z12: 0 | AA12: 0
A13: LiFePO4 - 400C | B13: P00008 | C13: =IF(ISERROR(J13)=TRUE,"-",J13) -> LiFePO4 - (400C) (wt 9.5%) | F13: 8 | G13: ="P"&F13 -> P8 | H13: =PM_Tab[ID] -> P00008 | I13: =PM_Tab[PROCESS] -> LiFePO4 - 400C | J13: =IF(ISERROR(INDIRECT(ADDRESS(2,J$4,1,1,$G13),TRUE))=TRUE,"-",INDIRECT(ADDRESS(2,J$4,1,1,$G13),TRUE)) -> LiFePO4 - (400C) (wt 9.5%) | K13: Unstable | L13: 47.33 | M13: 0 | N13: 61.21208463 | O13: 4639.28 | P13: 500 | Q13: 0.01633664343 | R13: 0.1 | S13: 0.1 | T13: 1056.045384 | U13: 121.471875 | V13: 12.357865 | W13: 49.45 | X13: 0 | Y13: 0 | Z13: 0 | AA13: 0
A14: ="The database contains "&SUBTOTAL(103,PM_Tab[PROCESS])&" processe(s)" -> The database contains 8 processe(s) | F14: =ROW(PM_RemRow) -> 14 | AA14: 0

Sheet P (hidden)
B1: ="PROCESS " & VLOOKUP(J2,INDIRECT(ADDRESS(PM!PM_StartRow+1,7,1,1,"PM"),TRUE):INDIRECT(ADDRESS(PM!PM_RemRow-1,8,1,1,"PM"),TRUE),2,FALSE) ->  | J1: Proc | K1: Prod | L1: Type | M1: OutNPs | N1: OutPPF | O1: OutPPS | P1: Den | Q1: OutF/S | R1: TPPF/S | S1: STNP | T1: STPPF | U1: InNP | V1: DepNP | W1: En | X1: Gas | Y1: InPPF | Z1: DepPPF | AA1: InNeu
J2: P | K2: =IF(P_PPFiltr="Stable",B42,B49) -> 0 | L2: =P_PPFiltr -> - | M2: =G22 -> 0 | N2: =P_OutputPPFUN -> 0 | O2: =E46 -> 0 | P2: =IF(ISERROR(E22/H22*1000)=TRUE,0,E22/H22*1000) -> 0 | Q2: =IF(P_PPFiltr="-",0,IF(P_PPFiltr="Stable",C42,C49)) -> 0 | R2: =IF(P_PPFiltr="-",0,IF(P_PPFiltr="Stable",H27,(E22*H46)/(B46*P_OutputNPs))) -> 0 | S2: =H8 -> 0 | T2: =H24 -> 0 | U2: =P_TabIPNP10[[#Totals],[COST]] -> 0 | V2: =C19 -> 44.18653846 | W2: =E19 -> 0 | X2: =G19 -> 0 | Y2: =P_TabIPPPF13[[#Totals],[COST]] -> 0 | Z2: =P_TabEPPPF12[[#Totals],[DEPRECIATION / 1H NP]] -> 0 | AA2: =P_TabINeu14[[#Totals],[COST]] -> 0
J3: 10 | K3: 11 | L3: 12 | M3: 13 | N3: 14 | O3: 15 | P3: 16 | Q3: 17 | R3: 18 | S3: 19 | T3: 20 | U3: 21 | V3: 22 | W3: 23 | X3: 24 | Y3: 25 | Z3: 26 | AA3: 27
B4: =IF(ISERROR(VLOOKUP(J2,INDIRECT(ADDRESS(PM!PM_StartRow+1,7,1,1,"PM"),TRUE):INDIRECT(ADDRESS(PM!PM_RemRow-1,9,1,1,"PM"),TRUE),3,FALSE))=TRUE,"-",IF(VLOOKUP(J2,INDIRECT(ADDRESS(PM!PM_StartRow+1,7,1,1,"PM"),TRUE):INDIRECT(ADDRESS(PM!PM_RemRow-1,9,1,1,"PM"),TRUE),3,FALSE)=0,"-",VLOOKUP(J2,INDIRECT(ADDRESS(PM!PM_StartRow+1,7,1,1,"PM"),TRUE):INDIRECT(ADDRESS(PM!PM_RemRow-1,9,1,1,"PM"),TRUE),3,FALSE))) -> -
B8: NANO PRODUCTION | G8: SET UP TIME
B9: INPUTS
B10: NAME | C10: ID | D10: PRICE / UNIT | E10: TYPE | F10: FLOW RATE | G10: - | H10: COST | J10: =ROW(P_StartRowINP) -> 10
C11: =IF(ISERROR(VLOOKUP(P_TabIPNP10[[#This Row],[NAME]],DChI_Tab[],3,FALSE))=TRUE,"-",VLOOKUP(P_TabIPNP10[[#This Row],[NAME]],DChI_Tab[],3,FALSE)) -> - | D11: =IF(ISERROR(VLOOKUP(P_TabIPNP10[[#This Row],[ID]],DChI_Tab[[ID]:[PRICE / UNIT]],6,FALSE))=TRUE,"-",VLOOKUP(P_TabIPNP10[[#This Row],[ID]],DChI_Tab[[ID]:[PRICE / UNIT]],6,FALSE)) -> - | E11: =IF(ISERROR(VLOOKUP(P_TabIPNP10[[#This Row],[ID]],DChI_Tab[[ID]:[TYPE]],3,FALSE))=TRUE,"-",VLOOKUP(P_TabIPNP10[[#This Row],[ID]],DChI_Tab[[ID]:[TYPE]],3,FALSE)) -> - | H11: =IF(ISERROR(P_TabIPNP10[[#This Row],[PRICE / UNIT]]*P_TabIPNP10[[#This Row],[FLOW RATE]]),0,P_TabIPNP10[[#This Row],[PRICE / UNIT]]*P_TabIPNP10[[#This Row],[FLOW RATE]]) -> 0 | J11: 1
B12: ="The process contains "&SUBTOTAL(103,P_TabIPNP10[NAME])&" input(s)" -> The process contains 0 input(s) | H12: =SUBTOTAL(109,P_TabIPNP10[COST]) -> 0 | J12: =(ROW(P!B12)) -> 12
B14: EQUIPMENT
B15: DESIGNATION | C15: DEPRECIATION | D15: ENERGY | E15: ENERGY COSTS | F15: GAS | G15: GAS COSTS | H15: COST | J15: =ROW(P_StartRowENP) -> 15
C16: =IF(ISERROR((VLOOKUP(P_TabEPNP11[[#This Row],[DESIGNATION]],DE_TabR[[Sloupec2]:[ON]],2,FALSE))/(VLOOKUP(P_TabEPNP11[[#This Row],[DESIGNATION]],DE_TabR[[Sloupec2]:[ON]],3,FALSE))/O_CapR*IF(K16=TRUE,1,0))=TRUE,"-",(VLOOKUP(P_TabEPNP11[[#This Row],[DESIGNATION]],DE_TabR[[Sloupec2]:[ON]],2,FALSE))/(VLOOKUP(P_TabEPNP11[[#This Row],[DESIGNATION]],DE_TabR[[Sloupec2]:[ON]],3,FALSE))/O_CapR*IF(K16=TRUE,1,0)) -> - | E16: =IF(ISERROR((VLOOKUP(P_TabEPNP11[[#This Row],[DESIGNATION]],DE_TabR[[Sloupec2]:[Sloupec4]],4,FALSE))*DE_EP*P_TabEPNP11[[#This Row],[ENERGY]]*IF(K16=TRUE,1,0))=TRUE,"-",(VLOOKUP(P_TabEPNP11[[#This Row],[DESIGNATION]],DE_TabR[[Sloupec2]:[Sloupec4]],4,FALSE))*DE_EP*P_TabEPNP11[[#This Row],[ENERGY]]*IF(K16=TRUE,1,0)) -> - | G16: =IF(ISERROR((VLOOKUP(P_TabEPNP11[[#This Row],[DESIGNATION]],DE_TabR[[Sloupec2]:[Sloupec5]],5,FALSE))*DE_GP*P_TabEPNP11[[#This Row],[GAS]]*IF(K16=TRUE,1,0))=TRUE,"-",(VLOOKUP(P_TabEPNP11[[#This Row],[DESIGNATION]],DE_TabR[[Sloupec2]:[Sloupec5]],5,FALSE))*DE_GP*P_TabEPNP11[[#This Row],[GAS]]*IF(K16=TRUE,1,0)) -> - | H16: =IF(ISERROR(P_TabEPNP11[[#This Row],[DEPRECIATION]]+P_TabEPNP11[[#This Row],[ENERGY COSTS]]+P_TabEPNP11[[#This Row],[GAS COSTS]])=TRUE,0,P_TabEPNP11[[#This Row],[DEPRECIATION]]+P_TabEPNP11[[#This Row],[ENERGY COSTS]]+P_TabEPNP11[[#This Row],[GAS COSTS]]) -> 0 | J16: 1 | K16: TRUE
B17: EQUIPMENT - HEATER | C17: =SUBTOTAL(109,P_TabEPNP11[DEPRECIATION]) -> 0 | E17: =SUBTOTAL(109,P_TabEPNP11[ENERGY COSTS]) -> 0 | G17: =SUBTOTAL(109,P_TabEPNP11[GAS COSTS]) -> 0 | H17: =SUBTOTAL(109,P_TabEPNP11[COST]) -> 0 | J17: =(ROW(P_RemRowENP)) -> 17
B18: Heater + Contingency | C18: =IF(ISERROR(DE_TabH[Sloupec3]/DE_TabH[Sloupec4]/O_CapR)=TRUE,0,DE_TabH[Sloupec3]/DE_TabH[Sloupec4]/O_CapR) -> 44.18653846 | E18: =IF(ISERROR(DE_TabH[Sloupec5]*DE_EP*D18)=TRUE,0,DE_TabH[Sloupec5]*DE_EP*D18) -> 0 | G18: =IF(ISERROR(DE_GP*F18)=TRUE,0,DE_GP*F18) -> 0 | H18: =IF(ISERROR(C18+G18)=TRUE,0,C18+G18) -> 44.18653846
B19: ="The process contains "&SUBTOTAL(103,B16:B18)-1&" equipment(s)" -> The process contains 1 equipment(s) | C19: =C17+C18 -> 44.18653846 | E19: =E17+E18 -> 0 | G19: =G17+G18 -> 0 | H19: =H17+H18 -> 44.18653846
B21: OUTPUTS NP | H21: OUTPUT DENSITY
C22: =IF(ISERROR(VLOOKUP(B22,DChO_Tab[[NAME]:[STB / UNSTB]],6,FALSE))=TRUE,"-",VLOOKUP(B22,DChO_Tab[[NAME]:[STB / UNSTB]],6,FALSE)) -> - | D22: Output from NP | F22: Output NPs
B24: POST-PROCESS SEDIMENTATION | G24: SET UP TIME
B25: PROCESS FILTRATION
B26: UNIT (UN) | C26: FILTRATION TIME / UN | D26: WASHING STEPS | E26: NPs / UN | F26: Σ FILTRATION TIME / UN | G26: NPs / 1H NP | H26: Σ FILTR. TIME / 1H NP
E27: =IF(ISERROR(P_OutputNPs*B27/E22)=TRUE,0,P_OutputNPs*B27/E22) -> 0 | F27: =IF(ISERROR(C27*D27)=TRUE,"-",C27*D27) -> 0 | G27: =P_OutputNPs -> 0 | H27: =IF(ISERROR(E22/B27*F27)=TRUE,0,E22/B27*F27) -> 0
B29: INPUTS
B30: NAME | C30: ID | D30: PRICE / UNIT | E30: TYPE | F30: CONSUPTION / 1 W. STEP | G30: COST / FILTRATION | H30: COST / KG | J30: =ROW(P_StartRowIPPF) -> 30
B31: =IF(B22="","-",B22) -> - | C31: =IF(ISERROR(VLOOKUP(B31,DChO_Tab[[NAME]:[ID]],3,FALSE))=TRUE,"-",VLOOKUP(B31,DChO_Tab[[NAME]:[ID]],3,FALSE)) -> - | D31: =IF(ISERROR(VLOOKUP(P!$C31,DChO_Tab[[ID]:[PRICE / UNIT]],7,FALSE))=TRUE,"-",VLOOKUP(P!$C31,DChO_Tab[[ID]:[PRICE / UNIT]],7,FALSE)) -> - | E31: =IF(ISERROR(VLOOKUP(P!$C31,DChO_Tab[[ID]:[TYPE]],3,FALSE))=TRUE,"-",VLOOKUP(P!$C31,DChO_Tab[[ID]:[TYPE]],3,FALSE)) -> - | F31: =B27 -> 0 | G31: =IF(ISERROR(P!$D31*P!$F31),0,P!$D31*P!$F31) -> 0 | H31: =IF(ISERROR(P!$D31*P!$F31/P_OutputNPs)=TRUE,0,P!$D31*P!$F31/P_OutputNPs) -> 0
B32: NAME | C32: ID | D32: PRICE / UNIT | E32: TYPE | F32: FLOW RATE | G32: Sloupec1 | H32: COST
C33: =IF(ISERROR(VLOOKUP(P_TabIPPPF13[[#This Row],[NAME]],DChI_Tab[],3,FALSE))=TRUE,"-",VLOOKUP(P_TabIPPPF13[[#This Row],[NAME]],DChI_Tab[],3,FALSE)) -> - | D33: =IF(ISERROR(VLOOKUP(P_TabIPPPF13[[#This Row],[ID]],DChI_Tab[[ID]:[PRICE / UNIT]],6,FALSE))=TRUE,"-",VLOOKUP(P_TabIPPPF13[[#This Row],[ID]],DChI_Tab[[ID]:[PRICE / UNIT]],6,FALSE)) -> - | E33: =IF(ISERROR(VLOOKUP(P_TabIPPPF13[[#This Row],[ID]],DChI_Tab[[ID]:[TYPE]],3,FALSE))=TRUE,"-",VLOOKUP(P_TabIPPPF13[[#This Row],[ID]],DChI_Tab[[ID]:[TYPE]],3,FALSE)) -> - | G33: =IF(ISERROR(P_TabIPPPF13[[#This Row],[PRICE / UNIT]]*P_TabIPPPF13[[#This Row],[FLOW RATE]]*P_WSteps)=TRUE,0,P_TabIPPPF13[[#This Row],[PRICE / UNIT]]*P_TabIPPPF13[[#This Row],[FLOW RATE]]*P_WSteps) -> 0 | H33: =IF(ISERROR(P_TabIPPPF13[[#This Row],[PRICE / UNIT]]*P_TabIPPPF13[[#This Row],[FLOW RATE]]*P_WSteps/P_OutputPPFUN)=TRUE,0,P_TabIPPPF13[[#This Row],[PRICE / UNIT]]*P_TabIPPPF13[[#This Row],[FLOW RATE]]*P_WSteps/P_OutputPPFUN) -> 0 | J33: 1
B34: ="The process contains "&SUBTOTAL(103,P_TabIPPPF13[NAME])&" input(s)" -> The process contains 0 input(s) | G34: =SUBTOTAL(109,P_TabIPPPF13[Sloupec1]) -> 0 | H34: =SUBTOTAL(109,P_TabIPPPF13[COST])+H31 -> 0 | J34: =ROW(P_RemRowIPPF) -> 34
B36: EQUIPMENT
B37: DESIGNATION | C37: NUMBER OF FILTRES | D37: Sloupec1 | E37: Sloupec2 | F37: Sloupec3 | G37: Sloupec4 | H37: DEPRECIATION / 1H NP | J37: =ROW(P_StartRowEPPF) -> 37
H38: =IF(ISERROR(VLOOKUP(P_TabEPPPF12[[#This Row],[DESIGNATION]],DE_TabP[[Sloupec2]:[Sloupec4]],2,FALSE)/VLOOKUP(P_TabEPPPF12[[#This Row],[DESIGNATION]],DE_TabP[[Sloupec2]:[Sloupec4]],3,FALSE)*P_TabEPPPF12[[#This Row],[NUMBER OF FILTRES]]*P_PPFTime)=TRUE,0,VLOOKUP(P_TabEPPPF12[[#This Row],[DESIGNATION]],DE_TabP[[Sloupec2]:[Sloupec4]],2,FALSE)/VLOOKUP(P_TabEPPPF12[[#This Row],[DESIGNATION]],DE_TabP[[Sloupec2]:[Sloupec4]],3,FALSE)*P_TabEPPPF12[[#This Row],[NUMBER OF FILTRES]]*P_PPFTime) -> 0 | J38: 1
B39: ="The process contains "&SUBTOTAL(103,P_TabEPPPF12[DESIGNATION])&" equipment(s)" -> The process contains 0 equipment(s) | H39: =SUBTOTAL(109,P_TabEPPPF12[DEPRECIATION / 1H NP]) -> 0 | J39: =ROW(P_RemRowEPPF) -> 39
B41: OUTPUTS PP
D42: Output NPs / 1H PPF | E42: =IF(ISERROR(P_OutputNPs/P_PPFTime)=TRUE,0,P_OutputNPs/P_PPFTime) -> 0
B44: PROCESS SEDIMENTATION
B45: VOLUME OF TANKS (UN) | C45: SEDIMENTATION TIME / UN | D45: WASHING STEPS | E45: NPs / UN | F45: Σ SEDIMENT. TIME / UN | G45: NPs / 1H NP | H45: Σ SEDIMENT. TIME / 1H NP
E46: =IF(ISERROR(P_OutputNPs*B46/E22)=TRUE,0,P_OutputNPs*B46/E22) -> 0 | F46: =IF(ISERROR(C46*D46)=TRUE,"-",C46*D46) -> 0 | G46: =P_OutputNPs -> 0 | H46: =IF(ISERROR(IF(E22>B46,CEILING(E22/B46,1),1)*F46)=TRUE,0,IF(E22>B46,CEILING(E22/B46,1),1)*F46) -> 0
B48: OUTPUTS PP SEDIMENTATION
D49: Output NPs / 1H PPS | E49: =P_OutputNPs -> 0
B51: NEUTRALISATION
B52: INPUTS
B53: NAME | C53: ID | D53: PRICE / UNIT | E53: TYPE | F53: CONSUMPTION | H53: COST | J53: =ROW(P_StartRowNeu) -> 53
B54: Waste water (postprocessing) | C54: - | D54: 0 | E54: Water | F54: =IF(ISERROR(E22-IF(P_PPFiltr="Stable",C42,C49))=TRUE,"-",E22-IF(P_PPFiltr="Stable",C42,C49)) -> 0 | H54: =D54*F54 -> 0
B55: Waste water (washing) | C55: - | D55: 0 | E55: Water | H55: =D55*F55 -> 0
B56: NAME | C56: ID | D56: PRICE / UNIT | E56: TYPE | F56: FLOW RATE | G56: - | H56: COST
C57: =IF(ISERROR(VLOOKUP(P_TabINeu14[[#This Row],[NAME]],DChI_Tab[],3,FALSE))=TRUE,"-",VLOOKUP(P_TabINeu14[[#This Row],[NAME]],DChI_Tab[],3,FALSE)) -> - | D57: =IF(ISERROR(VLOOKUP(P_TabINeu14[[#This Row],[ID]],DChI_Tab[[ID]:[PRICE / UNIT]],6,FALSE))=TRUE,"-",VLOOKUP(P_TabINeu14[[#This Row],[ID]],DChI_Tab[[ID]:[PRICE / UNIT]],6,FALSE)) -> - | E57: =IF(ISERROR(VLOOKUP(P_TabINeu14[[#This Row],[ID]],DChI_Tab[[ID]:[TYPE]],3,FALSE))=TRUE,"-",VLOOKUP(P_TabINeu14[[#This Row],[ID]],DChI_Tab[[ID]:[TYPE]],3,FALSE)) -> - | H57: =IF(ISERROR(P_TabINeu14[[#This Row],[PRICE / UNIT]]*P_TabINeu14[[#This Row],[FLOW RATE]]),0,P_TabINeu14[[#This Row],[PRICE / UNIT]]*P_TabINeu14[[#This Row],[FLOW RATE]]) -> 0 | J57: 1
B58: ="The process contains "&SUBTOTAL(103,P_TabINeu14[NAME])&" input(s)" -> The process contains 0 input(s) | H58: =SUBTOTAL(109,P_TabINeu14[COST]) -> 0 | J58: =ROW(P_RemRowNeu) -> 58

Sheet P1
B1: ="PROCESS " & VLOOKUP(J2,INDIRECT(ADDRESS(PM!PM_StartRow+1,7,1,1,"PM"),TRUE):INDIRECT(ADDRESS(PM!PM_RemRow-1,8,1,1,"PM"),TRUE),2,FALSE) -> PROCESS P00001 | J1: Proc | K1: Prod | L1: Type | M1: OutNPs | N1: OutPPF | O1: OutPPS | P1: Den | Q1: OutF/S | R1: TPPF/S | S1: STNP | T1: STPPF | U1: InNP | V1: DepNP | W1: En | X1: Gas | Y1: InPPF | Z1: DepPPF | AA1: InNeu
J2: P1 | K2: =IF(P_PPFiltr="Stable",B75,B82) -> TiO2 (TiOS - 400C) (wt 8%) | L2: =P_PPFiltr -> Unstable | M2: =G55 -> 59.9 | N2: =P_OutputPPFUN -> 0 | O2: =E79 -> 79.86666667 | P2: =IF(ISERROR(E55/H55*1000)=TRUE,0,E55/H55*1000) -> 4500 | Q2: =IF(P_PPFiltr="-",0,IF(P_PPFiltr="Stable",C75,C82)) -> 500 | R2: =IF(P_PPFiltr="-",0,IF(P_PPFiltr="Stable",H60,(E55*H79)/(B79*P_OutputNPs))) -> 0.01252086811 | S2: =H8 -> 0.1 | T2: =H57 -> 0.1 | U2: =P_TabIPNP1015[[#Totals],[COST]] -> 1035.016848 | V2: =C52 -> 121.471875 | W2: =E52 -> 9.921665 | X2: =G52 -> 49.45 | Y2: =P_TabIPPPF1319[[#Totals],[COST]] -> 0 | Z2: =P_TabEPPPF1218[[#Totals],[DEPRECIATION / 1H NP]] -> 0 | AA2: =P_TabINeu1423[[#Totals],[COST]] -> 12.95262571
J3: 10 | K3: 11 | L3: 12 | M3: 13 | N3: 14 | O3: 15 | P3: 16 | Q3: 17 | R3: 18 | S3: 19 | T3: 20 | U3: 21 | V3: 22 | W3: 23 | X3: 24 | Y3: 25 | Z3: 26 | AA3: 27
B4: =IF(ISERROR(VLOOKUP(J2,INDIRECT(ADDRESS(PM!PM_StartRow+1,7,1,1,"PM"),TRUE):INDIRECT(ADDRESS(PM!PM_RemRow-1,9,1,1,"PM"),TRUE),3,FALSE))=TRUE,"-",IF(VLOOKUP(J2,INDIRECT(ADDRESS(PM!PM_StartRow+1,7,1,1,"PM"),TRUE):INDIRECT(ADDRESS(PM!PM_RemRow-1,9,1,1,"PM"),TRUE),3,FALSE)=0,"-",VLOOKUP(J2,INDIRECT(ADDRESS(PM!PM_StartRow+1,7,1,1,"PM"),TRUE):INDIRECT(ADDRESS(PM!PM_RemRow-1,9,1,1,"PM"),TRUE),3,FALSE))) -> TiO2 - TiOS 400C
B8: NANO PRODUCTION | G8: SET UP TIME | H8: 0.1
B9: INPUTS
B10: NAME | C10: ID | D10: PRICE / UNIT | E10: TYPE | F10: FLOW RATE | G10: - | H10: COST | J10: =ROW(P_StartRowINP) -> 10
B11: Titanium oxysulfate | C11: =IF(ISERROR(VLOOKUP(P_TabIPNP1015[[#This Row],[NAME]],DChI_Tab[],3,FALSE))=TRUE,"-",VLOOKUP(P_TabIPNP1015[[#This Row],[NAME]],DChI_Tab[],3,FALSE)) -> ICH00015 | D11: =IF(ISERROR(VLOOKUP(P_TabIPNP1015[[#This Row],[ID]],DChI_Tab[[ID]:[PRICE / UNIT]],6,FALSE))=TRUE,"-",VLOOKUP(P_TabIPNP1015[[#This Row],[ID]],DChI_Tab[[ID]:[PRICE / UNIT]],6,FALSE)) -> 1.22 | E11: =IF(ISERROR(VLOOKUP(P_TabIPNP1015[[#This Row],[ID]],DChI_Tab[[ID]:[TYPE]],3,FALSE))=TRUE,"-",VLOOKUP(P_TabIPNP1015[[#This Row],[ID]],DChI_Tab[[ID]:[TYPE]],3,FALSE)) -> Precursor | F11: 799.65 | H11: =IF(ISERROR(P_TabIPNP1015[[#This Row],[PRICE / UNIT]]*P_TabIPNP1015[[#This Row],[FLOW RATE]]),0,P_TabIPNP1015[[#This Row],[PRICE / UNIT]]*P_TabIPNP1015[[#This Row],[FLOW RATE]]) -> 975.573 | J11: 1
B12: Dionised water | C12: =IF(ISERROR(VLOOKUP(P_TabIPNP1015[[#This Row],[NAME]],DChI_Tab[],3,FALSE))=TRUE,"-",VLOOKUP(P_TabIPNP1015[[#This Row],[NAME]],DChI_Tab[],3,FALSE)) -> ICH00001 | D12: =IF(ISERROR(VLOOKUP(P_TabIPNP1015[[#This Row],[ID]],DChI_Tab[[ID]:[PRICE / UNIT]],6,FALSE))=TRUE,"-",VLOOKUP(P_TabIPNP1015[[#This Row],[ID]],DChI_Tab[[ID]:[PRICE / UNIT]],6,FALSE)) -> 0.001815 | E12: =IF(ISERROR(VLOOKUP(P_TabIPNP1015[[#This Row],[ID]],DChI_Tab[[ID]:[TYPE]],3,FALSE))=TRUE,"-",VLOOKUP(P_TabIPNP1015[[#This Row],[ID]],DChI_Tab[[ID]:[TYPE]],3,FALSE)) -> Water | F12: 5592.1525 | H12: =IF(ISERROR(P_TabIPNP1015[[#This Row],[PRICE / UNIT]]*P_TabIPNP1015[[#This Row],[FLOW RATE]]),0,P_TabIPNP1015[[#This Row],[PRICE / UNIT]]*P_TabIPNP1015[[#This Row],[FLOW RATE]]) -> 10.14975679 | J12: 2
B13: Waste water disposal | C13: =IF(ISERROR(VLOOKUP(P_TabIPNP1015[[#This Row],[NAME]],DChI_Tab[],3,FALSE))=TRUE,"-",VLOOKUP(P_TabIPNP1015[[#This Row],[NAME]],DChI_Tab[],3,FALSE)) -> ICH00002 | D13: =IF(ISERROR(VLOOKUP(P_TabIPNP1015[[#This Row],[ID]],DChI_Tab[[ID]:[PRICE / UNIT]],6,FALSE))=TRUE,"-",VLOOKUP(P_TabIPNP1015[[#This Row],[ID]],DChI_Tab[[ID]:[PRICE / UNIT]],6,FALSE)) -> 0.001815 | E13: =IF(ISERROR(VLOOKUP(P_TabIPNP1015[[#This Row],[ID]],DChI_Tab[[ID]:[TYPE]],3,FALSE))=TRUE,"-",VLOOKUP(P_TabIPNP1015[[#This Row],[ID]],DChI_Tab[[ID]:[TYPE]],3,FALSE)) -> Water | F13: 5212.1 | H13: =IF(ISERROR(P_TabIPNP1015[[#This Row],[PRICE / UNIT]]*P_TabIPNP1015[[#This Row],[FLOW RATE]]),0,P_TabIPNP1015[[#This Row],[PRICE / UNIT]]*P_TabIPNP1015[[#This Row],[FLOW RATE]]) -> 9.4599615 | J13: 3
B14: Sodium hydroxide Solution (32%) | C14: =IF(ISERROR(VLOOKUP(P_TabIPNP1015[[#This Row],[NAME]],DChI_Tab[],3,FALSE))=TRUE,"-",VLOOKUP(P_TabIPNP1015[[#This Row],[NAME]],DChI_Tab[],3,FALSE)) -> ICH00004 | D14: =IF(ISERROR(VLOOKUP(P_TabIPNP1015[[#This Row],[ID]],DChI_Tab[[ID]:[PRICE / UNIT]],6,FALSE))=TRUE,"-",VLOOKUP(P_TabIPNP1015[[#This Row],[ID]],DChI_Tab[[ID]:[PRICE / UNIT]],6,FALSE)) -> 0.239 | E14: =IF(ISERROR(VLOOKUP(P_TabIPNP1015[[#This Row],[ID]],DChI_Tab[[ID]:[TYPE]],3,FALSE))=TRUE,"-",VLOOKUP(P_TabIPNP1015[[#This Row],[ID]],DChI_Tab[[ID]:[TYPE]],3,FALSE)) -> Other | F14: 166.67 | H14: =IF(ISERROR(P_TabIPNP1015[[#This Row],[PRICE / UNIT]]*P_TabIPNP1015[[#This Row],[FLOW RATE]]),0,P_TabIPNP1015[[#This Row],[PRICE / UNIT]]*P_TabIPNP1015[[#This Row],[FLOW RATE]]) -> 39.83413 | J14: 4
B15: ="The process contains "&SUBTOTAL(103,P_TabIPNP1015[NAME])&" input(s)" -> The process contains 4 input(s) | H15: =SUBTOTAL(109,P_TabIPNP1015[COST]) -> 1035.016848 | J15: =(ROW('P1'!B15)) -> 15
B17: EQUIPMENT
B18: DESIGNATION | C18: DEPRECIATION | D18: ENERGY | E18: ENERGY COSTS | F18: GAS | G18: GAS COSTS | H18: COST | J18: =ROW(P_StartRowENP) -> 18
B19: Fitt | C19: =IF(ISERROR((VLOOKUP(P_TabEPNP1117[[#This Row],[DESIGNATION]],DE_TabR[[Sloupec2]:[ON]],2,FALSE))/(VLOOKUP(P_TabEPNP1117[[#This Row],[DESIGNATION]],DE_TabR[[Sloupec2]:[ON]],3,FALSE))/O_CapR*IF(K19=TRUE,1,0))=TRUE,"-",(VLOOKUP(P_TabEPNP1117[[#This Row],[DESIGNATION]],DE_TabR[[Sloupec2]:[ON]],2,FALSE))/(VLOOKUP(P_TabEPNP1117[[#This Row],[DESIGNATION]],DE_TabR[[Sloupec2]:[ON]],3,FALSE))/O_CapR*IF(K19=TRUE,1,0)) -> 3.334115385 | D19: 0 | E19: =IF(ISERROR((VLOOKUP(P_TabEPNP1117[[#This Row],[DESIGNATION]],DE_TabR[[Sloupec2]:[Sloupec4]],4,FALSE))*DE_EP*P_TabEPNP1117[[#This Row],[ENERGY]]*IF(K19=TRUE,1,0))=TRUE,"-",(VLOOKUP(P_TabEPNP1117[[#This Row],[DESIGNATION]],DE_TabR[[Sloupec2]:[Sloupec4]],4,FALSE))*DE_EP*P_TabEPNP1117[[#This Row],[ENERGY]]*IF(K19=TRUE,1,0)) -> 0 | F19: 0 | G19: =IF(ISERROR((VLOOKUP(P_TabEPNP1117[[#This Row],[DESIGNATION]],DE_TabR[[Sloupec2]:[Sloupec5]],5,FALSE))*DE_GP*P_TabEPNP1117[[#This Row],[GAS]]*IF(K19=TRUE,1,0))=TRUE,"-",(VLOOKUP(P_TabEPNP1117[[#This Row],[DESIGNATION]],DE_TabR[[Sloupec2]:[Sloupec5]],5,FALSE))*DE_GP*P_TabEPNP1117[[#This Row],[GAS]]*IF(K19=TRUE,1,0)) -> 0 | H19: =IF(ISERROR(P_TabEPNP1117[[#This Row],[DEPRECIATION]]+P_TabEPNP1117[[#This Row],[ENERGY COSTS]]+P_TabEPNP1117[[#This Row],[GAS COSTS]])=TRUE,0,P_TabEPNP1117[[#This Row],[DEPRECIATION]]+P_TabEPNP1117[[#This Row],[ENERGY COSTS]]+P_TabEPNP1117[[#This Row],[GAS COSTS]]) -> 3.334115385 | J19: 1 | K19: TRUE
B20: PipeW | C20: =IF(ISERROR((VLOOKUP(P_TabEPNP1117[[#This Row],[DESIGNATION]],DE_TabR[[Sloupec2]:[ON]],2,FALSE))/(VLOOKUP(P_TabEPNP1117[[#This Row],[DESIGNATION]],DE_TabR[[Sloupec2]:[ON]],3,FALSE))/O_CapR*IF(K20=TRUE,1,0))=TRUE,"-",(VLOOKUP(P_TabEPNP1117[[#This Row],[DESIGNATION]],DE_TabR[[Sloupec2]:[ON]],2,FALSE))/(VLOOKUP(P_TabEPNP1117[[#This Row],[DESIGNATION]],DE_TabR[[Sloupec2]:[ON]],3,FALSE))/O_CapR*IF(K20=TRUE,1,0)) -> 2.547826923 | D20: 0 | E20: =IF(ISERROR((VLOOKUP(P_TabEPNP1117[[#This Row],[DESIGNATION]],DE_TabR[[Sloupec2]:[Sloupec4]],4,FALSE))*DE_EP*P_TabEPNP1117[[#This Row],[ENERGY]]*IF(K20=TRUE,1,0))=TRUE,"-",(VLOOKUP(P_TabEPNP1117[[#This Row],[DESIGNATION]],DE_TabR[[Sloupec2]:[Sloupec4]],4,FALSE))*DE_EP*P_TabEPNP1117[[#This Row],[ENERGY]]*IF(K20=TRUE,1,0)) -> 0 | F20: 0 | G20: =IF(ISERROR((VLOOKUP(P_TabEPNP1117[[#This Row],[DESIGNATION]],DE_TabR[[Sloupec2]:[Sloupec5]],5,FALSE))*DE_GP*P_TabEPNP1117[[#This Row],[GAS]]*IF(K20=TRUE,1,0))=TRUE,"-",(VLOOKUP(P_TabEPNP1117[[#This Row],[DESIGNATION]],DE_TabR[[Sloupec2]:[Sloupec5]],5,FALSE))*DE_GP*P_TabEPNP1117[[#This Row],[GAS]]*IF(K20=TRUE,1,0)) -> 0 | H20: =IF(ISERROR(P_TabEPNP1117[[#This Row],[DEPRECIATION]]+P_TabEPNP1117[[#This Row],[ENERGY COSTS]]+P_TabEPNP1117[[#This Row],[GAS COSTS]])=TRUE,0,P_TabEPNP1117[[#This Row],[DEPRECIATION]]+P_TabEPNP1117[[#This Row],[ENERGY COSTS]]+P_TabEPNP1117[[#This Row],[GAS COSTS]]) -> 2.547826923 | J20: 2 | K20: TRUE
B21: Svalves | C21: =IF(ISERROR((VLOOKUP(P_TabEPNP1117[[#This Row],[DESIGNATION]],DE_TabR[[Sloupec2]:[ON]],2,FALSE))/(VLOOKUP(P_TabEPNP1117[[#This Row],[DESIGNATION]],DE_TabR[[Sloupec2]:[ON]],3,FALSE))/O_CapR*IF(K21=TRUE,1,0))=TRUE,"-",(VLOOKUP(P_TabEPNP1117[[#This Row],[DESIGNATION]],DE_TabR[[Sloupec2]:[ON]],2,FALSE))/(VLOOKUP(P_TabEPNP1117[[#This Row],[DESIGNATION]],DE_TabR[[Sloupec2]:[ON]],3,FALSE))/O_CapR*IF(K21=TRUE,1,0)) -> 4.147392628 | D21: 1 | E21: =IF(ISERROR((VLOOKUP(P_TabEPNP1117[[#This Row],[DESIGNATION]],DE_TabR[[Sloupec2]:[Sloupec4]],4,FALSE))*DE_EP*P_TabEPNP1117[[#This Row],[ENERGY]]*IF(K21=TRUE,1,0))=TRUE,"-",(VLOOKUP(P_TabEPNP1117[[#This Row],[DESIGNATION]],DE_TabR[[Sloupec2]:[Sloupec4]],4,FALSE))*DE_EP*P_TabEPNP1117[[#This Row],[ENERGY]]*IF(K21=TRUE,1,0)) -> 0.286 | F21: 0 | G21: =IF(ISERROR((VLOOKUP(P_TabEPNP1117[[#This Row],[DESIGNATION]],DE_TabR[[Sloupec2]:[Sloupec5]],5,FALSE))*DE_GP*P_TabEPNP1117[[#This Row],[GAS]]*IF(K21=TRUE,1,0))=TRUE,"-",(VLOOKUP(P_TabEPNP1117[[#This Row],[DESIGNATION]],DE_TabR[[Sloupec2]:[Sloupec5]],5,FALSE))*DE_GP*P_TabEPNP1117[[#This Row],[GAS]]*IF(K21=TRUE,1,0)) -> 0 | H21: =IF(ISERROR(P_TabEPNP1117[[#This Row],[DEPRECIATION]]+P_TabEPNP1117[[#This Row],[ENERGY COSTS]]+P_TabEPNP1117[[#This Row],[GAS COSTS]])=TRUE,0,P_TabEPNP1117[[#This Row],[DEPRECIATION]]+P_TabEPNP1117[[#This Row],[ENERGY COSTS]]+P_TabEPNP1117[[#This Row],[GAS COSTS]]) -> 4.433392628 | J21: 3 | K21: TRUE
B22: Bvalves | C22: =IF(ISERROR((VLOOKUP(P_TabEPNP1117[[#This Row],[DESIGNATION]],DE_TabR[[Sloupec2]:[ON]],2,FALSE))/(VLOOKUP(P_TabEPNP1117[[#This Row],[DESIGNATION]],DE_TabR[[Sloupec2]:[ON]],3,FALSE))/O_CapR*IF(K22=TRUE,1,0))=TRUE,"-",(VLOOKUP(P_TabEPNP1117[[#This Row],[DESIGNATION]],DE_TabR[[Sloupec2]:[ON]],2,FALSE))/(VLOOKUP(P_TabEPNP1117[[#This Row],[DESIGNATION]],DE_TabR[[Sloupec2]:[ON]],3,FALSE))/O_CapR*IF(K22=TRUE,1,0)) -> 1.56650641 | D22: 0 | E22: =IF(ISERROR((VLOOKUP(P_TabEPNP1117[[#This Row],[DESIGNATION]],DE_TabR[[Sloupec2]:[Sloupec4]],4,FALSE))*DE_EP*P_TabEPNP1117[[#This Row],[ENERGY]]*IF(K22=TRUE,1,0))=TRUE,"-",(VLOOKUP(P_TabEPNP1117[[#This Row],[DESIGNATION]],DE_TabR[[Sloupec2]:[Sloupec4]],4,FALSE))*DE_EP*P_TabEPNP1117[[#This Row],[ENERGY]]*IF(K22=TRUE,1,0)) -> 0 | F22: 0 | G22: =IF(ISERROR((VLOOKUP(P_TabEPNP1117[[#This Row],[DESIGNATION]],DE_TabR[[Sloupec2]:[Sloupec5]],5,FALSE))*DE_GP*P_TabEPNP1117[[#This Row],[GAS]]*IF(K22=TRUE,1,0))=TRUE,"-",(VLOOKUP(P_TabEPNP1117[[#This Row],[DESIGNATION]],DE_TabR[[Sloupec2]:[Sloupec5]],5,FALSE))*DE_GP*P_TabEPNP1117[[#This Row],[GAS]]*IF(K22=TRUE,1,0)) -> 0 | H22: =IF(ISERROR(P_TabEPNP1117[[#This Row],[DEPRECIATION]]+P_TabEPNP1117[[#This Row],[ENERGY COSTS]]+P_TabEPNP1117[[#This Row],[GAS COSTS]])=TRUE,0,P_TabEPNP1117[[#This Row],[DEPRECIATION]]+P_TabEPNP1117[[#This Row],[ENERGY COSTS]]+P_TabEPNP1117[[#This Row],[GAS COSTS]]) -> 1.56650641 | J22: 4 | K22: TRUE
B23: Structure | C23: =IF(ISERROR((VLOOKUP(P_TabEPNP1117[[#This Row],[DESIGNATION]],DE_TabR[[Sloupec2]:[ON]],2,FALSE))/(VLOOKUP(P_TabEPNP1117[[#This Row],[DESIGNATION]],DE_TabR[[Sloupec2]:[ON]],3,FALSE))/O_CapR*IF(K23=TRUE,1,0))=TRUE,"-",(VLOOKUP(P_TabEPNP1117[[#This Row],[DESIGNATION]],DE_TabR[[Sloupec2]:[ON]],2,FALSE))/(VLOOKUP(P_TabEPNP1117[[#This Row],[DESIGNATION]],DE_TabR[[Sloupec2]:[ON]],3,FALSE))/O_CapR*IF(K23=TRUE,1,0)) -> 2.396153846 | D23: 0 | E23: =IF(ISERROR((VLOOKUP(P_TabEPNP1117[[#This Row],[DESIGNATION]],DE_TabR[[Sloupec2]:[Sloupec4]],4,FALSE))*DE_EP*P_TabEPNP1117[[#This Row],[ENERGY]]*IF(K23=TRUE,1,0))=TRUE,"-",(VLOOKUP(P_TabEPNP1117[[#This Row],[DESIGNATION]],DE_TabR[[Sloupec2]:[Sloupec4]],4,FALSE))*DE_EP*P_TabEPNP1117[[#This Row],[ENERGY]]*IF(K23=TRUE,1,0)) -> 0 | F23: 0 | G23: =IF(ISERROR((VLOOKUP(P_TabEPNP1117[[#This Row],[DESIGNATION]],DE_TabR[[Sloupec2]:[Sloupec5]],5,FALSE))*DE_GP*P_TabEPNP1117[[#This Row],[GAS]]*IF(K23=TRUE,1,0))=TRUE,"-",(VLOOKUP(P_TabEPNP1117[[#This Row],[DESIGNATION]],DE_TabR[[Sloupec2]:[Sloupec5]],5,FALSE))*DE_GP*P_TabEPNP1117[[#This Row],[GAS]]*IF(K23=TRUE,1,0)) -> 0 | H23: =IF(ISERROR(P_TabEPNP1117[[#This Row],[DEPRECIATION]]+P_TabEPNP1117[[#This Row],[ENERGY COSTS]]+P_TabEPNP1117[[#This Row],[GAS COSTS]])=TRUE,0,P_TabEPNP1117[[#This Row],[DEPRECIATION]]+P_TabEPNP1117[[#This Row],[ENERGY COSTS]]+P_TabEPNP1117[[#This Row],[GAS COSTS]]) -> 2.396153846 | J23: 5 | K23: TRUE
B24: Tanks | C24: =IF(ISERROR((VLOOKUP(P_TabEPNP1117[[#This Row],[DESIGNATION]],DE_TabR[[Sloupec2]:[ON]],2,FALSE))/(VLOOKUP(P_TabEPNP1117[[#This Row],[DESIGNATION]],DE_TabR[[Sloupec2]:[ON]],3,FALSE))/O_CapR*IF(K24=TRUE,1,0))=TRUE,"-",(VLOOKUP(P_TabEPNP1117[[#This Row],[DESIGNATION]],DE_TabR[[Sloupec2]:[ON]],2,FALSE))/(VLOOKUP(P_TabEPNP1117[[#This Row],[DESIGNATION]],DE_TabR[[Sloupec2]:[ON]],3,FALSE))/O_CapR*IF(K24=TRUE,1,0)) -> 3.430769231 | D24: 1 | E24: =IF(ISERROR((VLOOKUP(P_TabEPNP1117[[#This Row],[DESIGNATION]],DE_TabR[[Sloupec2]:[Sloupec4]],4,FALSE))*DE_EP*P_TabEPNP1117[[#This Row],[ENERGY]]*IF(K24=TRUE,1,0))=TRUE,"-",(VLOOKUP(P_TabEPNP1117[[#This Row],[DESIGNATION]],DE_TabR[[Sloupec2]:[Sloupec4]],4,FALSE))*DE_EP*P_TabEPNP1117[[#This Row],[ENERGY]]*IF(K24=TRUE,1,0)) -> 0.0325 | F24: 0 | G24: =IF(ISERROR((VLOOKUP(P_TabEPNP1117[[#This Row],[DESIGNATION]],DE_TabR[[Sloupec2]:[Sloupec5]],5,FALSE))*DE_GP*P_TabEPNP1117[[#This Row],[GAS]]*IF(K24=TRUE,1,0))=TRUE,"-",(VLOOKUP(P_TabEPNP1117[[#This Row],[DESIGNATION]],DE_TabR[[Sloupec2]:[Sloupec5]],5,FALSE))*DE_GP*P_TabEPNP1117[[#This Row],[GAS]]*IF(K24=TRUE,1,0)) -> 0 | H24: =IF(ISERROR(P_TabEPNP1117[[#This Row],[DEPRECIATION]]+P_TabEPNP1117[[#This Row],[ENERGY COSTS]]+P_TabEPNP1117[[#This Row],[GAS COSTS]])=TRUE,0,P_TabEPNP1117[[#This Row],[DEPRECIATION]]+P_TabEPNP1117[[#This Row],[ENERGY COSTS]]+P_TabEPNP1117[[#This Row],[GAS COSTS]]) -> 3.463269231 | J24: 6 | K24: TRUE
B25: Agitators | C25: =IF(ISERROR((VLOOKUP(P_TabEPNP1117[[#This Row],[DESIGNATION]],DE_TabR[[Sloupec2]:[ON]],2,FALSE))/(VLOOKUP(P_TabEPNP1117[[#This Row],[DESIGNATION]],DE_TabR[[Sloupec2]:[ON]],3,FALSE))/O_CapR*IF(K25=TRUE,1,0))=TRUE,"-",(VLOOKUP(P_TabEPNP1117[[#This Row],[DESIGNATION]],DE_TabR[[Sloupec2]:[ON]],2,FALSE))/(VLOOKUP(P_TabEPNP1117[[#This Row],[DESIGNATION]],DE_TabR[[Sloupec2]:[ON]],3,FALSE))/O_CapR*IF(K25=TRUE,1,0)) -> 0.4615384615 | D25: 0 | E25: =IF(ISERROR((VLOOKUP(P_TabEPNP1117[[#This Row],[DESIGNATION]],DE_TabR[[Sloupec2]:[Sloupec4]],4,FALSE))*DE_EP*P_TabEPNP1117[[#This Row],[ENERGY]]*IF(K25=TRUE,1,0))=TRUE,"-",(VLOOKUP(P_TabEPNP1117[[#This Row],[DESIGNATION]],DE_TabR[[Sloupec2]:[Sloupec4]],4,FALSE))*DE_EP*P_TabEPNP1117[[#This Row],[ENERGY]]*IF(K25=TRUE,1,0)) -> 0 | F25: 0 | G25: =IF(ISERROR((VLOOKUP(P_TabEPNP1117[[#This Row],[DESIGNATION]],DE_TabR[[Sloupec2]:[Sloupec5]],5,FALSE))*DE_GP*P_TabEPNP1117[[#This Row],[GAS]]*IF(K25=TRUE,1,0))=TRUE,"-",(VLOOKUP(P_TabEPNP1117[[#This Row],[DESIGNATION]],DE_TabR[[Sloupec2]:[Sloupec5]],5,FALSE))*DE_GP*P_TabEPNP1117[[#This Row],[GAS]]*IF(K25=TRUE,1,0)) -> 0 | H25: =IF(ISERROR(P_TabEPNP1117[[#This Row],[DEPRECIATION]]+P_TabEPNP1117[[#This Row],[ENERGY COSTS]]+P_TabEPNP1117[[#This Row],[GAS COSTS]])=TRUE,0,P_TabEPNP1117[[#This Row],[DEPRECIATION]]+P_TabEPNP1117[[#This Row],[ENERGY COSTS]]+P_TabEPNP1117[[#This Row],[GAS COSTS]]) -> 0.4615384615 | J25: 7 | K25: TRUE
B26: E-201 | C26: =IF(ISERROR((VLOOKUP(P_TabEPNP1117[[#This Row],[DESIGNATION]],DE_TabR[[Sloupec2]:[ON]],2,FALSE))/(VLOOKUP(P_TabEPNP1117[[#This Row],[DESIGNATION]],DE_TabR[[Sloupec2]:[ON]],3,FALSE))/O_CapR*IF(K26=TRUE,1,0))=TRUE,"-",(VLOOKUP(P_TabEPNP1117[[#This Row],[DESIGNATION]],DE_TabR[[Sloupec2]:[ON]],2,FALSE))/(VLOOKUP(P_TabEPNP1117[[#This Row],[DESIGNATION]],DE_TabR[[Sloupec2]:[ON]],3,FALSE))/O_CapR*IF(K26=TRUE,1,0)) -> 5.395833333 | D26: 0 | E26: =IF(ISERROR((VLOOKUP(P_TabEPNP1117[[#This Row],[DESIGNATION]],DE_TabR[[Sloupec2]:[Sloupec4]],4,FALSE))*DE_EP*P_TabEPNP1117[[#This Row],[ENERGY]]*IF(K26=TRUE,1,0))=TRUE,"-",(VLOOKUP(P_TabEPNP1117[[#This Row],[DESIGNATION]],DE_TabR[[Sloupec2]:[Sloupec4]],4,FALSE))*DE_EP*P_TabEPNP1117[[#This Row],[ENERGY]]*IF(K26=TRUE,1,0)) -> 0 | F26: 0 | G26: =IF(ISERROR((VLOOKUP(P_TabEPNP1117[[#This Row],[DESIGNATION]],DE_TabR[[Sloupec2]:[Sloupec5]],5,FALSE))*DE_GP*P_TabEPNP1117[[#This Row],[GAS]]*IF(K26=TRUE,1,0))=TRUE,"-",(VLOOKUP(P_TabEPNP1117[[#This Row],[DESIGNATION]],DE_TabR[[Sloupec2]:[Sloupec5]],5,FALSE))*DE_GP*P_TabEPNP1117[[#This Row],[GAS]]*IF(K26=TRUE,1,0)) -> 0 | H26: =IF(ISERROR(P_TabEPNP1117[[#This Row],[DEPRECIATION]]+P_TabEPNP1117[[#This Row],[ENERGY COSTS]]+P_TabEPNP1117[[#This Row],[GAS COSTS]])=TRUE,0,P_TabEPNP1117[[#This Row],[DEPRECIATION]]+P_TabEPNP1117[[#This Row],[ENERGY COSTS]]+P_TabEPNP1117[[#This Row],[GAS COSTS]]) -> 5.395833333 | J26: 8 | K26: TRUE
B27: E-310 | C27: =IF(ISERROR((VLOOKUP(P_TabEPNP1117[[#This Row],[DESIGNATION]],DE_TabR[[Sloupec2]:[ON]],2,FALSE))/(VLOOKUP(P_TabEPNP1117[[#This Row],[DESIGNATION]],DE_TabR[[Sloupec2]:[ON]],3,FALSE))/O_CapR*IF(K27=TRUE,1,0))=TRUE,"-",(VLOOKUP(P_TabEPNP1117[[#This Row],[DESIGNATION]],DE_TabR[[Sloupec2]:[ON]],2,FALSE))/(VLOOKUP(P_TabEPNP1117[[#This Row],[DESIGNATION]],DE_TabR[[Sloupec2]:[ON]],3,FALSE))/O_CapR*IF(K27=TRUE,1,0)) -> 4.312692308 | D27: 0 | E27: =IF(ISERROR((VLOOKUP(P_TabEPNP1117[[#This Row],[DESIGNATION]],DE_TabR[[Sloupec2]:[Sloupec4]],4,FALSE))*DE_EP*P_TabEPNP1117[[#This Row],[ENERGY]]*IF(K27=TRUE,1,0))=TRUE,"-",(VLOOKUP(P_TabEPNP1117[[#This Row],[DESIGNATION]],DE_TabR[[Sloupec2]:[Sloupec4]],4,FALSE))*DE_EP*P_TabEPNP1117[[#This Row],[ENERGY]]*IF(K27=TRUE,1,0)) -> 0 | F27: 0 | G27: =IF(ISERROR((VLOOKUP(P_TabEPNP1117[[#This Row],[DESIGNATION]],DE_TabR[[Sloupec2]:[Sloupec5]],5,FALSE))*DE_GP*P_TabEPNP1117[[#This Row],[GAS]]*IF(K27=TRUE,1,0))=TRUE,"-",(VLOOKUP(P_TabEPNP1117[[#This Row],[DESIGNATION]],DE_TabR[[Sloupec2]:[Sloupec5]],5,FALSE))*DE_GP*P_TabEPNP1117[[#This Row],[GAS]]*IF(K27=TRUE,1,0)) -> 0 | H27: =IF(ISERROR(P_TabEPNP1117[[#This Row],[DEPRECIATION]]+P_TabEPNP1117[[#This Row],[ENERGY COSTS]]+P_TabEPNP1117[[#This Row],[GAS COSTS]])=TRUE,0,P_TabEPNP1117[[#This Row],[DEPRECIATION]]+P_TabEPNP1117[[#This Row],[ENERGY COSTS]]+P_TabEPNP1117[[#This Row],[GAS COSTS]]) -> 4.312692308 | J27: 9 | K27: TRUE
B28: P-101 | C28: =IF(ISERROR((VLOOKUP(P_TabEPNP1117[[#This Row],[DESIGNATION]],DE_TabR[[Sloupec2]:[ON]],2,FALSE))/(VLOOKUP(P_TabEPNP1117[[#This Row],[DESIGNATION]],DE_TabR[[Sloupec2]:[ON]],3,FALSE))/O_CapR*IF(K28=TRUE,1,0))=TRUE,"-",(VLOOKUP(P_TabEPNP1117[[#This Row],[DESIGNATION]],DE_TabR[[Sloupec2]:[ON]],2,FALSE))/(VLOOKUP(P_TabEPNP1117[[#This Row],[DESIGNATION]],DE_TabR[[Sloupec2]:[ON]],3,FALSE))/O_CapR*IF(K28=TRUE,1,0)) -> 0.0575849359 | D28: 0.03 | E28: =IF(ISERROR((VLOOKUP(P_TabEPNP1117[[#This Row],[DESIGNATION]],DE_TabR[[Sloupec2]:[Sloupec4]],4,FALSE))*DE_EP*P_TabEPNP1117[[#This Row],[ENERGY]]*IF(K28=TRUE,1,0))=TRUE,"-",(VLOOKUP(P_TabEPNP1117[[#This Row],[DESIGNATION]],DE_TabR[[Sloupec2]:[Sloupec4]],4,FALSE))*DE_EP*P_TabEPNP1117[[#This Row],[ENERGY]]*IF(K28=TRUE,1,0)) -> 0.0156 | F28: 0 | G28: =IF(ISERROR((VLOOKUP(P_TabEPNP1117[[#This Row],[DESIGNATION]],DE_TabR[[Sloupec2]:[Sloupec5]],5,FALSE))*DE_GP*P_TabEPNP1117[[#This Row],[GAS]]*IF(K28=TRUE,1,0))=TRUE,"-",(VLOOKUP(P_TabEPNP1117[[#This Row],[DESIGNATION]],DE_TabR[[Sloupec2]:[Sloupec5]],5,FALSE))*DE_GP*P_TabEPNP1117[[#This Row],[GAS]]*IF(K28=TRUE,1,0)) -> 0 | H28: =IF(ISERROR(P_TabEPNP1117[[#This Row],[DEPRECIATION]]+P_TabEPNP1117[[#This Row],[ENERGY COSTS]]+P_TabEPNP1117[[#This Row],[GAS COSTS]])=TRUE,0,P_TabEPNP1117[[#This Row],[DEPRECIATION]]+P_TabEPNP1117[[#This Row],[ENERGY COSTS]]+P_TabEPNP1117[[#This Row],[GAS COSTS]]) -> 0.0731849359 | J28: 10 | K28: TRUE
B29: P-103 | C29: =IF(ISERROR((VLOOKUP(P_TabEPNP1117[[#This Row],[DESIGNATION]],DE_TabR[[Sloupec2]:[ON]],2,FALSE))/(VLOOKUP(P_TabEPNP1117[[#This Row],[DESIGNATION]],DE_TabR[[Sloupec2]:[ON]],3,FALSE))/O_CapR*IF(K29=TRUE,1,0))=TRUE,"-",(VLOOKUP(P_TabEPNP1117[[#This Row],[DESIGNATION]],DE_TabR[[Sloupec2]:[ON]],2,FALSE))/(VLOOKUP(P_TabEPNP1117[[#This Row],[DESIGNATION]],DE_TabR[[Sloupec2]:[ON]],3,FALSE))/O_CapR*IF(K29=TRUE,1,0)) -> 0.0575849359 | D29: 0 | E29: =IF(ISERROR((VLOOKUP(P_TabEPNP1117[[#This Row],[DESIGNATION]],DE_TabR[[Sloupec2]:[Sloupec4]],4,FALSE))*DE_EP*P_TabEPNP1117[[#This Row],[ENERGY]]*IF(K29=TRUE,1,0))=TRUE,"-",(VLOOKUP(P_TabEPNP1117[[#This Row],[DESIGNATION]],DE_TabR[[Sloupec2]:[Sloupec4]],4,FALSE))*DE_EP*P_TabEPNP1117[[#This Row],[ENERGY]]*IF(K29=TRUE,1,0)) -> 0 | F29: 0 | G29: =IF(ISERROR((VLOOKUP(P_TabEPNP1117[[#This Row],[DESIGNATION]],DE_TabR[[Sloupec2]:[Sloupec5]],5,FALSE))*DE_GP*P_TabEPNP1117[[#This Row],[GAS]]*IF(K29=TRUE,1,0))=TRUE,"-",(VLOOKUP(P_TabEPNP1117[[#This Row],[DESIGNATION]],DE_TabR[[Sloupec2]:[Sloupec5]],5,FALSE))*DE_GP*P_TabEPNP1117[[#This Row],[GAS]]*IF(K29=TRUE,1,0)) -> 0 | H29: =IF(ISERROR(P_TabEPNP1117[[#This Row],[DEPRECIATION]]+P_TabEPNP1117[[#This Row],[ENERGY COSTS]]+P_TabEPNP1117[[#This Row],[GAS COSTS]])=TRUE,0,P_TabEPNP1117[[#This Row],[DEPRECIATION]]+P_TabEPNP1117[[#This Row],[ENERGY COSTS]]+P_TabEPNP1117[[#This Row],[GAS COSTS]]) -> 0.0575849359 | J29: 11 | K29: TRUE
B30: P-105 | C30: =IF(ISERROR((VLOOKUP(P_TabEPNP1117[[#This Row],[DESIGNATION]],DE_TabR[[Sloupec2]:[ON]],2,FALSE))/(VLOOKUP(P_TabEPNP1117[[#This Row],[DESIGNATION]],DE_TabR[[Sloupec2]:[ON]],3,FALSE))/O_CapR*IF(K30=TRUE,1,0))=TRUE,"-",(VLOOKUP(P_TabEPNP1117[[#This Row],[DESIGNATION]],DE_TabR[[Sloupec2]:[ON]],2,FALSE))/(VLOOKUP(P_TabEPNP1117[[#This Row],[DESIGNATION]],DE_TabR[[Sloupec2]:[ON]],3,FALSE))/O_CapR*IF(K30=TRUE,1,0)) -> 0.0599775641 | D30: 0 | E30: =IF(ISERROR((VLOOKUP(P_TabEPNP1117[[#This Row],[DESIGNATION]],DE_TabR[[Sloupec2]:[Sloupec4]],4,FALSE))*DE_EP*P_TabEPNP1117[[#This Row],[ENERGY]]*IF(K30=TRUE,1,0))=TRUE,"-",(VLOOKUP(P_TabEPNP1117[[#This Row],[DESIGNATION]],DE_TabR[[Sloupec2]:[Sloupec4]],4,FALSE))*DE_EP*P_TabEPNP1117[[#This Row],[ENERGY]]*IF(K30=TRUE,1,0)) -> 0 | F30: 0 | G30: =IF(ISERROR((VLOOKUP(P_TabEPNP1117[[#This Row],[DESIGNATION]],DE_TabR[[Sloupec2]:[Sloupec5]],5,FALSE))*DE_GP*P_TabEPNP1117[[#This Row],[GAS]]*IF(K30=TRUE,1,0))=TRUE,"-",(VLOOKUP(P_TabEPNP1117[[#This Row],[DESIGNATION]],DE_TabR[[Sloupec2]:[Sloupec5]],5,FALSE))*DE_GP*P_TabEPNP1117[[#This Row],[GAS]]*IF(K30=TRUE,1,0)) -> 0 | H30: =IF(ISERROR(P_TabEPNP1117[[#This Row],[DEPRECIATION]]+P_TabEPNP1117[[#This Row],[ENERGY COSTS]]+P_TabEPNP1117[[#This Row],[GAS COSTS]])=TRUE,0,P_TabEPNP1117[[#This Row],[DEPRECIATION]]+P_TabEPNP1117[[#This Row],[ENERGY COSTS]]+P_TabEPNP1117[[#This Row],[GAS COSTS]]) -> 0.0599775641 | J30: 12 | K30: TRUE
B31: P-107 | C31: =IF(ISERROR((VLOOKUP(P_TabEPNP1117[[#This Row],[DESIGNATION]],DE_TabR[[Sloupec2]:[ON]],2,FALSE))/(VLOOKUP(P_TabEPNP1117[[#This Row],[DESIGNATION]],DE_TabR[[Sloupec2]:[ON]],3,FALSE))/O_CapR*IF(K31=TRUE,1,0))=TRUE,"-",(VLOOKUP(P_TabEPNP1117[[#This Row],[DESIGNATION]],DE_TabR[[Sloupec2]:[ON]],2,FALSE))/(VLOOKUP(P_TabEPNP1117[[#This Row],[DESIGNATION]],DE_TabR[[Sloupec2]:[ON]],3,FALSE))/O_CapR*IF(K31=TRUE,1,0)) -> 0.05936217949 | D31: 0 | E31: =IF(ISERROR((VLOOKUP(P_TabEPNP1117[[#This Row],[DESIGNATION]],DE_TabR[[Sloupec2]:[Sloupec4]],4,FALSE))*DE_EP*P_TabEPNP1117[[#This Row],[ENERGY]]*IF(K31=TRUE,1,0))=TRUE,"-",(VLOOKUP(P_TabEPNP1117[[#This Row],[DESIGNATION]],DE_TabR[[Sloupec2]:[Sloupec4]],4,FALSE))*DE_EP*P_TabEPNP1117[[#This Row],[ENERGY]]*IF(K31=TRUE,1,0)) -> 0 | F31: 0 | G31: =IF(ISERROR((VLOOKUP(P_TabEPNP1117[[#This Row],[DESIGNATION]],DE_TabR[[Sloupec2]:[Sloupec5]],5,FALSE))*DE_GP*P_TabEPNP1117[[#This Row],[GAS]]*IF(K31=TRUE,1,0))=TRUE,"-",(VLOOKUP(P_TabEPNP1117[[#This Row],[DESIGNATION]],DE_TabR[[Sloupec2]:[Sloupec5]],5,FALSE))*DE_GP*P_TabEPNP1117[[#This Row],[GAS]]*IF(K31=TRUE,1,0)) -> 0 | H31: =IF(ISERROR(P_TabEPNP1117[[#This Row],[DEPRECIATION]]+P_TabEPNP1117[[#This Row],[ENERGY COSTS]]+P_TabEPNP1117[[#This Row],[GAS COSTS]])=TRUE,0,P_TabEPNP1117[[#This Row],[DEPRECIATION]]+P_TabEPNP1117[[#This Row],[ENERGY COSTS]]+P_TabEPNP1117[[#This Row],[GAS COSTS]]) -> 0.05936217949 | J31: 13 | K31: TRUE
B32: P-301 | C32: =IF(ISERROR((VLOOKUP(P_TabEPNP1117[[#This Row],[DESIGNATION]],DE_TabR[[Sloupec2]:[ON]],2,FALSE))/(VLOOKUP(P_TabEPNP1117[[#This Row],[DESIGNATION]],DE_TabR[[Sloupec2]:[ON]],3,FALSE))/O_CapR*IF(K32=TRUE,1,0))=TRUE,"-",(VLOOKUP(P_TabEPNP1117[[#This Row],[DESIGNATION]],DE_TabR[[Sloupec2]:[ON]],2,FALSE))/(VLOOKUP(P_TabEPNP1117[[#This Row],[DESIGNATION]],DE_TabR[[Sloupec2]:[ON]],3,FALSE))/O_CapR*IF(K32=TRUE,1,0)) -> 0.1602564103 | D32: 1 | E32: =IF(ISERROR((VLOOKUP(P_TabEPNP1117[[#This Row],[DESIGNATION]],DE_TabR[[Sloupec2]:[Sloupec4]],4,FALSE))*DE_EP*P_TabEPNP1117[[#This Row],[ENERGY]]*IF(K32=TRUE,1,0))=TRUE,"-",(VLOOKUP(P_TabEPNP1117[[#This Row],[DESIGNATION]],DE_TabR[[Sloupec2]:[Sloupec4]],4,FALSE))*DE_EP*P_TabEPNP1117[[#This Row],[ENERGY]]*IF(K32=TRUE,1,0)) -> 0.52 | F32: 0 | G32: =IF(ISERROR((VLOOKUP(P_TabEPNP1117[[#This Row],[DESIGNATION]],DE_TabR[[Sloupec2]:[Sloupec5]],5,FALSE))*DE_GP*P_TabEPNP1117[[#This Row],[GAS]]*IF(K32=TRUE,1,0))=TRUE,"-",(VLOOKUP(P_TabEPNP1117[[#This Row],[DESIGNATION]],DE_TabR[[Sloupec2]:[Sloupec5]],5,FALSE))*DE_GP*P_TabEPNP1117[[#This Row],[GAS]]*IF(K32=TRUE,1,0)) -> 0 | H32: =IF(ISERROR(P_TabEPNP1117[[#This Row],[DEPRECIATION]]+P_TabEPNP1117[[#This Row],[ENERGY COSTS]]+P_TabEPNP1117[[#This Row],[GAS COSTS]])=TRUE,0,P_TabEPNP1117[[#This Row],[DEPRECIATION]]+P_TabEPNP1117[[#This Row],[ENERGY COSTS]]+P_TabEPNP1117[[#This Row],[GAS COSTS]]) -> 0.6802564103 | J32: 14 | K32: TRUE
B33: P-102 | C33: =IF(ISERROR((VLOOKUP(P_TabEPNP1117[[#This Row],[DESIGNATION]],DE_TabR[[Sloupec2]:[ON]],2,FALSE))/(VLOOKUP(P_TabEPNP1117[[#This Row],[DESIGNATION]],DE_TabR[[Sloupec2]:[ON]],3,FALSE))/O_CapR*IF(K33=TRUE,1,0))=TRUE,"-",(VLOOKUP(P_TabEPNP1117[[#This Row],[DESIGNATION]],DE_TabR[[Sloupec2]:[ON]],2,FALSE))/(VLOOKUP(P_TabEPNP1117[[#This Row],[DESIGNATION]],DE_TabR[[Sloupec2]:[ON]],3,FALSE))/O_CapR*IF(K33=TRUE,1,0)) -> 3.589423077 | D33: 1 | E33: =IF(ISERROR((VLOOKUP(P_TabEPNP1117[[#This Row],[DESIGNATION]],DE_TabR[[Sloupec2]:[Sloupec4]],4,FALSE))*DE_EP*P_TabEPNP1117[[#This Row],[ENERGY]]*IF(K33=TRUE,1,0))=TRUE,"-",(VLOOKUP(P_TabEPNP1117[[#This Row],[DESIGNATION]],DE_TabR[[Sloupec2]:[Sloupec4]],4,FALSE))*DE_EP*P_TabEPNP1117[[#This Row],[ENERGY]]*IF(K33=TRUE,1,0)) -> 2.405 | F33: 0 | G33: =IF(ISERROR((VLOOKUP(P_TabEPNP1117[[#This Row],[DESIGNATION]],DE_TabR[[Sloupec2]:[Sloupec5]],5,FALSE))*DE_GP*P_TabEPNP1117[[#This Row],[GAS]]*IF(K33=TRUE,1,0))=TRUE,"-",(VLOOKUP(P_TabEPNP1117[[#This Row],[DESIGNATION]],DE_TabR[[Sloupec2]:[Sloupec5]],5,FALSE))*DE_GP*P_TabEPNP1117[[#This Row],[GAS]]*IF(K33=TRUE,1,0)) -> 0 | H33: =IF(ISERROR(P_TabEPNP1117[[#This Row],[DEPRECIATION]]+P_TabEPNP1117[[#This Row],[ENERGY COSTS]]+P_TabEPNP1117[[#This Row],[GAS COSTS]])=TRUE,0,P_TabEPNP1117[[#This Row],[DEPRECIATION]]+P_TabEPNP1117[[#This Row],[ENERGY COSTS]]+P_TabEPNP1117[[#This Row],[GAS COSTS]]) -> 5.994423077 | J33: 15 | K33: TRUE
B34: P-104 | C34: =IF(ISERROR((VLOOKUP(P_TabEPNP1117[[#This Row],[DESIGNATION]],DE_TabR[[Sloupec2]:[ON]],2,FALSE))/(VLOOKUP(P_TabEPNP1117[[#This Row],[DESIGNATION]],DE_TabR[[Sloupec2]:[ON]],3,FALSE))/O_CapR*IF(K34=TRUE,1,0))=TRUE,"-",(VLOOKUP(P_TabEPNP1117[[#This Row],[DESIGNATION]],DE_TabR[[Sloupec2]:[ON]],2,FALSE))/(VLOOKUP(P_TabEPNP1117[[#This Row],[DESIGNATION]],DE_TabR[[Sloupec2]:[ON]],3,FALSE))/O_CapR*IF(K34=TRUE,1,0)) -> 3.589423077 | D34: 0 | E34: =IF(ISERROR((VLOOKUP(P_TabEPNP1117[[#This Row],[DESIGNATION]],DE_TabR[[Sloupec2]:[Sloupec4]],4,FALSE))*DE_EP*P_TabEPNP1117[[#This Row],[ENERGY]]*IF(K34=TRUE,1,0))=TRUE,"-",(VLOOKUP(P_TabEPNP1117[[#This Row],[DESIGNATION]],DE_TabR[[Sloupec2]:[Sloupec4]],4,FALSE))*DE_EP*P_TabEPNP1117[[#This Row],[ENERGY]]*IF(K34=TRUE,1,0)) -> 0 | F34: 0 | G34: =IF(ISERROR((VLOOKUP(P_TabEPNP1117[[#This Row],[DESIGNATION]],DE_TabR[[Sloupec2]:[Sloupec5]],5,FALSE))*DE_GP*P_TabEPNP1117[[#This Row],[GAS]]*IF(K34=TRUE,1,0))=TRUE,"-",(VLOOKUP(P_TabEPNP1117[[#This Row],[DESIGNATION]],DE_TabR[[Sloupec2]:[Sloupec5]],5,FALSE))*DE_GP*P_TabEPNP1117[[#This Row],[GAS]]*IF(K34=TRUE,1,0)) -> 0 | H34: =IF(ISERROR(P_TabEPNP1117[[#This Row],[DEPRECIATION]]+P_TabEPNP1117[[#This Row],[ENERGY COSTS]]+P_TabEPNP1117[[#This Row],[GAS COSTS]])=TRUE,0,P_TabEPNP1117[[#This Row],[DEPRECIATION]]+P_TabEPNP1117[[#This Row],[ENERGY COSTS]]+P_TabEPNP1117[[#This Row],[GAS COSTS]]) -> 3.589423077 | J34: 16 | K34: TRUE
B35: P-106 | C35: =IF(ISERROR((VLOOKUP(P_TabEPNP1117[[#This Row],[DESIGNATION]],DE_TabR[[Sloupec2]:[ON]],2,FALSE))/(VLOOKUP(P_TabEPNP1117[[#This Row],[DESIGNATION]],DE_TabR[[Sloupec2]:[ON]],3,FALSE))/O_CapR*IF(K35=TRUE,1,0))=TRUE,"-",(VLOOKUP(P_TabEPNP1117[[#This Row],[DESIGNATION]],DE_TabR[[Sloupec2]:[ON]],2,FALSE))/(VLOOKUP(P_TabEPNP1117[[#This Row],[DESIGNATION]],DE_TabR[[Sloupec2]:[ON]],3,FALSE))/O_CapR*IF(K35=TRUE,1,0)) -> 2.6625 | D35: 0 | E35: =IF(ISERROR((VLOOKUP(P_TabEPNP1117[[#This Row],[DESIGNATION]],DE_TabR[[Sloupec2]:[Sloupec4]],4,FALSE))*DE_EP*P_TabEPNP1117[[#This Row],[ENERGY]]*IF(K35=TRUE,1,0))=TRUE,"-",(VLOOKUP(P_TabEPNP1117[[#This Row],[DESIGNATION]],DE_TabR[[Sloupec2]:[Sloupec4]],4,FALSE))*DE_EP*P_TabEPNP1117[[#This Row],[ENERGY]]*IF(K35=TRUE,1,0)) -> 0 | F35: 0 | G35: =IF(ISERROR((VLOOKUP(P_TabEPNP1117[[#This Row],[DESIGNATION]],DE_TabR[[Sloupec2]:[Sloupec5]],5,FALSE))*DE_GP*P_TabEPNP1117[[#This Row],[GAS]]*IF(K35=TRUE,1,0))=TRUE,"-",(VLOOKUP(P_TabEPNP1117[[#This Row],[DESIGNATION]],DE_TabR[[Sloupec2]:[Sloupec5]],5,FALSE))*DE_GP*P_TabEPNP1117[[#This Row],[GAS]]*IF(K35=TRUE,1,0)) -> 0 | H35: =IF(ISERROR(P_TabEPNP1117[[#This Row],[DEPRECIATION]]+P_TabEPNP1117[[#This Row],[ENERGY COSTS]]+P_TabEPNP1117[[#This Row],[GAS COSTS]])=TRUE,0,P_TabEPNP1117[[#This Row],[DEPRECIATION]]+P_TabEPNP1117[[#This Row],[ENERGY COSTS]]+P_TabEPNP1117[[#This Row],[GAS COSTS]]) -> 2.6625 | J35: 17 | K35: TRUE
B36: P-108 | C36: =IF(ISERROR((VLOOKUP(P_TabEPNP1117[[#This Row],[DESIGNATION]],DE_TabR[[Sloupec2]:[ON]],2,FALSE))/(VLOOKUP(P_TabEPNP1117[[#This Row],[DESIGNATION]],DE_TabR[[Sloupec2]:[ON]],3,FALSE))/O_CapR*IF(K36=TRUE,1,0))=TRUE,"-",(VLOOKUP(P_TabEPNP1117[[#This Row],[DESIGNATION]],DE_TabR[[Sloupec2]:[ON]],2,FALSE))/(VLOOKUP(P_TabEPNP1117[[#This Row],[DESIGNATION]],DE_TabR[[Sloupec2]:[ON]],3,FALSE))/O_CapR*IF(K36=TRUE,1,0)) -> 7.260576923 | D36: 1 | E36: =IF(ISERROR((VLOOKUP(P_TabEPNP1117[[#This Row],[DESIGNATION]],DE_TabR[[Sloupec2]:[Sloupec4]],4,FALSE))*DE_EP*P_TabEPNP1117[[#This Row],[ENERGY]]*IF(K36=TRUE,1,0))=TRUE,"-",(VLOOKUP(P_TabEPNP1117[[#This Row],[DESIGNATION]],DE_TabR[[Sloupec2]:[Sloupec4]],4,FALSE))*DE_EP*P_TabEPNP1117[[#This Row],[ENERGY]]*IF(K36=TRUE,1,0)) -> 2.405 | F36: 0 | G36: =IF(ISERROR((VLOOKUP(P_TabEPNP1117[[#This Row],[DESIGNATION]],DE_TabR[[Sloupec2]:[Sloupec5]],5,FALSE))*DE_GP*P_TabEPNP1117[[#This Row],[GAS]]*IF(K36=TRUE,1,0))=TRUE,"-",(VLOOKUP(P_TabEPNP1117[[#This Row],[DESIGNATION]],DE_TabR[[Sloupec2]:[Sloupec5]],5,FALSE))*DE_GP*P_TabEPNP1117[[#This Row],[GAS]]*IF(K36=TRUE,1,0)) -> 0 | H36: =IF(ISERROR(P_TabEPNP1117[[#This Row],[DEPRECIATION]]+P_TabEPNP1117[[#This Row],[ENERGY COSTS]]+P_TabEPNP1117[[#This Row],[GAS COSTS]])=TRUE,0,P_TabEPNP1117[[#This Row],[DEPRECIATION]]+P_TabEPNP1117[[#This Row],[ENERGY COSTS]]+P_TabEPNP1117[[#This Row],[GAS COSTS]]) -> 9.665576923 | J36: 18 | K36: TRUE
B37: L-control | C37: =IF(ISERROR((VLOOKUP(P_TabEPNP1117[[#This Row],[DESIGNATION]],DE_TabR[[Sloupec2]:[ON]],2,FALSE))/(VLOOKUP(P_TabEPNP1117[[#This Row],[DESIGNATION]],DE_TabR[[Sloupec2]:[ON]],3,FALSE))/O_CapR*IF(K37=TRUE,1,0))=TRUE,"-",(VLOOKUP(P_TabEPNP1117[[#This Row],[DESIGNATION]],DE_TabR[[Sloupec2]:[ON]],2,FALSE))/(VLOOKUP(P_TabEPNP1117[[#This Row],[DESIGNATION]],DE_TabR[[Sloupec2]:[ON]],3,FALSE))/O_CapR*IF(K37=TRUE,1,0)) -> 0.4033461538 | D37: 0 | E37: =IF(ISERROR((VLOOKUP(P_TabEPNP1117[[#This Row],[DESIGNATION]],DE_TabR[[Sloupec2]:[Sloupec4]],4,FALSE))*DE_EP*P_TabEPNP1117[[#This Row],[ENERGY]]*IF(K37=TRUE,1,0))=TRUE,"-",(VLOOKUP(P_TabEPNP1117[[#This Row],[DESIGNATION]],DE_TabR[[Sloupec2]:[Sloupec4]],4,FALSE))*DE_EP*P_TabEPNP1117[[#This Row],[ENERGY]]*IF(K37=TRUE,1,0)) -> 0 | F37: 0 | G37: =IF(ISERROR((VLOOKUP(P_TabEPNP1117[[#This Row],[DESIGNATION]],DE_TabR[[Sloupec2]:[Sloupec5]],5,FALSE))*DE_GP*P_TabEPNP1117[[#This Row],[GAS]]*IF(K37=TRUE,1,0))=TRUE,"-",(VLOOKUP(P_TabEPNP1117[[#This Row],[DESIGNATION]],DE_TabR[[Sloupec2]:[Sloupec5]],5,FALSE))*DE_GP*P_TabEPNP1117[[#This Row],[GAS]]*IF(K37=TRUE,1,0)) -> 0 | H37: =IF(ISERROR(P_TabEPNP1117[[#This Row],[DEPRECIATION]]+P_TabEPNP1117[[#This Row],[ENERGY COSTS]]+P_TabEPNP1117[[#This Row],[GAS COSTS]])=TRUE,0,P_TabEPNP1117[[#This Row],[DEPRECIATION]]+P_TabEPNP1117[[#This Row],[ENERGY COSTS]]+P_TabEPNP1117[[#This Row],[GAS COSTS]]) -> 0.4033461538 | J37: 19 | K37: TRUE
B38: F-control | C38: =IF(ISERROR((VLOOKUP(P_TabEPNP1117[[#This Row],[DESIGNATION]],DE_TabR[[Sloupec2]:[ON]],2,FALSE))/(VLOOKUP(P_TabEPNP1117[[#This Row],[DESIGNATION]],DE_TabR[[Sloupec2]:[ON]],3,FALSE))/O_CapR*IF(K38=TRUE,1,0))=TRUE,"-",(VLOOKUP(P_TabEPNP1117[[#This Row],[DESIGNATION]],DE_TabR[[Sloupec2]:[ON]],2,FALSE))/(VLOOKUP(P_TabEPNP1117[[#This Row],[DESIGNATION]],DE_TabR[[Sloupec2]:[ON]],3,FALSE))/O_CapR*IF(K38=TRUE,1,0)) -> 2.240576923 | D38: 0 | E38: =IF(ISERROR((VLOOKUP(P_TabEPNP1117[[#This Row],[DESIGNATION]],DE_TabR[[Sloupec2]:[Sloupec4]],4,FALSE))*DE_EP*P_TabEPNP1117[[#This Row],[ENERGY]]*IF(K38=TRUE,1,0))=TRUE,"-",(VLOOKUP(P_TabEPNP1117[[#This Row],[DESIGNATION]],DE_TabR[[Sloupec2]:[Sloupec4]],4,FALSE))*DE_EP*P_TabEPNP1117[[#This Row],[ENERGY]]*IF(K38=TRUE,1,0)) -> 0 | F38: 0 | G38: =IF(ISERROR((VLOOKUP(P_TabEPNP1117[[#This Row],[DESIGNATION]],DE_TabR[[Sloupec2]:[Sloupec5]],5,FALSE))*DE_GP*P_TabEPNP1117[[#This Row],[GAS]]*IF(K38=TRUE,1,0))=TRUE,"-",(VLOOKUP(P_TabEPNP1117[[#This Row],[DESIGNATION]],DE_TabR[[Sloupec2]:[Sloupec5]],5,FALSE))*DE_GP*P_TabEPNP1117[[#This Row],[GAS]]*IF(K38=TRUE,1,0)) -> 0 | H38: =IF(ISERROR(P_TabEPNP1117[[#This Row],[DEPRECIATION]]+P_TabEPNP1117[[#This Row],[ENERGY COSTS]]+P_TabEPNP1117[[#This Row],[GAS COSTS]])=TRUE,0,P_TabEPNP1117[[#This Row],[DEPRECIATION]]+P_TabEPNP1117[[#This Row],[ENERGY COSTS]]+P_TabEPNP1117[[#This Row],[GAS COSTS]]) -> 2.240576923 | J38: 20 | K38: TRUE
B39: P-control | C39: =IF(ISERROR((VLOOKUP(P_TabEPNP1117[[#This Row],[DESIGNATION]],DE_TabR[[Sloupec2]:[ON]],2,FALSE))/(VLOOKUP(P_TabEPNP1117[[#This Row],[DESIGNATION]],DE_TabR[[Sloupec2]:[ON]],3,FALSE))/O_CapR*IF(K39=TRUE,1,0))=TRUE,"-",(VLOOKUP(P_TabEPNP1117[[#This Row],[DESIGNATION]],DE_TabR[[Sloupec2]:[ON]],2,FALSE))/(VLOOKUP(P_TabEPNP1117[[#This Row],[DESIGNATION]],DE_TabR[[Sloupec2]:[ON]],3,FALSE))/O_CapR*IF(K39=TRUE,1,0)) -> 0.4848926282 | D39: 0 | E39: =IF(ISERROR((VLOOKUP(P_TabEPNP1117[[#This Row],[DESIGNATION]],DE_TabR[[Sloupec2]:[Sloupec4]],4,FALSE))*DE_EP*P_TabEPNP1117[[#This Row],[ENERGY]]*IF(K39=TRUE,1,0))=TRUE,"-",(VLOOKUP(P_TabEPNP1117[[#This Row],[DESIGNATION]],DE_TabR[[Sloupec2]:[Sloupec4]],4,FALSE))*DE_EP*P_TabEPNP1117[[#This Row],[ENERGY]]*IF(K39=TRUE,1,0)) -> 0 | F39: 0 | G39: =IF(ISERROR((VLOOKUP(P_TabEPNP1117[[#This Row],[DESIGNATION]],DE_TabR[[Sloupec2]:[Sloupec5]],5,FALSE))*DE_GP*P_TabEPNP1117[[#This Row],[GAS]]*IF(K39=TRUE,1,0))=TRUE,"-",(VLOOKUP(P_TabEPNP1117[[#This Row],[DESIGNATION]],DE_TabR[[Sloupec2]:[Sloupec5]],5,FALSE))*DE_GP*P_TabEPNP1117[[#This Row],[GAS]]*IF(K39=TRUE,1,0)) -> 0 | H39: =IF(ISERROR(P_TabEPNP1117[[#This Row],[DEPRECIATION]]+P_TabEPNP1117[[#This Row],[ENERGY COSTS]]+P_TabEPNP1117[[#This Row],[GAS COSTS]])=TRUE,0,P_TabEPNP1117[[#This Row],[DEPRECIATION]]+P_TabEPNP1117[[#This Row],[ENERGY COSTS]]+P_TabEPNP1117[[#This Row],[GAS COSTS]]) -> 0.4848926282 | J39: 21 | K39: TRUE
B40: CP-1 | C40: =IF(ISERROR((VLOOKUP(P_TabEPNP1117[[#This Row],[DESIGNATION]],DE_TabR[[Sloupec2]:[ON]],2,FALSE))/(VLOOKUP(P_TabEPNP1117[[#This Row],[DESIGNATION]],DE_TabR[[Sloupec2]:[ON]],3,FALSE))/O_CapR*IF(K40=TRUE,1,0))=TRUE,"-",(VLOOKUP(P_TabEPNP1117[[#This Row],[DESIGNATION]],DE_TabR[[Sloupec2]:[ON]],2,FALSE))/(VLOOKUP(P_TabEPNP1117[[#This Row],[DESIGNATION]],DE_TabR[[Sloupec2]:[ON]],3,FALSE))/O_CapR*IF(K40=TRUE,1,0)) -> 0.6086538462 | D40: 0 | E40: =IF(ISERROR((VLOOKUP(P_TabEPNP1117[[#This Row],[DESIGNATION]],DE_TabR[[Sloupec2]:[Sloupec4]],4,FALSE))*DE_EP*P_TabEPNP1117[[#This Row],[ENERGY]]*IF(K40=TRUE,1,0))=TRUE,"-",(VLOOKUP(P_TabEPNP1117[[#This Row],[DESIGNATION]],DE_TabR[[Sloupec2]:[Sloupec4]],4,FALSE))*DE_EP*P_TabEPNP1117[[#This Row],[ENERGY]]*IF(K40=TRUE,1,0)) -> 0 | F40: 0 | G40: =IF(ISERROR((VLOOKUP(P_TabEPNP1117[[#This Row],[DESIGNATION]],DE_TabR[[Sloupec2]:[Sloupec5]],5,FALSE))*DE_GP*P_TabEPNP1117[[#This Row],[GAS]]*IF(K40=TRUE,1,0))=TRUE,"-",(VLOOKUP(P_TabEPNP1117[[#This Row],[DESIGNATION]],DE_TabR[[Sloupec2]:[Sloupec5]],5,FALSE))*DE_GP*P_TabEPNP1117[[#This Row],[GAS]]*IF(K40=TRUE,1,0)) -> 0 | H40: =IF(ISERROR(P_TabEPNP1117[[#This Row],[DEPRECIATION]]+P_TabEPNP1117[[#This Row],[ENERGY COSTS]]+P_TabEPNP1117[[#This Row],[GAS COSTS]])=TRUE,0,P_TabEPNP1117[[#This Row],[DEPRECIATION]]+P_TabEPNP1117[[#This Row],[ENERGY COSTS]]+P_TabEPNP1117[[#This Row],[GAS COSTS]]) -> 0.6086538462 | J40: 22 | K40: TRUE
B41: CP-2 | C41: =IF(ISERROR((VLOOKUP(P_TabEPNP1117[[#This Row],[DESIGNATION]],DE_TabR[[Sloupec2]:[ON]],2,FALSE))/(VLOOKUP(P_TabEPNP1117[[#This Row],[DESIGNATION]],DE_TabR[[Sloupec2]:[ON]],3,FALSE))/O_CapR*IF(K41=TRUE,1,0))=TRUE,"-",(VLOOKUP(P_TabEPNP1117[[#This Row],[DESIGNATION]],DE_TabR[[Sloupec2]:[ON]],2,FALSE))/(VLOOKUP(P_TabEPNP1117[[#This Row],[DESIGNATION]],DE_TabR[[Sloupec2]:[ON]],3,FALSE))/O_CapR*IF(K41=TRUE,1,0)) -> 0.6682692308 | D41: 0 | E41: =IF(ISERROR((VLOOKUP(P_TabEPNP1117[[#This Row],[DESIGNATION]],DE_TabR[[Sloupec2]:[Sloupec4]],4,FALSE))*DE_EP*P_TabEPNP1117[[#This Row],[ENERGY]]*IF(K41=TRUE,1,0))=TRUE,"-",(VLOOKUP(P_TabEPNP1117[[#This Row],[DESIGNATION]],DE_TabR[[Sloupec2]:[Sloupec4]],4,FALSE))*DE_EP*P_TabEPNP1117[[#This Row],[ENERGY]]*IF(K41=TRUE,1,0)) -> 0 | F41: 0 | G41: =IF(ISERROR((VLOOKUP(P_TabEPNP1117[[#This Row],[DESIGNATION]],DE_TabR[[Sloupec2]:[Sloupec5]],5,FALSE))*DE_GP*P_TabEPNP1117[[#This Row],[GAS]]*IF(K41=TRUE,1,0))=TRUE,"-",(VLOOKUP(P_TabEPNP1117[[#This Row],[DESIGNATION]],DE_TabR[[Sloupec2]:[Sloupec5]],5,FALSE))*DE_GP*P_TabEPNP1117[[#This Row],[GAS]]*IF(K41=TRUE,1,0)) -> 0 | H41: =IF(ISERROR(P_TabEPNP1117[[#This Row],[DEPRECIATION]]+P_TabEPNP1117[[#This Row],[ENERGY COSTS]]+P_TabEPNP1117[[#This Row],[GAS COSTS]])=TRUE,0,P_TabEPNP1117[[#This Row],[DEPRECIATION]]+P_TabEPNP1117[[#This Row],[ENERGY COSTS]]+P_TabEPNP1117[[#This Row],[GAS COSTS]]) -> 0.6682692308 | J41: 23 | K41: TRUE
B42: CP-3 | C42: =IF(ISERROR((VLOOKUP(P_TabEPNP1117[[#This Row],[DESIGNATION]],DE_TabR[[Sloupec2]:[ON]],2,FALSE))/(VLOOKUP(P_TabEPNP1117[[#This Row],[DESIGNATION]],DE_TabR[[Sloupec2]:[ON]],3,FALSE))/O_CapR*IF(K42=TRUE,1,0))=TRUE,"-",(VLOOKUP(P_TabEPNP1117[[#This Row],[DESIGNATION]],DE_TabR[[Sloupec2]:[ON]],2,FALSE))/(VLOOKUP(P_TabEPNP1117[[#This Row],[DESIGNATION]],DE_TabR[[Sloupec2]:[ON]],3,FALSE))/O_CapR*IF(K42=TRUE,1,0)) -> 0.6086538462 | D42: 0 | E42: =IF(ISERROR((VLOOKUP(P_TabEPNP1117[[#This Row],[DESIGNATION]],DE_TabR[[Sloupec2]:[Sloupec4]],4,FALSE))*DE_EP*P_TabEPNP1117[[#This Row],[ENERGY]]*IF(K42=TRUE,1,0))=TRUE,"-",(VLOOKUP(P_TabEPNP1117[[#This Row],[DESIGNATION]],DE_TabR[[Sloupec2]:[Sloupec4]],4,FALSE))*DE_EP*P_TabEPNP1117[[#This Row],[ENERGY]]*IF(K42=TRUE,1,0)) -> 0 | F42: 0 | G42: =IF(ISERROR((VLOOKUP(P_TabEPNP1117[[#This Row],[DESIGNATION]],DE_TabR[[Sloupec2]:[Sloupec5]],5,FALSE))*DE_GP*P_TabEPNP1117[[#This Row],[GAS]]*IF(K42=TRUE,1,0))=TRUE,"-",(VLOOKUP(P_TabEPNP1117[[#This Row],[DESIGNATION]],DE_TabR[[Sloupec2]:[Sloupec5]],5,FALSE))*DE_GP*P_TabEPNP1117[[#This Row],[GAS]]*IF(K42=TRUE,1,0)) -> 0 | H42: =IF(ISERROR(P_TabEPNP1117[[#This Row],[DEPRECIATION]]+P_TabEPNP1117[[#This Row],[ENERGY COSTS]]+P_TabEPNP1117[[#This Row],[GAS COSTS]])=TRUE,0,P_TabEPNP1117[[#This Row],[DEPRECIATION]]+P_TabEPNP1117[[#This Row],[ENERGY COSTS]]+P_TabEPNP1117[[#This Row],[GAS COSTS]]) -> 0.6086538462 | J42: 24 | K42: TRUE
B43: PLC | C43: =IF(ISERROR((VLOOKUP(P_TabEPNP1117[[#This Row],[DESIGNATION]],DE_TabR[[Sloupec2]:[ON]],2,FALSE))/(VLOOKUP(P_TabEPNP1117[[#This Row],[DESIGNATION]],DE_TabR[[Sloupec2]:[ON]],3,FALSE))/O_CapR*IF(K43=TRUE,1,0))=TRUE,"-",(VLOOKUP(P_TabEPNP1117[[#This Row],[DESIGNATION]],DE_TabR[[Sloupec2]:[ON]],2,FALSE))/(VLOOKUP(P_TabEPNP1117[[#This Row],[DESIGNATION]],DE_TabR[[Sloupec2]:[ON]],3,FALSE))/O_CapR*IF(K43=TRUE,1,0)) -> 1.495192308 | D43: 0 | E43: =IF(ISERROR((VLOOKUP(P_TabEPNP1117[[#This Row],[DESIGNATION]],DE_TabR[[Sloupec2]:[Sloupec4]],4,FALSE))*DE_EP*P_TabEPNP1117[[#This Row],[ENERGY]]*IF(K43=TRUE,1,0))=TRUE,"-",(VLOOKUP(P_TabEPNP1117[[#This Row],[DESIGNATION]],DE_TabR[[Sloupec2]:[Sloupec4]],4,FALSE))*DE_EP*P_TabEPNP1117[[#This Row],[ENERGY]]*IF(K43=TRUE,1,0)) -> 0 | F43: 0 | G43: =IF(ISERROR((VLOOKUP(P_TabEPNP1117[[#This Row],[DESIGNATION]],DE_TabR[[Sloupec2]:[Sloupec5]],5,FALSE))*DE_GP*P_TabEPNP1117[[#This Row],[GAS]]*IF(K43=TRUE,1,0))=TRUE,"-",(VLOOKUP(P_TabEPNP1117[[#This Row],[DESIGNATION]],DE_TabR[[Sloupec2]:[Sloupec5]],5,FALSE))*DE_GP*P_TabEPNP1117[[#This Row],[GAS]]*IF(K43=TRUE,1,0)) -> 0 | H43: =IF(ISERROR(P_TabEPNP1117[[#This Row],[DEPRECIATION]]+P_TabEPNP1117[[#This Row],[ENERGY COSTS]]+P_TabEPNP1117[[#This Row],[GAS COSTS]])=TRUE,0,P_TabEPNP1117[[#This Row],[DEPRECIATION]]+P_TabEPNP1117[[#This Row],[ENERGY COSTS]]+P_TabEPNP1117[[#This Row],[GAS COSTS]]) -> 1.495192308 | J43: 25 | K43: TRUE
B44: Software | C44: =IF(ISERROR((VLOOKUP(P_TabEPNP1117[[#This Row],[DESIGNATION]],DE_TabR[[Sloupec2]:[ON]],2,FALSE))/(VLOOKUP(P_TabEPNP1117[[#This Row],[DESIGNATION]],DE_TabR[[Sloupec2]:[ON]],3,FALSE))/O_CapR*IF(K44=TRUE,1,0))=TRUE,"-",(VLOOKUP(P_TabEPNP1117[[#This Row],[DESIGNATION]],DE_TabR[[Sloupec2]:[ON]],2,FALSE))/(VLOOKUP(P_TabEPNP1117[[#This Row],[DESIGNATION]],DE_TabR[[Sloupec2]:[ON]],3,FALSE))/O_CapR*IF(K44=TRUE,1,0)) -> 2.470192308 | D44: 0 | E44: =IF(ISERROR((VLOOKUP(P_TabEPNP1117[[#This Row],[DESIGNATION]],DE_TabR[[Sloupec2]:[Sloupec4]],4,FALSE))*DE_EP*P_TabEPNP1117[[#This Row],[ENERGY]]*IF(K44=TRUE,1,0))=TRUE,"-",(VLOOKUP(P_TabEPNP1117[[#This Row],[DESIGNATION]],DE_TabR[[Sloupec2]:[Sloupec4]],4,FALSE))*DE_EP*P_TabEPNP1117[[#This Row],[ENERGY]]*IF(K44=TRUE,1,0)) -> 0 | F44: 0 | G44: =IF(ISERROR((VLOOKUP(P_TabEPNP1117[[#This Row],[DESIGNATION]],DE_TabR[[Sloupec2]:[Sloupec5]],5,FALSE))*DE_GP*P_TabEPNP1117[[#This Row],[GAS]]*IF(K44=TRUE,1,0))=TRUE,"-",(VLOOKUP(P_TabEPNP1117[[#This Row],[DESIGNATION]],DE_TabR[[Sloupec2]:[Sloupec5]],5,FALSE))*DE_GP*P_TabEPNP1117[[#This Row],[GAS]]*IF(K44=TRUE,1,0)) -> 0 | H44: =IF(ISERROR(P_TabEPNP1117[[#This Row],[DEPRECIATION]]+P_TabEPNP1117[[#This Row],[ENERGY COSTS]]+P_TabEPNP1117[[#This Row],[GAS COSTS]])=TRUE,0,P_TabEPNP1117[[#This Row],[DEPRECIATION]]+P_TabEPNP1117[[#This Row],[ENERGY COSTS]]+P_TabEPNP1117[[#This Row],[GAS COSTS]]) -> 2.470192308 | J44: 26 | K44: TRUE
B45: DIWS | C45: =IF(ISERROR((VLOOKUP(P_TabEPNP1117[[#This Row],[DESIGNATION]],DE_TabR[[Sloupec2]:[ON]],2,FALSE))/(VLOOKUP(P_TabEPNP1117[[#This Row],[DESIGNATION]],DE_TabR[[Sloupec2]:[ON]],3,FALSE))/O_CapR*IF(K45=TRUE,1,0))=TRUE,"-",(VLOOKUP(P_TabEPNP1117[[#This Row],[DESIGNATION]],DE_TabR[[Sloupec2]:[ON]],2,FALSE))/(VLOOKUP(P_TabEPNP1117[[#This Row],[DESIGNATION]],DE_TabR[[Sloupec2]:[ON]],3,FALSE))/O_CapR*IF(K45=TRUE,1,0)) -> 4.998269231 | D45: 0 | E45: =IF(ISERROR((VLOOKUP(P_TabEPNP1117[[#This Row],[DESIGNATION]],DE_TabR[[Sloupec2]:[Sloupec4]],4,FALSE))*DE_EP*P_TabEPNP1117[[#This Row],[ENERGY]]*IF(K45=TRUE,1,0))=TRUE,"-",(VLOOKUP(P_TabEPNP1117[[#This Row],[DESIGNATION]],DE_TabR[[Sloupec2]:[Sloupec4]],4,FALSE))*DE_EP*P_TabEPNP1117[[#This Row],[ENERGY]]*IF(K45=TRUE,1,0)) -> 0 | F45: 0 | G45: =IF(ISERROR((VLOOKUP(P_TabEPNP1117[[#This Row],[DESIGNATION]],DE_TabR[[Sloupec2]:[Sloupec5]],5,FALSE))*DE_GP*P_TabEPNP1117[[#This Row],[GAS]]*IF(K45=TRUE,1,0))=TRUE,"-",(VLOOKUP(P_TabEPNP1117[[#This Row],[DESIGNATION]],DE_TabR[[Sloupec2]:[Sloupec5]],5,FALSE))*DE_GP*P_TabEPNP1117[[#This Row],[GAS]]*IF(K45=TRUE,1,0)) -> 0 | H45: =IF(ISERROR(P_TabEPNP1117[[#This Row],[DEPRECIATION]]+P_TabEPNP1117[[#This Row],[ENERGY COSTS]]+P_TabEPNP1117[[#This Row],[GAS COSTS]])=TRUE,0,P_TabEPNP1117[[#This Row],[DEPRECIATION]]+P_TabEPNP1117[[#This Row],[ENERGY COSTS]]+P_TabEPNP1117[[#This Row],[GAS COSTS]]) -> 4.998269231 | J45: 27 | K45: TRUE
B46: CWS | C46: =IF(ISERROR((VLOOKUP(P_TabEPNP1117[[#This Row],[DESIGNATION]],DE_TabR[[Sloupec2]:[ON]],2,FALSE))/(VLOOKUP(P_TabEPNP1117[[#This Row],[DESIGNATION]],DE_TabR[[Sloupec2]:[ON]],3,FALSE))/O_CapR*IF(K46=TRUE,1,0))=TRUE,"-",(VLOOKUP(P_TabEPNP1117[[#This Row],[DESIGNATION]],DE_TabR[[Sloupec2]:[ON]],2,FALSE))/(VLOOKUP(P_TabEPNP1117[[#This Row],[DESIGNATION]],DE_TabR[[Sloupec2]:[ON]],3,FALSE))/O_CapR*IF(K46=TRUE,1,0)) -> 3.899423077 | D46: 1 | E46: =IF(ISERROR((VLOOKUP(P_TabEPNP1117[[#This Row],[DESIGNATION]],DE_TabR[[Sloupec2]:[Sloupec4]],4,FALSE))*DE_EP*P_TabEPNP1117[[#This Row],[ENERGY]]*IF(K46=TRUE,1,0))=TRUE,"-",(VLOOKUP(P_TabEPNP1117[[#This Row],[DESIGNATION]],DE_TabR[[Sloupec2]:[Sloupec4]],4,FALSE))*DE_EP*P_TabEPNP1117[[#This Row],[ENERGY]]*IF(K46=TRUE,1,0)) -> 1.3195 | F46: 0 | G46: =IF(ISERROR((VLOOKUP(P_TabEPNP1117[[#This Row],[DESIGNATION]],DE_TabR[[Sloupec2]:[Sloupec5]],5,FALSE))*DE_GP*P_TabEPNP1117[[#This Row],[GAS]]*IF(K46=TRUE,1,0))=TRUE,"-",(VLOOKUP(P_TabEPNP1117[[#This Row],[DESIGNATION]],DE_TabR[[Sloupec2]:[Sloupec5]],5,FALSE))*DE_GP*P_TabEPNP1117[[#This Row],[GAS]]*IF(K46=TRUE,1,0)) -> 0 | H46: =IF(ISERROR(P_TabEPNP1117[[#This Row],[DEPRECIATION]]+P_TabEPNP1117[[#This Row],[ENERGY COSTS]]+P_TabEPNP1117[[#This Row],[GAS COSTS]])=TRUE,0,P_TabEPNP1117[[#This Row],[DEPRECIATION]]+P_TabEPNP1117[[#This Row],[ENERGY COSTS]]+P_TabEPNP1117[[#This Row],[GAS COSTS]]) -> 5.218923077 | J46: 28 | K46: TRUE
B47: Install | C47: =IF(ISERROR((VLOOKUP(P_TabEPNP1117[[#This Row],[DESIGNATION]],DE_TabR[[Sloupec2]:[ON]],2,FALSE))/(VLOOKUP(P_TabEPNP1117[[#This Row],[DESIGNATION]],DE_TabR[[Sloupec2]:[ON]],3,FALSE))/O_CapR*IF(K47=TRUE,1,0))=TRUE,"-",(VLOOKUP(P_TabEPNP1117[[#This Row],[DESIGNATION]],DE_TabR[[Sloupec2]:[ON]],2,FALSE))/(VLOOKUP(P_TabEPNP1117[[#This Row],[DESIGNATION]],DE_TabR[[Sloupec2]:[ON]],3,FALSE))/O_CapR*IF(K47=TRUE,1,0)) -> 6.41025641 | D47: 0 | E47: =IF(ISERROR((VLOOKUP(P_TabEPNP1117[[#This Row],[DESIGNATION]],DE_TabR[[Sloupec2]:[Sloupec4]],4,FALSE))*DE_EP*P_TabEPNP1117[[#This Row],[ENERGY]]*IF(K47=TRUE,1,0))=TRUE,"-",(VLOOKUP(P_TabEPNP1117[[#This Row],[DESIGNATION]],DE_TabR[[Sloupec2]:[Sloupec4]],4,FALSE))*DE_EP*P_TabEPNP1117[[#This Row],[ENERGY]]*IF(K47=TRUE,1,0)) -> 0 | F47: 0 | G47: =IF(ISERROR((VLOOKUP(P_TabEPNP1117[[#This Row],[DESIGNATION]],DE_TabR[[Sloupec2]:[Sloupec5]],5,FALSE))*DE_GP*P_TabEPNP1117[[#This Row],[GAS]]*IF(K47=TRUE,1,0))=TRUE,"-",(VLOOKUP(P_TabEPNP1117[[#This Row],[DESIGNATION]],DE_TabR[[Sloupec2]:[Sloupec5]],5,FALSE))*DE_GP*P_TabEPNP1117[[#This Row],[GAS]]*IF(K47=TRUE,1,0)) -> 0 | H47: =IF(ISERROR(P_TabEPNP1117[[#This Row],[DEPRECIATION]]+P_TabEPNP1117[[#This Row],[ENERGY COSTS]]+P_TabEPNP1117[[#This Row],[GAS COSTS]])=TRUE,0,P_TabEPNP1117[[#This Row],[DEPRECIATION]]+P_TabEPNP1117[[#This Row],[ENERGY COSTS]]+P_TabEPNP1117[[#This Row],[GAS COSTS]]) -> 6.41025641 | J47: 29 | K47: TRUE
B48: Neu-E | C48: =IF(ISERROR((VLOOKUP(P_TabEPNP1117[[#This Row],[DESIGNATION]],DE_TabR[[Sloupec2]:[ON]],2,FALSE))/(VLOOKUP(P_TabEPNP1117[[#This Row],[DESIGNATION]],DE_TabR[[Sloupec2]:[ON]],3,FALSE))/O_CapR*IF(K48=TRUE,1,0))=TRUE,"-",(VLOOKUP(P_TabEPNP1117[[#This Row],[DESIGNATION]],DE_TabR[[Sloupec2]:[ON]],2,FALSE))/(VLOOKUP(P_TabEPNP1117[[#This Row],[DESIGNATION]],DE_TabR[[Sloupec2]:[ON]],3,FALSE))/O_CapR*IF(K48=TRUE,1,0)) -> 0.6475160256 | D48: 0.067 | E48: =IF(ISERROR((VLOOKUP(P_TabEPNP1117[[#This Row],[DESIGNATION]],DE_TabR[[Sloupec2]:[Sloupec4]],4,FALSE))*DE_EP*P_TabEPNP1117[[#This Row],[ENERGY]]*IF(K48=TRUE,1,0))=TRUE,"-",(VLOOKUP(P_TabEPNP1117[[#This Row],[DESIGNATION]],DE_TabR[[Sloupec2]:[Sloupec4]],4,FALSE))*DE_EP*P_TabEPNP1117[[#This Row],[ENERGY]]*IF(K48=TRUE,1,0)) -> 0.013065 | F48: 0 | G48: =IF(ISERROR((VLOOKUP(P_TabEPNP1117[[#This Row],[DESIGNATION]],DE_TabR[[Sloupec2]:[Sloupec5]],5,FALSE))*DE_GP*P_TabEPNP1117[[#This Row],[GAS]]*IF(K48=TRUE,1,0))=TRUE,"-",(VLOOKUP(P_TabEPNP1117[[#This Row],[DESIGNATION]],DE_TabR[[Sloupec2]:[Sloupec5]],5,FALSE))*DE_GP*P_TabEPNP1117[[#This Row],[GAS]]*IF(K48=TRUE,1,0)) -> 0 | H48: =IF(ISERROR(P_TabEPNP1117[[#This Row],[DEPRECIATION]]+P_TabEPNP1117[[#This Row],[ENERGY COSTS]]+P_TabEPNP1117[[#This Row],[GAS COSTS]])=TRUE,0,P_TabEPNP1117[[#This Row],[DEPRECIATION]]+P_TabEPNP1117[[#This Row],[ENERGY COSTS]]+P_TabEPNP1117[[#This Row],[GAS COSTS]]) -> 0.6605810256 | J48: 30 | K48: TRUE
B49: P-108 | C49: =IF(ISERROR((VLOOKUP(P_TabEPNP1117[[#This Row],[DESIGNATION]],DE_TabR[[Sloupec2]:[ON]],2,FALSE))/(VLOOKUP(P_TabEPNP1117[[#This Row],[DESIGNATION]],DE_TabR[[Sloupec2]:[ON]],3,FALSE))/O_CapR*IF(K49=TRUE,1,0))=TRUE,"-",(VLOOKUP(P_TabEPNP1117[[#This Row],[DESIGNATION]],DE_TabR[[Sloupec2]:[ON]],2,FALSE))/(VLOOKUP(P_TabEPNP1117[[#This Row],[DESIGNATION]],DE_TabR[[Sloupec2]:[ON]],3,FALSE))/O_CapR*IF(K49=TRUE,1,0)) -> 7.260576923 | D49: 1 | E49: =IF(ISERROR((VLOOKUP(P_TabEPNP1117[[#This Row],[DESIGNATION]],DE_TabR[[Sloupec2]:[Sloupec4]],4,FALSE))*DE_EP*P_TabEPNP1117[[#This Row],[ENERGY]]*IF(K49=TRUE,1,0))=TRUE,"-",(VLOOKUP(P_TabEPNP1117[[#This Row],[DESIGNATION]],DE_TabR[[Sloupec2]:[Sloupec4]],4,FALSE))*DE_EP*P_TabEPNP1117[[#This Row],[ENERGY]]*IF(K49=TRUE,1,0)) -> 2.405 | F49: 0 | G49: =IF(ISERROR((VLOOKUP(P_TabEPNP1117[[#This Row],[DESIGNATION]],DE_TabR[[Sloupec2]:[Sloupec5]],5,FALSE))*DE_GP*P_TabEPNP1117[[#This Row],[GAS]]*IF(K49=TRUE,1,0))=TRUE,"-",(VLOOKUP(P_TabEPNP1117[[#This Row],[DESIGNATION]],DE_TabR[[Sloupec2]:[Sloupec5]],5,FALSE))*DE_GP*P_TabEPNP1117[[#This Row],[GAS]]*IF(K49=TRUE,1,0)) -> 0 | H49: =IF(ISERROR(P_TabEPNP1117[[#This Row],[DEPRECIATION]]+P_TabEPNP1117[[#This Row],[ENERGY COSTS]]+P_TabEPNP1117[[#This Row],[GAS COSTS]])=TRUE,0,P_TabEPNP1117[[#This Row],[DEPRECIATION]]+P_TabEPNP1117[[#This Row],[ENERGY COSTS]]+P_TabEPNP1117[[#This Row],[GAS COSTS]]) -> 9.665576923 | J49: 31 | K49: TRUE
B50: EQUIPMENT - HEATER | C50: =SUBTOTAL(109,P_TabEPNP1117[DEPRECIATION]) -> 77.28533654 | E50: =SUBTOTAL(109,P_TabEPNP1117[ENERGY COSTS]) -> 9.401665 | G50: =SUBTOTAL(109,P_TabEPNP1117[GAS COSTS]) -> 0 | H50: =SUBTOTAL(109,P_TabEPNP1117[COST]) -> 86.68700154 | J50: =(ROW(P_RemRowENP)) -> 50
B51: Heater + Contingency | C51: =IF(ISERROR(DE_TabH[Sloupec3]/DE_TabH[Sloupec4]/O_CapR)=TRUE,0,DE_TabH[Sloupec3]/DE_TabH[Sloupec4]/O_CapR) -> 44.18653846 | D51: 1 | E51: =IF(ISERROR(DE_TabH[Sloupec5]*DE_EP*D51)=TRUE,0,DE_TabH[Sloupec5]*DE_EP*D51) -> 0.52 | F51: 1150 | G51: =IF(ISERROR(DE_GP*F51)=TRUE,0,DE_GP*F51) -> 49.45 | H51: =IF(ISERROR(C51+G51)=TRUE,0,C51+G51) -> 93.63653846
B52: ="The process contains "&SUBTOTAL(103,B19:B51)-1&" equipment(s)" -> The process contains 32 equipment(s) | C52: =C50+C51 -> 121.471875 | E52: =E50+E51 -> 9.921665 | G52: =G50+G51 -> 49.45 | H52: =H50+H51 -> 180.32354
B54: OUTPUTS NP | H54: OUTPUT DENSITY
B55: TiO2 (TiOS) (wt 2%) | C55: =IF(ISERROR(VLOOKUP(B55,DChO_Tab[[NAME]:[STB / UNSTB]],6,FALSE))=TRUE,"-",VLOOKUP(B55,DChO_Tab[[NAME]:[STB / UNSTB]],6,FALSE)) -> Unstable | D55: Output from NP | E55: 4500 | F55: Output NPs | G55: 59.9 | H55: 1000
B57: POST-PROCESS SEDIMENTATION | G57: SET UP TIME | H57: 0.1
B58: PROCESS FILTRATION
B59: UNIT (UN) | C59: FILTRATION TIME / UN | D59: WASHING STEPS | E59: NPs / UN | F59: Σ FILTRATION TIME / UN | G59: NPs / 1H NP | H59: Σ FILTR. TIME / 1H NP
D60: 2 | E60: =IF(ISERROR(P_OutputNPs*B60/E55)=TRUE,0,P_OutputNPs*B60/E55) -> 0 | F60: =IF(ISERROR(C60*D60)=TRUE,"-",C60*D60) -> 0 | G60: =P_OutputNPs -> 59.9 | H60: =IF(ISERROR(E55/B60*F60)=TRUE,0,E55/B60*F60) -> 0
B62: INPUTS
B63: NAME | C63: ID | D63: PRICE / UNIT | E63: TYPE | F63: CONSUPTION / 1 W. STEP | G63: COST / FILTRATION | H63: COST / KG | J63: =ROW(P_StartRowIPPF) -> 63
B64: =IF(B55="","-",B55) -> TiO2 (TiOS) (wt 2%) | C64: =IF(ISERROR(VLOOKUP(B64,DChO_Tab[[NAME]:[ID]],3,FALSE))=TRUE,"-",VLOOKUP(B64,DChO_Tab[[NAME]:[ID]],3,FALSE)) -> OCH00001 | D64: =IF(ISERROR(VLOOKUP('P1'!$C64,DChO_Tab[[ID]:[PRICE / UNIT]],7,FALSE))=TRUE,"-",VLOOKUP('P1'!$C64,DChO_Tab[[ID]:[PRICE / UNIT]],7,FALSE)) -> 0 | E64: =IF(ISERROR(VLOOKUP('P1'!$C64,DChO_Tab[[ID]:[TYPE]],3,FALSE))=TRUE,"-",VLOOKUP('P1'!$C64,DChO_Tab[[ID]:[TYPE]],3,FALSE)) -> Semi-product | F64: =B60 -> 0 | G64: =IF(ISERROR('P1'!$D64*'P1'!$F64),0,'P1'!$D64*'P1'!$F64) -> 0 | H64: =IF(ISERROR('P1'!$D64*'P1'!$F64/P_OutputNPs)=TRUE,0,'P1'!$D64*'P1'!$F64/P_OutputNPs) -> 0
B65: NAME | C65: ID | D65: PRICE / UNIT | E65: TYPE | F65: FLOW RATE | G65: Sloupec1 | H65: COST
C66: =IF(ISERROR(VLOOKUP(P_TabIPPPF1319[[#This Row],[NAME]],DChI_Tab[],3,FALSE))=TRUE,"-",VLOOKUP(P_TabIPPPF1319[[#This Row],[NAME]],DChI_Tab[],3,FALSE)) -> - | D66: =IF(ISERROR(VLOOKUP(P_TabIPPPF1319[[#This Row],[ID]],DChI_Tab[[ID]:[PRICE / UNIT]],6,FALSE))=TRUE,"-",VLOOKUP(P_TabIPPPF1319[[#This Row],[ID]],DChI_Tab[[ID]:[PRICE / UNIT]],6,FALSE)) -> - | E66: =IF(ISERROR(VLOOKUP(P_TabIPPPF1319[[#This Row],[ID]],DChI_Tab[[ID]:[TYPE]],3,FALSE))=TRUE,"-",VLOOKUP(P_TabIPPPF1319[[#This Row],[ID]],DChI_Tab[[ID]:[TYPE]],3,FALSE)) -> - | G66: =IF(ISERROR(P_TabIPPPF1319[[#This Row],[PRICE / UNIT]]*P_TabIPPPF1319[[#This Row],[FLOW RATE]]*P_WSteps)=TRUE,0,P_TabIPPPF1319[[#This Row],[PRICE / UNIT]]*P_TabIPPPF1319[[#This Row],[FLOW RATE]]*P_WSteps) -> 0 | H66: =IF(ISERROR(P_TabIPPPF1319[[#This Row],[PRICE / UNIT]]*P_TabIPPPF1319[[#This Row],[FLOW RATE]]*P_WSteps/P_OutputPPFUN)=TRUE,0,P_TabIPPPF1319[[#This Row],[PRICE / UNIT]]*P_TabIPPPF1319[[#This Row],[FLOW RATE]]*P_WSteps/P_OutputPPFUN) -> 0 | J66: 1
B67: ="The process contains "&SUBTOTAL(103,P_TabIPPPF1319[NAME])&" input(s)" -> The process contains 0 input(s) | G67: =SUBTOTAL(109,P_TabIPPPF1319[Sloupec1]) -> 0 | H67: =SUBTOTAL(109,P_TabIPPPF1319[COST])+H64 -> 0 | J67: =ROW(P_RemRowIPPF) -> 67
B69: EQUIPMENT
B70: DESIGNATION | C70: NUMBER OF FILTRES | D70: Sloupec1 | E70: Sloupec2 | F70: Sloupec3 | G70: Sloupec4 | H70: DEPRECIATION / 1H NP | J70: =ROW(P_StartRowEPPF) -> 70
H71: =IF(ISERROR(VLOOKUP(P_TabEPPPF1218[[#This Row],[DESIGNATION]],DE_TabP[[Sloupec2]:[Sloupec4]],2,FALSE)/VLOOKUP(P_TabEPPPF1218[[#This Row],[DESIGNATION]],DE_TabP[[Sloupec2]:[Sloupec4]],3,FALSE)*P_TabEPPPF1218[[#This Row],[NUMBER OF FILTRES]]*P_PPFTime)=TRUE,0,VLOOKUP(P_TabEPPPF1218[[#This Row],[DESIGNATION]],DE_TabP[[Sloupec2]:[Sloupec4]],2,FALSE)/VLOOKUP(P_TabEPPPF1218[[#This Row],[DESIGNATION]],DE_TabP[[Sloupec2]:[Sloupec4]],3,FALSE)*P_TabEPPPF1218[[#This Row],[NUMBER OF FILTRES]]*P_PPFTime) -> 0 | J71: 1
B72: ="The process contains "&SUBTOTAL(103,P_TabEPPPF1218[DESIGNATION])&" equipment(s)" -> The process contains 0 equipment(s) | H72: =SUBTOTAL(109,P_TabEPPPF1218[DEPRECIATION / 1H NP]) -> 0 | J72: =ROW(P_RemRowEPPF) -> 72
B74: OUTPUTS PP SEDIMENTATION
B75: Dioxozirconium (wt 8%) | D75: Output NPs / 1H PPF | E75: =IF(ISERROR(P_OutputNPs/P_PPFTime)=TRUE,0,P_OutputNPs/P_PPFTime) -> 0
B77: PROCESS SEDIMENTATION
B78: VOLUME OF TANKS (UN) | C78: SEDIMENTATION TIME / UN | D78: WASHING STEPS | E78: NPs / UN | F78: Σ SEDIMENT. TIME / UN | G78: NPs / 1H NP | H78: Σ SEDIMENT. TIME / 1H NP
B79: 6000 | C79: 0.5 | D79: 2 | E79: =IF(ISERROR(P_OutputNPs*B79/E55)=TRUE,0,P_OutputNPs*B79/E55) -> 79.86666667 | F79: =IF(ISERROR(C79*D79)=TRUE,"-",C79*D79) -> 1 | G79: =P_OutputNPs -> 59.9 | H79: =IF(ISERROR(IF(E55>B79,CEILING(E55/B79,1),1)*F79)=TRUE,0,IF(E55>B79,CEILING(E55/B79,1),1)*F79) -> 1
B81: OUTPUTS PP SEDIMENTATION
B82: TiO2 (TiOS - 400C) (wt 8%) | C82: 500 | D82: Output NPs / 1H PPS | E82: =P_OutputNPs -> 59.9
B84: NEUTRALISATION
B85: INPUTS
B86: NAME | C86: ID | D86: PRICE / UNIT | E86: TYPE | F86: CONSUMPTION | H86: COST | J86: =ROW(P_StartRowNeu) -> 86
B87: Waste water (postprocessing) | C87: - | D87: 0 | E87: Water | F87: =IF(ISERROR(E55-IF(P_PPFiltr="Stable",C75,C82))=TRUE,"-",E55-IF(P_PPFiltr="Stable",C75,C82)) -> 4000 | H87: =D87*F87 -> 0
B88: Waste water (washing) | C88: - | D88: 0 | E88: Water | F88: 1000 | H88: =D88*F88 -> 0
B89: NAME | C89: ID | D89: PRICE / UNIT | E89: TYPE | F89: FLOW RATE | G89: - | H89: COST
B90: Sodium hydroxide Solution (32%) | C90: =IF(ISERROR(VLOOKUP(P_TabINeu1423[[#This Row],[NAME]],DChI_Tab[],3,FALSE))=TRUE,"-",VLOOKUP(P_TabINeu1423[[#This Row],[NAME]],DChI_Tab[],3,FALSE)) -> ICH00004 | D90: =IF(ISERROR(VLOOKUP(P_TabINeu1423[[#This Row],[ID]],DChI_Tab[[ID]:[PRICE / UNIT]],6,FALSE))=TRUE,"-",VLOOKUP(P_TabINeu1423[[#This Row],[ID]],DChI_Tab[[ID]:[PRICE / UNIT]],6,FALSE)) -> 0.239 | E90: =IF(ISERROR(VLOOKUP(P_TabINeu1423[[#This Row],[ID]],DChI_Tab[[ID]:[TYPE]],3,FALSE))=TRUE,"-",VLOOKUP(P_TabINeu1423[[#This Row],[ID]],DChI_Tab[[ID]:[TYPE]],3,FALSE)) -> Other | F90: 53.3344 | H90: =IF(ISERROR(P_TabINeu1423[[#This Row],[PRICE / UNIT]]*P_TabINeu1423[[#This Row],[FLOW RATE]]),0,P_TabINeu1423[[#This Row],[PRICE / UNIT]]*P_TabINeu1423[[#This Row],[FLOW RATE]]) -> 12.7469216 | J90: 1
B91: Waste water disposal | C91: =IF(ISERROR(VLOOKUP(P_TabINeu1423[[#This Row],[NAME]],DChI_Tab[],3,FALSE))=TRUE,"-",VLOOKUP(P_TabINeu1423[[#This Row],[NAME]],DChI_Tab[],3,FALSE)) -> ICH00002 | D91: =IF(ISERROR(VLOOKUP(P_TabINeu1423[[#This Row],[ID]],DChI_Tab[[ID]:[PRICE / UNIT]],6,FALSE))=TRUE,"-",VLOOKUP(P_TabINeu1423[[#This Row],[ID]],DChI_Tab[[ID]:[PRICE / UNIT]],6,FALSE)) -> 0.001815 | E91: =IF(ISERROR(VLOOKUP(P_TabINeu1423[[#This Row],[ID]],DChI_Tab[[ID]:[TYPE]],3,FALSE))=TRUE,"-",VLOOKUP(P_TabINeu1423[[#This Row],[ID]],DChI_Tab[[ID]:[TYPE]],3,FALSE)) -> Water | F91: 113.3356 | H91: =IF(ISERROR(P_TabINeu1423[[#This Row],[PRICE / UNIT]]*P_TabINeu1423[[#This Row],[FLOW RATE]]),0,P_TabINeu1423[[#This Row],[PRICE / UNIT]]*P_TabINeu1423[[#This Row],[FLOW RATE]]) -> 0.205704114 | J91: 2
B92: ="The process contains "&SUBTOTAL(103,P_TabINeu1423[NAME])&" input(s)" -> The process contains 2 input(s) | H92: =SUBTOTAL(109,P_TabINeu1423[COST]) -> 12.95262571 | J92: =ROW(P_RemRowNeu) -> 92

Sheet P2
B1: ="PROCESS " & VLOOKUP(J2,INDIRECT(ADDRESS(PM!PM_StartRow+1,7,1,1,"PM"),TRUE):INDIRECT(ADDRESS(PM!PM_RemRow-1,8,1,1,"PM"),TRUE),2,FALSE) -> PROCESS P00002 | J1: Proc | K1: Prod | L1: Type | M1: OutNPs | N1: OutPPF | O1: OutPPS | P1: Den | Q1: OutF/S | R1: TPPF/S | S1: STNP | T1: STPPF | U1: InNP | V1: DepNP | W1: En | X1: Gas | Y1: InPPF | Z1: DepPPF | AA1: InNeu
J2: P2 | K2: =IF(P_PPFiltr="Stable",B75,B82) -> TiO2 (TiOS - 350C) (wt 8%) | L2: =P_PPFiltr -> Unstable | M2: =G55 -> 58.7 | N2: =P_OutputPPFUN -> 0 | O2: =E79 -> 78.26666667 | P2: =IF(ISERROR(E55/H55*1000)=TRUE,0,E55/H55*1000) -> 4500 | Q2: =IF(P_PPFiltr="-",0,IF(P_PPFiltr="Stable",C75,C82)) -> 500 | R2: =IF(P_PPFiltr="-",0,IF(P_PPFiltr="Stable",H60,(E55*H79)/(B79*P_OutputNPs))) -> 0.01277683135 | S2: =H8 -> 0.1 | T2: =H57 -> 0.1 | U2: =P_TabIPNP101524[[#Totals],[COST]] -> 1035.016848 | V2: =C52 -> 121.471875 | W2: =E52 -> 9.921665 | X2: =G52 -> 40.85 | Y2: =P_TabIPPPF131927[[#Totals],[COST]] -> 0 | Z2: =P_TabEPPPF121826[[#Totals],[DEPRECIATION / 1H NP]] -> 0 | AA2: =P_TabINeu142328[[#Totals],[COST]] -> 12.95262571
J3: 10 | K3: 11 | L3: 12 | M3: 13 | N3: 14 | O3: 15 | P3: 16 | Q3: 17 | R3: 18 | S3: 19 | T3: 20 | U3: 21 | V3: 22 | W3: 23 | X3: 24 | Y3: 25 | Z3: 26 | AA3: 27
B4: =IF(ISERROR(VLOOKUP(J2,INDIRECT(ADDRESS(PM!PM_StartRow+1,7,1,1,"PM"),TRUE):INDIRECT(ADDRESS(PM!PM_RemRow-1,9,1,1,"PM"),TRUE),3,FALSE))=TRUE,"-",IF(VLOOKUP(J2,INDIRECT(ADDRESS(PM!PM_StartRow+1,7,1,1,"PM"),TRUE):INDIRECT(ADDRESS(PM!PM_RemRow-1,9,1,1,"PM"),TRUE),3,FALSE)=0,"-",VLOOKUP(J2,INDIRECT(ADDRESS(PM!PM_StartRow+1,7,1,1,"PM"),TRUE):INDIRECT(ADDRESS(PM!PM_RemRow-1,9,1,1,"PM"),TRUE),3,FALSE))) -> TiO2 - TiOS 350C
B8: NANO PRODUCTION | G8: SET UP TIME | H8: 0.1
B9: INPUTS
B10: NAME | C10: ID | D10: PRICE / UNIT | E10: TYPE | F10: FLOW RATE | G10: - | H10: COST | J10: =ROW(P_StartRowINP) -> 10
B11: Titanium oxysulfate | C11: =IF(ISERROR(VLOOKUP(P_TabIPNP101524[[#This Row],[NAME]],DChI_Tab[],3,FALSE))=TRUE,"-",VLOOKUP(P_TabIPNP101524[[#This Row],[NAME]],DChI_Tab[],3,FALSE)) -> ICH00015 | D11: =IF(ISERROR(VLOOKUP(P_TabIPNP101524[[#This Row],[ID]],DChI_Tab[[ID]:[PRICE / UNIT]],6,FALSE))=TRUE,"-",VLOOKUP(P_TabIPNP101524[[#This Row],[ID]],DChI_Tab[[ID]:[PRICE / UNIT]],6,FALSE)) -> 1.22 | E11: =IF(ISERROR(VLOOKUP(P_TabIPNP101524[[#This Row],[ID]],DChI_Tab[[ID]:[TYPE]],3,FALSE))=TRUE,"-",VLOOKUP(P_TabIPNP101524[[#This Row],[ID]],DChI_Tab[[ID]:[TYPE]],3,FALSE)) -> Precursor | F11: 799.65 | H11: =IF(ISERROR(P_TabIPNP101524[[#This Row],[PRICE / UNIT]]*P_TabIPNP101524[[#This Row],[FLOW RATE]]),0,P_TabIPNP101524[[#This Row],[PRICE / UNIT]]*P_TabIPNP101524[[#This Row],[FLOW RATE]]) -> 975.573 | J11: 1
B12: Dionised water | C12: =IF(ISERROR(VLOOKUP(P_TabIPNP101524[[#This Row],[NAME]],DChI_Tab[],3,FALSE))=TRUE,"-",VLOOKUP(P_TabIPNP101524[[#This Row],[NAME]],DChI_Tab[],3,FALSE)) -> ICH00001 | D12: =IF(ISERROR(VLOOKUP(P_TabIPNP101524[[#This Row],[ID]],DChI_Tab[[ID]:[PRICE / UNIT]],6,FALSE))=TRUE,"-",VLOOKUP(P_TabIPNP101524[[#This Row],[ID]],DChI_Tab[[ID]:[PRICE / UNIT]],6,FALSE)) -> 0.001815 | E12: =IF(ISERROR(VLOOKUP(P_TabIPNP101524[[#This Row],[ID]],DChI_Tab[[ID]:[TYPE]],3,FALSE))=TRUE,"-",VLOOKUP(P_TabIPNP101524[[#This Row],[ID]],DChI_Tab[[ID]:[TYPE]],3,FALSE)) -> Water | F12: 5592.1525 | H12: =IF(ISERROR(P_TabIPNP101524[[#This Row],[PRICE / UNIT]]*P_TabIPNP101524[[#This Row],[FLOW RATE]]),0,P_TabIPNP101524[[#This Row],[PRICE / UNIT]]*P_TabIPNP101524[[#This Row],[FLOW RATE]]) -> 10.14975679 | J12: 2
B13: Waste water disposal | C13: =IF(ISERROR(VLOOKUP(P_TabIPNP101524[[#This Row],[NAME]],DChI_Tab[],3,FALSE))=TRUE,"-",VLOOKUP(P_TabIPNP101524[[#This Row],[NAME]],DChI_Tab[],3,FALSE)) -> ICH00002 | D13: =IF(ISERROR(VLOOKUP(P_TabIPNP101524[[#This Row],[ID]],DChI_Tab[[ID]:[PRICE / UNIT]],6,FALSE))=TRUE,"-",VLOOKUP(P_TabIPNP101524[[#This Row],[ID]],DChI_Tab[[ID]:[PRICE / UNIT]],6,FALSE)) -> 0.001815 | E13: =IF(ISERROR(VLOOKUP(P_TabIPNP101524[[#This Row],[ID]],DChI_Tab[[ID]:[TYPE]],3,FALSE))=TRUE,"-",VLOOKUP(P_TabIPNP101524[[#This Row],[ID]],DChI_Tab[[ID]:[TYPE]],3,FALSE)) -> Water | F13: 5212.1 | H13: =IF(ISERROR(P_TabIPNP101524[[#This Row],[PRICE / UNIT]]*P_TabIPNP101524[[#This Row],[FLOW RATE]]),0,P_TabIPNP101524[[#This Row],[PRICE / UNIT]]*P_TabIPNP101524[[#This Row],[FLOW RATE]]) -> 9.4599615 | J13: 3
B14: Sodium hydroxide Solution (32%) | C14: =IF(ISERROR(VLOOKUP(P_TabIPNP101524[[#This Row],[NAME]],DChI_Tab[],3,FALSE))=TRUE,"-",VLOOKUP(P_TabIPNP101524[[#This Row],[NAME]],DChI_Tab[],3,FALSE)) -> ICH00004 | D14: =IF(ISERROR(VLOOKUP(P_TabIPNP101524[[#This Row],[ID]],DChI_Tab[[ID]:[PRICE / UNIT]],6,FALSE))=TRUE,"-",VLOOKUP(P_TabIPNP101524[[#This Row],[ID]],DChI_Tab[[ID]:[PRICE / UNIT]],6,FALSE)) -> 0.239 | E14: =IF(ISERROR(VLOOKUP(P_TabIPNP101524[[#This Row],[ID]],DChI_Tab[[ID]:[TYPE]],3,FALSE))=TRUE,"-",VLOOKUP(P_TabIPNP101524[[#This Row],[ID]],DChI_Tab[[ID]:[TYPE]],3,FALSE)) -> Other | F14: 166.67 | H14: =IF(ISERROR(P_TabIPNP101524[[#This Row],[PRICE / UNIT]]*P_TabIPNP101524[[#This Row],[FLOW RATE]]),0,P_TabIPNP101524[[#This Row],[PRICE / UNIT]]*P_TabIPNP101524[[#This Row],[FLOW RATE]]) -> 39.83413 | J14: 4
B15: ="The process contains "&SUBTOTAL(103,P_TabIPNP101524[NAME])&" input(s)" -> The process contains 4 input(s) | H15: =SUBTOTAL(109,P_TabIPNP101524[COST]) -> 1035.016848 | J15: =(ROW('P2'!B15)) -> 15
B17: EQUIPMENT
B18: DESIGNATION | C18: DEPRECIATION | D18: ENERGY | E18: ENERGY COSTS | F18: GAS | G18: GAS COSTS | H18: COST | J18: =ROW(P_StartRowENP) -> 18
B19: Fitt | C19: =IF(ISERROR((VLOOKUP(P_TabEPNP111725[[#This Row],[DESIGNATION]],DE_TabR[[Sloupec2]:[ON]],2,FALSE))/(VLOOKUP(P_TabEPNP111725[[#This Row],[DESIGNATION]],DE_TabR[[Sloupec2]:[ON]],3,FALSE))/O_CapR*IF(K19=TRUE,1,0))=TRUE,"-",(VLOOKUP(P_TabEPNP111725[[#This Row],[DESIGNATION]],DE_TabR[[Sloupec2]:[ON]],2,FALSE))/(VLOOKUP(P_TabEPNP111725[[#This Row],[DESIGNATION]],DE_TabR[[Sloupec2]:[ON]],3,FALSE))/O_CapR*IF(K19=TRUE,1,0)) -> 3.334115385 | D19: 0 | E19: =IF(ISERROR((VLOOKUP(P_TabEPNP111725[[#This Row],[DESIGNATION]],DE_TabR[[Sloupec2]:[Sloupec4]],4,FALSE))*DE_EP*P_TabEPNP111725[[#This Row],[ENERGY]]*IF(K19=TRUE,1,0))=TRUE,"-",(VLOOKUP(P_TabEPNP111725[[#This Row],[DESIGNATION]],DE_TabR[[Sloupec2]:[Sloupec4]],4,FALSE))*DE_EP*P_TabEPNP111725[[#This Row],[ENERGY]]*IF(K19=TRUE,1,0)) -> 0 | F19: 0 | G19: =IF(ISERROR((VLOOKUP(P_TabEPNP111725[[#This Row],[DESIGNATION]],DE_TabR[[Sloupec2]:[Sloupec5]],5,FALSE))*DE_GP*P_TabEPNP111725[[#This Row],[GAS]]*IF(K19=TRUE,1,0))=TRUE,"-",(VLOOKUP(P_TabEPNP111725[[#This Row],[DESIGNATION]],DE_TabR[[Sloupec2]:[Sloupec5]],5,FALSE))*DE_GP*P_TabEPNP111725[[#This Row],[GAS]]*IF(K19=TRUE,1,0)) -> 0 | H19: =IF(ISERROR(P_TabEPNP111725[[#This Row],[DEPRECIATION]]+P_TabEPNP111725[[#This Row],[ENERGY COSTS]]+P_TabEPNP111725[[#This Row],[GAS COSTS]])=TRUE,0,P_TabEPNP111725[[#This Row],[DEPRECIATION]]+P_TabEPNP111725[[#This Row],[ENERGY COSTS]]+P_TabEPNP111725[[#This Row],[GAS COSTS]]) -> 3.334115385 | J19: 1 | K19: TRUE
B20: PipeW | C20: =IF(ISERROR((VLOOKUP(P_TabEPNP111725[[#This Row],[DESIGNATION]],DE_TabR[[Sloupec2]:[ON]],2,FALSE))/(VLOOKUP(P_TabEPNP111725[[#This Row],[DESIGNATION]],DE_TabR[[Sloupec2]:[ON]],3,FALSE))/O_CapR*IF(K20=TRUE,1,0))=TRUE,"-",(VLOOKUP(P_TabEPNP111725[[#This Row],[DESIGNATION]],DE_TabR[[Sloupec2]:[ON]],2,FALSE))/(VLOOKUP(P_TabEPNP111725[[#This Row],[DESIGNATION]],DE_TabR[[Sloupec2]:[ON]],3,FALSE))/O_CapR*IF(K20=TRUE,1,0)) -> 2.547826923 | D20: 0 | E20: =IF(ISERROR((VLOOKUP(P_TabEPNP111725[[#This Row],[DESIGNATION]],DE_TabR[[Sloupec2]:[Sloupec4]],4,FALSE))*DE_EP*P_TabEPNP111725[[#This Row],[ENERGY]]*IF(K20=TRUE,1,0))=TRUE,"-",(VLOOKUP(P_TabEPNP111725[[#This Row],[DESIGNATION]],DE_TabR[[Sloupec2]:[Sloupec4]],4,FALSE))*DE_EP*P_TabEPNP111725[[#This Row],[ENERGY]]*IF(K20=TRUE,1,0)) -> 0 | F20: 0 | G20: =IF(ISERROR((VLOOKUP(P_TabEPNP111725[[#This Row],[DESIGNATION]],DE_TabR[[Sloupec2]:[Sloupec5]],5,FALSE))*DE_GP*P_TabEPNP111725[[#This Row],[GAS]]*IF(K20=TRUE,1,0))=TRUE,"-",(VLOOKUP(P_TabEPNP111725[[#This Row],[DESIGNATION]],DE_TabR[[Sloupec2]:[Sloupec5]],5,FALSE))*DE_GP*P_TabEPNP111725[[#This Row],[GAS]]*IF(K20=TRUE,1,0)) -> 0 | H20: =IF(ISERROR(P_TabEPNP111725[[#This Row],[DEPRECIATION]]+P_TabEPNP111725[[#This Row],[ENERGY COSTS]]+P_TabEPNP111725[[#This Row],[GAS COSTS]])=TRUE,0,P_TabEPNP111725[[#This Row],[DEPRECIATION]]+P_TabEPNP111725[[#This Row],[ENERGY COSTS]]+P_TabEPNP111725[[#This Row],[GAS COSTS]]) -> 2.547826923 | J20: 2 | K20: TRUE
B21: Svalves | C21: =IF(ISERROR((VLOOKUP(P_TabEPNP111725[[#This Row],[DESIGNATION]],DE_TabR[[Sloupec2]:[ON]],2,FALSE))/(VLOOKUP(P_TabEPNP111725[[#This Row],[DESIGNATION]],DE_TabR[[Sloupec2]:[ON]],3,FALSE))/O_CapR*IF(K21=TRUE,1,0))=TRUE,"-",(VLOOKUP(P_TabEPNP111725[[#This Row],[DESIGNATION]],DE_TabR[[Sloupec2]:[ON]],2,FALSE))/(VLOOKUP(P_TabEPNP111725[[#This Row],[DESIGNATION]],DE_TabR[[Sloupec2]:[ON]],3,FALSE))/O_CapR*IF(K21=TRUE,1,0)) -> 4.147392628 | D21: 1 | E21: =IF(ISERROR((VLOOKUP(P_TabEPNP111725[[#This Row],[DESIGNATION]],DE_TabR[[Sloupec2]:[Sloupec4]],4,FALSE))*DE_EP*P_TabEPNP111725[[#This Row],[ENERGY]]*IF(K21=TRUE,1,0))=TRUE,"-",(VLOOKUP(P_TabEPNP111725[[#This Row],[DESIGNATION]],DE_TabR[[Sloupec2]:[Sloupec4]],4,FALSE))*DE_EP*P_TabEPNP111725[[#This Row],[ENERGY]]*IF(K21=TRUE,1,0)) -> 0.286 | F21: 0 | G21: =IF(ISERROR((VLOOKUP(P_TabEPNP111725[[#This Row],[DESIGNATION]],DE_TabR[[Sloupec2]:[Sloupec5]],5,FALSE))*DE_GP*P_TabEPNP111725[[#This Row],[GAS]]*IF(K21=TRUE,1,0))=TRUE,"-",(VLOOKUP(P_TabEPNP111725[[#This Row],[DESIGNATION]],DE_TabR[[Sloupec2]:[Sloupec5]],5,FALSE))*DE_GP*P_TabEPNP111725[[#This Row],[GAS]]*IF(K21=TRUE,1,0)) -> 0 | H21: =IF(ISERROR(P_TabEPNP111725[[#This Row],[DEPRECIATION]]+P_TabEPNP111725[[#This Row],[ENERGY COSTS]]+P_TabEPNP111725[[#This Row],[GAS COSTS]])=TRUE,0,P_TabEPNP111725[[#This Row],[DEPRECIATION]]+P_TabEPNP111725[[#This Row],[ENERGY COSTS]]+P_TabEPNP111725[[#This Row],[GAS COSTS]]) -> 4.433392628 | J21: 3 | K21: TRUE
B22: Bvalves | C22: =IF(ISERROR((VLOOKUP(P_TabEPNP111725[[#This Row],[DESIGNATION]],DE_TabR[[Sloupec2]:[ON]],2,FALSE))/(VLOOKUP(P_TabEPNP111725[[#This Row],[DESIGNATION]],DE_TabR[[Sloupec2]:[ON]],3,FALSE))/O_CapR*IF(K22=TRUE,1,0))=TRUE,"-",(VLOOKUP(P_TabEPNP111725[[#This Row],[DESIGNATION]],DE_TabR[[Sloupec2]:[ON]],2,FALSE))/(VLOOKUP(P_TabEPNP111725[[#This Row],[DESIGNATION]],DE_TabR[[Sloupec2]:[ON]],3,FALSE))/O_CapR*IF(K22=TRUE,1,0)) -> 1.56650641 | D22: 0 | E22: =IF(ISERROR((VLOOKUP(P_TabEPNP111725[[#This Row],[DESIGNATION]],DE_TabR[[Sloupec2]:[Sloupec4]],4,FALSE))*DE_EP*P_TabEPNP111725[[#This Row],[ENERGY]]*IF(K22=TRUE,1,0))=TRUE,"-",(VLOOKUP(P_TabEPNP111725[[#This Row],[DESIGNATION]],DE_TabR[[Sloupec2]:[Sloupec4]],4,FALSE))*DE_EP*P_TabEPNP111725[[#This Row],[ENERGY]]*IF(K22=TRUE,1,0)) -> 0 | F22: 0 | G22: =IF(ISERROR((VLOOKUP(P_TabEPNP111725[[#This Row],[DESIGNATION]],DE_TabR[[Sloupec2]:[Sloupec5]],5,FALSE))*DE_GP*P_TabEPNP111725[[#This Row],[GAS]]*IF(K22=TRUE,1,0))=TRUE,"-",(VLOOKUP(P_TabEPNP111725[[#This Row],[DESIGNATION]],DE_TabR[[Sloupec2]:[Sloupec5]],5,FALSE))*DE_GP*P_TabEPNP111725[[#This Row],[GAS]]*IF(K22=TRUE,1,0)) -> 0 | H22: =IF(ISERROR(P_TabEPNP111725[[#This Row],[DEPRECIATION]]+P_TabEPNP111725[[#This Row],[ENERGY COSTS]]+P_TabEPNP111725[[#This Row],[GAS COSTS]])=TRUE,0,P_TabEPNP111725[[#This Row],[DEPRECIATION]]+P_TabEPNP111725[[#This Row],[ENERGY COSTS]]+P_TabEPNP111725[[#This Row],[GAS COSTS]]) -> 1.56650641 | J22: 4 | K22: TRUE
B23: Structure | C23: =IF(ISERROR((VLOOKUP(P_TabEPNP111725[[#This Row],[DESIGNATION]],DE_TabR[[Sloupec2]:[ON]],2,FALSE))/(VLOOKUP(P_TabEPNP111725[[#This Row],[DESIGNATION]],DE_TabR[[Sloupec2]:[ON]],3,FALSE))/O_CapR*IF(K23=TRUE,1,0))=TRUE,"-",(VLOOKUP(P_TabEPNP111725[[#This Row],[DESIGNATION]],DE_TabR[[Sloupec2]:[ON]],2,FALSE))/(VLOOKUP(P_TabEPNP111725[[#This Row],[DESIGNATION]],DE_TabR[[Sloupec2]:[ON]],3,FALSE))/O_CapR*IF(K23=TRUE,1,0)) -> 2.396153846 | D23: 0 | E23: =IF(ISERROR((VLOOKUP(P_TabEPNP111725[[#This Row],[DESIGNATION]],DE_TabR[[Sloupec2]:[Sloupec4]],4,FALSE))*DE_EP*P_TabEPNP111725[[#This Row],[ENERGY]]*IF(K23=TRUE,1,0))=TRUE,"-",(VLOOKUP(P_TabEPNP111725[[#This Row],[DESIGNATION]],DE_TabR[[Sloupec2]:[Sloupec4]],4,FALSE))*DE_EP*P_TabEPNP111725[[#This Row],[ENERGY]]*IF(K23=TRUE,1,0)) -> 0 | F23: 0 | G23: =IF(ISERROR((VLOOKUP(P_TabEPNP111725[[#This Row],[DESIGNATION]],DE_TabR[[Sloupec2]:[Sloupec5]],5,FALSE))*DE_GP*P_TabEPNP111725[[#This Row],[GAS]]*IF(K23=TRUE,1,0))=TRUE,"-",(VLOOKUP(P_TabEPNP111725[[#This Row],[DESIGNATION]],DE_TabR[[Sloupec2]:[Sloupec5]],5,FALSE))*DE_GP*P_TabEPNP111725[[#This Row],[GAS]]*IF(K23=TRUE,1,0)) -> 0 | H23: =IF(ISERROR(P_TabEPNP111725[[#This Row],[DEPRECIATION]]+P_TabEPNP111725[[#This Row],[ENERGY COSTS]]+P_TabEPNP111725[[#This Row],[GAS COSTS]])=TRUE,0,P_TabEPNP111725[[#This Row],[DEPRECIATION]]+P_TabEPNP111725[[#This Row],[ENERGY COSTS]]+P_TabEPNP111725[[#This Row],[GAS COSTS]]) -> 2.396153846 | J23: 5 | K23: TRUE
B24: Tanks | C24: =IF(ISERROR((VLOOKUP(P_TabEPNP111725[[#This Row],[DESIGNATION]],DE_TabR[[Sloupec2]:[ON]],2,FALSE))/(VLOOKUP(P_TabEPNP111725[[#This Row],[DESIGNATION]],DE_TabR[[Sloupec2]:[ON]],3,FALSE))/O_CapR*IF(K24=TRUE,1,0))=TRUE,"-",(VLOOKUP(P_TabEPNP111725[[#This Row],[DESIGNATION]],DE_TabR[[Sloupec2]:[ON]],2,FALSE))/(VLOOKUP(P_TabEPNP111725[[#This Row],[DESIGNATION]],DE_TabR[[Sloupec2]:[ON]],3,FALSE))/O_CapR*IF(K24=TRUE,1,0)) -> 3.430769231 | D24: 1 | E24: =IF(ISERROR((VLOOKUP(P_TabEPNP111725[[#This Row],[DESIGNATION]],DE_TabR[[Sloupec2]:[Sloupec4]],4,FALSE))*DE_EP*P_TabEPNP111725[[#This Row],[ENERGY]]*IF(K24=TRUE,1,0))=TRUE,"-",(VLOOKUP(P_TabEPNP111725[[#This Row],[DESIGNATION]],DE_TabR[[Sloupec2]:[Sloupec4]],4,FALSE))*DE_EP*P_TabEPNP111725[[#This Row],[ENERGY]]*IF(K24=TRUE,1,0)) -> 0.0325 | F24: 0 | G24: =IF(ISERROR((VLOOKUP(P_TabEPNP111725[[#This Row],[DESIGNATION]],DE_TabR[[Sloupec2]:[Sloupec5]],5,FALSE))*DE_GP*P_TabEPNP111725[[#This Row],[GAS]]*IF(K24=TRUE,1,0))=TRUE,"-",(VLOOKUP(P_TabEPNP111725[[#This Row],[DESIGNATION]],DE_TabR[[Sloupec2]:[Sloupec5]],5,FALSE))*DE_GP*P_TabEPNP111725[[#This Row],[GAS]]*IF(K24=TRUE,1,0)) -> 0 | H24: =IF(ISERROR(P_TabEPNP111725[[#This Row],[DEPRECIATION]]+P_TabEPNP111725[[#This Row],[ENERGY COSTS]]+P_TabEPNP111725[[#This Row],[GAS COSTS]])=TRUE,0,P_TabEPNP111725[[#This Row],[DEPRECIATION]]+P_TabEPNP111725[[#This Row],[ENERGY COSTS]]+P_TabEPNP111725[[#This Row],[GAS COSTS]]) -> 3.463269231 | J24: 6 | K24: TRUE
B25: Agitators | C25: =IF(ISERROR((VLOOKUP(P_TabEPNP111725[[#This Row],[DESIGNATION]],DE_TabR[[Sloupec2]:[ON]],2,FALSE))/(VLOOKUP(P_TabEPNP111725[[#This Row],[DESIGNATION]],DE_TabR[[Sloupec2]:[ON]],3,FALSE))/O_CapR*IF(K25=TRUE,1,0))=TRUE,"-",(VLOOKUP(P_TabEPNP111725[[#This Row],[DESIGNATION]],DE_TabR[[Sloupec2]:[ON]],2,FALSE))/(VLOOKUP(P_TabEPNP111725[[#This Row],[DESIGNATION]],DE_TabR[[Sloupec2]:[ON]],3,FALSE))/O_CapR*IF(K25=TRUE,1,0)) -> 0.4615384615 | D25: 0 | E25: =IF(ISERROR((VLOOKUP(P_TabEPNP111725[[#This Row],[DESIGNATION]],DE_TabR[[Sloupec2]:[Sloupec4]],4,FALSE))*DE_EP*P_TabEPNP111725[[#This Row],[ENERGY]]*IF(K25=TRUE,1,0))=TRUE,"-",(VLOOKUP(P_TabEPNP111725[[#This Row],[DESIGNATION]],DE_TabR[[Sloupec2]:[Sloupec4]],4,FALSE))*DE_EP*P_TabEPNP111725[[#This Row],[ENERGY]]*IF(K25=TRUE,1,0)) -> 0 | F25: 0 | G25: =IF(ISERROR((VLOOKUP(P_TabEPNP111725[[#This Row],[DESIGNATION]],DE_TabR[[Sloupec2]:[Sloupec5]],5,FALSE))*DE_GP*P_TabEPNP111725[[#This Row],[GAS]]*IF(K25=TRUE,1,0))=TRUE,"-",(VLOOKUP(P_TabEPNP111725[[#This Row],[DESIGNATION]],DE_TabR[[Sloupec2]:[Sloupec5]],5,FALSE))*DE_GP*P_TabEPNP111725[[#This Row],[GAS]]*IF(K25=TRUE,1,0)) -> 0 | H25: =IF(ISERROR(P_TabEPNP111725[[#This Row],[DEPRECIATION]]+P_TabEPNP111725[[#This Row],[ENERGY COSTS]]+P_TabEPNP111725[[#This Row],[GAS COSTS]])=TRUE,0,P_TabEPNP111725[[#This Row],[DEPRECIATION]]+P_TabEPNP111725[[#This Row],[ENERGY COSTS]]+P_TabEPNP111725[[#This Row],[GAS COSTS]]) -> 0.4615384615 | J25: 7 | K25: TRUE
B26: E-201 | C26: =IF(ISERROR((VLOOKUP(P_TabEPNP111725[[#This Row],[DESIGNATION]],DE_TabR[[Sloupec2]:[ON]],2,FALSE))/(VLOOKUP(P_TabEPNP111725[[#This Row],[DESIGNATION]],DE_TabR[[Sloupec2]:[ON]],3,FALSE))/O_CapR*IF(K26=TRUE,1,0))=TRUE,"-",(VLOOKUP(P_TabEPNP111725[[#This Row],[DESIGNATION]],DE_TabR[[Sloupec2]:[ON]],2,FALSE))/(VLOOKUP(P_TabEPNP111725[[#This Row],[DESIGNATION]],DE_TabR[[Sloupec2]:[ON]],3,FALSE))/O_CapR*IF(K26=TRUE,1,0)) -> 5.395833333 | D26: 0 | E26: =IF(ISERROR((VLOOKUP(P_TabEPNP111725[[#This Row],[DESIGNATION]],DE_TabR[[Sloupec2]:[Sloupec4]],4,FALSE))*DE_EP*P_TabEPNP111725[[#This Row],[ENERGY]]*IF(K26=TRUE,1,0))=TRUE,"-",(VLOOKUP(P_TabEPNP111725[[#This Row],[DESIGNATION]],DE_TabR[[Sloupec2]:[Sloupec4]],4,FALSE))*DE_EP*P_TabEPNP111725[[#This Row],[ENERGY]]*IF(K26=TRUE,1,0)) -> 0 | F26: 0 | G26: =IF(ISERROR((VLOOKUP(P_TabEPNP111725[[#This Row],[DESIGNATION]],DE_TabR[[Sloupec2]:[Sloupec5]],5,FALSE))*DE_GP*P_TabEPNP111725[[#This Row],[GAS]]*IF(K26=TRUE,1,0))=TRUE,"-",(VLOOKUP(P_TabEPNP111725[[#This Row],[DESIGNATION]],DE_TabR[[Sloupec2]:[Sloupec5]],5,FALSE))*DE_GP*P_TabEPNP111725[[#This Row],[GAS]]*IF(K26=TRUE,1,0)) -> 0 | H26: =IF(ISERROR(P_TabEPNP111725[[#This Row],[DEPRECIATION]]+P_TabEPNP111725[[#This Row],[ENERGY COSTS]]+P_TabEPNP111725[[#This Row],[GAS COSTS]])=TRUE,0,P_TabEPNP111725[[#This Row],[DEPRECIATION]]+P_TabEPNP111725[[#This Row],[ENERGY COSTS]]+P_TabEPNP111725[[#This Row],[GAS COSTS]]) -> 5.395833333 | J26: 8 | K26: TRUE
B27: E-310 | C27: =IF(ISERROR((VLOOKUP(P_TabEPNP111725[[#This Row],[DESIGNATION]],DE_TabR[[Sloupec2]:[ON]],2,FALSE))/(VLOOKUP(P_TabEPNP111725[[#This Row],[DESIGNATION]],DE_TabR[[Sloupec2]:[ON]],3,FALSE))/O_CapR*IF(K27=TRUE,1,0))=TRUE,"-",(VLOOKUP(P_TabEPNP111725[[#This Row],[DESIGNATION]],DE_TabR[[Sloupec2]:[ON]],2,FALSE))/(VLOOKUP(P_TabEPNP111725[[#This Row],[DESIGNATION]],DE_TabR[[Sloupec2]:[ON]],3,FALSE))/O_CapR*IF(K27=TRUE,1,0)) -> 4.312692308 | D27: 0 | E27: =IF(ISERROR((VLOOKUP(P_TabEPNP111725[[#This Row],[DESIGNATION]],DE_TabR[[Sloupec2]:[Sloupec4]],4,FALSE))*DE_EP*P_TabEPNP111725[[#This Row],[ENERGY]]*IF(K27=TRUE,1,0))=TRUE,"-",(VLOOKUP(P_TabEPNP111725[[#This Row],[DESIGNATION]],DE_TabR[[Sloupec2]:[Sloupec4]],4,FALSE))*DE_EP*P_TabEPNP111725[[#This Row],[ENERGY]]*IF(K27=TRUE,1,0)) -> 0 | F27: 0 | G27: =IF(ISERROR((VLOOKUP(P_TabEPNP111725[[#This Row],[DESIGNATION]],DE_TabR[[Sloupec2]:[Sloupec5]],5,FALSE))*DE_GP*P_TabEPNP111725[[#This Row],[GAS]]*IF(K27=TRUE,1,0))=TRUE,"-",(VLOOKUP(P_TabEPNP111725[[#This Row],[DESIGNATION]],DE_TabR[[Sloupec2]:[Sloupec5]],5,FALSE))*DE_GP*P_TabEPNP111725[[#This Row],[GAS]]*IF(K27=TRUE,1,0)) -> 0 | H27: =IF(ISERROR(P_TabEPNP111725[[#This Row],[DEPRECIATION]]+P_TabEPNP111725[[#This Row],[ENERGY COSTS]]+P_TabEPNP111725[[#This Row],[GAS COSTS]])=TRUE,0,P_TabEPNP111725[[#This Row],[DEPRECIATION]]+P_TabEPNP111725[[#This Row],[ENERGY COSTS]]+P_TabEPNP111725[[#This Row],[GAS COSTS]]) -> 4.312692308 | J27: 9 | K27: TRUE
B28: P-101 | C28: =IF(ISERROR((VLOOKUP(P_TabEPNP111725[[#This Row],[DESIGNATION]],DE_TabR[[Sloupec2]:[ON]],2,FALSE))/(VLOOKUP(P_TabEPNP111725[[#This Row],[DESIGNATION]],DE_TabR[[Sloupec2]:[ON]],3,FALSE))/O_CapR*IF(K28=TRUE,1,0))=TRUE,"-",(VLOOKUP(P_TabEPNP111725[[#This Row],[DESIGNATION]],DE_TabR[[Sloupec2]:[ON]],2,FALSE))/(VLOOKUP(P_TabEPNP111725[[#This Row],[DESIGNATION]],DE_TabR[[Sloupec2]:[ON]],3,FALSE))/O_CapR*IF(K28=TRUE,1,0)) -> 0.0575849359 | D28: 0.03 | E28: =IF(ISERROR((VLOOKUP(P_TabEPNP111725[[#This Row],[DESIGNATION]],DE_TabR[[Sloupec2]:[Sloupec4]],4,FALSE))*DE_EP*P_TabEPNP111725[[#This Row],[ENERGY]]*IF(K28=TRUE,1,0))=TRUE,"-",(VLOOKUP(P_TabEPNP111725[[#This Row],[DESIGNATION]],DE_TabR[[Sloupec2]:[Sloupec4]],4,FALSE))*DE_EP*P_TabEPNP111725[[#This Row],[ENERGY]]*IF(K28=TRUE,1,0)) -> 0.0156 | F28: 0 | G28: =IF(ISERROR((VLOOKUP(P_TabEPNP111725[[#This Row],[DESIGNATION]],DE_TabR[[Sloupec2]:[Sloupec5]],5,FALSE))*DE_GP*P_TabEPNP111725[[#This Row],[GAS]]*IF(K28=TRUE,1,0))=TRUE,"-",(VLOOKUP(P_TabEPNP111725[[#This Row],[DESIGNATION]],DE_TabR[[Sloupec2]:[Sloupec5]],5,FALSE))*DE_GP*P_TabEPNP111725[[#This Row],[GAS]]*IF(K28=TRUE,1,0)) -> 0 | H28: =IF(ISERROR(P_TabEPNP111725[[#This Row],[DEPRECIATION]]+P_TabEPNP111725[[#This Row],[ENERGY COSTS]]+P_TabEPNP111725[[#This Row],[GAS COSTS]])=TRUE,0,P_TabEPNP111725[[#This Row],[DEPRECIATION]]+P_TabEPNP111725[[#This Row],[ENERGY COSTS]]+P_TabEPNP111725[[#This Row],[GAS COSTS]]) -> 0.0731849359 | J28: 10 | K28: TRUE
B29: P-103 | C29: =IF(ISERROR((VLOOKUP(P_TabEPNP111725[[#This Row],[DESIGNATION]],DE_TabR[[Sloupec2]:[ON]],2,FALSE))/(VLOOKUP(P_TabEPNP111725[[#This Row],[DESIGNATION]],DE_TabR[[Sloupec2]:[ON]],3,FALSE))/O_CapR*IF(K29=TRUE,1,0))=TRUE,"-",(VLOOKUP(P_TabEPNP111725[[#This Row],[DESIGNATION]],DE_TabR[[Sloupec2]:[ON]],2,FALSE))/(VLOOKUP(P_TabEPNP111725[[#This Row],[DESIGNATION]],DE_TabR[[Sloupec2]:[ON]],3,FALSE))/O_CapR*IF(K29=TRUE,1,0)) -> 0.0575849359 | D29: 0 | E29: =IF(ISERROR((VLOOKUP(P_TabEPNP111725[[#This Row],[DESIGNATION]],DE_TabR[[Sloupec2]:[Sloupec4]],4,FALSE))*DE_EP*P_TabEPNP111725[[#This Row],[ENERGY]]*IF(K29=TRUE,1,0))=TRUE,"-",(VLOOKUP(P_TabEPNP111725[[#This Row],[DESIGNATION]],DE_TabR[[Sloupec2]:[Sloupec4]],4,FALSE))*DE_EP*P_TabEPNP111725[[#This Row],[ENERGY]]*IF(K29=TRUE,1,0)) -> 0 | F29: 0 | G29: =IF(ISERROR((VLOOKUP(P_TabEPNP111725[[#This Row],[DESIGNATION]],DE_TabR[[Sloupec2]:[Sloupec5]],5,FALSE))*DE_GP*P_TabEPNP111725[[#This Row],[GAS]]*IF(K29=TRUE,1,0))=TRUE,"-",(VLOOKUP(P_TabEPNP111725[[#This Row],[DESIGNATION]],DE_TabR[[Sloupec2]:[Sloupec5]],5,FALSE))*DE_GP*P_TabEPNP111725[[#This Row],[GAS]]*IF(K29=TRUE,1,0)) -> 0 | H29: =IF(ISERROR(P_TabEPNP111725[[#This Row],[DEPRECIATION]]+P_TabEPNP111725[[#This Row],[ENERGY COSTS]]+P_TabEPNP111725[[#This Row],[GAS COSTS]])=TRUE,0,P_TabEPNP111725[[#This Row],[DEPRECIATION]]+P_TabEPNP111725[[#This Row],[ENERGY COSTS]]+P_TabEPNP111725[[#This Row],[GAS COSTS]]) -> 0.0575849359 | J29: 11 | K29: TRUE
B30: P-105 | C30: =IF(ISERROR((VLOOKUP(P_TabEPNP111725[[#This Row],[DESIGNATION]],DE_TabR[[Sloupec2]:[ON]],2,FALSE))/(VLOOKUP(P_TabEPNP111725[[#This Row],[DESIGNATION]],DE_TabR[[Sloupec2]:[ON]],3,FALSE))/O_CapR*IF(K30=TRUE,1,0))=TRUE,"-",(VLOOKUP(P_TabEPNP111725[[#This Row],[DESIGNATION]],DE_TabR[[Sloupec2]:[ON]],2,FALSE))/(VLOOKUP(P_TabEPNP111725[[#This Row],[DESIGNATION]],DE_TabR[[Sloupec2]:[ON]],3,FALSE))/O_CapR*IF(K30=TRUE,1,0)) -> 0.0599775641 | D30: 0 | E30: =IF(ISERROR((VLOOKUP(P_TabEPNP111725[[#This Row],[DESIGNATION]],DE_TabR[[Sloupec2]:[Sloupec4]],4,FALSE))*DE_EP*P_TabEPNP111725[[#This Row],[ENERGY]]*IF(K30=TRUE,1,0))=TRUE,"-",(VLOOKUP(P_TabEPNP111725[[#This Row],[DESIGNATION]],DE_TabR[[Sloupec2]:[Sloupec4]],4,FALSE))*DE_EP*P_TabEPNP111725[[#This Row],[ENERGY]]*IF(K30=TRUE,1,0)) -> 0 | F30: 0 | G30: =IF(ISERROR((VLOOKUP(P_TabEPNP111725[[#This Row],[DESIGNATION]],DE_TabR[[Sloupec2]:[Sloupec5]],5,FALSE))*DE_GP*P_TabEPNP111725[[#This Row],[GAS]]*IF(K30=TRUE,1,0))=TRUE,"-",(VLOOKUP(P_TabEPNP111725[[#This Row],[DESIGNATION]],DE_TabR[[Sloupec2]:[Sloupec5]],5,FALSE))*DE_GP*P_TabEPNP111725[[#This Row],[GAS]]*IF(K30=TRUE,1,0)) -> 0 | H30: =IF(ISERROR(P_TabEPNP111725[[#This Row],[DEPRECIATION]]+P_TabEPNP111725[[#This Row],[ENERGY COSTS]]+P_TabEPNP111725[[#This Row],[GAS COSTS]])=TRUE,0,P_TabEPNP111725[[#This Row],[DEPRECIATION]]+P_TabEPNP111725[[#This Row],[ENERGY COSTS]]+P_TabEPNP111725[[#This Row],[GAS COSTS]]) -> 0.0599775641 | J30: 12 | K30: TRUE
B31: P-107 | C31: =IF(ISERROR((VLOOKUP(P_TabEPNP111725[[#This Row],[DESIGNATION]],DE_TabR[[Sloupec2]:[ON]],2,FALSE))/(VLOOKUP(P_TabEPNP111725[[#This Row],[DESIGNATION]],DE_TabR[[Sloupec2]:[ON]],3,FALSE))/O_CapR*IF(K31=TRUE,1,0))=TRUE,"-",(VLOOKUP(P_TabEPNP111725[[#This Row],[DESIGNATION]],DE_TabR[[Sloupec2]:[ON]],2,FALSE))/(VLOOKUP(P_TabEPNP111725[[#This Row],[DESIGNATION]],DE_TabR[[Sloupec2]:[ON]],3,FALSE))/O_CapR*IF(K31=TRUE,1,0)) -> 0.05936217949 | D31: 0 | E31: =IF(ISERROR((VLOOKUP(P_TabEPNP111725[[#This Row],[DESIGNATION]],DE_TabR[[Sloupec2]:[Sloupec4]],4,FALSE))*DE_EP*P_TabEPNP111725[[#This Row],[ENERGY]]*IF(K31=TRUE,1,0))=TRUE,"-",(VLOOKUP(P_TabEPNP111725[[#This Row],[DESIGNATION]],DE_TabR[[Sloupec2]:[Sloupec4]],4,FALSE))*DE_EP*P_TabEPNP111725[[#This Row],[ENERGY]]*IF(K31=TRUE,1,0)) -> 0 | F31: 0 | G31: =IF(ISERROR((VLOOKUP(P_TabEPNP111725[[#This Row],[DESIGNATION]],DE_TabR[[Sloupec2]:[Sloupec5]],5,FALSE))*DE_GP*P_TabEPNP111725[[#This Row],[GAS]]*IF(K31=TRUE,1,0))=TRUE,"-",(VLOOKUP(P_TabEPNP111725[[#This Row],[DESIGNATION]],DE_TabR[[Sloupec2]:[Sloupec5]],5,FALSE))*DE_GP*P_TabEPNP111725[[#This Row],[GAS]]*IF(K31=TRUE,1,0)) -> 0 | H31: =IF(ISERROR(P_TabEPNP111725[[#This Row],[DEPRECIATION]]+P_TabEPNP111725[[#This Row],[ENERGY COSTS]]+P_TabEPNP111725[[#This Row],[GAS COSTS]])=TRUE,0,P_TabEPNP111725[[#This Row],[DEPRECIATION]]+P_TabEPNP111725[[#This Row],[ENERGY COSTS]]+P_TabEPNP111725[[#This Row],[GAS COSTS]]) -> 0.05936217949 | J31: 13 | K31: TRUE
B32: P-301 | C32: =IF(ISERROR((VLOOKUP(P_TabEPNP111725[[#This Row],[DESIGNATION]],DE_TabR[[Sloupec2]:[ON]],2,FALSE))/(VLOOKUP(P_TabEPNP111725[[#This Row],[DESIGNATION]],DE_TabR[[Sloupec2]:[ON]],3,FALSE))/O_CapR*IF(K32=TRUE,1,0))=TRUE,"-",(VLOOKUP(P_TabEPNP111725[[#This Row],[DESIGNATION]],DE_TabR[[Sloupec2]:[ON]],2,FALSE))/(VLOOKUP(P_TabEPNP111725[[#This Row],[DESIGNATION]],DE_TabR[[Sloupec2]:[ON]],3,FALSE))/O_CapR*IF(K32=TRUE,1,0)) -> 0.1602564103 | D32: 1 | E32: =IF(ISERROR((VLOOKUP(P_TabEPNP111725[[#This Row],[DESIGNATION]],DE_TabR[[Sloupec2]:[Sloupec4]],4,FALSE))*DE_EP*P_TabEPNP111725[[#This Row],[ENERGY]]*IF(K32=TRUE,1,0))=TRUE,"-",(VLOOKUP(P_TabEPNP111725[[#This Row],[DESIGNATION]],DE_TabR[[Sloupec2]:[Sloupec4]],4,FALSE))*DE_EP*P_TabEPNP111725[[#This Row],[ENERGY]]*IF(K32=TRUE,1,0)) -> 0.52 | F32: 0 | G32: =IF(ISERROR((VLOOKUP(P_TabEPNP111725[[#This Row],[DESIGNATION]],DE_TabR[[Sloupec2]:[Sloupec5]],5,FALSE))*DE_GP*P_TabEPNP111725[[#This Row],[GAS]]*IF(K32=TRUE,1,0))=TRUE,"-",(VLOOKUP(P_TabEPNP111725[[#This Row],[DESIGNATION]],DE_TabR[[Sloupec2]:[Sloupec5]],5,FALSE))*DE_GP*P_TabEPNP111725[[#This Row],[GAS]]*IF(K32=TRUE,1,0)) -> 0 | H32: =IF(ISERROR(P_TabEPNP111725[[#This Row],[DEPRECIATION]]+P_TabEPNP111725[[#This Row],[ENERGY COSTS]]+P_TabEPNP111725[[#This Row],[GAS COSTS]])=TRUE,0,P_TabEPNP111725[[#This Row],[DEPRECIATION]]+P_TabEPNP111725[[#This Row],[ENERGY COSTS]]+P_TabEPNP111725[[#This Row],[GAS COSTS]]) -> 0.6802564103 | J32: 14 | K32: TRUE
B33: P-102 | C33: =IF(ISERROR((VLOOKUP(P_TabEPNP111725[[#This Row],[DESIGNATION]],DE_TabR[[Sloupec2]:[ON]],2,FALSE))/(VLOOKUP(P_TabEPNP111725[[#This Row],[DESIGNATION]],DE_TabR[[Sloupec2]:[ON]],3,FALSE))/O_CapR*IF(K33=TRUE,1,0))=TRUE,"-",(VLOOKUP(P_TabEPNP111725[[#This Row],[DESIGNATION]],DE_TabR[[Sloupec2]:[ON]],2,FALSE))/(VLOOKUP(P_TabEPNP111725[[#This Row],[DESIGNATION]],DE_TabR[[Sloupec2]:[ON]],3,FALSE))/O_CapR*IF(K33=TRUE,1,0)) -> 3.589423077 | D33: 1 | E33: =IF(ISERROR((VLOOKUP(P_TabEPNP111725[[#This Row],[DESIGNATION]],DE_TabR[[Sloupec2]:[Sloupec4]],4,FALSE))*DE_EP*P_TabEPNP111725[[#This Row],[ENERGY]]*IF(K33=TRUE,1,0))=TRUE,"-",(VLOOKUP(P_TabEPNP111725[[#This Row],[DESIGNATION]],DE_TabR[[Sloupec2]:[Sloupec4]],4,FALSE))*DE_EP*P_TabEPNP111725[[#This Row],[ENERGY]]*IF(K33=TRUE,1,0)) -> 2.405 | F33: 0 | G33: =IF(ISERROR((VLOOKUP(P_TabEPNP111725[[#This Row],[DESIGNATION]],DE_TabR[[Sloupec2]:[Sloupec5]],5,FALSE))*DE_GP*P_TabEPNP111725[[#This Row],[GAS]]*IF(K33=TRUE,1,0))=TRUE,"-",(VLOOKUP(P_TabEPNP111725[[#This Row],[DESIGNATION]],DE_TabR[[Sloupec2]:[Sloupec5]],5,FALSE))*DE_GP*P_TabEPNP111725[[#This Row],[GAS]]*IF(K33=TRUE,1,0)) -> 0 | H33: =IF(ISERROR(P_TabEPNP111725[[#This Row],[DEPRECIATION]]+P_TabEPNP111725[[#This Row],[ENERGY COSTS]]+P_TabEPNP111725[[#This Row],[GAS COSTS]])=TRUE,0,P_TabEPNP111725[[#This Row],[DEPRECIATION]]+P_TabEPNP111725[[#This Row],[ENERGY COSTS]]+P_TabEPNP111725[[#This Row],[GAS COSTS]]) -> 5.994423077 | J33: 15 | K33: TRUE
B34: P-104 | C34: =IF(ISERROR((VLOOKUP(P_TabEPNP111725[[#This Row],[DESIGNATION]],DE_TabR[[Sloupec2]:[ON]],2,FALSE))/(VLOOKUP(P_TabEPNP111725[[#This Row],[DESIGNATION]],DE_TabR[[Sloupec2]:[ON]],3,FALSE))/O_CapR*IF(K34=TRUE,1,0))=TRUE,"-",(VLOOKUP(P_TabEPNP111725[[#This Row],[DESIGNATION]],DE_TabR[[Sloupec2]:[ON]],2,FALSE))/(VLOOKUP(P_TabEPNP111725[[#This Row],[DESIGNATION]],DE_TabR[[Sloupec2]:[ON]],3,FALSE))/O_CapR*IF(K34=TRUE,1,0)) -> 3.589423077 | D34: 0 | E34: =IF(ISERROR((VLOOKUP(P_TabEPNP111725[[#This Row],[DESIGNATION]],DE_TabR[[Sloupec2]:[Sloupec4]],4,FALSE))*DE_EP*P_TabEPNP111725[[#This Row],[ENERGY]]*IF(K34=TRUE,1,0))=TRUE,"-",(VLOOKUP(P_TabEPNP111725[[#This Row],[DESIGNATION]],DE_TabR[[Sloupec2]:[Sloupec4]],4,FALSE))*DE_EP*P_TabEPNP111725[[#This Row],[ENERGY]]*IF(K34=TRUE,1,0)) -> 0 | F34: 0 | G34: =IF(ISERROR((VLOOKUP(P_TabEPNP111725[[#This Row],[DESIGNATION]],DE_TabR[[Sloupec2]:[Sloupec5]],5,FALSE))*DE_GP*P_TabEPNP111725[[#This Row],[GAS]]*IF(K34=TRUE,1,0))=TRUE,"-",(VLOOKUP(P_TabEPNP111725[[#This Row],[DESIGNATION]],DE_TabR[[Sloupec2]:[Sloupec5]],5,FALSE))*DE_GP*P_TabEPNP111725[[#This Row],[GAS]]*IF(K34=TRUE,1,0)) -> 0 | H34: =IF(ISERROR(P_TabEPNP111725[[#This Row],[DEPRECIATION]]+P_TabEPNP111725[[#This Row],[ENERGY COSTS]]+P_TabEPNP111725[[#This Row],[GAS COSTS]])=TRUE,0,P_TabEPNP111725[[#This Row],[DEPRECIATION]]+P_TabEPNP111725[[#This Row],[ENERGY COSTS]]+P_TabEPNP111725[[#This Row],[GAS COSTS]]) -> 3.589423077 | J34: 16 | K34: TRUE
B35: P-106 | C35: =IF(ISERROR((VLOOKUP(P_TabEPNP111725[[#This Row],[DESIGNATION]],DE_TabR[[Sloupec2]:[ON]],2,FALSE))/(VLOOKUP(P_TabEPNP111725[[#This Row],[DESIGNATION]],DE_TabR[[Sloupec2]:[ON]],3,FALSE))/O_CapR*IF(K35=TRUE,1,0))=TRUE,"-",(VLOOKUP(P_TabEPNP111725[[#This Row],[DESIGNATION]],DE_TabR[[Sloupec2]:[ON]],2,FALSE))/(VLOOKUP(P_TabEPNP111725[[#This Row],[DESIGNATION]],DE_TabR[[Sloupec2]:[ON]],3,FALSE))/O_CapR*IF(K35=TRUE,1,0)) -> 2.6625 | D35: 0 | E35: =IF(ISERROR((VLOOKUP(P_TabEPNP111725[[#This Row],[DESIGNATION]],DE_TabR[[Sloupec2]:[Sloupec4]],4,FALSE))*DE_EP*P_TabEPNP111725[[#This Row],[ENERGY]]*IF(K35=TRUE,1,0))=TRUE,"-",(VLOOKUP(P_TabEPNP111725[[#This Row],[DESIGNATION]],DE_TabR[[Sloupec2]:[Sloupec4]],4,FALSE))*DE_EP*P_TabEPNP111725[[#This Row],[ENERGY]]*IF(K35=TRUE,1,0)) -> 0 | F35: 0 | G35: =IF(ISERROR((VLOOKUP(P_TabEPNP111725[[#This Row],[DESIGNATION]],DE_TabR[[Sloupec2]:[Sloupec5]],5,FALSE))*DE_GP*P_TabEPNP111725[[#This Row],[GAS]]*IF(K35=TRUE,1,0))=TRUE,"-",(VLOOKUP(P_TabEPNP111725[[#This Row],[DESIGNATION]],DE_TabR[[Sloupec2]:[Sloupec5]],5,FALSE))*DE_GP*P_TabEPNP111725[[#This Row],[GAS]]*IF(K35=TRUE,1,0)) -> 0 | H35: =IF(ISERROR(P_TabEPNP111725[[#This Row],[DEPRECIATION]]+P_TabEPNP111725[[#This Row],[ENERGY COSTS]]+P_TabEPNP111725[[#This Row],[GAS COSTS]])=TRUE,0,P_TabEPNP111725[[#This Row],[DEPRECIATION]]+P_TabEPNP111725[[#This Row],[ENERGY COSTS]]+P_TabEPNP111725[[#This Row],[GAS COSTS]]) -> 2.6625 | J35: 17 | K35: TRUE
B36: P-108 | C36: =IF(ISERROR((VLOOKUP(P_TabEPNP111725[[#This Row],[DESIGNATION]],DE_TabR[[Sloupec2]:[ON]],2,FALSE))/(VLOOKUP(P_TabEPNP111725[[#This Row],[DESIGNATION]],DE_TabR[[Sloupec2]:[ON]],3,FALSE))/O_CapR*IF(K36=TRUE,1,0))=TRUE,"-",(VLOOKUP(P_TabEPNP111725[[#This Row],[DESIGNATION]],DE_TabR[[Sloupec2]:[ON]],2,FALSE))/(VLOOKUP(P_TabEPNP111725[[#This Row],[DESIGNATION]],DE_TabR[[Sloupec2]:[ON]],3,FALSE))/O_CapR*IF(K36=TRUE,1,0)) -> 7.260576923 | D36: 1 | E36: =IF(ISERROR((VLOOKUP(P_TabEPNP111725[[#This Row],[DESIGNATION]],DE_TabR[[Sloupec2]:[Sloupec4]],4,FALSE))*DE_EP*P_TabEPNP111725[[#This Row],[ENERGY]]*IF(K36=TRUE,1,0))=TRUE,"-",(VLOOKUP(P_TabEPNP111725[[#This Row],[DESIGNATION]],DE_TabR[[Sloupec2]:[Sloupec4]],4,FALSE))*DE_EP*P_TabEPNP111725[[#This Row],[ENERGY]]*IF(K36=TRUE,1,0)) -> 2.405 | F36: 0 | G36: =IF(ISERROR((VLOOKUP(P_TabEPNP111725[[#This Row],[DESIGNATION]],DE_TabR[[Sloupec2]:[Sloupec5]],5,FALSE))*DE_GP*P_TabEPNP111725[[#This Row],[GAS]]*IF(K36=TRUE,1,0))=TRUE,"-",(VLOOKUP(P_TabEPNP111725[[#This Row],[DESIGNATION]],DE_TabR[[Sloupec2]:[Sloupec5]],5,FALSE))*DE_GP*P_TabEPNP111725[[#This Row],[GAS]]*IF(K36=TRUE,1,0)) -> 0 | H36: =IF(ISERROR(P_TabEPNP111725[[#This Row],[DEPRECIATION]]+P_TabEPNP111725[[#This Row],[ENERGY COSTS]]+P_TabEPNP111725[[#This Row],[GAS COSTS]])=TRUE,0,P_TabEPNP111725[[#This Row],[DEPRECIATION]]+P_TabEPNP111725[[#This Row],[ENERGY COSTS]]+P_TabEPNP111725[[#This Row],[GAS COSTS]]) -> 9.665576923 | J36: 18 | K36: TRUE
B37: L-control | C37: =IF(ISERROR((VLOOKUP(P_TabEPNP111725[[#This Row],[DESIGNATION]],DE_TabR[[Sloupec2]:[ON]],2,FALSE))/(VLOOKUP(P_TabEPNP111725[[#This Row],[DESIGNATION]],DE_TabR[[Sloupec2]:[ON]],3,FALSE))/O_CapR*IF(K37=TRUE,1,0))=TRUE,"-",(VLOOKUP(P_TabEPNP111725[[#This Row],[DESIGNATION]],DE_TabR[[Sloupec2]:[ON]],2,FALSE))/(VLOOKUP(P_TabEPNP111725[[#This Row],[DESIGNATION]],DE_TabR[[Sloupec2]:[ON]],3,FALSE))/O_CapR*IF(K37=TRUE,1,0)) -> 0.4033461538 | D37: 0 | E37: =IF(ISERROR((VLOOKUP(P_TabEPNP111725[[#This Row],[DESIGNATION]],DE_TabR[[Sloupec2]:[Sloupec4]],4,FALSE))*DE_EP*P_TabEPNP111725[[#This Row],[ENERGY]]*IF(K37=TRUE,1,0))=TRUE,"-",(VLOOKUP(P_TabEPNP111725[[#This Row],[DESIGNATION]],DE_TabR[[Sloupec2]:[Sloupec4]],4,FALSE))*DE_EP*P_TabEPNP111725[[#This Row],[ENERGY]]*IF(K37=TRUE,1,0)) -> 0 | F37: 0 | G37: =IF(ISERROR((VLOOKUP(P_TabEPNP111725[[#This Row],[DESIGNATION]],DE_TabR[[Sloupec2]:[Sloupec5]],5,FALSE))*DE_GP*P_TabEPNP111725[[#This Row],[GAS]]*IF(K37=TRUE,1,0))=TRUE,"-",(VLOOKUP(P_TabEPNP111725[[#This Row],[DESIGNATION]],DE_TabR[[Sloupec2]:[Sloupec5]],5,FALSE))*DE_GP*P_TabEPNP111725[[#This Row],[GAS]]*IF(K37=TRUE,1,0)) -> 0 | H37: =IF(ISERROR(P_TabEPNP111725[[#This Row],[DEPRECIATION]]+P_TabEPNP111725[[#This Row],[ENERGY COSTS]]+P_TabEPNP111725[[#This Row],[GAS COSTS]])=TRUE,0,P_TabEPNP111725[[#This Row],[DEPRECIATION]]+P_TabEPNP111725[[#This Row],[ENERGY COSTS]]+P_TabEPNP111725[[#This Row],[GAS COSTS]]) -> 0.4033461538 | J37: 19 | K37: TRUE
B38: F-control | C38: =IF(ISERROR((VLOOKUP(P_TabEPNP111725[[#This Row],[DESIGNATION]],DE_TabR[[Sloupec2]:[ON]],2,FALSE))/(VLOOKUP(P_TabEPNP111725[[#This Row],[DESIGNATION]],DE_TabR[[Sloupec2]:[ON]],3,FALSE))/O_CapR*IF(K38=TRUE,1,0))=TRUE,"-",(VLOOKUP(P_TabEPNP111725[[#This Row],[DESIGNATION]],DE_TabR[[Sloupec2]:[ON]],2,FALSE))/(VLOOKUP(P_TabEPNP111725[[#This Row],[DESIGNATION]],DE_TabR[[Sloupec2]:[ON]],3,FALSE))/O_CapR*IF(K38=TRUE,1,0)) -> 2.240576923 | D38: 0 | E38: =IF(ISERROR((VLOOKUP(P_TabEPNP111725[[#This Row],[DESIGNATION]],DE_TabR[[Sloupec2]:[Sloupec4]],4,FALSE))*DE_EP*P_TabEPNP111725[[#This Row],[ENERGY]]*IF(K38=TRUE,1,0))=TRUE,"-",(VLOOKUP(P_TabEPNP111725[[#This Row],[DESIGNATION]],DE_TabR[[Sloupec2]:[Sloupec4]],4,FALSE))*DE_EP*P_TabEPNP111725[[#This Row],[ENERGY]]*IF(K38=TRUE,1,0)) -> 0 | F38: 0 | G38: =IF(ISERROR((VLOOKUP(P_TabEPNP111725[[#This Row],[DESIGNATION]],DE_TabR[[Sloupec2]:[Sloupec5]],5,FALSE))*DE_GP*P_TabEPNP111725[[#This Row],[GAS]]*IF(K38=TRUE,1,0))=TRUE,"-",(VLOOKUP(P_TabEPNP111725[[#This Row],[DESIGNATION]],DE_TabR[[Sloupec2]:[Sloupec5]],5,FALSE))*DE_GP*P_TabEPNP111725[[#This Row],[GAS]]*IF(K38=TRUE,1,0)) -> 0 | H38: =IF(ISERROR(P_TabEPNP111725[[#This Row],[DEPRECIATION]]+P_TabEPNP111725[[#This Row],[ENERGY COSTS]]+P_TabEPNP111725[[#This Row],[GAS COSTS]])=TRUE,0,P_TabEPNP111725[[#This Row],[DEPRECIATION]]+P_TabEPNP111725[[#This Row],[ENERGY COSTS]]+P_TabEPNP111725[[#This Row],[GAS COSTS]]) -> 2.240576923 | J38: 20 | K38: TRUE
B39: P-control | C39: =IF(ISERROR((VLOOKUP(P_TabEPNP111725[[#This Row],[DESIGNATION]],DE_TabR[[Sloupec2]:[ON]],2,FALSE))/(VLOOKUP(P_TabEPNP111725[[#This Row],[DESIGNATION]],DE_TabR[[Sloupec2]:[ON]],3,FALSE))/O_CapR*IF(K39=TRUE,1,0))=TRUE,"-",(VLOOKUP(P_TabEPNP111725[[#This Row],[DESIGNATION]],DE_TabR[[Sloupec2]:[ON]],2,FALSE))/(VLOOKUP(P_TabEPNP111725[[#This Row],[DESIGNATION]],DE_TabR[[Sloupec2]:[ON]],3,FALSE))/O_CapR*IF(K39=TRUE,1,0)) -> 0.4848926282 | D39: 0 | E39: =IF(ISERROR((VLOOKUP(P_TabEPNP111725[[#This Row],[DESIGNATION]],DE_TabR[[Sloupec2]:[Sloupec4]],4,FALSE))*DE_EP*P_TabEPNP111725[[#This Row],[ENERGY]]*IF(K39=TRUE,1,0))=TRUE,"-",(VLOOKUP(P_TabEPNP111725[[#This Row],[DESIGNATION]],DE_TabR[[Sloupec2]:[Sloupec4]],4,FALSE))*DE_EP*P_TabEPNP111725[[#This Row],[ENERGY]]*IF(K39=TRUE,1,0)) -> 0 | F39: 0 | G39: =IF(ISERROR((VLOOKUP(P_TabEPNP111725[[#This Row],[DESIGNATION]],DE_TabR[[Sloupec2]:[Sloupec5]],5,FALSE))*DE_GP*P_TabEPNP111725[[#This Row],[GAS]]*IF(K39=TRUE,1,0))=TRUE,"-",(VLOOKUP(P_TabEPNP111725[[#This Row],[DESIGNATION]],DE_TabR[[Sloupec2]:[Sloupec5]],5,FALSE))*DE_GP*P_TabEPNP111725[[#This Row],[GAS]]*IF(K39=TRUE,1,0)) -> 0 | H39: =IF(ISERROR(P_TabEPNP111725[[#This Row],[DEPRECIATION]]+P_TabEPNP111725[[#This Row],[ENERGY COSTS]]+P_TabEPNP111725[[#This Row],[GAS COSTS]])=TRUE,0,P_TabEPNP111725[[#This Row],[DEPRECIATION]]+P_TabEPNP111725[[#This Row],[ENERGY COSTS]]+P_TabEPNP111725[[#This Row],[GAS COSTS]]) -> 0.4848926282 | J39: 21 | K39: TRUE
B40: CP-1 | C40: =IF(ISERROR((VLOOKUP(P_TabEPNP111725[[#This Row],[DESIGNATION]],DE_TabR[[Sloupec2]:[ON]],2,FALSE))/(VLOOKUP(P_TabEPNP111725[[#This Row],[DESIGNATION]],DE_TabR[[Sloupec2]:[ON]],3,FALSE))/O_CapR*IF(K40=TRUE,1,0))=TRUE,"-",(VLOOKUP(P_TabEPNP111725[[#This Row],[DESIGNATION]],DE_TabR[[Sloupec2]:[ON]],2,FALSE))/(VLOOKUP(P_TabEPNP111725[[#This Row],[DESIGNATION]],DE_TabR[[Sloupec2]:[ON]],3,FALSE))/O_CapR*IF(K40=TRUE,1,0)) -> 0.6086538462 | D40: 0 | E40: =IF(ISERROR((VLOOKUP(P_TabEPNP111725[[#This Row],[DESIGNATION]],DE_TabR[[Sloupec2]:[Sloupec4]],4,FALSE))*DE_EP*P_TabEPNP111725[[#This Row],[ENERGY]]*IF(K40=TRUE,1,0))=TRUE,"-",(VLOOKUP(P_TabEPNP111725[[#This Row],[DESIGNATION]],DE_TabR[[Sloupec2]:[Sloupec4]],4,FALSE))*DE_EP*P_TabEPNP111725[[#This Row],[ENERGY]]*IF(K40=TRUE,1,0)) -> 0 | F40: 0 | G40: =IF(ISERROR((VLOOKUP(P_TabEPNP111725[[#This Row],[DESIGNATION]],DE_TabR[[Sloupec2]:[Sloupec5]],5,FALSE))*DE_GP*P_TabEPNP111725[[#This Row],[GAS]]*IF(K40=TRUE,1,0))=TRUE,"-",(VLOOKUP(P_TabEPNP111725[[#This Row],[DESIGNATION]],DE_TabR[[Sloupec2]:[Sloupec5]],5,FALSE))*DE_GP*P_TabEPNP111725[[#This Row],[GAS]]*IF(K40=TRUE,1,0)) -> 0 | H40: =IF(ISERROR(P_TabEPNP111725[[#This Row],[DEPRECIATION]]+P_TabEPNP111725[[#This Row],[ENERGY COSTS]]+P_TabEPNP111725[[#This Row],[GAS COSTS]])=TRUE,0,P_TabEPNP111725[[#This Row],[DEPRECIATION]]+P_TabEPNP111725[[#This Row],[ENERGY COSTS]]+P_TabEPNP111725[[#This Row],[GAS COSTS]]) -> 0.6086538462 | J40: 22 | K40: TRUE
B41: CP-2 | C41: =IF(ISERROR((VLOOKUP(P_TabEPNP111725[[#This Row],[DESIGNATION]],DE_TabR[[Sloupec2]:[ON]],2,FALSE))/(VLOOKUP(P_TabEPNP111725[[#This Row],[DESIGNATION]],DE_TabR[[Sloupec2]:[ON]],3,FALSE))/O_CapR*IF(K41=TRUE,1,0))=TRUE,"-",(VLOOKUP(P_TabEPNP111725[[#This Row],[DESIGNATION]],DE_TabR[[Sloupec2]:[ON]],2,FALSE))/(VLOOKUP(P_TabEPNP111725[[#This Row],[DESIGNATION]],DE_TabR[[Sloupec2]:[ON]],3,FALSE))/O_CapR*IF(K41=TRUE,1,0)) -> 0.6682692308 | D41: 0 | E41: =IF(ISERROR((VLOOKUP(P_TabEPNP111725[[#This Row],[DESIGNATION]],DE_TabR[[Sloupec2]:[Sloupec4]],4,FALSE))*DE_EP*P_TabEPNP111725[[#This Row],[ENERGY]]*IF(K41=TRUE,1,0))=TRUE,"-",(VLOOKUP(P_TabEPNP111725[[#This Row],[DESIGNATION]],DE_TabR[[Sloupec2]:[Sloupec4]],4,FALSE))*DE_EP*P_TabEPNP111725[[#This Row],[ENERGY]]*IF(K41=TRUE,1,0)) -> 0 | F41: 0 | G41: =IF(ISERROR((VLOOKUP(P_TabEPNP111725[[#This Row],[DESIGNATION]],DE_TabR[[Sloupec2]:[Sloupec5]],5,FALSE))*DE_GP*P_TabEPNP111725[[#This Row],[GAS]]*IF(K41=TRUE,1,0))=TRUE,"-",(VLOOKUP(P_TabEPNP111725[[#This Row],[DESIGNATION]],DE_TabR[[Sloupec2]:[Sloupec5]],5,FALSE))*DE_GP*P_TabEPNP111725[[#This Row],[GAS]]*IF(K41=TRUE,1,0)) -> 0 | H41: =IF(ISERROR(P_TabEPNP111725[[#This Row],[DEPRECIATION]]+P_TabEPNP111725[[#This Row],[ENERGY COSTS]]+P_TabEPNP111725[[#This Row],[GAS COSTS]])=TRUE,0,P_TabEPNP111725[[#This Row],[DEPRECIATION]]+P_TabEPNP111725[[#This Row],[ENERGY COSTS]]+P_TabEPNP111725[[#This Row],[GAS COSTS]]) -> 0.6682692308 | J41: 23 | K41: TRUE
B42: CP-3 | C42: =IF(ISERROR((VLOOKUP(P_TabEPNP111725[[#This Row],[DESIGNATION]],DE_TabR[[Sloupec2]:[ON]],2,FALSE))/(VLOOKUP(P_TabEPNP111725[[#This Row],[DESIGNATION]],DE_TabR[[Sloupec2]:[ON]],3,FALSE))/O_CapR*IF(K42=TRUE,1,0))=TRUE,"-",(VLOOKUP(P_TabEPNP111725[[#This Row],[DESIGNATION]],DE_TabR[[Sloupec2]:[ON]],2,FALSE))/(VLOOKUP(P_TabEPNP111725[[#This Row],[DESIGNATION]],DE_TabR[[Sloupec2]:[ON]],3,FALSE))/O_CapR*IF(K42=TRUE,1,0)) -> 0.6086538462 | D42: 0 | E42: =IF(ISERROR((VLOOKUP(P_TabEPNP111725[[#This Row],[DESIGNATION]],DE_TabR[[Sloupec2]:[Sloupec4]],4,FALSE))*DE_EP*P_TabEPNP111725[[#This Row],[ENERGY]]*IF(K42=TRUE,1,0))=TRUE,"-",(VLOOKUP(P_TabEPNP111725[[#This Row],[DESIGNATION]],DE_TabR[[Sloupec2]:[Sloupec4]],4,FALSE))*DE_EP*P_TabEPNP111725[[#This Row],[ENERGY]]*IF(K42=TRUE,1,0)) -> 0 | F42: 0 | G42: =IF(ISERROR((VLOOKUP(P_TabEPNP111725[[#This Row],[DESIGNATION]],DE_TabR[[Sloupec2]:[Sloupec5]],5,FALSE))*DE_GP*P_TabEPNP111725[[#This Row],[GAS]]*IF(K42=TRUE,1,0))=TRUE,"-",(VLOOKUP(P_TabEPNP111725[[#This Row],[DESIGNATION]],DE_TabR[[Sloupec2]:[Sloupec5]],5,FALSE))*DE_GP*P_TabEPNP111725[[#This Row],[GAS]]*IF(K42=TRUE,1,0)) -> 0 | H42: =IF(ISERROR(P_TabEPNP111725[[#This Row],[DEPRECIATION]]+P_TabEPNP111725[[#This Row],[ENERGY COSTS]]+P_TabEPNP111725[[#This Row],[GAS COSTS]])=TRUE,0,P_TabEPNP111725[[#This Row],[DEPRECIATION]]+P_TabEPNP111725[[#This Row],[ENERGY COSTS]]+P_TabEPNP111725[[#This Row],[GAS COSTS]]) -> 0.6086538462 | J42: 24 | K42: TRUE
B43: PLC | C43: =IF(ISERROR((VLOOKUP(P_TabEPNP111725[[#This Row],[DESIGNATION]],DE_TabR[[Sloupec2]:[ON]],2,FALSE))/(VLOOKUP(P_TabEPNP111725[[#This Row],[DESIGNATION]],DE_TabR[[Sloupec2]:[ON]],3,FALSE))/O_CapR*IF(K43=TRUE,1,0))=TRUE,"-",(VLOOKUP(P_TabEPNP111725[[#This Row],[DESIGNATION]],DE_TabR[[Sloupec2]:[ON]],2,FALSE))/(VLOOKUP(P_TabEPNP111725[[#This Row],[DESIGNATION]],DE_TabR[[Sloupec2]:[ON]],3,FALSE))/O_CapR*IF(K43=TRUE,1,0)) -> 1.495192308 | D43: 0 | E43: =IF(ISERROR((VLOOKUP(P_TabEPNP111725[[#This Row],[DESIGNATION]],DE_TabR[[Sloupec2]:[Sloupec4]],4,FALSE))*DE_EP*P_TabEPNP111725[[#This Row],[ENERGY]]*IF(K43=TRUE,1,0))=TRUE,"-",(VLOOKUP(P_TabEPNP111725[[#This Row],[DESIGNATION]],DE_TabR[[Sloupec2]:[Sloupec4]],4,FALSE))*DE_EP*P_TabEPNP111725[[#This Row],[ENERGY]]*IF(K43=TRUE,1,0)) -> 0 | F43: 0 | G43: =IF(ISERROR((VLOOKUP(P_TabEPNP111725[[#This Row],[DESIGNATION]],DE_TabR[[Sloupec2]:[Sloupec5]],5,FALSE))*DE_GP*P_TabEPNP111725[[#This Row],[GAS]]*IF(K43=TRUE,1,0))=TRUE,"-",(VLOOKUP(P_TabEPNP111725[[#This Row],[DESIGNATION]],DE_TabR[[Sloupec2]:[Sloupec5]],5,FALSE))*DE_GP*P_TabEPNP111725[[#This Row],[GAS]]*IF(K43=TRUE,1,0)) -> 0 | H43: =IF(ISERROR(P_TabEPNP111725[[#This Row],[DEPRECIATION]]+P_TabEPNP111725[[#This Row],[ENERGY COSTS]]+P_TabEPNP111725[[#This Row],[GAS COSTS]])=TRUE,0,P_TabEPNP111725[[#This Row],[DEPRECIATION]]+P_TabEPNP111725[[#This Row],[ENERGY COSTS]]+P_TabEPNP111725[[#This Row],[GAS COSTS]]) -> 1.495192308 | J43: 25 | K43: TRUE
B44: Software | C44: =IF(ISERROR((VLOOKUP(P_TabEPNP111725[[#This Row],[DESIGNATION]],DE_TabR[[Sloupec2]:[ON]],2,FALSE))/(VLOOKUP(P_TabEPNP111725[[#This Row],[DESIGNATION]],DE_TabR[[Sloupec2]:[ON]],3,FALSE))/O_CapR*IF(K44=TRUE,1,0))=TRUE,"-",(VLOOKUP(P_TabEPNP111725[[#This Row],[DESIGNATION]],DE_TabR[[Sloupec2]:[ON]],2,FALSE))/(VLOOKUP(P_TabEPNP111725[[#This Row],[DESIGNATION]],DE_TabR[[Sloupec2]:[ON]],3,FALSE))/O_CapR*IF(K44=TRUE,1,0)) -> 2.470192308 | D44: 0 | E44: =IF(ISERROR((VLOOKUP(P_TabEPNP111725[[#This Row],[DESIGNATION]],DE_TabR[[Sloupec2]:[Sloupec4]],4,FALSE))*DE_EP*P_TabEPNP111725[[#This Row],[ENERGY]]*IF(K44=TRUE,1,0))=TRUE,"-",(VLOOKUP(P_TabEPNP111725[[#This Row],[DESIGNATION]],DE_TabR[[Sloupec2]:[Sloupec4]],4,FALSE))*DE_EP*P_TabEPNP111725[[#This Row],[ENERGY]]*IF(K44=TRUE,1,0)) -> 0 | F44: 0 | G44: =IF(ISERROR((VLOOKUP(P_TabEPNP111725[[#This Row],[DESIGNATION]],DE_TabR[[Sloupec2]:[Sloupec5]],5,FALSE))*DE_GP*P_TabEPNP111725[[#This Row],[GAS]]*IF(K44=TRUE,1,0))=TRUE,"-",(VLOOKUP(P_TabEPNP111725[[#This Row],[DESIGNATION]],DE_TabR[[Sloupec2]:[Sloupec5]],5,FALSE))*DE_GP*P_TabEPNP111725[[#This Row],[GAS]]*IF(K44=TRUE,1,0)) -> 0 | H44: =IF(ISERROR(P_TabEPNP111725[[#This Row],[DEPRECIATION]]+P_TabEPNP111725[[#This Row],[ENERGY COSTS]]+P_TabEPNP111725[[#This Row],[GAS COSTS]])=TRUE,0,P_TabEPNP111725[[#This Row],[DEPRECIATION]]+P_TabEPNP111725[[#This Row],[ENERGY COSTS]]+P_TabEPNP111725[[#This Row],[GAS COSTS]]) -> 2.470192308 | J44: 26 | K44: TRUE
B45: DIWS | C45: =IF(ISERROR((VLOOKUP(P_TabEPNP111725[[#This Row],[DESIGNATION]],DE_TabR[[Sloupec2]:[ON]],2,FALSE))/(VLOOKUP(P_TabEPNP111725[[#This Row],[DESIGNATION]],DE_TabR[[Sloupec2]:[ON]],3,FALSE))/O_CapR*IF(K45=TRUE,1,0))=TRUE,"-",(VLOOKUP(P_TabEPNP111725[[#This Row],[DESIGNATION]],DE_TabR[[Sloupec2]:[ON]],2,FALSE))/(VLOOKUP(P_TabEPNP111725[[#This Row],[DESIGNATION]],DE_TabR[[Sloupec2]:[ON]],3,FALSE))/O_CapR*IF(K45=TRUE,1,0)) -> 4.998269231 | D45: 0 | E45: =IF(ISERROR((VLOOKUP(P_TabEPNP111725[[#This Row],[DESIGNATION]],DE_TabR[[Sloupec2]:[Sloupec4]],4,FALSE))*DE_EP*P_TabEPNP111725[[#This Row],[ENERGY]]*IF(K45=TRUE,1,0))=TRUE,"-",(VLOOKUP(P_TabEPNP111725[[#This Row],[DESIGNATION]],DE_TabR[[Sloupec2]:[Sloupec4]],4,FALSE))*DE_EP*P_TabEPNP111725[[#This Row],[ENERGY]]*IF(K45=TRUE,1,0)) -> 0 | F45: 0 | G45: =IF(ISERROR((VLOOKUP(P_TabEPNP111725[[#This Row],[DESIGNATION]],DE_TabR[[Sloupec2]:[Sloupec5]],5,FALSE))*DE_GP*P_TabEPNP111725[[#This Row],[GAS]]*IF(K45=TRUE,1,0))=TRUE,"-",(VLOOKUP(P_TabEPNP111725[[#This Row],[DESIGNATION]],DE_TabR[[Sloupec2]:[Sloupec5]],5,FALSE))*DE_GP*P_TabEPNP111725[[#This Row],[GAS]]*IF(K45=TRUE,1,0)) -> 0 | H45: =IF(ISERROR(P_TabEPNP111725[[#This Row],[DEPRECIATION]]+P_TabEPNP111725[[#This Row],[ENERGY COSTS]]+P_TabEPNP111725[[#This Row],[GAS COSTS]])=TRUE,0,P_TabEPNP111725[[#This Row],[DEPRECIATION]]+P_TabEPNP111725[[#This Row],[ENERGY COSTS]]+P_TabEPNP111725[[#This Row],[GAS COSTS]]) -> 4.998269231 | J45: 27 | K45: TRUE
B46: CWS | C46: =IF(ISERROR((VLOOKUP(P_TabEPNP111725[[#This Row],[DESIGNATION]],DE_TabR[[Sloupec2]:[ON]],2,FALSE))/(VLOOKUP(P_TabEPNP111725[[#This Row],[DESIGNATION]],DE_TabR[[Sloupec2]:[ON]],3,FALSE))/O_CapR*IF(K46=TRUE,1,0))=TRUE,"-",(VLOOKUP(P_TabEPNP111725[[#This Row],[DESIGNATION]],DE_TabR[[Sloupec2]:[ON]],2,FALSE))/(VLOOKUP(P_TabEPNP111725[[#This Row],[DESIGNATION]],DE_TabR[[Sloupec2]:[ON]],3,FALSE))/O_CapR*IF(K46=TRUE,1,0)) -> 3.899423077 | D46: 1 | E46: =IF(ISERROR((VLOOKUP(P_TabEPNP111725[[#This Row],[DESIGNATION]],DE_TabR[[Sloupec2]:[Sloupec4]],4,FALSE))*DE_EP*P_TabEPNP111725[[#This Row],[ENERGY]]*IF(K46=TRUE,1,0))=TRUE,"-",(VLOOKUP(P_TabEPNP111725[[#This Row],[DESIGNATION]],DE_TabR[[Sloupec2]:[Sloupec4]],4,FALSE))*DE_EP*P_TabEPNP111725[[#This Row],[ENERGY]]*IF(K46=TRUE,1,0)) -> 1.3195 | F46: 0 | G46: =IF(ISERROR((VLOOKUP(P_TabEPNP111725[[#This Row],[DESIGNATION]],DE_TabR[[Sloupec2]:[Sloupec5]],5,FALSE))*DE_GP*P_TabEPNP111725[[#This Row],[GAS]]*IF(K46=TRUE,1,0))=TRUE,"-",(VLOOKUP(P_TabEPNP111725[[#This Row],[DESIGNATION]],DE_TabR[[Sloupec2]:[Sloupec5]],5,FALSE))*DE_GP*P_TabEPNP111725[[#This Row],[GAS]]*IF(K46=TRUE,1,0)) -> 0 | H46: =IF(ISERROR(P_TabEPNP111725[[#This Row],[DEPRECIATION]]+P_TabEPNP111725[[#This Row],[ENERGY COSTS]]+P_TabEPNP111725[[#This Row],[GAS COSTS]])=TRUE,0,P_TabEPNP111725[[#This Row],[DEPRECIATION]]+P_TabEPNP111725[[#This Row],[ENERGY COSTS]]+P_TabEPNP111725[[#This Row],[GAS COSTS]]) -> 5.218923077 | J46: 28 | K46: TRUE
B47: Install | C47: =IF(ISERROR((VLOOKUP(P_TabEPNP111725[[#This Row],[DESIGNATION]],DE_TabR[[Sloupec2]:[ON]],2,FALSE))/(VLOOKUP(P_TabEPNP111725[[#This Row],[DESIGNATION]],DE_TabR[[Sloupec2]:[ON]],3,FALSE))/O_CapR*IF(K47=TRUE,1,0))=TRUE,"-",(VLOOKUP(P_TabEPNP111725[[#This Row],[DESIGNATION]],DE_TabR[[Sloupec2]:[ON]],2,FALSE))/(VLOOKUP(P_TabEPNP111725[[#This Row],[DESIGNATION]],DE_TabR[[Sloupec2]:[ON]],3,FALSE))/O_CapR*IF(K47=TRUE,1,0)) -> 6.41025641 | D47: 0 | E47: =IF(ISERROR((VLOOKUP(P_TabEPNP111725[[#This Row],[DESIGNATION]],DE_TabR[[Sloupec2]:[Sloupec4]],4,FALSE))*DE_EP*P_TabEPNP111725[[#This Row],[ENERGY]]*IF(K47=TRUE,1,0))=TRUE,"-",(VLOOKUP(P_TabEPNP111725[[#This Row],[DESIGNATION]],DE_TabR[[Sloupec2]:[Sloupec4]],4,FALSE))*DE_EP*P_TabEPNP111725[[#This Row],[ENERGY]]*IF(K47=TRUE,1,0)) -> 0 | F47: 0 | G47: =IF(ISERROR((VLOOKUP(P_TabEPNP111725[[#This Row],[DESIGNATION]],DE_TabR[[Sloupec2]:[Sloupec5]],5,FALSE))*DE_GP*P_TabEPNP111725[[#This Row],[GAS]]*IF(K47=TRUE,1,0))=TRUE,"-",(VLOOKUP(P_TabEPNP111725[[#This Row],[DESIGNATION]],DE_TabR[[Sloupec2]:[Sloupec5]],5,FALSE))*DE_GP*P_TabEPNP111725[[#This Row],[GAS]]*IF(K47=TRUE,1,0)) -> 0 | H47: =IF(ISERROR(P_TabEPNP111725[[#This Row],[DEPRECIATION]]+P_TabEPNP111725[[#This Row],[ENERGY COSTS]]+P_TabEPNP111725[[#This Row],[GAS COSTS]])=TRUE,0,P_TabEPNP111725[[#This Row],[DEPRECIATION]]+P_TabEPNP111725[[#This Row],[ENERGY COSTS]]+P_TabEPNP111725[[#This Row],[GAS COSTS]]) -> 6.41025641 | J47: 29 | K47: TRUE
B48: Neu-E | C48: =IF(ISERROR((VLOOKUP(P_TabEPNP111725[[#This Row],[DESIGNATION]],DE_TabR[[Sloupec2]:[ON]],2,FALSE))/(VLOOKUP(P_TabEPNP111725[[#This Row],[DESIGNATION]],DE_TabR[[Sloupec2]:[ON]],3,FALSE))/O_CapR*IF(K48=TRUE,1,0))=TRUE,"-",(VLOOKUP(P_TabEPNP111725[[#This Row],[DESIGNATION]],DE_TabR[[Sloupec2]:[ON]],2,FALSE))/(VLOOKUP(P_TabEPNP111725[[#This Row],[DESIGNATION]],DE_TabR[[Sloupec2]:[ON]],3,FALSE))/O_CapR*IF(K48=TRUE,1,0)) -> 0.6475160256 | D48: 0.067 | E48: =IF(ISERROR((VLOOKUP(P_TabEPNP111725[[#This Row],[DESIGNATION]],DE_TabR[[Sloupec2]:[Sloupec4]],4,FALSE))*DE_EP*P_TabEPNP111725[[#This Row],[ENERGY]]*IF(K48=TRUE,1,0))=TRUE,"-",(VLOOKUP(P_TabEPNP111725[[#This Row],[DESIGNATION]],DE_TabR[[Sloupec2]:[Sloupec4]],4,FALSE))*DE_EP*P_TabEPNP111725[[#This Row],[ENERGY]]*IF(K48=TRUE,1,0)) -> 0.013065 | F48: 0 | G48: =IF(ISERROR((VLOOKUP(P_TabEPNP111725[[#This Row],[DESIGNATION]],DE_TabR[[Sloupec2]:[Sloupec5]],5,FALSE))*DE_GP*P_TabEPNP111725[[#This Row],[GAS]]*IF(K48=TRUE,1,0))=TRUE,"-",(VLOOKUP(P_TabEPNP111725[[#This Row],[DESIGNATION]],DE_TabR[[Sloupec2]:[Sloupec5]],5,FALSE))*DE_GP*P_TabEPNP111725[[#This Row],[GAS]]*IF(K48=TRUE,1,0)) -> 0 | H48: =IF(ISERROR(P_TabEPNP111725[[#This Row],[DEPRECIATION]]+P_TabEPNP111725[[#This Row],[ENERGY COSTS]]+P_TabEPNP111725[[#This Row],[GAS COSTS]])=TRUE,0,P_TabEPNP111725[[#This Row],[DEPRECIATION]]+P_TabEPNP111725[[#This Row],[ENERGY COSTS]]+P_TabEPNP111725[[#This Row],[GAS COSTS]]) -> 0.6605810256 | J48: 30 | K48: TRUE
B49: P-108 | C49: =IF(ISERROR((VLOOKUP(P_TabEPNP111725[[#This Row],[DESIGNATION]],DE_TabR[[Sloupec2]:[ON]],2,FALSE))/(VLOOKUP(P_TabEPNP111725[[#This Row],[DESIGNATION]],DE_TabR[[Sloupec2]:[ON]],3,FALSE))/O_CapR*IF(K49=TRUE,1,0))=TRUE,"-",(VLOOKUP(P_TabEPNP111725[[#This Row],[DESIGNATION]],DE_TabR[[Sloupec2]:[ON]],2,FALSE))/(VLOOKUP(P_TabEPNP111725[[#This Row],[DESIGNATION]],DE_TabR[[Sloupec2]:[ON]],3,FALSE))/O_CapR*IF(K49=TRUE,1,0)) -> 7.260576923 | D49: 1 | E49: =IF(ISERROR((VLOOKUP(P_TabEPNP111725[[#This Row],[DESIGNATION]],DE_TabR[[Sloupec2]:[Sloupec4]],4,FALSE))*DE_EP*P_TabEPNP111725[[#This Row],[ENERGY]]*IF(K49=TRUE,1,0))=TRUE,"-",(VLOOKUP(P_TabEPNP111725[[#This Row],[DESIGNATION]],DE_TabR[[Sloupec2]:[Sloupec4]],4,FALSE))*DE_EP*P_TabEPNP111725[[#This Row],[ENERGY]]*IF(K49=TRUE,1,0)) -> 2.405 | F49: 0 | G49: =IF(ISERROR((VLOOKUP(P_TabEPNP111725[[#This Row],[DESIGNATION]],DE_TabR[[Sloupec2]:[Sloupec5]],5,FALSE))*DE_GP*P_TabEPNP111725[[#This Row],[GAS]]*IF(K49=TRUE,1,0))=TRUE,"-",(VLOOKUP(P_TabEPNP111725[[#This Row],[DESIGNATION]],DE_TabR[[Sloupec2]:[Sloupec5]],5,FALSE))*DE_GP*P_TabEPNP111725[[#This Row],[GAS]]*IF(K49=TRUE,1,0)) -> 0 | H49: =IF(ISERROR(P_TabEPNP111725[[#This Row],[DEPRECIATION]]+P_TabEPNP111725[[#This Row],[ENERGY COSTS]]+P_TabEPNP111725[[#This Row],[GAS COSTS]])=TRUE,0,P_TabEPNP111725[[#This Row],[DEPRECIATION]]+P_TabEPNP111725[[#This Row],[ENERGY COSTS]]+P_TabEPNP111725[[#This Row],[GAS COSTS]]) -> 9.665576923 | J49: 31 | K49: TRUE
B50: EQUIPMENT - HEATER | C50: =SUBTOTAL(109,P_TabEPNP111725[DEPRECIATION]) -> 77.28533654 | E50: =SUBTOTAL(109,P_TabEPNP111725[ENERGY COSTS]) -> 9.401665 | G50: =SUBTOTAL(109,P_TabEPNP111725[GAS COSTS]) -> 0 | H50: =SUBTOTAL(109,P_TabEPNP111725[COST]) -> 86.68700154 | J50: =(ROW(P_RemRowENP)) -> 50
B51: Heater + Contingency | C51: =IF(ISERROR(DE_TabH[Sloupec3]/DE_TabH[Sloupec4]/O_CapR)=TRUE,0,DE_TabH[Sloupec3]/DE_TabH[Sloupec4]/O_CapR) -> 44.18653846 | D51: 1 | E51: =IF(ISERROR(DE_TabH[Sloupec5]*DE_EP*D51)=TRUE,0,DE_TabH[Sloupec5]*DE_EP*D51) -> 0.52 | F51: 950 | G51: =IF(ISERROR(DE_GP*F51)=TRUE,0,DE_GP*F51) -> 40.85 | H51: =IF(ISERROR(C51+G51)=TRUE,0,C51+G51) -> 85.03653846
B52: ="The process contains "&SUBTOTAL(103,B19:B51)-1&" equipment(s)" -> The process contains 32 equipment(s) | C52: =C50+C51 -> 121.471875 | E52: =E50+E51 -> 9.921665 | G52: =G50+G51 -> 40.85 | H52: =H50+H51 -> 171.72354
B54: OUTPUTS NP | H54: OUTPUT DENSITY
B55: TiO2 (TiOS) (wt 2%) | C55: =IF(ISERROR(VLOOKUP(B55,DChO_Tab[[NAME]:[STB / UNSTB]],6,FALSE))=TRUE,"-",VLOOKUP(B55,DChO_Tab[[NAME]:[STB / UNSTB]],6,FALSE)) -> Unstable | D55: Output from NP | E55: 4500 | F55: Output NPs | G55: 58.7 | H55: 1000
B57: POST-PROCESS SEDIMENTATION | G57: SET UP TIME | H57: 0.1
B58: PROCESS FILTRATION
B59: UNIT (UN) | C59: FILTRATION TIME / UN | D59: WASHING STEPS | E59: NPs / UN | F59: Σ FILTRATION TIME / UN | G59: NPs / 1H NP | H59: Σ FILTR. TIME / 1H NP
D60: 2 | E60: =IF(ISERROR(P_OutputNPs*B60/E55)=TRUE,0,P_OutputNPs*B60/E55) -> 0 | F60: =IF(ISERROR(C60*D60)=TRUE,"-",C60*D60) -> 0 | G60: =P_OutputNPs -> 58.7 | H60: =IF(ISERROR(E55/B60*F60)=TRUE,0,E55/B60*F60) -> 0
B62: INPUTS
B63: NAME | C63: ID | D63: PRICE / UNIT | E63: TYPE | F63: CONSUPTION / 1 W. STEP | G63: COST / FILTRATION | H63: COST / KG | J63: =ROW(P_StartRowIPPF) -> 63
B64: =IF(B55="","-",B55) -> TiO2 (TiOS) (wt 2%) | C64: =IF(ISERROR(VLOOKUP(B64,DChO_Tab[[NAME]:[ID]],3,FALSE))=TRUE,"-",VLOOKUP(B64,DChO_Tab[[NAME]:[ID]],3,FALSE)) -> OCH00001 | D64: =IF(ISERROR(VLOOKUP('P2'!$C64,DChO_Tab[[ID]:[PRICE / UNIT]],7,FALSE))=TRUE,"-",VLOOKUP('P2'!$C64,DChO_Tab[[ID]:[PRICE / UNIT]],7,FALSE)) -> 0 | E64: =IF(ISERROR(VLOOKUP('P2'!$C64,DChO_Tab[[ID]:[TYPE]],3,FALSE))=TRUE,"-",VLOOKUP('P2'!$C64,DChO_Tab[[ID]:[TYPE]],3,FALSE)) -> Semi-product | F64: =B60 -> 0 | G64: =IF(ISERROR('P2'!$D64*'P2'!$F64),0,'P2'!$D64*'P2'!$F64) -> 0 | H64: =IF(ISERROR('P2'!$D64*'P2'!$F64/P_OutputNPs)=TRUE,0,'P2'!$D64*'P2'!$F64/P_OutputNPs) -> 0
B65: NAME | C65: ID | D65: PRICE / UNIT | E65: TYPE | F65: FLOW RATE | G65: Sloupec1 | H65: COST
C66: =IF(ISERROR(VLOOKUP(P_TabIPPPF131927[[#This Row],[NAME]],DChI_Tab[],3,FALSE))=TRUE,"-",VLOOKUP(P_TabIPPPF131927[[#This Row],[NAME]],DChI_Tab[],3,FALSE)) -> - | D66: =IF(ISERROR(VLOOKUP(P_TabIPPPF131927[[#This Row],[ID]],DChI_Tab[[ID]:[PRICE / UNIT]],6,FALSE))=TRUE,"-",VLOOKUP(P_TabIPPPF131927[[#This Row],[ID]],DChI_Tab[[ID]:[PRICE / UNIT]],6,FALSE)) -> - | E66: =IF(ISERROR(VLOOKUP(P_TabIPPPF131927[[#This Row],[ID]],DChI_Tab[[ID]:[TYPE]],3,FALSE))=TRUE,"-",VLOOKUP(P_TabIPPPF131927[[#This Row],[ID]],DChI_Tab[[ID]:[TYPE]],3,FALSE)) -> - | G66: =IF(ISERROR(P_TabIPPPF131927[[#This Row],[PRICE / UNIT]]*P_TabIPPPF131927[[#This Row],[FLOW RATE]]*P_WSteps)=TRUE,0,P_TabIPPPF131927[[#This Row],[PRICE / UNIT]]*P_TabIPPPF131927[[#This Row],[FLOW RATE]]*P_WSteps) -> 0 | H66: =IF(ISERROR(P_TabIPPPF131927[[#This Row],[PRICE / UNIT]]*P_TabIPPPF131927[[#This Row],[FLOW RATE]]*P_WSteps/P_OutputPPFUN)=TRUE,0,P_TabIPPPF131927[[#This Row],[PRICE / UNIT]]*P_TabIPPPF131927[[#This Row],[FLOW RATE]]*P_WSteps/P_OutputPPFUN) -> 0 | J66: 1
B67: ="The process contains "&SUBTOTAL(103,P_TabIPPPF131927[NAME])&" input(s)" -> The process contains 0 input(s) | G67: =SUBTOTAL(109,P_TabIPPPF131927[Sloupec1]) -> 0 | H67: =SUBTOTAL(109,P_TabIPPPF131927[COST])+H64 -> 0 | J67: =ROW(P_RemRowIPPF) -> 67
B69: EQUIPMENT
B70: DESIGNATION | C70: NUMBER OF FILTRES | D70: Sloupec1 | E70: Sloupec2 | F70: Sloupec3 | G70: Sloupec4 | H70: DEPRECIATION / 1H NP | J70: =ROW(P_StartRowEPPF) -> 70
H71: =IF(ISERROR(VLOOKUP(P_TabEPPPF121826[[#This Row],[DESIGNATION]],DE_TabP[[Sloupec2]:[Sloupec4]],2,FALSE)/VLOOKUP(P_TabEPPPF121826[[#This Row],[DESIGNATION]],DE_TabP[[Sloupec2]:[Sloupec4]],3,FALSE)*P_TabEPPPF121826[[#This Row],[NUMBER OF FILTRES]]*P_PPFTime)=TRUE,0,VLOOKUP(P_TabEPPPF121826[[#This Row],[DESIGNATION]],DE_TabP[[Sloupec2]:[Sloupec4]],2,FALSE)/VLOOKUP(P_TabEPPPF121826[[#This Row],[DESIGNATION]],DE_TabP[[Sloupec2]:[Sloupec4]],3,FALSE)*P_TabEPPPF121826[[#This Row],[NUMBER OF FILTRES]]*P_PPFTime) -> 0 | J71: 1
B72: ="The process contains "&SUBTOTAL(103,P_TabEPPPF121826[DESIGNATION])&" equipment(s)" -> The process contains 0 equipment(s) | H72: =SUBTOTAL(109,P_TabEPPPF121826[DEPRECIATION / 1H NP]) -> 0 | J72: =ROW(P_RemRowEPPF) -> 72
B74: OUTPUTS PP SEDIMENTATION
B75: Dioxozirconium (wt 8%) | D75: Output NPs / 1H PPF | E75: =IF(ISERROR(P_OutputNPs/P_PPFTime)=TRUE,0,P_OutputNPs/P_PPFTime) -> 0
B77: PROCESS SEDIMENTATION
B78: VOLUME OF TANKS (UN) | C78: SEDIMENTATION TIME / UN | D78: WASHING STEPS | E78: NPs / UN | F78: Σ SEDIMENT. TIME / UN | G78: NPs / 1H NP | H78: Σ SEDIMENT. TIME / 1H NP
B79: 6000 | C79: 0.5 | D79: 2 | E79: =IF(ISERROR(P_OutputNPs*B79/E55)=TRUE,0,P_OutputNPs*B79/E55) -> 78.26666667 | F79: =IF(ISERROR(C79*D79)=TRUE,"-",C79*D79) -> 1 | G79: =P_OutputNPs -> 58.7 | H79: =IF(ISERROR(IF(E55>B79,CEILING(E55/B79,1),1)*F79)=TRUE,0,IF(E55>B79,CEILING(E55/B79,1),1)*F79) -> 1
B81: OUTPUTS PP SEDIMENTATION
B82: TiO2 (TiOS - 350C) (wt 8%) | C82: 500 | D82: Output NPs / 1H PPS | E82: =P_OutputNPs -> 58.7
B84: NEUTRALISATION
B85: INPUTS
B86: NAME | C86: ID | D86: PRICE / UNIT | E86: TYPE | F86: CONSUMPTION | H86: COST | J86: =ROW(P_StartRowNeu) -> 86
B87: Waste water (postprocessing) | C87: - | D87: 0 | E87: Water | F87: =IF(ISERROR(E55-IF(P_PPFiltr="Stable",C75,C82))=TRUE,"-",E55-IF(P_PPFiltr="Stable",C75,C82)) -> 4000 | H87: =D87*F87 -> 0
B88: Waste water (washing) | C88: - | D88: 0 | E88: Water | F88: 1000 | H88: =D88*F88 -> 0
B89: NAME | C89: ID | D89: PRICE / UNIT | E89: TYPE | F89: FLOW RATE | G89: - | H89: COST
B90: Sodium hydroxide Solution (32%) | C90: =IF(ISERROR(VLOOKUP(P_TabINeu142328[[#This Row],[NAME]],DChI_Tab[],3,FALSE))=TRUE,"-",VLOOKUP(P_TabINeu142328[[#This Row],[NAME]],DChI_Tab[],3,FALSE)) -> ICH00004 | D90: =IF(ISERROR(VLOOKUP(P_TabINeu142328[[#This Row],[ID]],DChI_Tab[[ID]:[PRICE / UNIT]],6,FALSE))=TRUE,"-",VLOOKUP(P_TabINeu142328[[#This Row],[ID]],DChI_Tab[[ID]:[PRICE / UNIT]],6,FALSE)) -> 0.239 | E90: =IF(ISERROR(VLOOKUP(P_TabINeu142328[[#This Row],[ID]],DChI_Tab[[ID]:[TYPE]],3,FALSE))=TRUE,"-",VLOOKUP(P_TabINeu142328[[#This Row],[ID]],DChI_Tab[[ID]:[TYPE]],3,FALSE)) -> Other | F90: 53.3344 | H90: =IF(ISERROR(P_TabINeu142328[[#This Row],[PRICE / UNIT]]*P_TabINeu142328[[#This Row],[FLOW RATE]]),0,P_TabINeu142328[[#This Row],[PRICE / UNIT]]*P_TabINeu142328[[#This Row],[FLOW RATE]]) -> 12.7469216 | J90: 1
B91: Waste water disposal | C91: =IF(ISERROR(VLOOKUP(P_TabINeu142328[[#This Row],[NAME]],DChI_Tab[],3,FALSE))=TRUE,"-",VLOOKUP(P_TabINeu142328[[#This Row],[NAME]],DChI_Tab[],3,FALSE)) -> ICH00002 | D91: =IF(ISERROR(VLOOKUP(P_TabINeu142328[[#This Row],[ID]],DChI_Tab[[ID]:[PRICE / UNIT]],6,FALSE))=TRUE,"-",VLOOKUP(P_TabINeu142328[[#This Row],[ID]],DChI_Tab[[ID]:[PRICE / UNIT]],6,FALSE)) -> 0.001815 | E91: =IF(ISERROR(VLOOKUP(P_TabINeu142328[[#This Row],[ID]],DChI_Tab[[ID]:[TYPE]],3,FALSE))=TRUE,"-",VLOOKUP(P_TabINeu142328[[#This Row],[ID]],DChI_Tab[[ID]:[TYPE]],3,FALSE)) -> Water | F91: 113.3356 | H91: =IF(ISERROR(P_TabINeu142328[[#This Row],[PRICE / UNIT]]*P_TabINeu142328[[#This Row],[FLOW RATE]]),0,P_TabINeu142328[[#This Row],[PRICE / UNIT]]*P_TabINeu142328[[#This Row],[FLOW RATE]]) -> 0.205704114 | J91: 2
B92: ="The process contains "&SUBTOTAL(103,P_TabINeu142328[NAME])&" input(s)" -> The process contains 2 input(s) | H92: =SUBTOTAL(109,P_TabINeu142328[COST]) -> 12.95262571 | J92: =ROW(P_RemRowNeu) -> 92

Sheet P3
B1: ="PROCESS " & VLOOKUP(J2,INDIRECT(ADDRESS(PM!PM_StartRow+1,7,1,1,"PM"),TRUE):INDIRECT(ADDRESS(PM!PM_RemRow-1,8,1,1,"PM"),TRUE),2,FALSE) -> PROCESS P00003 | J1: Proc | K1: Prod | L1: Type | M1: OutNPs | N1: OutPPF | O1: OutPPS | P1: Den | Q1: OutF/S | R1: TPPF/S | S1: STNP | T1: STPPF | U1: InNP | V1: DepNP | W1: En | X1: Gas | Y1: InPPF | Z1: DepPPF | AA1: InNeu
J2: P3 | K2: =IF(P_PPFiltr="Stable",B75,B82) -> TiO2 (TiOS - 300C) (wt 8%) | L2: =P_PPFiltr -> Unstable | M2: =G55 -> 59.9 | N2: =P_OutputPPFUN -> 0 | O2: =E79 -> 79.86666667 | P2: =IF(ISERROR(E55/H55*1000)=TRUE,0,E55/H55*1000) -> 4500 | Q2: =IF(P_PPFiltr="-",0,IF(P_PPFiltr="Stable",C75,C82)) -> 500 | R2: =IF(P_PPFiltr="-",0,IF(P_PPFiltr="Stable",H60,(E55*H79)/(B79*P_OutputNPs))) -> 0.01252086811 | S2: =H8 -> 0.1 | T2: =H57 -> 0.1 | U2: =P_TabIPNP10152429[[#Totals],[COST]] -> 1035.016848 | V2: =C52 -> 121.471875 | W2: =E52 -> 9.921665 | X2: =G52 -> 28.165 | Y2: =P_TabIPPPF13192733[[#Totals],[COST]] -> 0 | Z2: =P_TabEPPPF12182631[[#Totals],[DEPRECIATION / 1H NP]] -> 0 | AA2: =P_TabINeu14232834[[#Totals],[COST]] -> 12.95262571
J3: 10 | K3: 11 | L3: 12 | M3: 13 | N3: 14 | O3: 15 | P3: 16 | Q3: 17 | R3: 18 | S3: 19 | T3: 20 | U3: 21 | V3: 22 | W3: 23 | X3: 24 | Y3: 25 | Z3: 26 | AA3: 27
B4: =IF(ISERROR(VLOOKUP(J2,INDIRECT(ADDRESS(PM!PM_StartRow+1,7,1,1,"PM"),TRUE):INDIRECT(ADDRESS(PM!PM_RemRow-1,9,1,1,"PM"),TRUE),3,FALSE))=TRUE,"-",IF(VLOOKUP(J2,INDIRECT(ADDRESS(PM!PM_StartRow+1,7,1,1,"PM"),TRUE):INDIRECT(ADDRESS(PM!PM_RemRow-1,9,1,1,"PM"),TRUE),3,FALSE)=0,"-",VLOOKUP(J2,INDIRECT(ADDRESS(PM!PM_StartRow+1,7,1,1,"PM"),TRUE):INDIRECT(ADDRESS(PM!PM_RemRow-1,9,1,1,"PM"),TRUE),3,FALSE))) -> TiO2 - TiOS 300C
B8: NANO PRODUCTION | G8: SET UP TIME | H8: 0.1
B9: INPUTS
B10: NAME | C10: ID | D10: PRICE / UNIT | E10: TYPE | F10: FLOW RATE | G10: - | H10: COST | J10: =ROW(P_StartRowINP) -> 10
B11: Titanium oxysulfate | C11: =IF(ISERROR(VLOOKUP(P_TabIPNP10152429[[#This Row],[NAME]],DChI_Tab[],3,FALSE))=TRUE,"-",VLOOKUP(P_TabIPNP10152429[[#This Row],[NAME]],DChI_Tab[],3,FALSE)) -> ICH00015 | D11: =IF(ISERROR(VLOOKUP(P_TabIPNP10152429[[#This Row],[ID]],DChI_Tab[[ID]:[PRICE / UNIT]],6,FALSE))=TRUE,"-",VLOOKUP(P_TabIPNP10152429[[#This Row],[ID]],DChI_Tab[[ID]:[PRICE / UNIT]],6,FALSE)) -> 1.22 | E11: =IF(ISERROR(VLOOKUP(P_TabIPNP10152429[[#This Row],[ID]],DChI_Tab[[ID]:[TYPE]],3,FALSE))=TRUE,"-",VLOOKUP(P_TabIPNP10152429[[#This Row],[ID]],DChI_Tab[[ID]:[TYPE]],3,FALSE)) -> Precursor | F11: 799.65 | H11: =IF(ISERROR(P_TabIPNP10152429[[#This Row],[PRICE / UNIT]]*P_TabIPNP10152429[[#This Row],[FLOW RATE]]),0,P_TabIPNP10152429[[#This Row],[PRICE / UNIT]]*P_TabIPNP10152429[[#This Row],[FLOW RATE]]) -> 975.573 | J11: 1
B12: Dionised water | C12: =IF(ISERROR(VLOOKUP(P_TabIPNP10152429[[#This Row],[NAME]],DChI_Tab[],3,FALSE))=TRUE,"-",VLOOKUP(P_TabIPNP10152429[[#This Row],[NAME]],DChI_Tab[],3,FALSE)) -> ICH00001 | D12: =IF(ISERROR(VLOOKUP(P_TabIPNP10152429[[#This Row],[ID]],DChI_Tab[[ID]:[PRICE / UNIT]],6,FALSE))=TRUE,"-",VLOOKUP(P_TabIPNP10152429[[#This Row],[ID]],DChI_Tab[[ID]:[PRICE / UNIT]],6,FALSE)) -> 0.001815 | E12: =IF(ISERROR(VLOOKUP(P_TabIPNP10152429[[#This Row],[ID]],DChI_Tab[[ID]:[TYPE]],3,FALSE))=TRUE,"-",VLOOKUP(P_TabIPNP10152429[[#This Row],[ID]],DChI_Tab[[ID]:[TYPE]],3,FALSE)) -> Water | F12: 5592.1525 | H12: =IF(ISERROR(P_TabIPNP10152429[[#This Row],[PRICE / UNIT]]*P_TabIPNP10152429[[#This Row],[FLOW RATE]]),0,P_TabIPNP10152429[[#This Row],[PRICE / UNIT]]*P_TabIPNP10152429[[#This Row],[FLOW RATE]]) -> 10.14975679 | J12: 2
B13: Waste water disposal | C13: =IF(ISERROR(VLOOKUP(P_TabIPNP10152429[[#This Row],[NAME]],DChI_Tab[],3,FALSE))=TRUE,"-",VLOOKUP(P_TabIPNP10152429[[#This Row],[NAME]],DChI_Tab[],3,FALSE)) -> ICH00002 | D13: =IF(ISERROR(VLOOKUP(P_TabIPNP10152429[[#This Row],[ID]],DChI_Tab[[ID]:[PRICE / UNIT]],6,FALSE))=TRUE,"-",VLOOKUP(P_TabIPNP10152429[[#This Row],[ID]],DChI_Tab[[ID]:[PRICE / UNIT]],6,FALSE)) -> 0.001815 | E13: =IF(ISERROR(VLOOKUP(P_TabIPNP10152429[[#This Row],[ID]],DChI_Tab[[ID]:[TYPE]],3,FALSE))=TRUE,"-",VLOOKUP(P_TabIPNP10152429[[#This Row],[ID]],DChI_Tab[[ID]:[TYPE]],3,FALSE)) -> Water | F13: 5212.1 | H13: =IF(ISERROR(P_TabIPNP10152429[[#This Row],[PRICE / UNIT]]*P_TabIPNP10152429[[#This Row],[FLOW RATE]]),0,P_TabIPNP10152429[[#This Row],[PRICE / UNIT]]*P_TabIPNP10152429[[#This Row],[FLOW RATE]]) -> 9.4599615 | J13: 3
B14: Sodium hydroxide Solution (32%) | C14: =IF(ISERROR(VLOOKUP(P_TabIPNP10152429[[#This Row],[NAME]],DChI_Tab[],3,FALSE))=TRUE,"-",VLOOKUP(P_TabIPNP10152429[[#This Row],[NAME]],DChI_Tab[],3,FALSE)) -> ICH00004 | D14: =IF(ISERROR(VLOOKUP(P_TabIPNP10152429[[#This Row],[ID]],DChI_Tab[[ID]:[PRICE / UNIT]],6,FALSE))=TRUE,"-",VLOOKUP(P_TabIPNP10152429[[#This Row],[ID]],DChI_Tab[[ID]:[PRICE / UNIT]],6,FALSE)) -> 0.239 | E14: =IF(ISERROR(VLOOKUP(P_TabIPNP10152429[[#This Row],[ID]],DChI_Tab[[ID]:[TYPE]],3,FALSE))=TRUE,"-",VLOOKUP(P_TabIPNP10152429[[#This Row],[ID]],DChI_Tab[[ID]:[TYPE]],3,FALSE)) -> Other | F14: 166.67 | H14: =IF(ISERROR(P_TabIPNP10152429[[#This Row],[PRICE / UNIT]]*P_TabIPNP10152429[[#This Row],[FLOW RATE]]),0,P_TabIPNP10152429[[#This Row],[PRICE / UNIT]]*P_TabIPNP10152429[[#This Row],[FLOW RATE]]) -> 39.83413 | J14: 4
B15: ="The process contains "&SUBTOTAL(103,P_TabIPNP10152429[NAME])&" input(s)" -> The process contains 4 input(s) | H15: =SUBTOTAL(109,P_TabIPNP10152429[COST]) -> 1035.016848 | J15: =(ROW('P3'!B15)) -> 15
B17: EQUIPMENT
B18: DESIGNATION | C18: DEPRECIATION | D18: ENERGY | E18: ENERGY COSTS | F18: GAS | G18: GAS COSTS | H18: COST | J18: =ROW(P_StartRowENP) -> 18
B19: Fitt | C19: =IF(ISERROR((VLOOKUP(P_TabEPNP11172530[[#This Row],[DESIGNATION]],DE_TabR[[Sloupec2]:[ON]],2,FALSE))/(VLOOKUP(P_TabEPNP11172530[[#This Row],[DESIGNATION]],DE_TabR[[Sloupec2]:[ON]],3,FALSE))/O_CapR*IF(K19=TRUE,1,0))=TRUE,"-",(VLOOKUP(P_TabEPNP11172530[[#This Row],[DESIGNATION]],DE_TabR[[Sloupec2]:[ON]],2,FALSE))/(VLOOKUP(P_TabEPNP11172530[[#This Row],[DESIGNATION]],DE_TabR[[Sloupec2]:[ON]],3,FALSE))/O_CapR*IF(K19=TRUE,1,0)) -> 3.334115385 | D19: 0 | E19: =IF(ISERROR((VLOOKUP(P_TabEPNP11172530[[#This Row],[DESIGNATION]],DE_TabR[[Sloupec2]:[Sloupec4]],4,FALSE))*DE_EP*P_TabEPNP11172530[[#This Row],[ENERGY]]*IF(K19=TRUE,1,0))=TRUE,"-",(VLOOKUP(P_TabEPNP11172530[[#This Row],[DESIGNATION]],DE_TabR[[Sloupec2]:[Sloupec4]],4,FALSE))*DE_EP*P_TabEPNP11172530[[#This Row],[ENERGY]]*IF(K19=TRUE,1,0)) -> 0 | F19: 0 | G19: =IF(ISERROR((VLOOKUP(P_TabEPNP11172530[[#This Row],[DESIGNATION]],DE_TabR[[Sloupec2]:[Sloupec5]],5,FALSE))*DE_GP*P_TabEPNP11172530[[#This Row],[GAS]]*IF(K19=TRUE,1,0))=TRUE,"-",(VLOOKUP(P_TabEPNP11172530[[#This Row],[DESIGNATION]],DE_TabR[[Sloupec2]:[Sloupec5]],5,FALSE))*DE_GP*P_TabEPNP11172530[[#This Row],[GAS]]*IF(K19=TRUE,1,0)) -> 0 | H19: =IF(ISERROR(P_TabEPNP11172530[[#This Row],[DEPRECIATION]]+P_TabEPNP11172530[[#This Row],[ENERGY COSTS]]+P_TabEPNP11172530[[#This Row],[GAS COSTS]])=TRUE,0,P_TabEPNP11172530[[#This Row],[DEPRECIATION]]+P_TabEPNP11172530[[#This Row],[ENERGY COSTS]]+P_TabEPNP11172530[[#This Row],[GAS COSTS]]) -> 3.334115385 | J19: 1 | K19: TRUE
B20: PipeW | C20: =IF(ISERROR((VLOOKUP(P_TabEPNP11172530[[#This Row],[DESIGNATION]],DE_TabR[[Sloupec2]:[ON]],2,FALSE))/(VLOOKUP(P_TabEPNP11172530[[#This Row],[DESIGNATION]],DE_TabR[[Sloupec2]:[ON]],3,FALSE))/O_CapR*IF(K20=TRUE,1,0))=TRUE,"-",(VLOOKUP(P_TabEPNP11172530[[#This Row],[DESIGNATION]],DE_TabR[[Sloupec2]:[ON]],2,FALSE))/(VLOOKUP(P_TabEPNP11172530[[#This Row],[DESIGNATION]],DE_TabR[[Sloupec2]:[ON]],3,FALSE))/O_CapR*IF(K20=TRUE,1,0)) -> 2.547826923 | D20: 0 | E20: =IF(ISERROR((VLOOKUP(P_TabEPNP11172530[[#This Row],[DESIGNATION]],DE_TabR[[Sloupec2]:[Sloupec4]],4,FALSE))*DE_EP*P_TabEPNP11172530[[#This Row],[ENERGY]]*IF(K20=TRUE,1,0))=TRUE,"-",(VLOOKUP(P_TabEPNP11172530[[#This Row],[DESIGNATION]],DE_TabR[[Sloupec2]:[Sloupec4]],4,FALSE))*DE_EP*P_TabEPNP11172530[[#This Row],[ENERGY]]*IF(K20=TRUE,1,0)) -> 0 | F20: 0 | G20: =IF(ISERROR((VLOOKUP(P_TabEPNP11172530[[#This Row],[DESIGNATION]],DE_TabR[[Sloupec2]:[Sloupec5]],5,FALSE))*DE_GP*P_TabEPNP11172530[[#This Row],[GAS]]*IF(K20=TRUE,1,0))=TRUE,"-",(VLOOKUP(P_TabEPNP11172530[[#This Row],[DESIGNATION]],DE_TabR[[Sloupec2]:[Sloupec5]],5,FALSE))*DE_GP*P_TabEPNP11172530[[#This Row],[GAS]]*IF(K20=TRUE,1,0)) -> 0 | H20: =IF(ISERROR(P_TabEPNP11172530[[#This Row],[DEPRECIATION]]+P_TabEPNP11172530[[#This Row],[ENERGY COSTS]]+P_TabEPNP11172530[[#This Row],[GAS COSTS]])=TRUE,0,P_TabEPNP11172530[[#This Row],[DEPRECIATION]]+P_TabEPNP11172530[[#This Row],[ENERGY COSTS]]+P_TabEPNP11172530[[#This Row],[GAS COSTS]]) -> 2.547826923 | J20: 2 | K20: TRUE
B21: Svalves | C21: =IF(ISERROR((VLOOKUP(P_TabEPNP11172530[[#This Row],[DESIGNATION]],DE_TabR[[Sloupec2]:[ON]],2,FALSE))/(VLOOKUP(P_TabEPNP11172530[[#This Row],[DESIGNATION]],DE_TabR[[Sloupec2]:[ON]],3,FALSE))/O_CapR*IF(K21=TRUE,1,0))=TRUE,"-",(VLOOKUP(P_TabEPNP11172530[[#This Row],[DESIGNATION]],DE_TabR[[Sloupec2]:[ON]],2,FALSE))/(VLOOKUP(P_TabEPNP11172530[[#This Row],[DESIGNATION]],DE_TabR[[Sloupec2]:[ON]],3,FALSE))/O_CapR*IF(K21=TRUE,1,0)) -> 4.147392628 | D21: 1 | E21: =IF(ISERROR((VLOOKUP(P_TabEPNP11172530[[#This Row],[DESIGNATION]],DE_TabR[[Sloupec2]:[Sloupec4]],4,FALSE))*DE_EP*P_TabEPNP11172530[[#This Row],[ENERGY]]*IF(K21=TRUE,1,0))=TRUE,"-",(VLOOKUP(P_TabEPNP11172530[[#This Row],[DESIGNATION]],DE_TabR[[Sloupec2]:[Sloupec4]],4,FALSE))*DE_EP*P_TabEPNP11172530[[#This Row],[ENERGY]]*IF(K21=TRUE,1,0)) -> 0.286 | F21: 0 | G21: =IF(ISERROR((VLOOKUP(P_TabEPNP11172530[[#This Row],[DESIGNATION]],DE_TabR[[Sloupec2]:[Sloupec5]],5,FALSE))*DE_GP*P_TabEPNP11172530[[#This Row],[GAS]]*IF(K21=TRUE,1,0))=TRUE,"-",(VLOOKUP(P_TabEPNP11172530[[#This Row],[DESIGNATION]],DE_TabR[[Sloupec2]:[Sloupec5]],5,FALSE))*DE_GP*P_TabEPNP11172530[[#This Row],[GAS]]*IF(K21=TRUE,1,0)) -> 0 | H21: =IF(ISERROR(P_TabEPNP11172530[[#This Row],[DEPRECIATION]]+P_TabEPNP11172530[[#This Row],[ENERGY COSTS]]+P_TabEPNP11172530[[#This Row],[GAS COSTS]])=TRUE,0,P_TabEPNP11172530[[#This Row],[DEPRECIATION]]+P_TabEPNP11172530[[#This Row],[ENERGY COSTS]]+P_TabEPNP11172530[[#This Row],[GAS COSTS]]) -> 4.433392628 | J21: 3 | K21: TRUE
B22: Bvalves | C22: =IF(ISERROR((VLOOKUP(P_TabEPNP11172530[[#This Row],[DESIGNATION]],DE_TabR[[Sloupec2]:[ON]],2,FALSE))/(VLOOKUP(P_TabEPNP11172530[[#This Row],[DESIGNATION]],DE_TabR[[Sloupec2]:[ON]],3,FALSE))/O_CapR*IF(K22=TRUE,1,0))=TRUE,"-",(VLOOKUP(P_TabEPNP11172530[[#This Row],[DESIGNATION]],DE_TabR[[Sloupec2]:[ON]],2,FALSE))/(VLOOKUP(P_TabEPNP11172530[[#This Row],[DESIGNATION]],DE_TabR[[Sloupec2]:[ON]],3,FALSE))/O_CapR*IF(K22=TRUE,1,0)) -> 1.56650641 | D22: 0 | E22: =IF(ISERROR((VLOOKUP(P_TabEPNP11172530[[#This Row],[DESIGNATION]],DE_TabR[[Sloupec2]:[Sloupec4]],4,FALSE))*DE_EP*P_TabEPNP11172530[[#This Row],[ENERGY]]*IF(K22=TRUE,1,0))=TRUE,"-",(VLOOKUP(P_TabEPNP11172530[[#This Row],[DESIGNATION]],DE_TabR[[Sloupec2]:[Sloupec4]],4,FALSE))*DE_EP*P_TabEPNP11172530[[#This Row],[ENERGY]]*IF(K22=TRUE,1,0)) -> 0 | F22: 0 | G22: =IF(ISERROR((VLOOKUP(P_TabEPNP11172530[[#This Row],[DESIGNATION]],DE_TabR[[Sloupec2]:[Sloupec5]],5,FALSE))*DE_GP*P_TabEPNP11172530[[#This Row],[GAS]]*IF(K22=TRUE,1,0))=TRUE,"-",(VLOOKUP(P_TabEPNP11172530[[#This Row],[DESIGNATION]],DE_TabR[[Sloupec2]:[Sloupec5]],5,FALSE))*DE_GP*P_TabEPNP11172530[[#This Row],[GAS]]*IF(K22=TRUE,1,0)) -> 0 | H22: =IF(ISERROR(P_TabEPNP11172530[[#This Row],[DEPRECIATION]]+P_TabEPNP11172530[[#This Row],[ENERGY COSTS]]+P_TabEPNP11172530[[#This Row],[GAS COSTS]])=TRUE,0,P_TabEPNP11172530[[#This Row],[DEPRECIATION]]+P_TabEPNP11172530[[#This Row],[ENERGY COSTS]]+P_TabEPNP11172530[[#This Row],[GAS COSTS]]) -> 1.56650641 | J22: 4 | K22: TRUE
B23: Structure | C23: =IF(ISERROR((VLOOKUP(P_TabEPNP11172530[[#This Row],[DESIGNATION]],DE_TabR[[Sloupec2]:[ON]],2,FALSE))/(VLOOKUP(P_TabEPNP11172530[[#This Row],[DESIGNATION]],DE_TabR[[Sloupec2]:[ON]],3,FALSE))/O_CapR*IF(K23=TRUE,1,0))=TRUE,"-",(VLOOKUP(P_TabEPNP11172530[[#This Row],[DESIGNATION]],DE_TabR[[Sloupec2]:[ON]],2,FALSE))/(VLOOKUP(P_TabEPNP11172530[[#This Row],[DESIGNATION]],DE_TabR[[Sloupec2]:[ON]],3,FALSE))/O_CapR*IF(K23=TRUE,1,0)) -> 2.396153846 | D23: 0 | E23: =IF(ISERROR((VLOOKUP(P_TabEPNP11172530[[#This Row],[DESIGNATION]],DE_TabR[[Sloupec2]:[Sloupec4]],4,FALSE))*DE_EP*P_TabEPNP11172530[[#This Row],[ENERGY]]*IF(K23=TRUE,1,0))=TRUE,"-",(VLOOKUP(P_TabEPNP11172530[[#This Row],[DESIGNATION]],DE_TabR[[Sloupec2]:[Sloupec4]],4,FALSE))*DE_EP*P_TabEPNP11172530[[#This Row],[ENERGY]]*IF(K23=TRUE,1,0)) -> 0 | F23: 0 | G23: =IF(ISERROR((VLOOKUP(P_TabEPNP11172530[[#This Row],[DESIGNATION]],DE_TabR[[Sloupec2]:[Sloupec5]],5,FALSE))*DE_GP*P_TabEPNP11172530[[#This Row],[GAS]]*IF(K23=TRUE,1,0))=TRUE,"-",(VLOOKUP(P_TabEPNP11172530[[#This Row],[DESIGNATION]],DE_TabR[[Sloupec2]:[Sloupec5]],5,FALSE))*DE_GP*P_TabEPNP11172530[[#This Row],[GAS]]*IF(K23=TRUE,1,0)) -> 0 | H23: =IF(ISERROR(P_TabEPNP11172530[[#This Row],[DEPRECIATION]]+P_TabEPNP11172530[[#This Row],[ENERGY COSTS]]+P_TabEPNP11172530[[#This Row],[GAS COSTS]])=TRUE,0,P_TabEPNP11172530[[#This Row],[DEPRECIATION]]+P_TabEPNP11172530[[#This Row],[ENERGY COSTS]]+P_TabEPNP11172530[[#This Row],[GAS COSTS]]) -> 2.396153846 | J23: 5 | K23: TRUE
B24: Tanks | C24: =IF(ISERROR((VLOOKUP(P_TabEPNP11172530[[#This Row],[DESIGNATION]],DE_TabR[[Sloupec2]:[ON]],2,FALSE))/(VLOOKUP(P_TabEPNP11172530[[#This Row],[DESIGNATION]],DE_TabR[[Sloupec2]:[ON]],3,FALSE))/O_CapR*IF(K24=TRUE,1,0))=TRUE,"-",(VLOOKUP(P_TabEPNP11172530[[#This Row],[DESIGNATION]],DE_TabR[[Sloupec2]:[ON]],2,FALSE))/(VLOOKUP(P_TabEPNP11172530[[#This Row],[DESIGNATION]],DE_TabR[[Sloupec2]:[ON]],3,FALSE))/O_CapR*IF(K24=TRUE,1,0)) -> 3.430769231 | D24: 1 | E24: =IF(ISERROR((VLOOKUP(P_TabEPNP11172530[[#This Row],[DESIGNATION]],DE_TabR[[Sloupec2]:[Sloupec4]],4,FALSE))*DE_EP*P_TabEPNP11172530[[#This Row],[ENERGY]]*IF(K24=TRUE,1,0))=TRUE,"-",(VLOOKUP(P_TabEPNP11172530[[#This Row],[DESIGNATION]],DE_TabR[[Sloupec2]:[Sloupec4]],4,FALSE))*DE_EP*P_TabEPNP11172530[[#This Row],[ENERGY]]*IF(K24=TRUE,1,0)) -> 0.0325 | F24: 0 | G24: =IF(ISERROR((VLOOKUP(P_TabEPNP11172530[[#This Row],[DESIGNATION]],DE_TabR[[Sloupec2]:[Sloupec5]],5,FALSE))*DE_GP*P_TabEPNP11172530[[#This Row],[GAS]]*IF(K24=TRUE,1,0))=TRUE,"-",(VLOOKUP(P_TabEPNP11172530[[#This Row],[DESIGNATION]],DE_TabR[[Sloupec2]:[Sloupec5]],5,FALSE))*DE_GP*P_TabEPNP11172530[[#This Row],[GAS]]*IF(K24=TRUE,1,0)) -> 0 | H24: =IF(ISERROR(P_TabEPNP11172530[[#This Row],[DEPRECIATION]]+P_TabEPNP11172530[[#This Row],[ENERGY COSTS]]+P_TabEPNP11172530[[#This Row],[GAS COSTS]])=TRUE,0,P_TabEPNP11172530[[#This Row],[DEPRECIATION]]+P_TabEPNP11172530[[#This Row],[ENERGY COSTS]]+P_TabEPNP11172530[[#This Row],[GAS COSTS]]) -> 3.463269231 | J24: 6 | K24: TRUE
B25: Agitators | C25: =IF(ISERROR((VLOOKUP(P_TabEPNP11172530[[#This Row],[DESIGNATION]],DE_TabR[[Sloupec2]:[ON]],2,FALSE))/(VLOOKUP(P_TabEPNP11172530[[#This Row],[DESIGNATION]],DE_TabR[[Sloupec2]:[ON]],3,FALSE))/O_CapR*IF(K25=TRUE,1,0))=TRUE,"-",(VLOOKUP(P_TabEPNP11172530[[#This Row],[DESIGNATION]],DE_TabR[[Sloupec2]:[ON]],2,FALSE))/(VLOOKUP(P_TabEPNP11172530[[#This Row],[DESIGNATION]],DE_TabR[[Sloupec2]:[ON]],3,FALSE))/O_CapR*IF(K25=TRUE,1,0)) -> 0.4615384615 | D25: 0 | E25: =IF(ISERROR((VLOOKUP(P_TabEPNP11172530[[#This Row],[DESIGNATION]],DE_TabR[[Sloupec2]:[Sloupec4]],4,FALSE))*DE_EP*P_TabEPNP11172530[[#This Row],[ENERGY]]*IF(K25=TRUE,1,0))=TRUE,"-",(VLOOKUP(P_TabEPNP11172530[[#This Row],[DESIGNATION]],DE_TabR[[Sloupec2]:[Sloupec4]],4,FALSE))*DE_EP*P_TabEPNP11172530[[#This Row],[ENERGY]]*IF(K25=TRUE,1,0)) -> 0 | F25: 0 | G25: =IF(ISERROR((VLOOKUP(P_TabEPNP11172530[[#This Row],[DESIGNATION]],DE_TabR[[Sloupec2]:[Sloupec5]],5,FALSE))*DE_GP*P_TabEPNP11172530[[#This Row],[GAS]]*IF(K25=TRUE,1,0))=TRUE,"-",(VLOOKUP(P_TabEPNP11172530[[#This Row],[DESIGNATION]],DE_TabR[[Sloupec2]:[Sloupec5]],5,FALSE))*DE_GP*P_TabEPNP11172530[[#This Row],[GAS]]*IF(K25=TRUE,1,0)) -> 0 | H25: =IF(ISERROR(P_TabEPNP11172530[[#This Row],[DEPRECIATION]]+P_TabEPNP11172530[[#This Row],[ENERGY COSTS]]+P_TabEPNP11172530[[#This Row],[GAS COSTS]])=TRUE,0,P_TabEPNP11172530[[#This Row],[DEPRECIATION]]+P_TabEPNP11172530[[#This Row],[ENERGY COSTS]]+P_TabEPNP11172530[[#This Row],[GAS COSTS]]) -> 0.4615384615 | J25: 7 | K25: TRUE
B26: E-201 | C26: =IF(ISERROR((VLOOKUP(P_TabEPNP11172530[[#This Row],[DESIGNATION]],DE_TabR[[Sloupec2]:[ON]],2,FALSE))/(VLOOKUP(P_TabEPNP11172530[[#This Row],[DESIGNATION]],DE_TabR[[Sloupec2]:[ON]],3,FALSE))/O_CapR*IF(K26=TRUE,1,0))=TRUE,"-",(VLOOKUP(P_TabEPNP11172530[[#This Row],[DESIGNATION]],DE_TabR[[Sloupec2]:[ON]],2,FALSE))/(VLOOKUP(P_TabEPNP11172530[[#This Row],[DESIGNATION]],DE_TabR[[Sloupec2]:[ON]],3,FALSE))/O_CapR*IF(K26=TRUE,1,0)) -> 5.395833333 | D26: 0 | E26: =IF(ISERROR((VLOOKUP(P_TabEPNP11172530[[#This Row],[DESIGNATION]],DE_TabR[[Sloupec2]:[Sloupec4]],4,FALSE))*DE_EP*P_TabEPNP11172530[[#This Row],[ENERGY]]*IF(K26=TRUE,1,0))=TRUE,"-",(VLOOKUP(P_TabEPNP11172530[[#This Row],[DESIGNATION]],DE_TabR[[Sloupec2]:[Sloupec4]],4,FALSE))*DE_EP*P_TabEPNP11172530[[#This Row],[ENERGY]]*IF(K26=TRUE,1,0)) -> 0 | F26: 0 | G26: =IF(ISERROR((VLOOKUP(P_TabEPNP11172530[[#This Row],[DESIGNATION]],DE_TabR[[Sloupec2]:[Sloupec5]],5,FALSE))*DE_GP*P_TabEPNP11172530[[#This Row],[GAS]]*IF(K26=TRUE,1,0))=TRUE,"-",(VLOOKUP(P_TabEPNP11172530[[#This Row],[DESIGNATION]],DE_TabR[[Sloupec2]:[Sloupec5]],5,FALSE))*DE_GP*P_TabEPNP11172530[[#This Row],[GAS]]*IF(K26=TRUE,1,0)) -> 0 | H26: =IF(ISERROR(P_TabEPNP11172530[[#This Row],[DEPRECIATION]]+P_TabEPNP11172530[[#This Row],[ENERGY COSTS]]+P_TabEPNP11172530[[#This Row],[GAS COSTS]])=TRUE,0,P_TabEPNP11172530[[#This Row],[DEPRECIATION]]+P_TabEPNP11172530[[#This Row],[ENERGY COSTS]]+P_TabEPNP11172530[[#This Row],[GAS COSTS]]) -> 5.395833333 | J26: 8 | K26: TRUE
B27: E-310 | C27: =IF(ISERROR((VLOOKUP(P_TabEPNP11172530[[#This Row],[DESIGNATION]],DE_TabR[[Sloupec2]:[ON]],2,FALSE))/(VLOOKUP(P_TabEPNP11172530[[#This Row],[DESIGNATION]],DE_TabR[[Sloupec2]:[ON]],3,FALSE))/O_CapR*IF(K27=TRUE,1,0))=TRUE,"-",(VLOOKUP(P_TabEPNP11172530[[#This Row],[DESIGNATION]],DE_TabR[[Sloupec2]:[ON]],2,FALSE))/(VLOOKUP(P_TabEPNP11172530[[#This Row],[DESIGNATION]],DE_TabR[[Sloupec2]:[ON]],3,FALSE))/O_CapR*IF(K27=TRUE,1,0)) -> 4.312692308 | D27: 0 | E27: =IF(ISERROR((VLOOKUP(P_TabEPNP11172530[[#This Row],[DESIGNATION]],DE_TabR[[Sloupec2]:[Sloupec4]],4,FALSE))*DE_EP*P_TabEPNP11172530[[#This Row],[ENERGY]]*IF(K27=TRUE,1,0))=TRUE,"-",(VLOOKUP(P_TabEPNP11172530[[#This Row],[DESIGNATION]],DE_TabR[[Sloupec2]:[Sloupec4]],4,FALSE))*DE_EP*P_TabEPNP11172530[[#This Row],[ENERGY]]*IF(K27=TRUE,1,0)) -> 0 | F27: 0 | G27: =IF(ISERROR((VLOOKUP(P_TabEPNP11172530[[#This Row],[DESIGNATION]],DE_TabR[[Sloupec2]:[Sloupec5]],5,FALSE))*DE_GP*P_TabEPNP11172530[[#This Row],[GAS]]*IF(K27=TRUE,1,0))=TRUE,"-",(VLOOKUP(P_TabEPNP11172530[[#This Row],[DESIGNATION]],DE_TabR[[Sloupec2]:[Sloupec5]],5,FALSE))*DE_GP*P_TabEPNP11172530[[#This Row],[GAS]]*IF(K27=TRUE,1,0)) -> 0 | H27: =IF(ISERROR(P_TabEPNP11172530[[#This Row],[DEPRECIATION]]+P_TabEPNP11172530[[#This Row],[ENERGY COSTS]]+P_TabEPNP11172530[[#This Row],[GAS COSTS]])=TRUE,0,P_TabEPNP11172530[[#This Row],[DEPRECIATION]]+P_TabEPNP11172530[[#This Row],[ENERGY COSTS]]+P_TabEPNP11172530[[#This Row],[GAS COSTS]]) -> 4.312692308 | J27: 9 | K27: TRUE
B28: P-101 | C28: =IF(ISERROR((VLOOKUP(P_TabEPNP11172530[[#This Row],[DESIGNATION]],DE_TabR[[Sloupec2]:[ON]],2,FALSE))/(VLOOKUP(P_TabEPNP11172530[[#This Row],[DESIGNATION]],DE_TabR[[Sloupec2]:[ON]],3,FALSE))/O_CapR*IF(K28=TRUE,1,0))=TRUE,"-",(VLOOKUP(P_TabEPNP11172530[[#This Row],[DESIGNATION]],DE_TabR[[Sloupec2]:[ON]],2,FALSE))/(VLOOKUP(P_TabEPNP11172530[[#This Row],[DESIGNATION]],DE_TabR[[Sloupec2]:[ON]],3,FALSE))/O_CapR*IF(K28=TRUE,1,0)) -> 0.0575849359 | D28: 0.03 | E28: =IF(ISERROR((VLOOKUP(P_TabEPNP11172530[[#This Row],[DESIGNATION]],DE_TabR[[Sloupec2]:[Sloupec4]],4,FALSE))*DE_EP*P_TabEPNP11172530[[#This Row],[ENERGY]]*IF(K28=TRUE,1,0))=TRUE,"-",(VLOOKUP(P_TabEPNP11172530[[#This Row],[DESIGNATION]],DE_TabR[[Sloupec2]:[Sloupec4]],4,FALSE))*DE_EP*P_TabEPNP11172530[[#This Row],[ENERGY]]*IF(K28=TRUE,1,0)) -> 0.0156 | F28: 0 | G28: =IF(ISERROR((VLOOKUP(P_TabEPNP11172530[[#This Row],[DESIGNATION]],DE_TabR[[Sloupec2]:[Sloupec5]],5,FALSE))*DE_GP*P_TabEPNP11172530[[#This Row],[GAS]]*IF(K28=TRUE,1,0))=TRUE,"-",(VLOOKUP(P_TabEPNP11172530[[#This Row],[DESIGNATION]],DE_TabR[[Sloupec2]:[Sloupec5]],5,FALSE))*DE_GP*P_TabEPNP11172530[[#This Row],[GAS]]*IF(K28=TRUE,1,0)) -> 0 | H28: =IF(ISERROR(P_TabEPNP11172530[[#This Row],[DEPRECIATION]]+P_TabEPNP11172530[[#This Row],[ENERGY COSTS]]+P_TabEPNP11172530[[#This Row],[GAS COSTS]])=TRUE,0,P_TabEPNP11172530[[#This Row],[DEPRECIATION]]+P_TabEPNP11172530[[#This Row],[ENERGY COSTS]]+P_TabEPNP11172530[[#This Row],[GAS COSTS]]) -> 0.0731849359 | J28: 10 | K28: TRUE
B29: P-103 | C29: =IF(ISERROR((VLOOKUP(P_TabEPNP11172530[[#This Row],[DESIGNATION]],DE_TabR[[Sloupec2]:[ON]],2,FALSE))/(VLOOKUP(P_TabEPNP11172530[[#This Row],[DESIGNATION]],DE_TabR[[Sloupec2]:[ON]],3,FALSE))/O_CapR*IF(K29=TRUE,1,0))=TRUE,"-",(VLOOKUP(P_TabEPNP11172530[[#This Row],[DESIGNATION]],DE_TabR[[Sloupec2]:[ON]],2,FALSE))/(VLOOKUP(P_TabEPNP11172530[[#This Row],[DESIGNATION]],DE_TabR[[Sloupec2]:[ON]],3,FALSE))/O_CapR*IF(K29=TRUE,1,0)) -> 0.0575849359 | D29: 0 | E29: =IF(ISERROR((VLOOKUP(P_TabEPNP11172530[[#This Row],[DESIGNATION]],DE_TabR[[Sloupec2]:[Sloupec4]],4,FALSE))*DE_EP*P_TabEPNP11172530[[#This Row],[ENERGY]]*IF(K29=TRUE,1,0))=TRUE,"-",(VLOOKUP(P_TabEPNP11172530[[#This Row],[DESIGNATION]],DE_TabR[[Sloupec2]:[Sloupec4]],4,FALSE))*DE_EP*P_TabEPNP11172530[[#This Row],[ENERGY]]*IF(K29=TRUE,1,0)) -> 0 | F29: 0 | G29: =IF(ISERROR((VLOOKUP(P_TabEPNP11172530[[#This Row],[DESIGNATION]],DE_TabR[[Sloupec2]:[Sloupec5]],5,FALSE))*DE_GP*P_TabEPNP11172530[[#This Row],[GAS]]*IF(K29=TRUE,1,0))=TRUE,"-",(VLOOKUP(P_TabEPNP11172530[[#This Row],[DESIGNATION]],DE_TabR[[Sloupec2]:[Sloupec5]],5,FALSE))*DE_GP*P_TabEPNP11172530[[#This Row],[GAS]]*IF(K29=TRUE,1,0)) -> 0 | H29: =IF(ISERROR(P_TabEPNP11172530[[#This Row],[DEPRECIATION]]+P_TabEPNP11172530[[#This Row],[ENERGY COSTS]]+P_TabEPNP11172530[[#This Row],[GAS COSTS]])=TRUE,0,P_TabEPNP11172530[[#This Row],[DEPRECIATION]]+P_TabEPNP11172530[[#This Row],[ENERGY COSTS]]+P_TabEPNP11172530[[#This Row],[GAS COSTS]]) -> 0.0575849359 | J29: 11 | K29: TRUE
B30: P-105 | C30: =IF(ISERROR((VLOOKUP(P_TabEPNP11172530[[#This Row],[DESIGNATION]],DE_TabR[[Sloupec2]:[ON]],2,FALSE))/(VLOOKUP(P_TabEPNP11172530[[#This Row],[DESIGNATION]],DE_TabR[[Sloupec2]:[ON]],3,FALSE))/O_CapR*IF(K30=TRUE,1,0))=TRUE,"-",(VLOOKUP(P_TabEPNP11172530[[#This Row],[DESIGNATION]],DE_TabR[[Sloupec2]:[ON]],2,FALSE))/(VLOOKUP(P_TabEPNP11172530[[#This Row],[DESIGNATION]],DE_TabR[[Sloupec2]:[ON]],3,FALSE))/O_CapR*IF(K30=TRUE,1,0)) -> 0.0599775641 | D30: 0 | E30: =IF(ISERROR((VLOOKUP(P_TabEPNP11172530[[#This Row],[DESIGNATION]],DE_TabR[[Sloupec2]:[Sloupec4]],4,FALSE))*DE_EP*P_TabEPNP11172530[[#This Row],[ENERGY]]*IF(K30=TRUE,1,0))=TRUE,"-",(VLOOKUP(P_TabEPNP11172530[[#This Row],[DESIGNATION]],DE_TabR[[Sloupec2]:[Sloupec4]],4,FALSE))*DE_EP*P_TabEPNP11172530[[#This Row],[ENERGY]]*IF(K30=TRUE,1,0)) -> 0 | F30: 0 | G30: =IF(ISERROR((VLOOKUP(P_TabEPNP11172530[[#This Row],[DESIGNATION]],DE_TabR[[Sloupec2]:[Sloupec5]],5,FALSE))*DE_GP*P_TabEPNP11172530[[#This Row],[GAS]]*IF(K30=TRUE,1,0))=TRUE,"-",(VLOOKUP(P_TabEPNP11172530[[#This Row],[DESIGNATION]],DE_TabR[[Sloupec2]:[Sloupec5]],5,FALSE))*DE_GP*P_TabEPNP11172530[[#This Row],[GAS]]*IF(K30=TRUE,1,0)) -> 0 | H30: =IF(ISERROR(P_TabEPNP11172530[[#This Row],[DEPRECIATION]]+P_TabEPNP11172530[[#This Row],[ENERGY COSTS]]+P_TabEPNP11172530[[#This Row],[GAS COSTS]])=TRUE,0,P_TabEPNP11172530[[#This Row],[DEPRECIATION]]+P_TabEPNP11172530[[#This Row],[ENERGY COSTS]]+P_TabEPNP11172530[[#This Row],[GAS COSTS]]) -> 0.0599775641 | J30: 12 | K30: TRUE
B31: P-107 | C31: =IF(ISERROR((VLOOKUP(P_TabEPNP11172530[[#This Row],[DESIGNATION]],DE_TabR[[Sloupec2]:[ON]],2,FALSE))/(VLOOKUP(P_TabEPNP11172530[[#This Row],[DESIGNATION]],DE_TabR[[Sloupec2]:[ON]],3,FALSE))/O_CapR*IF(K31=TRUE,1,0))=TRUE,"-",(VLOOKUP(P_TabEPNP11172530[[#This Row],[DESIGNATION]],DE_TabR[[Sloupec2]:[ON]],2,FALSE))/(VLOOKUP(P_TabEPNP11172530[[#This Row],[DESIGNATION]],DE_TabR[[Sloupec2]:[ON]],3,FALSE))/O_CapR*IF(K31=TRUE,1,0)) -> 0.05936217949 | D31: 0 | E31: =IF(ISERROR((VLOOKUP(P_TabEPNP11172530[[#This Row],[DESIGNATION]],DE_TabR[[Sloupec2]:[Sloupec4]],4,FALSE))*DE_EP*P_TabEPNP11172530[[#This Row],[ENERGY]]*IF(K31=TRUE,1,0))=TRUE,"-",(VLOOKUP(P_TabEPNP11172530[[#This Row],[DESIGNATION]],DE_TabR[[Sloupec2]:[Sloupec4]],4,FALSE))*DE_EP*P_TabEPNP11172530[[#This Row],[ENERGY]]*IF(K31=TRUE,1,0)) -> 0 | F31: 0 | G31: =IF(ISERROR((VLOOKUP(P_TabEPNP11172530[[#This Row],[DESIGNATION]],DE_TabR[[Sloupec2]:[Sloupec5]],5,FALSE))*DE_GP*P_TabEPNP11172530[[#This Row],[GAS]]*IF(K31=TRUE,1,0))=TRUE,"-",(VLOOKUP(P_TabEPNP11172530[[#This Row],[DESIGNATION]],DE_TabR[[Sloupec2]:[Sloupec5]],5,FALSE))*DE_GP*P_TabEPNP11172530[[#This Row],[GAS]]*IF(K31=TRUE,1,0)) -> 0 | H31: =IF(ISERROR(P_TabEPNP11172530[[#This Row],[DEPRECIATION]]+P_TabEPNP11172530[[#This Row],[ENERGY COSTS]]+P_TabEPNP11172530[[#This Row],[GAS COSTS]])=TRUE,0,P_TabEPNP11172530[[#This Row],[DEPRECIATION]]+P_TabEPNP11172530[[#This Row],[ENERGY COSTS]]+P_TabEPNP11172530[[#This Row],[GAS COSTS]]) -> 0.05936217949 | J31: 13 | K31: TRUE
B32: P-301 | C32: =IF(ISERROR((VLOOKUP(P_TabEPNP11172530[[#This Row],[DESIGNATION]],DE_TabR[[Sloupec2]:[ON]],2,FALSE))/(VLOOKUP(P_TabEPNP11172530[[#This Row],[DESIGNATION]],DE_TabR[[Sloupec2]:[ON]],3,FALSE))/O_CapR*IF(K32=TRUE,1,0))=TRUE,"-",(VLOOKUP(P_TabEPNP11172530[[#This Row],[DESIGNATION]],DE_TabR[[Sloupec2]:[ON]],2,FALSE))/(VLOOKUP(P_TabEPNP11172530[[#This Row],[DESIGNATION]],DE_TabR[[Sloupec2]:[ON]],3,FALSE))/O_CapR*IF(K32=TRUE,1,0)) -> 0.1602564103 | D32: 1 | E32: =IF(ISERROR((VLOOKUP(P_TabEPNP11172530[[#This Row],[DESIGNATION]],DE_TabR[[Sloupec2]:[Sloupec4]],4,FALSE))*DE_EP*P_TabEPNP11172530[[#This Row],[ENERGY]]*IF(K32=TRUE,1,0))=TRUE,"-",(VLOOKUP(P_TabEPNP11172530[[#This Row],[DESIGNATION]],DE_TabR[[Sloupec2]:[Sloupec4]],4,FALSE))*DE_EP*P_TabEPNP11172530[[#This Row],[ENERGY]]*IF(K32=TRUE,1,0)) -> 0.52 | F32: 0 | G32: =IF(ISERROR((VLOOKUP(P_TabEPNP11172530[[#This Row],[DESIGNATION]],DE_TabR[[Sloupec2]:[Sloupec5]],5,FALSE))*DE_GP*P_TabEPNP11172530[[#This Row],[GAS]]*IF(K32=TRUE,1,0))=TRUE,"-",(VLOOKUP(P_TabEPNP11172530[[#This Row],[DESIGNATION]],DE_TabR[[Sloupec2]:[Sloupec5]],5,FALSE))*DE_GP*P_TabEPNP11172530[[#This Row],[GAS]]*IF(K32=TRUE,1,0)) -> 0 | H32: =IF(ISERROR(P_TabEPNP11172530[[#This Row],[DEPRECIATION]]+P_TabEPNP11172530[[#This Row],[ENERGY COSTS]]+P_TabEPNP11172530[[#This Row],[GAS COSTS]])=TRUE,0,P_TabEPNP11172530[[#This Row],[DEPRECIATION]]+P_TabEPNP11172530[[#This Row],[ENERGY COSTS]]+P_TabEPNP11172530[[#This Row],[GAS COSTS]]) -> 0.6802564103 | J32: 14 | K32: TRUE
B33: P-102 | C33: =IF(ISERROR((VLOOKUP(P_TabEPNP11172530[[#This Row],[DESIGNATION]],DE_TabR[[Sloupec2]:[ON]],2,FALSE))/(VLOOKUP(P_TabEPNP11172530[[#This Row],[DESIGNATION]],DE_TabR[[Sloupec2]:[ON]],3,FALSE))/O_CapR*IF(K33=TRUE,1,0))=TRUE,"-",(VLOOKUP(P_TabEPNP11172530[[#This Row],[DESIGNATION]],DE_TabR[[Sloupec2]:[ON]],2,FALSE))/(VLOOKUP(P_TabEPNP11172530[[#This Row],[DESIGNATION]],DE_TabR[[Sloupec2]:[ON]],3,FALSE))/O_CapR*IF(K33=TRUE,1,0)) -> 3.589423077 | D33: 1 | E33: =IF(ISERROR((VLOOKUP(P_TabEPNP11172530[[#This Row],[DESIGNATION]],DE_TabR[[Sloupec2]:[Sloupec4]],4,FALSE))*DE_EP*P_TabEPNP11172530[[#This Row],[ENERGY]]*IF(K33=TRUE,1,0))=TRUE,"-",(VLOOKUP(P_TabEPNP11172530[[#This Row],[DESIGNATION]],DE_TabR[[Sloupec2]:[Sloupec4]],4,FALSE))*DE_EP*P_TabEPNP11172530[[#This Row],[ENERGY]]*IF(K33=TRUE,1,0)) -> 2.405 | F33: 0 | G33: =IF(ISERROR((VLOOKUP(P_TabEPNP11172530[[#This Row],[DESIGNATION]],DE_TabR[[Sloupec2]:[Sloupec5]],5,FALSE))*DE_GP*P_TabEPNP11172530[[#This Row],[GAS]]*IF(K33=TRUE,1,0))=TRUE,"-",(VLOOKUP(P_TabEPNP11172530[[#This Row],[DESIGNATION]],DE_TabR[[Sloupec2]:[Sloupec5]],5,FALSE))*DE_GP*P_TabEPNP11172530[[#This Row],[GAS]]*IF(K33=TRUE,1,0)) -> 0 | H33: =IF(ISERROR(P_TabEPNP11172530[[#This Row],[DEPRECIATION]]+P_TabEPNP11172530[[#This Row],[ENERGY COSTS]]+P_TabEPNP11172530[[#This Row],[GAS COSTS]])=TRUE,0,P_TabEPNP11172530[[#This Row],[DEPRECIATION]]+P_TabEPNP11172530[[#This Row],[ENERGY COSTS]]+P_TabEPNP11172530[[#This Row],[GAS COSTS]]) -> 5.994423077 | J33: 15 | K33: TRUE
B34: P-104 | C34: =IF(ISERROR((VLOOKUP(P_TabEPNP11172530[[#This Row],[DESIGNATION]],DE_TabR[[Sloupec2]:[ON]],2,FALSE))/(VLOOKUP(P_TabEPNP11172530[[#This Row],[DESIGNATION]],DE_TabR[[Sloupec2]:[ON]],3,FALSE))/O_CapR*IF(K34=TRUE,1,0))=TRUE,"-",(VLOOKUP(P_TabEPNP11172530[[#This Row],[DESIGNATION]],DE_TabR[[Sloupec2]:[ON]],2,FALSE))/(VLOOKUP(P_TabEPNP11172530[[#This Row],[DESIGNATION]],DE_TabR[[Sloupec2]:[ON]],3,FALSE))/O_CapR*IF(K34=TRUE,1,0)) -> 3.589423077 | D34: 0 | E34: =IF(ISERROR((VLOOKUP(P_TabEPNP11172530[[#This Row],[DESIGNATION]],DE_TabR[[Sloupec2]:[Sloupec4]],4,FALSE))*DE_EP*P_TabEPNP11172530[[#This Row],[ENERGY]]*IF(K34=TRUE,1,0))=TRUE,"-",(VLOOKUP(P_TabEPNP11172530[[#This Row],[DESIGNATION]],DE_TabR[[Sloupec2]:[Sloupec4]],4,FALSE))*DE_EP*P_TabEPNP11172530[[#This Row],[ENERGY]]*IF(K34=TRUE,1,0)) -> 0 | F34: 0 | G34: =IF(ISERROR((VLOOKUP(P_TabEPNP11172530[[#This Row],[DESIGNATION]],DE_TabR[[Sloupec2]:[Sloupec5]],5,FALSE))*DE_GP*P_TabEPNP11172530[[#This Row],[GAS]]*IF(K34=TRUE,1,0))=TRUE,"-",(VLOOKUP(P_TabEPNP11172530[[#This Row],[DESIGNATION]],DE_TabR[[Sloupec2]:[Sloupec5]],5,FALSE))*DE_GP*P_TabEPNP11172530[[#This Row],[GAS]]*IF(K34=TRUE,1,0)) -> 0 | H34: =IF(ISERROR(P_TabEPNP11172530[[#This Row],[DEPRECIATION]]+P_TabEPNP11172530[[#This Row],[ENERGY COSTS]]+P_TabEPNP11172530[[#This Row],[GAS COSTS]])=TRUE,0,P_TabEPNP11172530[[#This Row],[DEPRECIATION]]+P_TabEPNP11172530[[#This Row],[ENERGY COSTS]]+P_TabEPNP11172530[[#This Row],[GAS COSTS]]) -> 3.589423077 | J34: 16 | K34: TRUE
B35: P-106 | C35: =IF(ISERROR((VLOOKUP(P_TabEPNP11172530[[#This Row],[DESIGNATION]],DE_TabR[[Sloupec2]:[ON]],2,FALSE))/(VLOOKUP(P_TabEPNP11172530[[#This Row],[DESIGNATION]],DE_TabR[[Sloupec2]:[ON]],3,FALSE))/O_CapR*IF(K35=TRUE,1,0))=TRUE,"-",(VLOOKUP(P_TabEPNP11172530[[#This Row],[DESIGNATION]],DE_TabR[[Sloupec2]:[ON]],2,FALSE))/(VLOOKUP(P_TabEPNP11172530[[#This Row],[DESIGNATION]],DE_TabR[[Sloupec2]:[ON]],3,FALSE))/O_CapR*IF(K35=TRUE,1,0)) -> 2.6625 | D35: 0 | E35: =IF(ISERROR((VLOOKUP(P_TabEPNP11172530[[#This Row],[DESIGNATION]],DE_TabR[[Sloupec2]:[Sloupec4]],4,FALSE))*DE_EP*P_TabEPNP11172530[[#This Row],[ENERGY]]*IF(K35=TRUE,1,0))=TRUE,"-",(VLOOKUP(P_TabEPNP11172530[[#This Row],[DESIGNATION]],DE_TabR[[Sloupec2]:[Sloupec4]],4,FALSE))*DE_EP*P_TabEPNP11172530[[#This Row],[ENERGY]]*IF(K35=TRUE,1,0)) -> 0 | F35: 0 | G35: =IF(ISERROR((VLOOKUP(P_TabEPNP11172530[[#This Row],[DESIGNATION]],DE_TabR[[Sloupec2]:[Sloupec5]],5,FALSE))*DE_GP*P_TabEPNP11172530[[#This Row],[GAS]]*IF(K35=TRUE,1,0))=TRUE,"-",(VLOOKUP(P_TabEPNP11172530[[#This Row],[DESIGNATION]],DE_TabR[[Sloupec2]:[Sloupec5]],5,FALSE))*DE_GP*P_TabEPNP11172530[[#This Row],[GAS]]*IF(K35=TRUE,1,0)) -> 0 | H35: =IF(ISERROR(P_TabEPNP11172530[[#This Row],[DEPRECIATION]]+P_TabEPNP11172530[[#This Row],[ENERGY COSTS]]+P_TabEPNP11172530[[#This Row],[GAS COSTS]])=TRUE,0,P_TabEPNP11172530[[#This Row],[DEPRECIATION]]+P_TabEPNP11172530[[#This Row],[ENERGY COSTS]]+P_TabEPNP11172530[[#This Row],[GAS COSTS]]) -> 2.6625 | J35: 17 | K35: TRUE
B36: P-108 | C36: =IF(ISERROR((VLOOKUP(P_TabEPNP11172530[[#This Row],[DESIGNATION]],DE_TabR[[Sloupec2]:[ON]],2,FALSE))/(VLOOKUP(P_TabEPNP11172530[[#This Row],[DESIGNATION]],DE_TabR[[Sloupec2]:[ON]],3,FALSE))/O_CapR*IF(K36=TRUE,1,0))=TRUE,"-",(VLOOKUP(P_TabEPNP11172530[[#This Row],[DESIGNATION]],DE_TabR[[Sloupec2]:[ON]],2,FALSE))/(VLOOKUP(P_TabEPNP11172530[[#This Row],[DESIGNATION]],DE_TabR[[Sloupec2]:[ON]],3,FALSE))/O_CapR*IF(K36=TRUE,1,0)) -> 7.260576923 | D36: 1 | E36: =IF(ISERROR((VLOOKUP(P_TabEPNP11172530[[#This Row],[DESIGNATION]],DE_TabR[[Sloupec2]:[Sloupec4]],4,FALSE))*DE_EP*P_TabEPNP11172530[[#This Row],[ENERGY]]*IF(K36=TRUE,1,0))=TRUE,"-",(VLOOKUP(P_TabEPNP11172530[[#This Row],[DESIGNATION]],DE_TabR[[Sloupec2]:[Sloupec4]],4,FALSE))*DE_EP*P_TabEPNP11172530[[#This Row],[ENERGY]]*IF(K36=TRUE,1,0)) -> 2.405 | F36: 0 | G36: =IF(ISERROR((VLOOKUP(P_TabEPNP11172530[[#This Row],[DESIGNATION]],DE_TabR[[Sloupec2]:[Sloupec5]],5,FALSE))*DE_GP*P_TabEPNP11172530[[#This Row],[GAS]]*IF(K36=TRUE,1,0))=TRUE,"-",(VLOOKUP(P_TabEPNP11172530[[#This Row],[DESIGNATION]],DE_TabR[[Sloupec2]:[Sloupec5]],5,FALSE))*DE_GP*P_TabEPNP11172530[[#This Row],[GAS]]*IF(K36=TRUE,1,0)) -> 0 | H36: =IF(ISERROR(P_TabEPNP11172530[[#This Row],[DEPRECIATION]]+P_TabEPNP11172530[[#This Row],[ENERGY COSTS]]+P_TabEPNP11172530[[#This Row],[GAS COSTS]])=TRUE,0,P_TabEPNP11172530[[#This Row],[DEPRECIATION]]+P_TabEPNP11172530[[#This Row],[ENERGY COSTS]]+P_TabEPNP11172530[[#This Row],[GAS COSTS]]) -> 9.665576923 | J36: 18 | K36: TRUE
B37: L-control | C37: =IF(ISERROR((VLOOKUP(P_TabEPNP11172530[[#This Row],[DESIGNATION]],DE_TabR[[Sloupec2]:[ON]],2,FALSE))/(VLOOKUP(P_TabEPNP11172530[[#This Row],[DESIGNATION]],DE_TabR[[Sloupec2]:[ON]],3,FALSE))/O_CapR*IF(K37=TRUE,1,0))=TRUE,"-",(VLOOKUP(P_TabEPNP11172530[[#This Row],[DESIGNATION]],DE_TabR[[Sloupec2]:[ON]],2,FALSE))/(VLOOKUP(P_TabEPNP11172530[[#This Row],[DESIGNATION]],DE_TabR[[Sloupec2]:[ON]],3,FALSE))/O_CapR*IF(K37=TRUE,1,0)) -> 0.4033461538 | D37: 0 | E37: =IF(ISERROR((VLOOKUP(P_TabEPNP11172530[[#This Row],[DESIGNATION]],DE_TabR[[Sloupec2]:[Sloupec4]],4,FALSE))*DE_EP*P_TabEPNP11172530[[#This Row],[ENERGY]]*IF(K37=TRUE,1,0))=TRUE,"-",(VLOOKUP(P_TabEPNP11172530[[#This Row],[DESIGNATION]],DE_TabR[[Sloupec2]:[Sloupec4]],4,FALSE))*DE_EP*P_TabEPNP11172530[[#This Row],[ENERGY]]*IF(K37=TRUE,1,0)) -> 0 | F37: 0 | G37: =IF(ISERROR((VLOOKUP(P_TabEPNP11172530[[#This Row],[DESIGNATION]],DE_TabR[[Sloupec2]:[Sloupec5]],5,FALSE))*DE_GP*P_TabEPNP11172530[[#This Row],[GAS]]*IF(K37=TRUE,1,0))=TRUE,"-",(VLOOKUP(P_TabEPNP11172530[[#This Row],[DESIGNATION]],DE_TabR[[Sloupec2]:[Sloupec5]],5,FALSE))*DE_GP*P_TabEPNP11172530[[#This Row],[GAS]]*IF(K37=TRUE,1,0)) -> 0 | H37: =IF(ISERROR(P_TabEPNP11172530[[#This Row],[DEPRECIATION]]+P_TabEPNP11172530[[#This Row],[ENERGY COSTS]]+P_TabEPNP11172530[[#This Row],[GAS COSTS]])=TRUE,0,P_TabEPNP11172530[[#This Row],[DEPRECIATION]]+P_TabEPNP11172530[[#This Row],[ENERGY COSTS]]+P_TabEPNP11172530[[#This Row],[GAS COSTS]]) -> 0.4033461538 | J37: 19 | K37: TRUE
B38: F-control | C38: =IF(ISERROR((VLOOKUP(P_TabEPNP11172530[[#This Row],[DESIGNATION]],DE_TabR[[Sloupec2]:[ON]],2,FALSE))/(VLOOKUP(P_TabEPNP11172530[[#This Row],[DESIGNATION]],DE_TabR[[Sloupec2]:[ON]],3,FALSE))/O_CapR*IF(K38=TRUE,1,0))=TRUE,"-",(VLOOKUP(P_TabEPNP11172530[[#This Row],[DESIGNATION]],DE_TabR[[Sloupec2]:[ON]],2,FALSE))/(VLOOKUP(P_TabEPNP11172530[[#This Row],[DESIGNATION]],DE_TabR[[Sloupec2]:[ON]],3,FALSE))/O_CapR*IF(K38=TRUE,1,0)) -> 2.240576923 | D38: 0 | E38: =IF(ISERROR((VLOOKUP(P_TabEPNP11172530[[#This Row],[DESIGNATION]],DE_TabR[[Sloupec2]:[Sloupec4]],4,FALSE))*DE_EP*P_TabEPNP11172530[[#This Row],[ENERGY]]*IF(K38=TRUE,1,0))=TRUE,"-",(VLOOKUP(P_TabEPNP11172530[[#This Row],[DESIGNATION]],DE_TabR[[Sloupec2]:[Sloupec4]],4,FALSE))*DE_EP*P_TabEPNP11172530[[#This Row],[ENERGY]]*IF(K38=TRUE,1,0)) -> 0 | F38: 0 | G38: =IF(ISERROR((VLOOKUP(P_TabEPNP11172530[[#This Row],[DESIGNATION]],DE_TabR[[Sloupec2]:[Sloupec5]],5,FALSE))*DE_GP*P_TabEPNP11172530[[#This Row],[GAS]]*IF(K38=TRUE,1,0))=TRUE,"-",(VLOOKUP(P_TabEPNP11172530[[#This Row],[DESIGNATION]],DE_TabR[[Sloupec2]:[Sloupec5]],5,FALSE))*DE_GP*P_TabEPNP11172530[[#This Row],[GAS]]*IF(K38=TRUE,1,0)) -> 0 | H38: =IF(ISERROR(P_TabEPNP11172530[[#This Row],[DEPRECIATION]]+P_TabEPNP11172530[[#This Row],[ENERGY COSTS]]+P_TabEPNP11172530[[#This Row],[GAS COSTS]])=TRUE,0,P_TabEPNP11172530[[#This Row],[DEPRECIATION]]+P_TabEPNP11172530[[#This Row],[ENERGY COSTS]]+P_TabEPNP11172530[[#This Row],[GAS COSTS]]) -> 2.240576923 | J38: 20 | K38: TRUE
B39: P-control | C39: =IF(ISERROR((VLOOKUP(P_TabEPNP11172530[[#This Row],[DESIGNATION]],DE_TabR[[Sloupec2]:[ON]],2,FALSE))/(VLOOKUP(P_TabEPNP11172530[[#This Row],[DESIGNATION]],DE_TabR[[Sloupec2]:[ON]],3,FALSE))/O_CapR*IF(K39=TRUE,1,0))=TRUE,"-",(VLOOKUP(P_TabEPNP11172530[[#This Row],[DESIGNATION]],DE_TabR[[Sloupec2]:[ON]],2,FALSE))/(VLOOKUP(P_TabEPNP11172530[[#This Row],[DESIGNATION]],DE_TabR[[Sloupec2]:[ON]],3,FALSE))/O_CapR*IF(K39=TRUE,1,0)) -> 0.4848926282 | D39: 0 | E39: =IF(ISERROR((VLOOKUP(P_TabEPNP11172530[[#This Row],[DESIGNATION]],DE_TabR[[Sloupec2]:[Sloupec4]],4,FALSE))*DE_EP*P_TabEPNP11172530[[#This Row],[ENERGY]]*IF(K39=TRUE,1,0))=TRUE,"-",(VLOOKUP(P_TabEPNP11172530[[#This Row],[DESIGNATION]],DE_TabR[[Sloupec2]:[Sloupec4]],4,FALSE))*DE_EP*P_TabEPNP11172530[[#This Row],[ENERGY]]*IF(K39=TRUE,1,0)) -> 0 | F39: 0 | G39: =IF(ISERROR((VLOOKUP(P_TabEPNP11172530[[#This Row],[DESIGNATION]],DE_TabR[[Sloupec2]:[Sloupec5]],5,FALSE))*DE_GP*P_TabEPNP11172530[[#This Row],[GAS]]*IF(K39=TRUE,1,0))=TRUE,"-",(VLOOKUP(P_TabEPNP11172530[[#This Row],[DESIGNATION]],DE_TabR[[Sloupec2]:[Sloupec5]],5,FALSE))*DE_GP*P_TabEPNP11172530[[#This Row],[GAS]]*IF(K39=TRUE,1,0)) -> 0 | H39: =IF(ISERROR(P_TabEPNP11172530[[#This Row],[DEPRECIATION]]+P_TabEPNP11172530[[#This Row],[ENERGY COSTS]]+P_TabEPNP11172530[[#This Row],[GAS COSTS]])=TRUE,0,P_TabEPNP11172530[[#This Row],[DEPRECIATION]]+P_TabEPNP11172530[[#This Row],[ENERGY COSTS]]+P_TabEPNP11172530[[#This Row],[GAS COSTS]]) -> 0.4848926282 | J39: 21 | K39: TRUE
B40: CP-1 | C40: =IF(ISERROR((VLOOKUP(P_TabEPNP11172530[[#This Row],[DESIGNATION]],DE_TabR[[Sloupec2]:[ON]],2,FALSE))/(VLOOKUP(P_TabEPNP11172530[[#This Row],[DESIGNATION]],DE_TabR[[Sloupec2]:[ON]],3,FALSE))/O_CapR*IF(K40=TRUE,1,0))=TRUE,"-",(VLOOKUP(P_TabEPNP11172530[[#This Row],[DESIGNATION]],DE_TabR[[Sloupec2]:[ON]],2,FALSE))/(VLOOKUP(P_TabEPNP11172530[[#This Row],[DESIGNATION]],DE_TabR[[Sloupec2]:[ON]],3,FALSE))/O_CapR*IF(K40=TRUE,1,0)) -> 0.6086538462 | D40: 0 | E40: =IF(ISERROR((VLOOKUP(P_TabEPNP11172530[[#This Row],[DESIGNATION]],DE_TabR[[Sloupec2]:[Sloupec4]],4,FALSE))*DE_EP*P_TabEPNP11172530[[#This Row],[ENERGY]]*IF(K40=TRUE,1,0))=TRUE,"-",(VLOOKUP(P_TabEPNP11172530[[#This Row],[DESIGNATION]],DE_TabR[[Sloupec2]:[Sloupec4]],4,FALSE))*DE_EP*P_TabEPNP11172530[[#This Row],[ENERGY]]*IF(K40=TRUE,1,0)) -> 0 | F40: 0 | G40: =IF(ISERROR((VLOOKUP(P_TabEPNP11172530[[#This Row],[DESIGNATION]],DE_TabR[[Sloupec2]:[Sloupec5]],5,FALSE))*DE_GP*P_TabEPNP11172530[[#This Row],[GAS]]*IF(K40=TRUE,1,0))=TRUE,"-",(VLOOKUP(P_TabEPNP11172530[[#This Row],[DESIGNATION]],DE_TabR[[Sloupec2]:[Sloupec5]],5,FALSE))*DE_GP*P_TabEPNP11172530[[#This Row],[GAS]]*IF(K40=TRUE,1,0)) -> 0 | H40: =IF(ISERROR(P_TabEPNP11172530[[#This Row],[DEPRECIATION]]+P_TabEPNP11172530[[#This Row],[ENERGY COSTS]]+P_TabEPNP11172530[[#This Row],[GAS COSTS]])=TRUE,0,P_TabEPNP11172530[[#This Row],[DEPRECIATION]]+P_TabEPNP11172530[[#This Row],[ENERGY COSTS]]+P_TabEPNP11172530[[#This Row],[GAS COSTS]]) -> 0.6086538462 | J40: 22 | K40: TRUE
B41: CP-2 | C41: =IF(ISERROR((VLOOKUP(P_TabEPNP11172530[[#This Row],[DESIGNATION]],DE_TabR[[Sloupec2]:[ON]],2,FALSE))/(VLOOKUP(P_TabEPNP11172530[[#This Row],[DESIGNATION]],DE_TabR[[Sloupec2]:[ON]],3,FALSE))/O_CapR*IF(K41=TRUE,1,0))=TRUE,"-",(VLOOKUP(P_TabEPNP11172530[[#This Row],[DESIGNATION]],DE_TabR[[Sloupec2]:[ON]],2,FALSE))/(VLOOKUP(P_TabEPNP11172530[[#This Row],[DESIGNATION]],DE_TabR[[Sloupec2]:[ON]],3,FALSE))/O_CapR*IF(K41=TRUE,1,0)) -> 0.6682692308 | D41: 0 | E41: =IF(ISERROR((VLOOKUP(P_TabEPNP11172530[[#This Row],[DESIGNATION]],DE_TabR[[Sloupec2]:[Sloupec4]],4,FALSE))*DE_EP*P_TabEPNP11172530[[#This Row],[ENERGY]]*IF(K41=TRUE,1,0))=TRUE,"-",(VLOOKUP(P_TabEPNP11172530[[#This Row],[DESIGNATION]],DE_TabR[[Sloupec2]:[Sloupec4]],4,FALSE))*DE_EP*P_TabEPNP11172530[[#This Row],[ENERGY]]*IF(K41=TRUE,1,0)) -> 0 | F41: 0 | G41: =IF(ISERROR((VLOOKUP(P_TabEPNP11172530[[#This Row],[DESIGNATION]],DE_TabR[[Sloupec2]:[Sloupec5]],5,FALSE))*DE_GP*P_TabEPNP11172530[[#This Row],[GAS]]*IF(K41=TRUE,1,0))=TRUE,"-",(VLOOKUP(P_TabEPNP11172530[[#This Row],[DESIGNATION]],DE_TabR[[Sloupec2]:[Sloupec5]],5,FALSE))*DE_GP*P_TabEPNP11172530[[#This Row],[GAS]]*IF(K41=TRUE,1,0)) -> 0 | H41: =IF(ISERROR(P_TabEPNP11172530[[#This Row],[DEPRECIATION]]+P_TabEPNP11172530[[#This Row],[ENERGY COSTS]]+P_TabEPNP11172530[[#This Row],[GAS COSTS]])=TRUE,0,P_TabEPNP11172530[[#This Row],[DEPRECIATION]]+P_TabEPNP11172530[[#This Row],[ENERGY COSTS]]+P_TabEPNP11172530[[#This Row],[GAS COSTS]]) -> 0.6682692308 | J41: 23 | K41: TRUE
B42: CP-3 | C42: =IF(ISERROR((VLOOKUP(P_TabEPNP11172530[[#This Row],[DESIGNATION]],DE_TabR[[Sloupec2]:[ON]],2,FALSE))/(VLOOKUP(P_TabEPNP11172530[[#This Row],[DESIGNATION]],DE_TabR[[Sloupec2]:[ON]],3,FALSE))/O_CapR*IF(K42=TRUE,1,0))=TRUE,"-",(VLOOKUP(P_TabEPNP11172530[[#This Row],[DESIGNATION]],DE_TabR[[Sloupec2]:[ON]],2,FALSE))/(VLOOKUP(P_TabEPNP11172530[[#This Row],[DESIGNATION]],DE_TabR[[Sloupec2]:[ON]],3,FALSE))/O_CapR*IF(K42=TRUE,1,0)) -> 0.6086538462 | D42: 0 | E42: =IF(ISERROR((VLOOKUP(P_TabEPNP11172530[[#This Row],[DESIGNATION]],DE_TabR[[Sloupec2]:[Sloupec4]],4,FALSE))*DE_EP*P_TabEPNP11172530[[#This Row],[ENERGY]]*IF(K42=TRUE,1,0))=TRUE,"-",(VLOOKUP(P_TabEPNP11172530[[#This Row],[DESIGNATION]],DE_TabR[[Sloupec2]:[Sloupec4]],4,FALSE))*DE_EP*P_TabEPNP11172530[[#This Row],[ENERGY]]*IF(K42=TRUE,1,0)) -> 0 | F42: 0 | G42: =IF(ISERROR((VLOOKUP(P_TabEPNP11172530[[#This Row],[DESIGNATION]],DE_TabR[[Sloupec2]:[Sloupec5]],5,FALSE))*DE_GP*P_TabEPNP11172530[[#This Row],[GAS]]*IF(K42=TRUE,1,0))=TRUE,"-",(VLOOKUP(P_TabEPNP11172530[[#This Row],[DESIGNATION]],DE_TabR[[Sloupec2]:[Sloupec5]],5,FALSE))*DE_GP*P_TabEPNP11172530[[#This Row],[GAS]]*IF(K42=TRUE,1,0)) -> 0 | H42: =IF(ISERROR(P_TabEPNP11172530[[#This Row],[DEPRECIATION]]+P_TabEPNP11172530[[#This Row],[ENERGY COSTS]]+P_TabEPNP11172530[[#This Row],[GAS COSTS]])=TRUE,0,P_TabEPNP11172530[[#This Row],[DEPRECIATION]]+P_TabEPNP11172530[[#This Row],[ENERGY COSTS]]+P_TabEPNP11172530[[#This Row],[GAS COSTS]]) -> 0.6086538462 | J42: 24 | K42: TRUE
B43: PLC | C43: =IF(ISERROR((VLOOKUP(P_TabEPNP11172530[[#This Row],[DESIGNATION]],DE_TabR[[Sloupec2]:[ON]],2,FALSE))/(VLOOKUP(P_TabEPNP11172530[[#This Row],[DESIGNATION]],DE_TabR[[Sloupec2]:[ON]],3,FALSE))/O_CapR*IF(K43=TRUE,1,0))=TRUE,"-",(VLOOKUP(P_TabEPNP11172530[[#This Row],[DESIGNATION]],DE_TabR[[Sloupec2]:[ON]],2,FALSE))/(VLOOKUP(P_TabEPNP11172530[[#This Row],[DESIGNATION]],DE_TabR[[Sloupec2]:[ON]],3,FALSE))/O_CapR*IF(K43=TRUE,1,0)) -> 1.495192308 | D43: 0 | E43: =IF(ISERROR((VLOOKUP(P_TabEPNP11172530[[#This Row],[DESIGNATION]],DE_TabR[[Sloupec2]:[Sloupec4]],4,FALSE))*DE_EP*P_TabEPNP11172530[[#This Row],[ENERGY]]*IF(K43=TRUE,1,0))=TRUE,"-",(VLOOKUP(P_TabEPNP11172530[[#This Row],[DESIGNATION]],DE_TabR[[Sloupec2]:[Sloupec4]],4,FALSE))*DE_EP*P_TabEPNP11172530[[#This Row],[ENERGY]]*IF(K43=TRUE,1,0)) -> 0 | F43: 0 | G43: =IF(ISERROR((VLOOKUP(P_TabEPNP11172530[[#This Row],[DESIGNATION]],DE_TabR[[Sloupec2]:[Sloupec5]],5,FALSE))*DE_GP*P_TabEPNP11172530[[#This Row],[GAS]]*IF(K43=TRUE,1,0))=TRUE,"-",(VLOOKUP(P_TabEPNP11172530[[#This Row],[DESIGNATION]],DE_TabR[[Sloupec2]:[Sloupec5]],5,FALSE))*DE_GP*P_TabEPNP11172530[[#This Row],[GAS]]*IF(K43=TRUE,1,0)) -> 0 | H43: =IF(ISERROR(P_TabEPNP11172530[[#This Row],[DEPRECIATION]]+P_TabEPNP11172530[[#This Row],[ENERGY COSTS]]+P_TabEPNP11172530[[#This Row],[GAS COSTS]])=TRUE,0,P_TabEPNP11172530[[#This Row],[DEPRECIATION]]+P_TabEPNP11172530[[#This Row],[ENERGY COSTS]]+P_TabEPNP11172530[[#This Row],[GAS COSTS]]) -> 1.495192308 | J43: 25 | K43: TRUE
B44: Software | C44: =IF(ISERROR((VLOOKUP(P_TabEPNP11172530[[#This Row],[DESIGNATION]],DE_TabR[[Sloupec2]:[ON]],2,FALSE))/(VLOOKUP(P_TabEPNP11172530[[#This Row],[DESIGNATION]],DE_TabR[[Sloupec2]:[ON]],3,FALSE))/O_CapR*IF(K44=TRUE,1,0))=TRUE,"-",(VLOOKUP(P_TabEPNP11172530[[#This Row],[DESIGNATION]],DE_TabR[[Sloupec2]:[ON]],2,FALSE))/(VLOOKUP(P_TabEPNP11172530[[#This Row],[DESIGNATION]],DE_TabR[[Sloupec2]:[ON]],3,FALSE))/O_CapR*IF(K44=TRUE,1,0)) -> 2.470192308 | D44: 0 | E44: =IF(ISERROR((VLOOKUP(P_TabEPNP11172530[[#This Row],[DESIGNATION]],DE_TabR[[Sloupec2]:[Sloupec4]],4,FALSE))*DE_EP*P_TabEPNP11172530[[#This Row],[ENERGY]]*IF(K44=TRUE,1,0))=TRUE,"-",(VLOOKUP(P_TabEPNP11172530[[#This Row],[DESIGNATION]],DE_TabR[[Sloupec2]:[Sloupec4]],4,FALSE))*DE_EP*P_TabEPNP11172530[[#This Row],[ENERGY]]*IF(K44=TRUE,1,0)) -> 0 | F44: 0 | G44: =IF(ISERROR((VLOOKUP(P_TabEPNP11172530[[#This Row],[DESIGNATION]],DE_TabR[[Sloupec2]:[Sloupec5]],5,FALSE))*DE_GP*P_TabEPNP11172530[[#This Row],[GAS]]*IF(K44=TRUE,1,0))=TRUE,"-",(VLOOKUP(P_TabEPNP11172530[[#This Row],[DESIGNATION]],DE_TabR[[Sloupec2]:[Sloupec5]],5,FALSE))*DE_GP*P_TabEPNP11172530[[#This Row],[GAS]]*IF(K44=TRUE,1,0)) -> 0 | H44: =IF(ISERROR(P_TabEPNP11172530[[#This Row],[DEPRECIATION]]+P_TabEPNP11172530[[#This Row],[ENERGY COSTS]]+P_TabEPNP11172530[[#This Row],[GAS COSTS]])=TRUE,0,P_TabEPNP11172530[[#This Row],[DEPRECIATION]]+P_TabEPNP11172530[[#This Row],[ENERGY COSTS]]+P_TabEPNP11172530[[#This Row],[GAS COSTS]]) -> 2.470192308 | J44: 26 | K44: TRUE
B45: DIWS | C45: =IF(ISERROR((VLOOKUP(P_TabEPNP11172530[[#This Row],[DESIGNATION]],DE_TabR[[Sloupec2]:[ON]],2,FALSE))/(VLOOKUP(P_TabEPNP11172530[[#This Row],[DESIGNATION]],DE_TabR[[Sloupec2]:[ON]],3,FALSE))/O_CapR*IF(K45=TRUE,1,0))=TRUE,"-",(VLOOKUP(P_TabEPNP11172530[[#This Row],[DESIGNATION]],DE_TabR[[Sloupec2]:[ON]],2,FALSE))/(VLOOKUP(P_TabEPNP11172530[[#This Row],[DESIGNATION]],DE_TabR[[Sloupec2]:[ON]],3,FALSE))/O_CapR*IF(K45=TRUE,1,0)) -> 4.998269231 | D45: 0 | E45: =IF(ISERROR((VLOOKUP(P_TabEPNP11172530[[#This Row],[DESIGNATION]],DE_TabR[[Sloupec2]:[Sloupec4]],4,FALSE))*DE_EP*P_TabEPNP11172530[[#This Row],[ENERGY]]*IF(K45=TRUE,1,0))=TRUE,"-",(VLOOKUP(P_TabEPNP11172530[[#This Row],[DESIGNATION]],DE_TabR[[Sloupec2]:[Sloupec4]],4,FALSE))*DE_EP*P_TabEPNP11172530[[#This Row],[ENERGY]]*IF(K45=TRUE,1,0)) -> 0 | F45: 0 | G45: =IF(ISERROR((VLOOKUP(P_TabEPNP11172530[[#This Row],[DESIGNATION]],DE_TabR[[Sloupec2]:[Sloupec5]],5,FALSE))*DE_GP*P_TabEPNP11172530[[#This Row],[GAS]]*IF(K45=TRUE,1,0))=TRUE,"-",(VLOOKUP(P_TabEPNP11172530[[#This Row],[DESIGNATION]],DE_TabR[[Sloupec2]:[Sloupec5]],5,FALSE))*DE_GP*P_TabEPNP11172530[[#This Row],[GAS]]*IF(K45=TRUE,1,0)) -> 0 | H45: =IF(ISERROR(P_TabEPNP11172530[[#This Row],[DEPRECIATION]]+P_TabEPNP11172530[[#This Row],[ENERGY COSTS]]+P_TabEPNP11172530[[#This Row],[GAS COSTS]])=TRUE,0,P_TabEPNP11172530[[#This Row],[DEPRECIATION]]+P_TabEPNP11172530[[#This Row],[ENERGY COSTS]]+P_TabEPNP11172530[[#This Row],[GAS COSTS]]) -> 4.998269231 | J45: 27 | K45: TRUE
B46: CWS | C46: =IF(ISERROR((VLOOKUP(P_TabEPNP11172530[[#This Row],[DESIGNATION]],DE_TabR[[Sloupec2]:[ON]],2,FALSE))/(VLOOKUP(P_TabEPNP11172530[[#This Row],[DESIGNATION]],DE_TabR[[Sloupec2]:[ON]],3,FALSE))/O_CapR*IF(K46=TRUE,1,0))=TRUE,"-",(VLOOKUP(P_TabEPNP11172530[[#This Row],[DESIGNATION]],DE_TabR[[Sloupec2]:[ON]],2,FALSE))/(VLOOKUP(P_TabEPNP11172530[[#This Row],[DESIGNATION]],DE_TabR[[Sloupec2]:[ON]],3,FALSE))/O_CapR*IF(K46=TRUE,1,0)) -> 3.899423077 | D46: 1 | E46: =IF(ISERROR((VLOOKUP(P_TabEPNP11172530[[#This Row],[DESIGNATION]],DE_TabR[[Sloupec2]:[Sloupec4]],4,FALSE))*DE_EP*P_TabEPNP11172530[[#This Row],[ENERGY]]*IF(K46=TRUE,1,0))=TRUE,"-",(VLOOKUP(P_TabEPNP11172530[[#This Row],[DESIGNATION]],DE_TabR[[Sloupec2]:[Sloupec4]],4,FALSE))*DE_EP*P_TabEPNP11172530[[#This Row],[ENERGY]]*IF(K46=TRUE,1,0)) -> 1.3195 | F46: 0 | G46: =IF(ISERROR((VLOOKUP(P_TabEPNP11172530[[#This Row],[DESIGNATION]],DE_TabR[[Sloupec2]:[Sloupec5]],5,FALSE))*DE_GP*P_TabEPNP11172530[[#This Row],[GAS]]*IF(K46=TRUE,1,0))=TRUE,"-",(VLOOKUP(P_TabEPNP11172530[[#This Row],[DESIGNATION]],DE_TabR[[Sloupec2]:[Sloupec5]],5,FALSE))*DE_GP*P_TabEPNP11172530[[#This Row],[GAS]]*IF(K46=TRUE,1,0)) -> 0 | H46: =IF(ISERROR(P_TabEPNP11172530[[#This Row],[DEPRECIATION]]+P_TabEPNP11172530[[#This Row],[ENERGY COSTS]]+P_TabEPNP11172530[[#This Row],[GAS COSTS]])=TRUE,0,P_TabEPNP11172530[[#This Row],[DEPRECIATION]]+P_TabEPNP11172530[[#This Row],[ENERGY COSTS]]+P_TabEPNP11172530[[#This Row],[GAS COSTS]]) -> 5.218923077 | J46: 28 | K46: TRUE
B47: Install | C47: =IF(ISERROR((VLOOKUP(P_TabEPNP11172530[[#This Row],[DESIGNATION]],DE_TabR[[Sloupec2]:[ON]],2,FALSE))/(VLOOKUP(P_TabEPNP11172530[[#This Row],[DESIGNATION]],DE_TabR[[Sloupec2]:[ON]],3,FALSE))/O_CapR*IF(K47=TRUE,1,0))=TRUE,"-",(VLOOKUP(P_TabEPNP11172530[[#This Row],[DESIGNATION]],DE_TabR[[Sloupec2]:[ON]],2,FALSE))/(VLOOKUP(P_TabEPNP11172530[[#This Row],[DESIGNATION]],DE_TabR[[Sloupec2]:[ON]],3,FALSE))/O_CapR*IF(K47=TRUE,1,0)) -> 6.41025641 | D47: 0 | E47: =IF(ISERROR((VLOOKUP(P_TabEPNP11172530[[#This Row],[DESIGNATION]],DE_TabR[[Sloupec2]:[Sloupec4]],4,FALSE))*DE_EP*P_TabEPNP11172530[[#This Row],[ENERGY]]*IF(K47=TRUE,1,0))=TRUE,"-",(VLOOKUP(P_TabEPNP11172530[[#This Row],[DESIGNATION]],DE_TabR[[Sloupec2]:[Sloupec4]],4,FALSE))*DE_EP*P_TabEPNP11172530[[#This Row],[ENERGY]]*IF(K47=TRUE,1,0)) -> 0 | F47: 0 | G47: =IF(ISERROR((VLOOKUP(P_TabEPNP11172530[[#This Row],[DESIGNATION]],DE_TabR[[Sloupec2]:[Sloupec5]],5,FALSE))*DE_GP*P_TabEPNP11172530[[#This Row],[GAS]]*IF(K47=TRUE,1,0))=TRUE,"-",(VLOOKUP(P_TabEPNP11172530[[#This Row],[DESIGNATION]],DE_TabR[[Sloupec2]:[Sloupec5]],5,FALSE))*DE_GP*P_TabEPNP11172530[[#This Row],[GAS]]*IF(K47=TRUE,1,0)) -> 0 | H47: =IF(ISERROR(P_TabEPNP11172530[[#This Row],[DEPRECIATION]]+P_TabEPNP11172530[[#This Row],[ENERGY COSTS]]+P_TabEPNP11172530[[#This Row],[GAS COSTS]])=TRUE,0,P_TabEPNP11172530[[#This Row],[DEPRECIATION]]+P_TabEPNP11172530[[#This Row],[ENERGY COSTS]]+P_TabEPNP11172530[[#This Row],[GAS COSTS]]) -> 6.41025641 | J47: 29 | K47: TRUE
B48: Neu-E | C48: =IF(ISERROR((VLOOKUP(P_TabEPNP11172530[[#This Row],[DESIGNATION]],DE_TabR[[Sloupec2]:[ON]],2,FALSE))/(VLOOKUP(P_TabEPNP11172530[[#This Row],[DESIGNATION]],DE_TabR[[Sloupec2]:[ON]],3,FALSE))/O_CapR*IF(K48=TRUE,1,0))=TRUE,"-",(VLOOKUP(P_TabEPNP11172530[[#This Row],[DESIGNATION]],DE_TabR[[Sloupec2]:[ON]],2,FALSE))/(VLOOKUP(P_TabEPNP11172530[[#This Row],[DESIGNATION]],DE_TabR[[Sloupec2]:[ON]],3,FALSE))/O_CapR*IF(K48=TRUE,1,0)) -> 0.6475160256 | D48: 0.067 | E48: =IF(ISERROR((VLOOKUP(P_TabEPNP11172530[[#This Row],[DESIGNATION]],DE_TabR[[Sloupec2]:[Sloupec4]],4,FALSE))*DE_EP*P_TabEPNP11172530[[#This Row],[ENERGY]]*IF(K48=TRUE,1,0))=TRUE,"-",(VLOOKUP(P_TabEPNP11172530[[#This Row],[DESIGNATION]],DE_TabR[[Sloupec2]:[Sloupec4]],4,FALSE))*DE_EP*P_TabEPNP11172530[[#This Row],[ENERGY]]*IF(K48=TRUE,1,0)) -> 0.013065 | F48: 0 | G48: =IF(ISERROR((VLOOKUP(P_TabEPNP11172530[[#This Row],[DESIGNATION]],DE_TabR[[Sloupec2]:[Sloupec5]],5,FALSE))*DE_GP*P_TabEPNP11172530[[#This Row],[GAS]]*IF(K48=TRUE,1,0))=TRUE,"-",(VLOOKUP(P_TabEPNP11172530[[#This Row],[DESIGNATION]],DE_TabR[[Sloupec2]:[Sloupec5]],5,FALSE))*DE_GP*P_TabEPNP11172530[[#This Row],[GAS]]*IF(K48=TRUE,1,0)) -> 0 | H48: =IF(ISERROR(P_TabEPNP11172530[[#This Row],[DEPRECIATION]]+P_TabEPNP11172530[[#This Row],[ENERGY COSTS]]+P_TabEPNP11172530[[#This Row],[GAS COSTS]])=TRUE,0,P_TabEPNP11172530[[#This Row],[DEPRECIATION]]+P_TabEPNP11172530[[#This Row],[ENERGY COSTS]]+P_TabEPNP11172530[[#This Row],[GAS COSTS]]) -> 0.6605810256 | J48: 30 | K48: TRUE
B49: P-108 | C49: =IF(ISERROR((VLOOKUP(P_TabEPNP11172530[[#This Row],[DESIGNATION]],DE_TabR[[Sloupec2]:[ON]],2,FALSE))/(VLOOKUP(P_TabEPNP11172530[[#This Row],[DESIGNATION]],DE_TabR[[Sloupec2]:[ON]],3,FALSE))/O_CapR*IF(K49=TRUE,1,0))=TRUE,"-",(VLOOKUP(P_TabEPNP11172530[[#This Row],[DESIGNATION]],DE_TabR[[Sloupec2]:[ON]],2,FALSE))/(VLOOKUP(P_TabEPNP11172530[[#This Row],[DESIGNATION]],DE_TabR[[Sloupec2]:[ON]],3,FALSE))/O_CapR*IF(K49=TRUE,1,0)) -> 7.260576923 | D49: 1 | E49: =IF(ISERROR((VLOOKUP(P_TabEPNP11172530[[#This Row],[DESIGNATION]],DE_TabR[[Sloupec2]:[Sloupec4]],4,FALSE))*DE_EP*P_TabEPNP11172530[[#This Row],[ENERGY]]*IF(K49=TRUE,1,0))=TRUE,"-",(VLOOKUP(P_TabEPNP11172530[[#This Row],[DESIGNATION]],DE_TabR[[Sloupec2]:[Sloupec4]],4,FALSE))*DE_EP*P_TabEPNP11172530[[#This Row],[ENERGY]]*IF(K49=TRUE,1,0)) -> 2.405 | F49: 0 | G49: =IF(ISERROR((VLOOKUP(P_TabEPNP11172530[[#This Row],[DESIGNATION]],DE_TabR[[Sloupec2]:[Sloupec5]],5,FALSE))*DE_GP*P_TabEPNP11172530[[#This Row],[GAS]]*IF(K49=TRUE,1,0))=TRUE,"-",(VLOOKUP(P_TabEPNP11172530[[#This Row],[DESIGNATION]],DE_TabR[[Sloupec2]:[Sloupec5]],5,FALSE))*DE_GP*P_TabEPNP11172530[[#This Row],[GAS]]*IF(K49=TRUE,1,0)) -> 0 | H49: =IF(ISERROR(P_TabEPNP11172530[[#This Row],[DEPRECIATION]]+P_TabEPNP11172530[[#This Row],[ENERGY COSTS]]+P_TabEPNP11172530[[#This Row],[GAS COSTS]])=TRUE,0,P_TabEPNP11172530[[#This Row],[DEPRECIATION]]+P_TabEPNP11172530[[#This Row],[ENERGY COSTS]]+P_TabEPNP11172530[[#This Row],[GAS COSTS]]) -> 9.665576923 | J49: 31 | K49: TRUE
B50: EQUIPMENT - HEATER | C50: =SUBTOTAL(109,P_TabEPNP11172530[DEPRECIATION]) -> 77.28533654 | E50: =SUBTOTAL(109,P_TabEPNP11172530[ENERGY COSTS]) -> 9.401665 | G50: =SUBTOTAL(109,P_TabEPNP11172530[GAS COSTS]) -> 0 | H50: =SUBTOTAL(109,P_TabEPNP11172530[COST]) -> 86.68700154 | J50: =(ROW(P_RemRowENP)) -> 50
B51: Heater + Contingency | C51: =IF(ISERROR(DE_TabH[Sloupec3]/DE_TabH[Sloupec4]/O_CapR)=TRUE,0,DE_TabH[Sloupec3]/DE_TabH[Sloupec4]/O_CapR) -> 44.18653846 | D51: 1 | E51: =IF(ISERROR(DE_TabH[Sloupec5]*DE_EP*D51)=TRUE,0,DE_TabH[Sloupec5]*DE_EP*D51) -> 0.52 | F51: 655 | G51: =IF(ISERROR(DE_GP*F51)=TRUE,0,DE_GP*F51) -> 28.165 | H51: =IF(ISERROR(C51+G51)=TRUE,0,C51+G51) -> 72.35153846
B52: ="The process contains "&SUBTOTAL(103,B19:B51)-1&" equipment(s)" -> The process contains 32 equipment(s) | C52: =C50+C51 -> 121.471875 | E52: =E50+E51 -> 9.921665 | G52: =G50+G51 -> 28.165 | H52: =H50+H51 -> 159.03854
B54: OUTPUTS NP | H54: OUTPUT DENSITY
B55: TiO2 (TiOS) (wt 2%) | C55: =IF(ISERROR(VLOOKUP(B55,DChO_Tab[[NAME]:[STB / UNSTB]],6,FALSE))=TRUE,"-",VLOOKUP(B55,DChO_Tab[[NAME]:[STB / UNSTB]],6,FALSE)) -> Unstable | D55: Output from NP | E55: 4500 | F55: Output NPs | G55: 59.9 | H55: 1000
B57: POST-PROCESS SEDIMENTATION | G57: SET UP TIME | H57: 0.1
B58: PROCESS FILTRATION
B59: UNIT (UN) | C59: FILTRATION TIME / UN | D59: WASHING STEPS | E59: NPs / UN | F59: Σ FILTRATION TIME / UN | G59: NPs / 1H NP | H59: Σ FILTR. TIME / 1H NP
D60: 2 | E60: =IF(ISERROR(P_OutputNPs*B60/E55)=TRUE,0,P_OutputNPs*B60/E55) -> 0 | F60: =IF(ISERROR(C60*D60)=TRUE,"-",C60*D60) -> 0 | G60: =P_OutputNPs -> 59.9 | H60: =IF(ISERROR(E55/B60*F60)=TRUE,0,E55/B60*F60) -> 0
B62: INPUTS
B63: NAME | C63: ID | D63: PRICE / UNIT | E63: TYPE | F63: CONSUPTION / 1 W. STEP | G63: COST / FILTRATION | H63: COST / KG | J63: =ROW(P_StartRowIPPF) -> 63
B64: =IF(B55="","-",B55) -> TiO2 (TiOS) (wt 2%) | C64: =IF(ISERROR(VLOOKUP(B64,DChO_Tab[[NAME]:[ID]],3,FALSE))=TRUE,"-",VLOOKUP(B64,DChO_Tab[[NAME]:[ID]],3,FALSE)) -> OCH00001 | D64: =IF(ISERROR(VLOOKUP('P3'!$C64,DChO_Tab[[ID]:[PRICE / UNIT]],7,FALSE))=TRUE,"-",VLOOKUP('P3'!$C64,DChO_Tab[[ID]:[PRICE / UNIT]],7,FALSE)) -> 0 | E64: =IF(ISERROR(VLOOKUP('P3'!$C64,DChO_Tab[[ID]:[TYPE]],3,FALSE))=TRUE,"-",VLOOKUP('P3'!$C64,DChO_Tab[[ID]:[TYPE]],3,FALSE)) -> Semi-product | F64: =B60 -> 0 | G64: =IF(ISERROR('P3'!$D64*'P3'!$F64),0,'P3'!$D64*'P3'!$F64) -> 0 | H64: =IF(ISERROR('P3'!$D64*'P3'!$F64/P_OutputNPs)=TRUE,0,'P3'!$D64*'P3'!$F64/P_OutputNPs) -> 0
B65: NAME | C65: ID | D65: PRICE / UNIT | E65: TYPE | F65: FLOW RATE | G65: Sloupec1 | H65: COST
C66: =IF(ISERROR(VLOOKUP(P_TabIPPPF13192733[[#This Row],[NAME]],DChI_Tab[],3,FALSE))=TRUE,"-",VLOOKUP(P_TabIPPPF13192733[[#This Row],[NAME]],DChI_Tab[],3,FALSE)) -> - | D66: =IF(ISERROR(VLOOKUP(P_TabIPPPF13192733[[#This Row],[ID]],DChI_Tab[[ID]:[PRICE / UNIT]],6,FALSE))=TRUE,"-",VLOOKUP(P_TabIPPPF13192733[[#This Row],[ID]],DChI_Tab[[ID]:[PRICE / UNIT]],6,FALSE)) -> - | E66: =IF(ISERROR(VLOOKUP(P_TabIPPPF13192733[[#This Row],[ID]],DChI_Tab[[ID]:[TYPE]],3,FALSE))=TRUE,"-",VLOOKUP(P_TabIPPPF13192733[[#This Row],[ID]],DChI_Tab[[ID]:[TYPE]],3,FALSE)) -> - | G66: =IF(ISERROR(P_TabIPPPF13192733[[#This Row],[PRICE / UNIT]]*P_TabIPPPF13192733[[#This Row],[FLOW RATE]]*P_WSteps)=TRUE,0,P_TabIPPPF13192733[[#This Row],[PRICE / UNIT]]*P_TabIPPPF13192733[[#This Row],[FLOW RATE]]*P_WSteps) -> 0 | H66: =IF(ISERROR(P_TabIPPPF13192733[[#This Row],[PRICE / UNIT]]*P_TabIPPPF13192733[[#This Row],[FLOW RATE]]*P_WSteps/P_OutputPPFUN)=TRUE,0,P_TabIPPPF13192733[[#This Row],[PRICE / UNIT]]*P_TabIPPPF13192733[[#This Row],[FLOW RATE]]*P_WSteps/P_OutputPPFUN) -> 0 | J66: 1
B67: ="The process contains "&SUBTOTAL(103,P_TabIPPPF13192733[NAME])&" input(s)" -> The process contains 0 input(s) | G67: =SUBTOTAL(109,P_TabIPPPF13192733[Sloupec1]) -> 0 | H67: =SUBTOTAL(109,P_TabIPPPF13192733[COST])+H64 -> 0 | J67: =ROW(P_RemRowIPPF) -> 67
B69: EQUIPMENT
B70: DESIGNATION | C70: NUMBER OF FILTRES | D70: Sloupec1 | E70: Sloupec2 | F70: Sloupec3 | G70: Sloupec4 | H70: DEPRECIATION / 1H NP | J70: =ROW(P_StartRowEPPF) -> 70
H71: =IF(ISERROR(VLOOKUP(P_TabEPPPF12182631[[#This Row],[DESIGNATION]],DE_TabP[[Sloupec2]:[Sloupec4]],2,FALSE)/VLOOKUP(P_TabEPPPF12182631[[#This Row],[DESIGNATION]],DE_TabP[[Sloupec2]:[Sloupec4]],3,FALSE)*P_TabEPPPF12182631[[#This Row],[NUMBER OF FILTRES]]*P_PPFTime)=TRUE,0,VLOOKUP(P_TabEPPPF12182631[[#This Row],[DESIGNATION]],DE_TabP[[Sloupec2]:[Sloupec4]],2,FALSE)/VLOOKUP(P_TabEPPPF12182631[[#This Row],[DESIGNATION]],DE_TabP[[Sloupec2]:[Sloupec4]],3,FALSE)*P_TabEPPPF12182631[[#This Row],[NUMBER OF FILTRES]]*P_PPFTime) -> 0 | J71: 1
B72: ="The process contains "&SUBTOTAL(103,P_TabEPPPF12182631[DESIGNATION])&" equipment(s)" -> The process contains 0 equipment(s) | H72: =SUBTOTAL(109,P_TabEPPPF12182631[DEPRECIATION / 1H NP]) -> 0 | J72: =ROW(P_RemRowEPPF) -> 72
B74: OUTPUTS PP SEDIMENTATION
B75: Dioxozirconium (wt 8%) | D75: Output NPs / 1H PPF | E75: =IF(ISERROR(P_OutputNPs/P_PPFTime)=TRUE,0,P_OutputNPs/P_PPFTime) -> 0
B77: PROCESS SEDIMENTATION
B78: VOLUME OF TANKS (UN) | C78: SEDIMENTATION TIME / UN | D78: WASHING STEPS | E78: NPs / UN | F78: Σ SEDIMENT. TIME / UN | G78: NPs / 1H NP | H78: Σ SEDIMENT. TIME / 1H NP
B79: 6000 | C79: 0.5 | D79: 2 | E79: =IF(ISERROR(P_OutputNPs*B79/E55)=TRUE,0,P_OutputNPs*B79/E55) -> 79.86666667 | F79: =IF(ISERROR(C79*D79)=TRUE,"-",C79*D79) -> 1 | G79: =P_OutputNPs -> 59.9 | H79: =IF(ISERROR(IF(E55>B79,CEILING(E55/B79,1),1)*F79)=TRUE,0,IF(E55>B79,CEILING(E55/B79,1),1)*F79) -> 1
B81: OUTPUTS PP SEDIMENTATION
B82: TiO2 (TiOS - 300C) (wt 8%) | C82: 500 | D82: Output NPs / 1H PPS | E82: =P_OutputNPs -> 59.9
B84: NEUTRALISATION
B85: INPUTS
B86: NAME | C86: ID | D86: PRICE / UNIT | E86: TYPE | F86: CONSUMPTION | H86: COST | J86: =ROW(P_StartRowNeu) -> 86
B87: Waste water (postprocessing) | C87: - | D87: 0 | E87: Water | F87: =IF(ISERROR(E55-IF(P_PPFiltr="Stable",C75,C82))=TRUE,"-",E55-IF(P_PPFiltr="Stable",C75,C82)) -> 4000 | H87: =D87*F87 -> 0
B88: Waste water (washing) | C88: - | D88: 0 | E88: Water | F88: 1000 | H88: =D88*F88 -> 0
B89: NAME | C89: ID | D89: PRICE / UNIT | E89: TYPE | F89: FLOW RATE | G89: - | H89: COST
B90: Sodium hydroxide Solution (32%) | C90: =IF(ISERROR(VLOOKUP(P_TabINeu14232834[[#This Row],[NAME]],DChI_Tab[],3,FALSE))=TRUE,"-",VLOOKUP(P_TabINeu14232834[[#This Row],[NAME]],DChI_Tab[],3,FALSE)) -> ICH00004 | D90: =IF(ISERROR(VLOOKUP(P_TabINeu14232834[[#This Row],[ID]],DChI_Tab[[ID]:[PRICE / UNIT]],6,FALSE))=TRUE,"-",VLOOKUP(P_TabINeu14232834[[#This Row],[ID]],DChI_Tab[[ID]:[PRICE / UNIT]],6,FALSE)) -> 0.239 | E90: =IF(ISERROR(VLOOKUP(P_TabINeu14232834[[#This Row],[ID]],DChI_Tab[[ID]:[TYPE]],3,FALSE))=TRUE,"-",VLOOKUP(P_TabINeu14232834[[#This Row],[ID]],DChI_Tab[[ID]:[TYPE]],3,FALSE)) -> Other | F90: 53.3344 | H90: =IF(ISERROR(P_TabINeu14232834[[#This Row],[PRICE / UNIT]]*P_TabINeu14232834[[#This Row],[FLOW RATE]]),0,P_TabINeu14232834[[#This Row],[PRICE / UNIT]]*P_TabINeu14232834[[#This Row],[FLOW RATE]]) -> 12.7469216 | J90: 1
B91: Waste water disposal | C91: =IF(ISERROR(VLOOKUP(P_TabINeu14232834[[#This Row],[NAME]],DChI_Tab[],3,FALSE))=TRUE,"-",VLOOKUP(P_TabINeu14232834[[#This Row],[NAME]],DChI_Tab[],3,FALSE)) -> ICH00002 | D91: =IF(ISERROR(VLOOKUP(P_TabINeu14232834[[#This Row],[ID]],DChI_Tab[[ID]:[PRICE / UNIT]],6,FALSE))=TRUE,"-",VLOOKUP(P_TabINeu14232834[[#This Row],[ID]],DChI_Tab[[ID]:[PRICE / UNIT]],6,FALSE)) -> 0.001815 | E91: =IF(ISERROR(VLOOKUP(P_TabINeu14232834[[#This Row],[ID]],DChI_Tab[[ID]:[TYPE]],3,FALSE))=TRUE,"-",VLOOKUP(P_TabINeu14232834[[#This Row],[ID]],DChI_Tab[[ID]:[TYPE]],3,FALSE)) -> Water | F91: 113.3356 | H91: =IF(ISERROR(P_TabINeu14232834[[#This Row],[PRICE / UNIT]]*P_TabINeu14232834[[#This Row],[FLOW RATE]]),0,P_TabINeu14232834[[#This Row],[PRICE / UNIT]]*P_TabINeu14232834[[#This Row],[FLOW RATE]]) -> 0.205704114 | J91: 2
B92: ="The process contains "&SUBTOTAL(103,P_TabINeu14232834[NAME])&" input(s)" -> The process contains 2 input(s) | H92: =SUBTOTAL(109,P_TabINeu14232834[COST]) -> 12.95262571 | J92: =ROW(P_RemRowNeu) -> 92

Sheet P4
B1: ="PROCESS " & VLOOKUP(J2,INDIRECT(ADDRESS(PM!PM_StartRow+1,7,1,1,"PM"),TRUE):INDIRECT(ADDRESS(PM!PM_RemRow-1,8,1,1,"PM"),TRUE),2,FALSE) -> PROCESS P00004 | J1: Proc | K1: Prod | L1: Type | M1: OutNPs | N1: OutPPF | O1: OutPPS | P1: Den | Q1: OutF/S | R1: TPPF/S | S1: STNP | T1: STPPF | U1: InNP | V1: DepNP | W1: En | X1: Gas | Y1: InPPF | Z1: DepPPF | AA1: InNeu
J2: P4 | K2: =IF(P_PPFiltr="Stable",B75,B82) -> TiO2 (TiOS - 250C) (wt 8%) | L2: =P_PPFiltr -> Unstable | M2: =G55 -> 59.9 | N2: =P_OutputPPFUN -> 0 | O2: =E79 -> 79.86666667 | P2: =IF(ISERROR(E55/H55*1000)=TRUE,0,E55/H55*1000) -> 4500 | Q2: =IF(P_PPFiltr="-",0,IF(P_PPFiltr="Stable",C75,C82)) -> 500 | R2: =IF(P_PPFiltr="-",0,IF(P_PPFiltr="Stable",H60,(E55*H79)/(B79*P_OutputNPs))) -> 0.01252086811 | S2: =H8 -> 0.1 | T2: =H57 -> 0.1 | U2: =P_TabIPNP1015242935[[#Totals],[COST]] -> 1035.016848 | V2: =C52 -> 121.471875 | W2: =E52 -> 9.921665 | X2: =G52 -> 22.575 | Y2: =P_TabIPPPF1319273339[[#Totals],[COST]] -> 0 | Z2: =P_TabEPPPF1218263138[[#Totals],[DEPRECIATION / 1H NP]] -> 0 | AA2: =P_TabINeu1423283440[[#Totals],[COST]] -> 12.95262571
J3: 10 | K3: 11 | L3: 12 | M3: 13 | N3: 14 | O3: 15 | P3: 16 | Q3: 17 | R3: 18 | S3: 19 | T3: 20 | U3: 21 | V3: 22 | W3: 23 | X3: 24 | Y3: 25 | Z3: 26 | AA3: 27
B4: =IF(ISERROR(VLOOKUP(J2,INDIRECT(ADDRESS(PM!PM_StartRow+1,7,1,1,"PM"),TRUE):INDIRECT(ADDRESS(PM!PM_RemRow-1,9,1,1,"PM"),TRUE),3,FALSE))=TRUE,"-",IF(VLOOKUP(J2,INDIRECT(ADDRESS(PM!PM_StartRow+1,7,1,1,"PM"),TRUE):INDIRECT(ADDRESS(PM!PM_RemRow-1,9,1,1,"PM"),TRUE),3,FALSE)=0,"-",VLOOKUP(J2,INDIRECT(ADDRESS(PM!PM_StartRow+1,7,1,1,"PM"),TRUE):INDIRECT(ADDRESS(PM!PM_RemRow-1,9,1,1,"PM"),TRUE),3,FALSE))) -> TiO2 - TiOS 250C
B8: NANO PRODUCTION | G8: SET UP TIME | H8: 0.1
B9: INPUTS
B10: NAME | C10: ID | D10: PRICE / UNIT | E10: TYPE | F10: FLOW RATE | G10: - | H10: COST | J10: =ROW(P_StartRowINP) -> 10
B11: Titanium oxysulfate | C11: =IF(ISERROR(VLOOKUP(P_TabIPNP1015242935[[#This Row],[NAME]],DChI_Tab[],3,FALSE))=TRUE,"-",VLOOKUP(P_TabIPNP1015242935[[#This Row],[NAME]],DChI_Tab[],3,FALSE)) -> ICH00015 | D11: =IF(ISERROR(VLOOKUP(P_TabIPNP1015242935[[#This Row],[ID]],DChI_Tab[[ID]:[PRICE / UNIT]],6,FALSE))=TRUE,"-",VLOOKUP(P_TabIPNP1015242935[[#This Row],[ID]],DChI_Tab[[ID]:[PRICE / UNIT]],6,FALSE)) -> 1.22 | E11: =IF(ISERROR(VLOOKUP(P_TabIPNP1015242935[[#This Row],[ID]],DChI_Tab[[ID]:[TYPE]],3,FALSE))=TRUE,"-",VLOOKUP(P_TabIPNP1015242935[[#This Row],[ID]],DChI_Tab[[ID]:[TYPE]],3,FALSE)) -> Precursor | F11: 799.65 | H11: =IF(ISERROR(P_TabIPNP1015242935[[#This Row],[PRICE / UNIT]]*P_TabIPNP1015242935[[#This Row],[FLOW RATE]]),0,P_TabIPNP1015242935[[#This Row],[PRICE / UNIT]]*P_TabIPNP1015242935[[#This Row],[FLOW RATE]]) -> 975.573 | J11: 1
B12: Dionised water | C12: =IF(ISERROR(VLOOKUP(P_TabIPNP1015242935[[#This Row],[NAME]],DChI_Tab[],3,FALSE))=TRUE,"-",VLOOKUP(P_TabIPNP1015242935[[#This Row],[NAME]],DChI_Tab[],3,FALSE)) -> ICH00001 | D12: =IF(ISERROR(VLOOKUP(P_TabIPNP1015242935[[#This Row],[ID]],DChI_Tab[[ID]:[PRICE / UNIT]],6,FALSE))=TRUE,"-",VLOOKUP(P_TabIPNP1015242935[[#This Row],[ID]],DChI_Tab[[ID]:[PRICE / UNIT]],6,FALSE)) -> 0.001815 | E12: =IF(ISERROR(VLOOKUP(P_TabIPNP1015242935[[#This Row],[ID]],DChI_Tab[[ID]:[TYPE]],3,FALSE))=TRUE,"-",VLOOKUP(P_TabIPNP1015242935[[#This Row],[ID]],DChI_Tab[[ID]:[TYPE]],3,FALSE)) -> Water | F12: 5592.1525 | H12: =IF(ISERROR(P_TabIPNP1015242935[[#This Row],[PRICE / UNIT]]*P_TabIPNP1015242935[[#This Row],[FLOW RATE]]),0,P_TabIPNP1015242935[[#This Row],[PRICE / UNIT]]*P_TabIPNP1015242935[[#This Row],[FLOW RATE]]) -> 10.14975679 | J12: 2
B13: Waste water disposal | C13: =IF(ISERROR(VLOOKUP(P_TabIPNP1015242935[[#This Row],[NAME]],DChI_Tab[],3,FALSE))=TRUE,"-",VLOOKUP(P_TabIPNP1015242935[[#This Row],[NAME]],DChI_Tab[],3,FALSE)) -> ICH00002 | D13: =IF(ISERROR(VLOOKUP(P_TabIPNP1015242935[[#This Row],[ID]],DChI_Tab[[ID]:[PRICE / UNIT]],6,FALSE))=TRUE,"-",VLOOKUP(P_TabIPNP1015242935[[#This Row],[ID]],DChI_Tab[[ID]:[PRICE / UNIT]],6,FALSE)) -> 0.001815 | E13: =IF(ISERROR(VLOOKUP(P_TabIPNP1015242935[[#This Row],[ID]],DChI_Tab[[ID]:[TYPE]],3,FALSE))=TRUE,"-",VLOOKUP(P_TabIPNP1015242935[[#This Row],[ID]],DChI_Tab[[ID]:[TYPE]],3,FALSE)) -> Water | F13: 5212.1 | H13: =IF(ISERROR(P_TabIPNP1015242935[[#This Row],[PRICE / UNIT]]*P_TabIPNP1015242935[[#This Row],[FLOW RATE]]),0,P_TabIPNP1015242935[[#This Row],[PRICE / UNIT]]*P_TabIPNP1015242935[[#This Row],[FLOW RATE]]) -> 9.4599615 | J13: 3
B14: Sodium hydroxide Solution (32%) | C14: =IF(ISERROR(VLOOKUP(P_TabIPNP1015242935[[#This Row],[NAME]],DChI_Tab[],3,FALSE))=TRUE,"-",VLOOKUP(P_TabIPNP1015242935[[#This Row],[NAME]],DChI_Tab[],3,FALSE)) -> ICH00004 | D14: =IF(ISERROR(VLOOKUP(P_TabIPNP1015242935[[#This Row],[ID]],DChI_Tab[[ID]:[PRICE / UNIT]],6,FALSE))=TRUE,"-",VLOOKUP(P_TabIPNP1015242935[[#This Row],[ID]],DChI_Tab[[ID]:[PRICE / UNIT]],6,FALSE)) -> 0.239 | E14: =IF(ISERROR(VLOOKUP(P_TabIPNP1015242935[[#This Row],[ID]],DChI_Tab[[ID]:[TYPE]],3,FALSE))=TRUE,"-",VLOOKUP(P_TabIPNP1015242935[[#This Row],[ID]],DChI_Tab[[ID]:[TYPE]],3,FALSE)) -> Other | F14: 166.67 | H14: =IF(ISERROR(P_TabIPNP1015242935[[#This Row],[PRICE / UNIT]]*P_TabIPNP1015242935[[#This Row],[FLOW RATE]]),0,P_TabIPNP1015242935[[#This Row],[PRICE / UNIT]]*P_TabIPNP1015242935[[#This Row],[FLOW RATE]]) -> 39.83413 | J14: 4
B15: ="The process contains "&SUBTOTAL(103,P_TabIPNP1015242935[NAME])&" input(s)" -> The process contains 4 input(s) | H15: =SUBTOTAL(109,P_TabIPNP1015242935[COST]) -> 1035.016848 | J15: =(ROW('P4'!B15)) -> 15
B17: EQUIPMENT
B18: DESIGNATION | C18: DEPRECIATION | D18: ENERGY | E18: ENERGY COSTS | F18: GAS | G18: GAS COSTS | H18: COST | J18: =ROW(P_StartRowENP) -> 18
B19: Fitt | C19: =IF(ISERROR((VLOOKUP(P_TabEPNP1117253036[[#This Row],[DESIGNATION]],DE_TabR[[Sloupec2]:[ON]],2,FALSE))/(VLOOKUP(P_TabEPNP1117253036[[#This Row],[DESIGNATION]],DE_TabR[[Sloupec2]:[ON]],3,FALSE))/O_CapR*IF(K19=TRUE,1,0))=TRUE,"-",(VLOOKUP(P_TabEPNP1117253036[[#This Row],[DESIGNATION]],DE_TabR[[Sloupec2]:[ON]],2,FALSE))/(VLOOKUP(P_TabEPNP1117253036[[#This Row],[DESIGNATION]],DE_TabR[[Sloupec2]:[ON]],3,FALSE))/O_CapR*IF(K19=TRUE,1,0)) -> 3.334115385 | D19: 0 | E19: =IF(ISERROR((VLOOKUP(P_TabEPNP1117253036[[#This Row],[DESIGNATION]],DE_TabR[[Sloupec2]:[Sloupec4]],4,FALSE))*DE_EP*P_TabEPNP1117253036[[#This Row],[ENERGY]]*IF(K19=TRUE,1,0))=TRUE,"-",(VLOOKUP(P_TabEPNP1117253036[[#This Row],[DESIGNATION]],DE_TabR[[Sloupec2]:[Sloupec4]],4,FALSE))*DE_EP*P_TabEPNP1117253036[[#This Row],[ENERGY]]*IF(K19=TRUE,1,0)) -> 0 | F19: 0 | G19: =IF(ISERROR((VLOOKUP(P_TabEPNP1117253036[[#This Row],[DESIGNATION]],DE_TabR[[Sloupec2]:[Sloupec5]],5,FALSE))*DE_GP*P_TabEPNP1117253036[[#This Row],[GAS]]*IF(K19=TRUE,1,0))=TRUE,"-",(VLOOKUP(P_TabEPNP1117253036[[#This Row],[DESIGNATION]],DE_TabR[[Sloupec2]:[Sloupec5]],5,FALSE))*DE_GP*P_TabEPNP1117253036[[#This Row],[GAS]]*IF(K19=TRUE,1,0)) -> 0 | H19: =IF(ISERROR(P_TabEPNP1117253036[[#This Row],[DEPRECIATION]]+P_TabEPNP1117253036[[#This Row],[ENERGY COSTS]]+P_TabEPNP1117253036[[#This Row],[GAS COSTS]])=TRUE,0,P_TabEPNP1117253036[[#This Row],[DEPRECIATION]]+P_TabEPNP1117253036[[#This Row],[ENERGY COSTS]]+P_TabEPNP1117253036[[#This Row],[GAS COSTS]]) -> 3.334115385 | J19: 1 | K19: TRUE
B20: PipeW | C20: =IF(ISERROR((VLOOKUP(P_TabEPNP1117253036[[#This Row],[DESIGNATION]],DE_TabR[[Sloupec2]:[ON]],2,FALSE))/(VLOOKUP(P_TabEPNP1117253036[[#This Row],[DESIGNATION]],DE_TabR[[Sloupec2]:[ON]],3,FALSE))/O_CapR*IF(K20=TRUE,1,0))=TRUE,"-",(VLOOKUP(P_TabEPNP1117253036[[#This Row],[DESIGNATION]],DE_TabR[[Sloupec2]:[ON]],2,FALSE))/(VLOOKUP(P_TabEPNP1117253036[[#This Row],[DESIGNATION]],DE_TabR[[Sloupec2]:[ON]],3,FALSE))/O_CapR*IF(K20=TRUE,1,0)) -> 2.547826923 | D20: 0 | E20: =IF(ISERROR((VLOOKUP(P_TabEPNP1117253036[[#This Row],[DESIGNATION]],DE_TabR[[Sloupec2]:[Sloupec4]],4,FALSE))*DE_EP*P_TabEPNP1117253036[[#This Row],[ENERGY]]*IF(K20=TRUE,1,0))=TRUE,"-",(VLOOKUP(P_TabEPNP1117253036[[#This Row],[DESIGNATION]],DE_TabR[[Sloupec2]:[Sloupec4]],4,FALSE))*DE_EP*P_TabEPNP1117253036[[#This Row],[ENERGY]]*IF(K20=TRUE,1,0)) -> 0 | F20: 0 | G20: =IF(ISERROR((VLOOKUP(P_TabEPNP1117253036[[#This Row],[DESIGNATION]],DE_TabR[[Sloupec2]:[Sloupec5]],5,FALSE))*DE_GP*P_TabEPNP1117253036[[#This Row],[GAS]]*IF(K20=TRUE,1,0))=TRUE,"-",(VLOOKUP(P_TabEPNP1117253036[[#This Row],[DESIGNATION]],DE_TabR[[Sloupec2]:[Sloupec5]],5,FALSE))*DE_GP*P_TabEPNP1117253036[[#This Row],[GAS]]*IF(K20=TRUE,1,0)) -> 0 | H20: =IF(ISERROR(P_TabEPNP1117253036[[#This Row],[DEPRECIATION]]+P_TabEPNP1117253036[[#This Row],[ENERGY COSTS]]+P_TabEPNP1117253036[[#This Row],[GAS COSTS]])=TRUE,0,P_TabEPNP1117253036[[#This Row],[DEPRECIATION]]+P_TabEPNP1117253036[[#This Row],[ENERGY COSTS]]+P_TabEPNP1117253036[[#This Row],[GAS COSTS]]) -> 2.547826923 | J20: 2 | K20: TRUE
B21: Svalves | C21: =IF(ISERROR((VLOOKUP(P_TabEPNP1117253036[[#This Row],[DESIGNATION]],DE_TabR[[Sloupec2]:[ON]],2,FALSE))/(VLOOKUP(P_TabEPNP1117253036[[#This Row],[DESIGNATION]],DE_TabR[[Sloupec2]:[ON]],3,FALSE))/O_CapR*IF(K21=TRUE,1,0))=TRUE,"-",(VLOOKUP(P_TabEPNP1117253036[[#This Row],[DESIGNATION]],DE_TabR[[Sloupec2]:[ON]],2,FALSE))/(VLOOKUP(P_TabEPNP1117253036[[#This Row],[DESIGNATION]],DE_TabR[[Sloupec2]:[ON]],3,FALSE))/O_CapR*IF(K21=TRUE,1,0)) -> 4.147392628 | D21: 1 | E21: =IF(ISERROR((VLOOKUP(P_TabEPNP1117253036[[#This Row],[DESIGNATION]],DE_TabR[[Sloupec2]:[Sloupec4]],4,FALSE))*DE_EP*P_TabEPNP1117253036[[#This Row],[ENERGY]]*IF(K21=TRUE,1,0))=TRUE,"-",(VLOOKUP(P_TabEPNP1117253036[[#This Row],[DESIGNATION]],DE_TabR[[Sloupec2]:[Sloupec4]],4,FALSE))*DE_EP*P_TabEPNP1117253036[[#This Row],[ENERGY]]*IF(K21=TRUE,1,0)) -> 0.286 | F21: 0 | G21: =IF(ISERROR((VLOOKUP(P_TabEPNP1117253036[[#This Row],[DESIGNATION]],DE_TabR[[Sloupec2]:[Sloupec5]],5,FALSE))*DE_GP*P_TabEPNP1117253036[[#This Row],[GAS]]*IF(K21=TRUE,1,0))=TRUE,"-",(VLOOKUP(P_TabEPNP1117253036[[#This Row],[DESIGNATION]],DE_TabR[[Sloupec2]:[Sloupec5]],5,FALSE))*DE_GP*P_TabEPNP1117253036[[#This Row],[GAS]]*IF(K21=TRUE,1,0)) -> 0 | H21: =IF(ISERROR(P_TabEPNP1117253036[[#This Row],[DEPRECIATION]]+P_TabEPNP1117253036[[#This Row],[ENERGY COSTS]]+P_TabEPNP1117253036[[#This Row],[GAS COSTS]])=TRUE,0,P_TabEPNP1117253036[[#This Row],[DEPRECIATION]]+P_TabEPNP1117253036[[#This Row],[ENERGY COSTS]]+P_TabEPNP1117253036[[#This Row],[GAS COSTS]]) -> 4.433392628 | J21: 3 | K21: TRUE
B22: Bvalves | C22: =IF(ISERROR((VLOOKUP(P_TabEPNP1117253036[[#This Row],[DESIGNATION]],DE_TabR[[Sloupec2]:[ON]],2,FALSE))/(VLOOKUP(P_TabEPNP1117253036[[#This Row],[DESIGNATION]],DE_TabR[[Sloupec2]:[ON]],3,FALSE))/O_CapR*IF(K22=TRUE,1,0))=TRUE,"-",(VLOOKUP(P_TabEPNP1117253036[[#This Row],[DESIGNATION]],DE_TabR[[Sloupec2]:[ON]],2,FALSE))/(VLOOKUP(P_TabEPNP1117253036[[#This Row],[DESIGNATION]],DE_TabR[[Sloupec2]:[ON]],3,FALSE))/O_CapR*IF(K22=TRUE,1,0)) -> 1.56650641 | D22: 0 | E22: =IF(ISERROR((VLOOKUP(P_TabEPNP1117253036[[#This Row],[DESIGNATION]],DE_TabR[[Sloupec2]:[Sloupec4]],4,FALSE))*DE_EP*P_TabEPNP1117253036[[#This Row],[ENERGY]]*IF(K22=TRUE,1,0))=TRUE,"-",(VLOOKUP(P_TabEPNP1117253036[[#This Row],[DESIGNATION]],DE_TabR[[Sloupec2]:[Sloupec4]],4,FALSE))*DE_EP*P_TabEPNP1117253036[[#This Row],[ENERGY]]*IF(K22=TRUE,1,0)) -> 0 | F22: 0 | G22: =IF(ISERROR((VLOOKUP(P_TabEPNP1117253036[[#This Row],[DESIGNATION]],DE_TabR[[Sloupec2]:[Sloupec5]],5,FALSE))*DE_GP*P_TabEPNP1117253036[[#This Row],[GAS]]*IF(K22=TRUE,1,0))=TRUE,"-",(VLOOKUP(P_TabEPNP1117253036[[#This Row],[DESIGNATION]],DE_TabR[[Sloupec2]:[Sloupec5]],5,FALSE))*DE_GP*P_TabEPNP1117253036[[#This Row],[GAS]]*IF(K22=TRUE,1,0)) -> 0 | H22: =IF(ISERROR(P_TabEPNP1117253036[[#This Row],[DEPRECIATION]]+P_TabEPNP1117253036[[#This Row],[ENERGY COSTS]]+P_TabEPNP1117253036[[#This Row],[GAS COSTS]])=TRUE,0,P_TabEPNP1117253036[[#This Row],[DEPRECIATION]]+P_TabEPNP1117253036[[#This Row],[ENERGY COSTS]]+P_TabEPNP1117253036[[#This Row],[GAS COSTS]]) -> 1.56650641 | J22: 4 | K22: TRUE
B23: Structure | C23: =IF(ISERROR((VLOOKUP(P_TabEPNP1117253036[[#This Row],[DESIGNATION]],DE_TabR[[Sloupec2]:[ON]],2,FALSE))/(VLOOKUP(P_TabEPNP1117253036[[#This Row],[DESIGNATION]],DE_TabR[[Sloupec2]:[ON]],3,FALSE))/O_CapR*IF(K23=TRUE,1,0))=TRUE,"-",(VLOOKUP(P_TabEPNP1117253036[[#This Row],[DESIGNATION]],DE_TabR[[Sloupec2]:[ON]],2,FALSE))/(VLOOKUP(P_TabEPNP1117253036[[#This Row],[DESIGNATION]],DE_TabR[[Sloupec2]:[ON]],3,FALSE))/O_CapR*IF(K23=TRUE,1,0)) -> 2.396153846 | D23: 0 | E23: =IF(ISERROR((VLOOKUP(P_TabEPNP1117253036[[#This Row],[DESIGNATION]],DE_TabR[[Sloupec2]:[Sloupec4]],4,FALSE))*DE_EP*P_TabEPNP1117253036[[#This Row],[ENERGY]]*IF(K23=TRUE,1,0))=TRUE,"-",(VLOOKUP(P_TabEPNP1117253036[[#This Row],[DESIGNATION]],DE_TabR[[Sloupec2]:[Sloupec4]],4,FALSE))*DE_EP*P_TabEPNP1117253036[[#This Row],[ENERGY]]*IF(K23=TRUE,1,0)) -> 0 | F23: 0 | G23: =IF(ISERROR((VLOOKUP(P_TabEPNP1117253036[[#This Row],[DESIGNATION]],DE_TabR[[Sloupec2]:[Sloupec5]],5,FALSE))*DE_GP*P_TabEPNP1117253036[[#This Row],[GAS]]*IF(K23=TRUE,1,0))=TRUE,"-",(VLOOKUP(P_TabEPNP1117253036[[#This Row],[DESIGNATION]],DE_TabR[[Sloupec2]:[Sloupec5]],5,FALSE))*DE_GP*P_TabEPNP1117253036[[#This Row],[GAS]]*IF(K23=TRUE,1,0)) -> 0 | H23: =IF(ISERROR(P_TabEPNP1117253036[[#This Row],[DEPRECIATION]]+P_TabEPNP1117253036[[#This Row],[ENERGY COSTS]]+P_TabEPNP1117253036[[#This Row],[GAS COSTS]])=TRUE,0,P_TabEPNP1117253036[[#This Row],[DEPRECIATION]]+P_TabEPNP1117253036[[#This Row],[ENERGY COSTS]]+P_TabEPNP1117253036[[#This Row],[GAS COSTS]]) -> 2.396153846 | J23: 5 | K23: TRUE
B24: Tanks | C24: =IF(ISERROR((VLOOKUP(P_TabEPNP1117253036[[#This Row],[DESIGNATION]],DE_TabR[[Sloupec2]:[ON]],2,FALSE))/(VLOOKUP(P_TabEPNP1117253036[[#This Row],[DESIGNATION]],DE_TabR[[Sloupec2]:[ON]],3,FALSE))/O_CapR*IF(K24=TRUE,1,0))=TRUE,"-",(VLOOKUP(P_TabEPNP1117253036[[#This Row],[DESIGNATION]],DE_TabR[[Sloupec2]:[ON]],2,FALSE))/(VLOOKUP(P_TabEPNP1117253036[[#This Row],[DESIGNATION]],DE_TabR[[Sloupec2]:[ON]],3,FALSE))/O_CapR*IF(K24=TRUE,1,0)) -> 3.430769231 | D24: 1 | E24: =IF(ISERROR((VLOOKUP(P_TabEPNP1117253036[[#This Row],[DESIGNATION]],DE_TabR[[Sloupec2]:[Sloupec4]],4,FALSE))*DE_EP*P_TabEPNP1117253036[[#This Row],[ENERGY]]*IF(K24=TRUE,1,0))=TRUE,"-",(VLOOKUP(P_TabEPNP1117253036[[#This Row],[DESIGNATION]],DE_TabR[[Sloupec2]:[Sloupec4]],4,FALSE))*DE_EP*P_TabEPNP1117253036[[#This Row],[ENERGY]]*IF(K24=TRUE,1,0)) -> 0.0325 | F24: 0 | G24: =IF(ISERROR((VLOOKUP(P_TabEPNP1117253036[[#This Row],[DESIGNATION]],DE_TabR[[Sloupec2]:[Sloupec5]],5,FALSE))*DE_GP*P_TabEPNP1117253036[[#This Row],[GAS]]*IF(K24=TRUE,1,0))=TRUE,"-",(VLOOKUP(P_TabEPNP1117253036[[#This Row],[DESIGNATION]],DE_TabR[[Sloupec2]:[Sloupec5]],5,FALSE))*DE_GP*P_TabEPNP1117253036[[#This Row],[GAS]]*IF(K24=TRUE,1,0)) -> 0 | H24: =IF(ISERROR(P_TabEPNP1117253036[[#This Row],[DEPRECIATION]]+P_TabEPNP1117253036[[#This Row],[ENERGY COSTS]]+P_TabEPNP1117253036[[#This Row],[GAS COSTS]])=TRUE,0,P_TabEPNP1117253036[[#This Row],[DEPRECIATION]]+P_TabEPNP1117253036[[#This Row],[ENERGY COSTS]]+P_TabEPNP1117253036[[#This Row],[GAS COSTS]]) -> 3.463269231 | J24: 6 | K24: TRUE
B25: Agitators | C25: =IF(ISERROR((VLOOKUP(P_TabEPNP1117253036[[#This Row],[DESIGNATION]],DE_TabR[[Sloupec2]:[ON]],2,FALSE))/(VLOOKUP(P_TabEPNP1117253036[[#This Row],[DESIGNATION]],DE_TabR[[Sloupec2]:[ON]],3,FALSE))/O_CapR*IF(K25=TRUE,1,0))=TRUE,"-",(VLOOKUP(P_TabEPNP1117253036[[#This Row],[DESIGNATION]],DE_TabR[[Sloupec2]:[ON]],2,FALSE))/(VLOOKUP(P_TabEPNP1117253036[[#This Row],[DESIGNATION]],DE_TabR[[Sloupec2]:[ON]],3,FALSE))/O_CapR*IF(K25=TRUE,1,0)) -> 0.4615384615 | D25: 0 | E25: =IF(ISERROR((VLOOKUP(P_TabEPNP1117253036[[#This Row],[DESIGNATION]],DE_TabR[[Sloupec2]:[Sloupec4]],4,FALSE))*DE_EP*P_TabEPNP1117253036[[#This Row],[ENERGY]]*IF(K25=TRUE,1,0))=TRUE,"-",(VLOOKUP(P_TabEPNP1117253036[[#This Row],[DESIGNATION]],DE_TabR[[Sloupec2]:[Sloupec4]],4,FALSE))*DE_EP*P_TabEPNP1117253036[[#This Row],[ENERGY]]*IF(K25=TRUE,1,0)) -> 0 | F25: 0 | G25: =IF(ISERROR((VLOOKUP(P_TabEPNP1117253036[[#This Row],[DESIGNATION]],DE_TabR[[Sloupec2]:[Sloupec5]],5,FALSE))*DE_GP*P_TabEPNP1117253036[[#This Row],[GAS]]*IF(K25=TRUE,1,0))=TRUE,"-",(VLOOKUP(P_TabEPNP1117253036[[#This Row],[DESIGNATION]],DE_TabR[[Sloupec2]:[Sloupec5]],5,FALSE))*DE_GP*P_TabEPNP1117253036[[#This Row],[GAS]]*IF(K25=TRUE,1,0)) -> 0 | H25: =IF(ISERROR(P_TabEPNP1117253036[[#This Row],[DEPRECIATION]]+P_TabEPNP1117253036[[#This Row],[ENERGY COSTS]]+P_TabEPNP1117253036[[#This Row],[GAS COSTS]])=TRUE,0,P_TabEPNP1117253036[[#This Row],[DEPRECIATION]]+P_TabEPNP1117253036[[#This Row],[ENERGY COSTS]]+P_TabEPNP1117253036[[#This Row],[GAS COSTS]]) -> 0.4615384615 | J25: 7 | K25: TRUE
B26: E-201 | C26: =IF(ISERROR((VLOOKUP(P_TabEPNP1117253036[[#This Row],[DESIGNATION]],DE_TabR[[Sloupec2]:[ON]],2,FALSE))/(VLOOKUP(P_TabEPNP1117253036[[#This Row],[DESIGNATION]],DE_TabR[[Sloupec2]:[ON]],3,FALSE))/O_CapR*IF(K26=TRUE,1,0))=TRUE,"-",(VLOOKUP(P_TabEPNP1117253036[[#This Row],[DESIGNATION]],DE_TabR[[Sloupec2]:[ON]],2,FALSE))/(VLOOKUP(P_TabEPNP1117253036[[#This Row],[DESIGNATION]],DE_TabR[[Sloupec2]:[ON]],3,FALSE))/O_CapR*IF(K26=TRUE,1,0)) -> 5.395833333 | D26: 0 | E26: =IF(ISERROR((VLOOKUP(P_TabEPNP1117253036[[#This Row],[DESIGNATION]],DE_TabR[[Sloupec2]:[Sloupec4]],4,FALSE))*DE_EP*P_TabEPNP1117253036[[#This Row],[ENERGY]]*IF(K26=TRUE,1,0))=TRUE,"-",(VLOOKUP(P_TabEPNP1117253036[[#This Row],[DESIGNATION]],DE_TabR[[Sloupec2]:[Sloupec4]],4,FALSE))*DE_EP*P_TabEPNP1117253036[[#This Row],[ENERGY]]*IF(K26=TRUE,1,0)) -> 0 | F26: 0 | G26: =IF(ISERROR((VLOOKUP(P_TabEPNP1117253036[[#This Row],[DESIGNATION]],DE_TabR[[Sloupec2]:[Sloupec5]],5,FALSE))*DE_GP*P_TabEPNP1117253036[[#This Row],[GAS]]*IF(K26=TRUE,1,0))=TRUE,"-",(VLOOKUP(P_TabEPNP1117253036[[#This Row],[DESIGNATION]],DE_TabR[[Sloupec2]:[Sloupec5]],5,FALSE))*DE_GP*P_TabEPNP1117253036[[#This Row],[GAS]]*IF(K26=TRUE,1,0)) -> 0 | H26: =IF(ISERROR(P_TabEPNP1117253036[[#This Row],[DEPRECIATION]]+P_TabEPNP1117253036[[#This Row],[ENERGY COSTS]]+P_TabEPNP1117253036[[#This Row],[GAS COSTS]])=TRUE,0,P_TabEPNP1117253036[[#This Row],[DEPRECIATION]]+P_TabEPNP1117253036[[#This Row],[ENERGY COSTS]]+P_TabEPNP1117253036[[#This Row],[GAS COSTS]]) -> 5.395833333 | J26: 8 | K26: TRUE
B27: E-310 | C27: =IF(ISERROR((VLOOKUP(P_TabEPNP1117253036[[#This Row],[DESIGNATION]],DE_TabR[[Sloupec2]:[ON]],2,FALSE))/(VLOOKUP(P_TabEPNP1117253036[[#This Row],[DESIGNATION]],DE_TabR[[Sloupec2]:[ON]],3,FALSE))/O_CapR*IF(K27=TRUE,1,0))=TRUE,"-",(VLOOKUP(P_TabEPNP1117253036[[#This Row],[DESIGNATION]],DE_TabR[[Sloupec2]:[ON]],2,FALSE))/(VLOOKUP(P_TabEPNP1117253036[[#This Row],[DESIGNATION]],DE_TabR[[Sloupec2]:[ON]],3,FALSE))/O_CapR*IF(K27=TRUE,1,0)) -> 4.312692308 | D27: 0 | E27: =IF(ISERROR((VLOOKUP(P_TabEPNP1117253036[[#This Row],[DESIGNATION]],DE_TabR[[Sloupec2]:[Sloupec4]],4,FALSE))*DE_EP*P_TabEPNP1117253036[[#This Row],[ENERGY]]*IF(K27=TRUE,1,0))=TRUE,"-",(VLOOKUP(P_TabEPNP1117253036[[#This Row],[DESIGNATION]],DE_TabR[[Sloupec2]:[Sloupec4]],4,FALSE))*DE_EP*P_TabEPNP1117253036[[#This Row],[ENERGY]]*IF(K27=TRUE,1,0)) -> 0 | F27: 0 | G27: =IF(ISERROR((VLOOKUP(P_TabEPNP1117253036[[#This Row],[DESIGNATION]],DE_TabR[[Sloupec2]:[Sloupec5]],5,FALSE))*DE_GP*P_TabEPNP1117253036[[#This Row],[GAS]]*IF(K27=TRUE,1,0))=TRUE,"-",(VLOOKUP(P_TabEPNP1117253036[[#This Row],[DESIGNATION]],DE_TabR[[Sloupec2]:[Sloupec5]],5,FALSE))*DE_GP*P_TabEPNP1117253036[[#This Row],[GAS]]*IF(K27=TRUE,1,0)) -> 0 | H27: =IF(ISERROR(P_TabEPNP1117253036[[#This Row],[DEPRECIATION]]+P_TabEPNP1117253036[[#This Row],[ENERGY COSTS]]+P_TabEPNP1117253036[[#This Row],[GAS COSTS]])=TRUE,0,P_TabEPNP1117253036[[#This Row],[DEPRECIATION]]+P_TabEPNP1117253036[[#This Row],[ENERGY COSTS]]+P_TabEPNP1117253036[[#This Row],[GAS COSTS]]) -> 4.312692308 | J27: 9 | K27: TRUE
B28: P-101 | C28: =IF(ISERROR((VLOOKUP(P_TabEPNP1117253036[[#This Row],[DESIGNATION]],DE_TabR[[Sloupec2]:[ON]],2,FALSE))/(VLOOKUP(P_TabEPNP1117253036[[#This Row],[DESIGNATION]],DE_TabR[[Sloupec2]:[ON]],3,FALSE))/O_CapR*IF(K28=TRUE,1,0))=TRUE,"-",(VLOOKUP(P_TabEPNP1117253036[[#This Row],[DESIGNATION]],DE_TabR[[Sloupec2]:[ON]],2,FALSE))/(VLOOKUP(P_TabEPNP1117253036[[#This Row],[DESIGNATION]],DE_TabR[[Sloupec2]:[ON]],3,FALSE))/O_CapR*IF(K28=TRUE,1,0)) -> 0.0575849359 | D28: 0.03 | E28: =IF(ISERROR((VLOOKUP(P_TabEPNP1117253036[[#This Row],[DESIGNATION]],DE_TabR[[Sloupec2]:[Sloupec4]],4,FALSE))*DE_EP*P_TabEPNP1117253036[[#This Row],[ENERGY]]*IF(K28=TRUE,1,0))=TRUE,"-",(VLOOKUP(P_TabEPNP1117253036[[#This Row],[DESIGNATION]],DE_TabR[[Sloupec2]:[Sloupec4]],4,FALSE))*DE_EP*P_TabEPNP1117253036[[#This Row],[ENERGY]]*IF(K28=TRUE,1,0)) -> 0.0156 | F28: 0 | G28: =IF(ISERROR((VLOOKUP(P_TabEPNP1117253036[[#This Row],[DESIGNATION]],DE_TabR[[Sloupec2]:[Sloupec5]],5,FALSE))*DE_GP*P_TabEPNP1117253036[[#This Row],[GAS]]*IF(K28=TRUE,1,0))=TRUE,"-",(VLOOKUP(P_TabEPNP1117253036[[#This Row],[DESIGNATION]],DE_TabR[[Sloupec2]:[Sloupec5]],5,FALSE))*DE_GP*P_TabEPNP1117253036[[#This Row],[GAS]]*IF(K28=TRUE,1,0)) -> 0 | H28: =IF(ISERROR(P_TabEPNP1117253036[[#This Row],[DEPRECIATION]]+P_TabEPNP1117253036[[#This Row],[ENERGY COSTS]]+P_TabEPNP1117253036[[#This Row],[GAS COSTS]])=TRUE,0,P_TabEPNP1117253036[[#This Row],[DEPRECIATION]]+P_TabEPNP1117253036[[#This Row],[ENERGY COSTS]]+P_TabEPNP1117253036[[#This Row],[GAS COSTS]]) -> 0.0731849359 | J28: 10 | K28: TRUE
B29: P-103 | C29: =IF(ISERROR((VLOOKUP(P_TabEPNP1117253036[[#This Row],[DESIGNATION]],DE_TabR[[Sloupec2]:[ON]],2,FALSE))/(VLOOKUP(P_TabEPNP1117253036[[#This Row],[DESIGNATION]],DE_TabR[[Sloupec2]:[ON]],3,FALSE))/O_CapR*IF(K29=TRUE,1,0))=TRUE,"-",(VLOOKUP(P_TabEPNP1117253036[[#This Row],[DESIGNATION]],DE_TabR[[Sloupec2]:[ON]],2,FALSE))/(VLOOKUP(P_TabEPNP1117253036[[#This Row],[DESIGNATION]],DE_TabR[[Sloupec2]:[ON]],3,FALSE))/O_CapR*IF(K29=TRUE,1,0)) -> 0.0575849359 | D29: 0 | E29: =IF(ISERROR((VLOOKUP(P_TabEPNP1117253036[[#This Row],[DESIGNATION]],DE_TabR[[Sloupec2]:[Sloupec4]],4,FALSE))*DE_EP*P_TabEPNP1117253036[[#This Row],[ENERGY]]*IF(K29=TRUE,1,0))=TRUE,"-",(VLOOKUP(P_TabEPNP1117253036[[#This Row],[DESIGNATION]],DE_TabR[[Sloupec2]:[Sloupec4]],4,FALSE))*DE_EP*P_TabEPNP1117253036[[#This Row],[ENERGY]]*IF(K29=TRUE,1,0)) -> 0 | F29: 0 | G29: =IF(ISERROR((VLOOKUP(P_TabEPNP1117253036[[#This Row],[DESIGNATION]],DE_TabR[[Sloupec2]:[Sloupec5]],5,FALSE))*DE_GP*P_TabEPNP1117253036[[#This Row],[GAS]]*IF(K29=TRUE,1,0))=TRUE,"-",(VLOOKUP(P_TabEPNP1117253036[[#This Row],[DESIGNATION]],DE_TabR[[Sloupec2]:[Sloupec5]],5,FALSE))*DE_GP*P_TabEPNP1117253036[[#This Row],[GAS]]*IF(K29=TRUE,1,0)) -> 0 | H29: =IF(ISERROR(P_TabEPNP1117253036[[#This Row],[DEPRECIATION]]+P_TabEPNP1117253036[[#This Row],[ENERGY COSTS]]+P_TabEPNP1117253036[[#This Row],[GAS COSTS]])=TRUE,0,P_TabEPNP1117253036[[#This Row],[DEPRECIATION]]+P_TabEPNP1117253036[[#This Row],[ENERGY COSTS]]+P_TabEPNP1117253036[[#This Row],[GAS COSTS]]) -> 0.0575849359 | J29: 11 | K29: TRUE
B30: P-105 | C30: =IF(ISERROR((VLOOKUP(P_TabEPNP1117253036[[#This Row],[DESIGNATION]],DE_TabR[[Sloupec2]:[ON]],2,FALSE))/(VLOOKUP(P_TabEPNP1117253036[[#This Row],[DESIGNATION]],DE_TabR[[Sloupec2]:[ON]],3,FALSE))/O_CapR*IF(K30=TRUE,1,0))=TRUE,"-",(VLOOKUP(P_TabEPNP1117253036[[#This Row],[DESIGNATION]],DE_TabR[[Sloupec2]:[ON]],2,FALSE))/(VLOOKUP(P_TabEPNP1117253036[[#This Row],[DESIGNATION]],DE_TabR[[Sloupec2]:[ON]],3,FALSE))/O_CapR*IF(K30=TRUE,1,0)) -> 0.0599775641 | D30: 0 | E30: =IF(ISERROR((VLOOKUP(P_TabEPNP1117253036[[#This Row],[DESIGNATION]],DE_TabR[[Sloupec2]:[Sloupec4]],4,FALSE))*DE_EP*P_TabEPNP1117253036[[#This Row],[ENERGY]]*IF(K30=TRUE,1,0))=TRUE,"-",(VLOOKUP(P_TabEPNP1117253036[[#This Row],[DESIGNATION]],DE_TabR[[Sloupec2]:[Sloupec4]],4,FALSE))*DE_EP*P_TabEPNP1117253036[[#This Row],[ENERGY]]*IF(K30=TRUE,1,0)) -> 0 | F30: 0 | G30: =IF(ISERROR((VLOOKUP(P_TabEPNP1117253036[[#This Row],[DESIGNATION]],DE_TabR[[Sloupec2]:[Sloupec5]],5,FALSE))*DE_GP*P_TabEPNP1117253036[[#This Row],[GAS]]*IF(K30=TRUE,1,0))=TRUE,"-",(VLOOKUP(P_TabEPNP1117253036[[#This Row],[DESIGNATION]],DE_TabR[[Sloupec2]:[Sloupec5]],5,FALSE))*DE_GP*P_TabEPNP1117253036[[#This Row],[GAS]]*IF(K30=TRUE,1,0)) -> 0 | H30: =IF(ISERROR(P_TabEPNP1117253036[[#This Row],[DEPRECIATION]]+P_TabEPNP1117253036[[#This Row],[ENERGY COSTS]]+P_TabEPNP1117253036[[#This Row],[GAS COSTS]])=TRUE,0,P_TabEPNP1117253036[[#This Row],[DEPRECIATION]]+P_TabEPNP1117253036[[#This Row],[ENERGY COSTS]]+P_TabEPNP1117253036[[#This Row],[GAS COSTS]]) -> 0.0599775641 | J30: 12 | K30: TRUE
B31: P-107 | C31: =IF(ISERROR((VLOOKUP(P_TabEPNP1117253036[[#This Row],[DESIGNATION]],DE_TabR[[Sloupec2]:[ON]],2,FALSE))/(VLOOKUP(P_TabEPNP1117253036[[#This Row],[DESIGNATION]],DE_TabR[[Sloupec2]:[ON]],3,FALSE))/O_CapR*IF(K31=TRUE,1,0))=TRUE,"-",(VLOOKUP(P_TabEPNP1117253036[[#This Row],[DESIGNATION]],DE_TabR[[Sloupec2]:[ON]],2,FALSE))/(VLOOKUP(P_TabEPNP1117253036[[#This Row],[DESIGNATION]],DE_TabR[[Sloupec2]:[ON]],3,FALSE))/O_CapR*IF(K31=TRUE,1,0)) -> 0.05936217949 | D31: 0 | E31: =IF(ISERROR((VLOOKUP(P_TabEPNP1117253036[[#This Row],[DESIGNATION]],DE_TabR[[Sloupec2]:[Sloupec4]],4,FALSE))*DE_EP*P_TabEPNP1117253036[[#This Row],[ENERGY]]*IF(K31=TRUE,1,0))=TRUE,"-",(VLOOKUP(P_TabEPNP1117253036[[#This Row],[DESIGNATION]],DE_TabR[[Sloupec2]:[Sloupec4]],4,FALSE))*DE_EP*P_TabEPNP1117253036[[#This Row],[ENERGY]]*IF(K31=TRUE,1,0)) -> 0 | F31: 0 | G31: =IF(ISERROR((VLOOKUP(P_TabEPNP1117253036[[#This Row],[DESIGNATION]],DE_TabR[[Sloupec2]:[Sloupec5]],5,FALSE))*DE_GP*P_TabEPNP1117253036[[#This Row],[GAS]]*IF(K31=TRUE,1,0))=TRUE,"-",(VLOOKUP(P_TabEPNP1117253036[[#This Row],[DESIGNATION]],DE_TabR[[Sloupec2]:[Sloupec5]],5,FALSE))*DE_GP*P_TabEPNP1117253036[[#This Row],[GAS]]*IF(K31=TRUE,1,0)) -> 0 | H31: =IF(ISERROR(P_TabEPNP1117253036[[#This Row],[DEPRECIATION]]+P_TabEPNP1117253036[[#This Row],[ENERGY COSTS]]+P_TabEPNP1117253036[[#This Row],[GAS COSTS]])=TRUE,0,P_TabEPNP1117253036[[#This Row],[DEPRECIATION]]+P_TabEPNP1117253036[[#This Row],[ENERGY COSTS]]+P_TabEPNP1117253036[[#This Row],[GAS COSTS]]) -> 0.05936217949 | J31: 13 | K31: TRUE
B32: P-301 | C32: =IF(ISERROR((VLOOKUP(P_TabEPNP1117253036[[#This Row],[DESIGNATION]],DE_TabR[[Sloupec2]:[ON]],2,FALSE))/(VLOOKUP(P_TabEPNP1117253036[[#This Row],[DESIGNATION]],DE_TabR[[Sloupec2]:[ON]],3,FALSE))/O_CapR*IF(K32=TRUE,1,0))=TRUE,"-",(VLOOKUP(P_TabEPNP1117253036[[#This Row],[DESIGNATION]],DE_TabR[[Sloupec2]:[ON]],2,FALSE))/(VLOOKUP(P_TabEPNP1117253036[[#This Row],[DESIGNATION]],DE_TabR[[Sloupec2]:[ON]],3,FALSE))/O_CapR*IF(K32=TRUE,1,0)) -> 0.1602564103 | D32: 1 | E32: =IF(ISERROR((VLOOKUP(P_TabEPNP1117253036[[#This Row],[DESIGNATION]],DE_TabR[[Sloupec2]:[Sloupec4]],4,FALSE))*DE_EP*P_TabEPNP1117253036[[#This Row],[ENERGY]]*IF(K32=TRUE,1,0))=TRUE,"-",(VLOOKUP(P_TabEPNP1117253036[[#This Row],[DESIGNATION]],DE_TabR[[Sloupec2]:[Sloupec4]],4,FALSE))*DE_EP*P_TabEPNP1117253036[[#This Row],[ENERGY]]*IF(K32=TRUE,1,0)) -> 0.52 | F32: 0 | G32: =IF(ISERROR((VLOOKUP(P_TabEPNP1117253036[[#This Row],[DESIGNATION]],DE_TabR[[Sloupec2]:[Sloupec5]],5,FALSE))*DE_GP*P_TabEPNP1117253036[[#This Row],[GAS]]*IF(K32=TRUE,1,0))=TRUE,"-",(VLOOKUP(P_TabEPNP1117253036[[#This Row],[DESIGNATION]],DE_TabR[[Sloupec2]:[Sloupec5]],5,FALSE))*DE_GP*P_TabEPNP1117253036[[#This Row],[GAS]]*IF(K32=TRUE,1,0)) -> 0 | H32: =IF(ISERROR(P_TabEPNP1117253036[[#This Row],[DEPRECIATION]]+P_TabEPNP1117253036[[#This Row],[ENERGY COSTS]]+P_TabEPNP1117253036[[#This Row],[GAS COSTS]])=TRUE,0,P_TabEPNP1117253036[[#This Row],[DEPRECIATION]]+P_TabEPNP1117253036[[#This Row],[ENERGY COSTS]]+P_TabEPNP1117253036[[#This Row],[GAS COSTS]]) -> 0.6802564103 | J32: 14 | K32: TRUE
B33: P-102 | C33: =IF(ISERROR((VLOOKUP(P_TabEPNP1117253036[[#This Row],[DESIGNATION]],DE_TabR[[Sloupec2]:[ON]],2,FALSE))/(VLOOKUP(P_TabEPNP1117253036[[#This Row],[DESIGNATION]],DE_TabR[[Sloupec2]:[ON]],3,FALSE))/O_CapR*IF(K33=TRUE,1,0))=TRUE,"-",(VLOOKUP(P_TabEPNP1117253036[[#This Row],[DESIGNATION]],DE_TabR[[Sloupec2]:[ON]],2,FALSE))/(VLOOKUP(P_TabEPNP1117253036[[#This Row],[DESIGNATION]],DE_TabR[[Sloupec2]:[ON]],3,FALSE))/O_CapR*IF(K33=TRUE,1,0)) -> 3.589423077 | D33: 1 | E33: =IF(ISERROR((VLOOKUP(P_TabEPNP1117253036[[#This Row],[DESIGNATION]],DE_TabR[[Sloupec2]:[Sloupec4]],4,FALSE))*DE_EP*P_TabEPNP1117253036[[#This Row],[ENERGY]]*IF(K33=TRUE,1,0))=TRUE,"-",(VLOOKUP(P_TabEPNP1117253036[[#This Row],[DESIGNATION]],DE_TabR[[Sloupec2]:[Sloupec4]],4,FALSE))*DE_EP*P_TabEPNP1117253036[[#This Row],[ENERGY]]*IF(K33=TRUE,1,0)) -> 2.405 | F33: 0 | G33: =IF(ISERROR((VLOOKUP(P_TabEPNP1117253036[[#This Row],[DESIGNATION]],DE_TabR[[Sloupec2]:[Sloupec5]],5,FALSE))*DE_GP*P_TabEPNP1117253036[[#This Row],[GAS]]*IF(K33=TRUE,1,0))=TRUE,"-",(VLOOKUP(P_TabEPNP1117253036[[#This Row],[DESIGNATION]],DE_TabR[[Sloupec2]:[Sloupec5]],5,FALSE))*DE_GP*P_TabEPNP1117253036[[#This Row],[GAS]]*IF(K33=TRUE,1,0)) -> 0 | H33: =IF(ISERROR(P_TabEPNP1117253036[[#This Row],[DEPRECIATION]]+P_TabEPNP1117253036[[#This Row],[ENERGY COSTS]]+P_TabEPNP1117253036[[#This Row],[GAS COSTS]])=TRUE,0,P_TabEPNP1117253036[[#This Row],[DEPRECIATION]]+P_TabEPNP1117253036[[#This Row],[ENERGY COSTS]]+P_TabEPNP1117253036[[#This Row],[GAS COSTS]]) -> 5.994423077 | J33: 15 | K33: TRUE
B34: P-104 | C34: =IF(ISERROR((VLOOKUP(P_TabEPNP1117253036[[#This Row],[DESIGNATION]],DE_TabR[[Sloupec2]:[ON]],2,FALSE))/(VLOOKUP(P_TabEPNP1117253036[[#This Row],[DESIGNATION]],DE_TabR[[Sloupec2]:[ON]],3,FALSE))/O_CapR*IF(K34=TRUE,1,0))=TRUE,"-",(VLOOKUP(P_TabEPNP1117253036[[#This Row],[DESIGNATION]],DE_TabR[[Sloupec2]:[ON]],2,FALSE))/(VLOOKUP(P_TabEPNP1117253036[[#This Row],[DESIGNATION]],DE_TabR[[Sloupec2]:[ON]],3,FALSE))/O_CapR*IF(K34=TRUE,1,0)) -> 3.589423077 | D34: 0 | E34: =IF(ISERROR((VLOOKUP(P_TabEPNP1117253036[[#This Row],[DESIGNATION]],DE_TabR[[Sloupec2]:[Sloupec4]],4,FALSE))*DE_EP*P_TabEPNP1117253036[[#This Row],[ENERGY]]*IF(K34=TRUE,1,0))=TRUE,"-",(VLOOKUP(P_TabEPNP1117253036[[#This Row],[DESIGNATION]],DE_TabR[[Sloupec2]:[Sloupec4]],4,FALSE))*DE_EP*P_TabEPNP1117253036[[#This Row],[ENERGY]]*IF(K34=TRUE,1,0)) -> 0 | F34: 0 | G34: =IF(ISERROR((VLOOKUP(P_TabEPNP1117253036[[#This Row],[DESIGNATION]],DE_TabR[[Sloupec2]:[Sloupec5]],5,FALSE))*DE_GP*P_TabEPNP1117253036[[#This Row],[GAS]]*IF(K34=TRUE,1,0))=TRUE,"-",(VLOOKUP(P_TabEPNP1117253036[[#This Row],[DESIGNATION]],DE_TabR[[Sloupec2]:[Sloupec5]],5,FALSE))*DE_GP*P_TabEPNP1117253036[[#This Row],[GAS]]*IF(K34=TRUE,1,0)) -> 0 | H34: =IF(ISERROR(P_TabEPNP1117253036[[#This Row],[DEPRECIATION]]+P_TabEPNP1117253036[[#This Row],[ENERGY COSTS]]+P_TabEPNP1117253036[[#This Row],[GAS COSTS]])=TRUE,0,P_TabEPNP1117253036[[#This Row],[DEPRECIATION]]+P_TabEPNP1117253036[[#This Row],[ENERGY COSTS]]+P_TabEPNP1117253036[[#This Row],[GAS COSTS]]) -> 3.589423077 | J34: 16 | K34: TRUE
B35: P-106 | C35: =IF(ISERROR((VLOOKUP(P_TabEPNP1117253036[[#This Row],[DESIGNATION]],DE_TabR[[Sloupec2]:[ON]],2,FALSE))/(VLOOKUP(P_TabEPNP1117253036[[#This Row],[DESIGNATION]],DE_TabR[[Sloupec2]:[ON]],3,FALSE))/O_CapR*IF(K35=TRUE,1,0))=TRUE,"-",(VLOOKUP(P_TabEPNP1117253036[[#This Row],[DESIGNATION]],DE_TabR[[Sloupec2]:[ON]],2,FALSE))/(VLOOKUP(P_TabEPNP1117253036[[#This Row],[DESIGNATION]],DE_TabR[[Sloupec2]:[ON]],3,FALSE))/O_CapR*IF(K35=TRUE,1,0)) -> 2.6625 | D35: 0 | E35: =IF(ISERROR((VLOOKUP(P_TabEPNP1117253036[[#This Row],[DESIGNATION]],DE_TabR[[Sloupec2]:[Sloupec4]],4,FALSE))*DE_EP*P_TabEPNP1117253036[[#This Row],[ENERGY]]*IF(K35=TRUE,1,0))=TRUE,"-",(VLOOKUP(P_TabEPNP1117253036[[#This Row],[DESIGNATION]],DE_TabR[[Sloupec2]:[Sloupec4]],4,FALSE))*DE_EP*P_TabEPNP1117253036[[#This Row],[ENERGY]]*IF(K35=TRUE,1,0)) -> 0 | F35: 0 | G35: =IF(ISERROR((VLOOKUP(P_TabEPNP1117253036[[#This Row],[DESIGNATION]],DE_TabR[[Sloupec2]:[Sloupec5]],5,FALSE))*DE_GP*P_TabEPNP1117253036[[#This Row],[GAS]]*IF(K35=TRUE,1,0))=TRUE,"-",(VLOOKUP(P_TabEPNP1117253036[[#This Row],[DESIGNATION]],DE_TabR[[Sloupec2]:[Sloupec5]],5,FALSE))*DE_GP*P_TabEPNP1117253036[[#This Row],[GAS]]*IF(K35=TRUE,1,0)) -> 0 | H35: =IF(ISERROR(P_TabEPNP1117253036[[#This Row],[DEPRECIATION]]+P_TabEPNP1117253036[[#This Row],[ENERGY COSTS]]+P_TabEPNP1117253036[[#This Row],[GAS COSTS]])=TRUE,0,P_TabEPNP1117253036[[#This Row],[DEPRECIATION]]+P_TabEPNP1117253036[[#This Row],[ENERGY COSTS]]+P_TabEPNP1117253036[[#This Row],[GAS COSTS]]) -> 2.6625 | J35: 17 | K35: TRUE
B36: P-108 | C36: =IF(ISERROR((VLOOKUP(P_TabEPNP1117253036[[#This Row],[DESIGNATION]],DE_TabR[[Sloupec2]:[ON]],2,FALSE))/(VLOOKUP(P_TabEPNP1117253036[[#This Row],[DESIGNATION]],DE_TabR[[Sloupec2]:[ON]],3,FALSE))/O_CapR*IF(K36=TRUE,1,0))=TRUE,"-",(VLOOKUP(P_TabEPNP1117253036[[#This Row],[DESIGNATION]],DE_TabR[[Sloupec2]:[ON]],2,FALSE))/(VLOOKUP(P_TabEPNP1117253036[[#This Row],[DESIGNATION]],DE_TabR[[Sloupec2]:[ON]],3,FALSE))/O_CapR*IF(K36=TRUE,1,0)) -> 7.260576923 | D36: 1 | E36: =IF(ISERROR((VLOOKUP(P_TabEPNP1117253036[[#This Row],[DESIGNATION]],DE_TabR[[Sloupec2]:[Sloupec4]],4,FALSE))*DE_EP*P_TabEPNP1117253036[[#This Row],[ENERGY]]*IF(K36=TRUE,1,0))=TRUE,"-",(VLOOKUP(P_TabEPNP1117253036[[#This Row],[DESIGNATION]],DE_TabR[[Sloupec2]:[Sloupec4]],4,FALSE))*DE_EP*P_TabEPNP1117253036[[#This Row],[ENERGY]]*IF(K36=TRUE,1,0)) -> 2.405 | F36: 0 | G36: =IF(ISERROR((VLOOKUP(P_TabEPNP1117253036[[#This Row],[DESIGNATION]],DE_TabR[[Sloupec2]:[Sloupec5]],5,FALSE))*DE_GP*P_TabEPNP1117253036[[#This Row],[GAS]]*IF(K36=TRUE,1,0))=TRUE,"-",(VLOOKUP(P_TabEPNP1117253036[[#This Row],[DESIGNATION]],DE_TabR[[Sloupec2]:[Sloupec5]],5,FALSE))*DE_GP*P_TabEPNP1117253036[[#This Row],[GAS]]*IF(K36=TRUE,1,0)) -> 0 | H36: =IF(ISERROR(P_TabEPNP1117253036[[#This Row],[DEPRECIATION]]+P_TabEPNP1117253036[[#This Row],[ENERGY COSTS]]+P_TabEPNP1117253036[[#This Row],[GAS COSTS]])=TRUE,0,P_TabEPNP1117253036[[#This Row],[DEPRECIATION]]+P_TabEPNP1117253036[[#This Row],[ENERGY COSTS]]+P_TabEPNP1117253036[[#This Row],[GAS COSTS]]) -> 9.665576923 | J36: 18 | K36: TRUE
B37: L-control | C37: =IF(ISERROR((VLOOKUP(P_TabEPNP1117253036[[#This Row],[DESIGNATION]],DE_TabR[[Sloupec2]:[ON]],2,FALSE))/(VLOOKUP(P_TabEPNP1117253036[[#This Row],[DESIGNATION]],DE_TabR[[Sloupec2]:[ON]],3,FALSE))/O_CapR*IF(K37=TRUE,1,0))=TRUE,"-",(VLOOKUP(P_TabEPNP1117253036[[#This Row],[DESIGNATION]],DE_TabR[[Sloupec2]:[ON]],2,FALSE))/(VLOOKUP(P_TabEPNP1117253036[[#This Row],[DESIGNATION]],DE_TabR[[Sloupec2]:[ON]],3,FALSE))/O_CapR*IF(K37=TRUE,1,0)) -> 0.4033461538 | D37: 0 | E37: =IF(ISERROR((VLOOKUP(P_TabEPNP1117253036[[#This Row],[DESIGNATION]],DE_TabR[[Sloupec2]:[Sloupec4]],4,FALSE))*DE_EP*P_TabEPNP1117253036[[#This Row],[ENERGY]]*IF(K37=TRUE,1,0))=TRUE,"-",(VLOOKUP(P_TabEPNP1117253036[[#This Row],[DESIGNATION]],DE_TabR[[Sloupec2]:[Sloupec4]],4,FALSE))*DE_EP*P_TabEPNP1117253036[[#This Row],[ENERGY]]*IF(K37=TRUE,1,0)) -> 0 | F37: 0 | G37: =IF(ISERROR((VLOOKUP(P_TabEPNP1117253036[[#This Row],[DESIGNATION]],DE_TabR[[Sloupec2]:[Sloupec5]],5,FALSE))*DE_GP*P_TabEPNP1117253036[[#This Row],[GAS]]*IF(K37=TRUE,1,0))=TRUE,"-",(VLOOKUP(P_TabEPNP1117253036[[#This Row],[DESIGNATION]],DE_TabR[[Sloupec2]:[Sloupec5]],5,FALSE))*DE_GP*P_TabEPNP1117253036[[#This Row],[GAS]]*IF(K37=TRUE,1,0)) -> 0 | H37: =IF(ISERROR(P_TabEPNP1117253036[[#This Row],[DEPRECIATION]]+P_TabEPNP1117253036[[#This Row],[ENERGY COSTS]]+P_TabEPNP1117253036[[#This Row],[GAS COSTS]])=TRUE,0,P_TabEPNP1117253036[[#This Row],[DEPRECIATION]]+P_TabEPNP1117253036[[#This Row],[ENERGY COSTS]]+P_TabEPNP1117253036[[#This Row],[GAS COSTS]]) -> 0.4033461538 | J37: 19 | K37: TRUE
B38: F-control | C38: =IF(ISERROR((VLOOKUP(P_TabEPNP1117253036[[#This Row],[DESIGNATION]],DE_TabR[[Sloupec2]:[ON]],2,FALSE))/(VLOOKUP(P_TabEPNP1117253036[[#This Row],[DESIGNATION]],DE_TabR[[Sloupec2]:[ON]],3,FALSE))/O_CapR*IF(K38=TRUE,1,0))=TRUE,"-",(VLOOKUP(P_TabEPNP1117253036[[#This Row],[DESIGNATION]],DE_TabR[[Sloupec2]:[ON]],2,FALSE))/(VLOOKUP(P_TabEPNP1117253036[[#This Row],[DESIGNATION]],DE_TabR[[Sloupec2]:[ON]],3,FALSE))/O_CapR*IF(K38=TRUE,1,0)) -> 2.240576923 | D38: 0 | E38: =IF(ISERROR((VLOOKUP(P_TabEPNP1117253036[[#This Row],[DESIGNATION]],DE_TabR[[Sloupec2]:[Sloupec4]],4,FALSE))*DE_EP*P_TabEPNP1117253036[[#This Row],[ENERGY]]*IF(K38=TRUE,1,0))=TRUE,"-",(VLOOKUP(P_TabEPNP1117253036[[#This Row],[DESIGNATION]],DE_TabR[[Sloupec2]:[Sloupec4]],4,FALSE))*DE_EP*P_TabEPNP1117253036[[#This Row],[ENERGY]]*IF(K38=TRUE,1,0)) -> 0 | F38: 0 | G38: =IF(ISERROR((VLOOKUP(P_TabEPNP1117253036[[#This Row],[DESIGNATION]],DE_TabR[[Sloupec2]:[Sloupec5]],5,FALSE))*DE_GP*P_TabEPNP1117253036[[#This Row],[GAS]]*IF(K38=TRUE,1,0))=TRUE,"-",(VLOOKUP(P_TabEPNP1117253036[[#This Row],[DESIGNATION]],DE_TabR[[Sloupec2]:[Sloupec5]],5,FALSE))*DE_GP*P_TabEPNP1117253036[[#This Row],[GAS]]*IF(K38=TRUE,1,0)) -> 0 | H38: =IF(ISERROR(P_TabEPNP1117253036[[#This Row],[DEPRECIATION]]+P_TabEPNP1117253036[[#This Row],[ENERGY COSTS]]+P_TabEPNP1117253036[[#This Row],[GAS COSTS]])=TRUE,0,P_TabEPNP1117253036[[#This Row],[DEPRECIATION]]+P_TabEPNP1117253036[[#This Row],[ENERGY COSTS]]+P_TabEPNP1117253036[[#This Row],[GAS COSTS]]) -> 2.240576923 | J38: 20 | K38: TRUE
B39: P-control | C39: =IF(ISERROR((VLOOKUP(P_TabEPNP1117253036[[#This Row],[DESIGNATION]],DE_TabR[[Sloupec2]:[ON]],2,FALSE))/(VLOOKUP(P_TabEPNP1117253036[[#This Row],[DESIGNATION]],DE_TabR[[Sloupec2]:[ON]],3,FALSE))/O_CapR*IF(K39=TRUE,1,0))=TRUE,"-",(VLOOKUP(P_TabEPNP1117253036[[#This Row],[DESIGNATION]],DE_TabR[[Sloupec2]:[ON]],2,FALSE))/(VLOOKUP(P_TabEPNP1117253036[[#This Row],[DESIGNATION]],DE_TabR[[Sloupec2]:[ON]],3,FALSE))/O_CapR*IF(K39=TRUE,1,0)) -> 0.4848926282 | D39: 0 | E39: =IF(ISERROR((VLOOKUP(P_TabEPNP1117253036[[#This Row],[DESIGNATION]],DE_TabR[[Sloupec2]:[Sloupec4]],4,FALSE))*DE_EP*P_TabEPNP1117253036[[#This Row],[ENERGY]]*IF(K39=TRUE,1,0))=TRUE,"-",(VLOOKUP(P_TabEPNP1117253036[[#This Row],[DESIGNATION]],DE_TabR[[Sloupec2]:[Sloupec4]],4,FALSE))*DE_EP*P_TabEPNP1117253036[[#This Row],[ENERGY]]*IF(K39=TRUE,1,0)) -> 0 | F39: 0 | G39: =IF(ISERROR((VLOOKUP(P_TabEPNP1117253036[[#This Row],[DESIGNATION]],DE_TabR[[Sloupec2]:[Sloupec5]],5,FALSE))*DE_GP*P_TabEPNP1117253036[[#This Row],[GAS]]*IF(K39=TRUE,1,0))=TRUE,"-",(VLOOKUP(P_TabEPNP1117253036[[#This Row],[DESIGNATION]],DE_TabR[[Sloupec2]:[Sloupec5]],5,FALSE))*DE_GP*P_TabEPNP1117253036[[#This Row],[GAS]]*IF(K39=TRUE,1,0)) -> 0 | H39: =IF(ISERROR(P_TabEPNP1117253036[[#This Row],[DEPRECIATION]]+P_TabEPNP1117253036[[#This Row],[ENERGY COSTS]]+P_TabEPNP1117253036[[#This Row],[GAS COSTS]])=TRUE,0,P_TabEPNP1117253036[[#This Row],[DEPRECIATION]]+P_TabEPNP1117253036[[#This Row],[ENERGY COSTS]]+P_TabEPNP1117253036[[#This Row],[GAS COSTS]]) -> 0.4848926282 | J39: 21 | K39: TRUE
B40: CP-1 | C40: =IF(ISERROR((VLOOKUP(P_TabEPNP1117253036[[#This Row],[DESIGNATION]],DE_TabR[[Sloupec2]:[ON]],2,FALSE))/(VLOOKUP(P_TabEPNP1117253036[[#This Row],[DESIGNATION]],DE_TabR[[Sloupec2]:[ON]],3,FALSE))/O_CapR*IF(K40=TRUE,1,0))=TRUE,"-",(VLOOKUP(P_TabEPNP1117253036[[#This Row],[DESIGNATION]],DE_TabR[[Sloupec2]:[ON]],2,FALSE))/(VLOOKUP(P_TabEPNP1117253036[[#This Row],[DESIGNATION]],DE_TabR[[Sloupec2]:[ON]],3,FALSE))/O_CapR*IF(K40=TRUE,1,0)) -> 0.6086538462 | D40: 0 | E40: =IF(ISERROR((VLOOKUP(P_TabEPNP1117253036[[#This Row],[DESIGNATION]],DE_TabR[[Sloupec2]:[Sloupec4]],4,FALSE))*DE_EP*P_TabEPNP1117253036[[#This Row],[ENERGY]]*IF(K40=TRUE,1,0))=TRUE,"-",(VLOOKUP(P_TabEPNP1117253036[[#This Row],[DESIGNATION]],DE_TabR[[Sloupec2]:[Sloupec4]],4,FALSE))*DE_EP*P_TabEPNP1117253036[[#This Row],[ENERGY]]*IF(K40=TRUE,1,0)) -> 0 | F40: 0 | G40: =IF(ISERROR((VLOOKUP(P_TabEPNP1117253036[[#This Row],[DESIGNATION]],DE_TabR[[Sloupec2]:[Sloupec5]],5,FALSE))*DE_GP*P_TabEPNP1117253036[[#This Row],[GAS]]*IF(K40=TRUE,1,0))=TRUE,"-",(VLOOKUP(P_TabEPNP1117253036[[#This Row],[DESIGNATION]],DE_TabR[[Sloupec2]:[Sloupec5]],5,FALSE))*DE_GP*P_TabEPNP1117253036[[#This Row],[GAS]]*IF(K40=TRUE,1,0)) -> 0 | H40: =IF(ISERROR(P_TabEPNP1117253036[[#This Row],[DEPRECIATION]]+P_TabEPNP1117253036[[#This Row],[ENERGY COSTS]]+P_TabEPNP1117253036[[#This Row],[GAS COSTS]])=TRUE,0,P_TabEPNP1117253036[[#This Row],[DEPRECIATION]]+P_TabEPNP1117253036[[#This Row],[ENERGY COSTS]]+P_TabEPNP1117253036[[#This Row],[GAS COSTS]]) -> 0.6086538462 | J40: 22 | K40: TRUE
B41: CP-2 | C41: =IF(ISERROR((VLOOKUP(P_TabEPNP1117253036[[#This Row],[DESIGNATION]],DE_TabR[[Sloupec2]:[ON]],2,FALSE))/(VLOOKUP(P_TabEPNP1117253036[[#This Row],[DESIGNATION]],DE_TabR[[Sloupec2]:[ON]],3,FALSE))/O_CapR*IF(K41=TRUE,1,0))=TRUE,"-",(VLOOKUP(P_TabEPNP1117253036[[#This Row],[DESIGNATION]],DE_TabR[[Sloupec2]:[ON]],2,FALSE))/(VLOOKUP(P_TabEPNP1117253036[[#This Row],[DESIGNATION]],DE_TabR[[Sloupec2]:[ON]],3,FALSE))/O_CapR*IF(K41=TRUE,1,0)) -> 0.6682692308 | D41: 0 | E41: =IF(ISERROR((VLOOKUP(P_TabEPNP1117253036[[#This Row],[DESIGNATION]],DE_TabR[[Sloupec2]:[Sloupec4]],4,FALSE))*DE_EP*P_TabEPNP1117253036[[#This Row],[ENERGY]]*IF(K41=TRUE,1,0))=TRUE,"-",(VLOOKUP(P_TabEPNP1117253036[[#This Row],[DESIGNATION]],DE_TabR[[Sloupec2]:[Sloupec4]],4,FALSE))*DE_EP*P_TabEPNP1117253036[[#This Row],[ENERGY]]*IF(K41=TRUE,1,0)) -> 0 | F41: 0 | G41: =IF(ISERROR((VLOOKUP(P_TabEPNP1117253036[[#This Row],[DESIGNATION]],DE_TabR[[Sloupec2]:[Sloupec5]],5,FALSE))*DE_GP*P_TabEPNP1117253036[[#This Row],[GAS]]*IF(K41=TRUE,1,0))=TRUE,"-",(VLOOKUP(P_TabEPNP1117253036[[#This Row],[DESIGNATION]],DE_TabR[[Sloupec2]:[Sloupec5]],5,FALSE))*DE_GP*P_TabEPNP1117253036[[#This Row],[GAS]]*IF(K41=TRUE,1,0)) -> 0 | H41: =IF(ISERROR(P_TabEPNP1117253036[[#This Row],[DEPRECIATION]]+P_TabEPNP1117253036[[#This Row],[ENERGY COSTS]]+P_TabEPNP1117253036[[#This Row],[GAS COSTS]])=TRUE,0,P_TabEPNP1117253036[[#This Row],[DEPRECIATION]]+P_TabEPNP1117253036[[#This Row],[ENERGY COSTS]]+P_TabEPNP1117253036[[#This Row],[GAS COSTS]]) -> 0.6682692308 | J41: 23 | K41: TRUE
B42: CP-3 | C42: =IF(ISERROR((VLOOKUP(P_TabEPNP1117253036[[#This Row],[DESIGNATION]],DE_TabR[[Sloupec2]:[ON]],2,FALSE))/(VLOOKUP(P_TabEPNP1117253036[[#This Row],[DESIGNATION]],DE_TabR[[Sloupec2]:[ON]],3,FALSE))/O_CapR*IF(K42=TRUE,1,0))=TRUE,"-",(VLOOKUP(P_TabEPNP1117253036[[#This Row],[DESIGNATION]],DE_TabR[[Sloupec2]:[ON]],2,FALSE))/(VLOOKUP(P_TabEPNP1117253036[[#This Row],[DESIGNATION]],DE_TabR[[Sloupec2]:[ON]],3,FALSE))/O_CapR*IF(K42=TRUE,1,0)) -> 0.6086538462 | D42: 0 | E42: =IF(ISERROR((VLOOKUP(P_TabEPNP1117253036[[#This Row],[DESIGNATION]],DE_TabR[[Sloupec2]:[Sloupec4]],4,FALSE))*DE_EP*P_TabEPNP1117253036[[#This Row],[ENERGY]]*IF(K42=TRUE,1,0))=TRUE,"-",(VLOOKUP(P_TabEPNP1117253036[[#This Row],[DESIGNATION]],DE_TabR[[Sloupec2]:[Sloupec4]],4,FALSE))*DE_EP*P_TabEPNP1117253036[[#This Row],[ENERGY]]*IF(K42=TRUE,1,0)) -> 0 | F42: 0 | G42: =IF(ISERROR((VLOOKUP(P_TabEPNP1117253036[[#This Row],[DESIGNATION]],DE_TabR[[Sloupec2]:[Sloupec5]],5,FALSE))*DE_GP*P_TabEPNP1117253036[[#This Row],[GAS]]*IF(K42=TRUE,1,0))=TRUE,"-",(VLOOKUP(P_TabEPNP1117253036[[#This Row],[DESIGNATION]],DE_TabR[[Sloupec2]:[Sloupec5]],5,FALSE))*DE_GP*P_TabEPNP1117253036[[#This Row],[GAS]]*IF(K42=TRUE,1,0)) -> 0 | H42: =IF(ISERROR(P_TabEPNP1117253036[[#This Row],[DEPRECIATION]]+P_TabEPNP1117253036[[#This Row],[ENERGY COSTS]]+P_TabEPNP1117253036[[#This Row],[GAS COSTS]])=TRUE,0,P_TabEPNP1117253036[[#This Row],[DEPRECIATION]]+P_TabEPNP1117253036[[#This Row],[ENERGY COSTS]]+P_TabEPNP1117253036[[#This Row],[GAS COSTS]]) -> 0.6086538462 | J42: 24 | K42: TRUE
B43: PLC | C43: =IF(ISERROR((VLOOKUP(P_TabEPNP1117253036[[#This Row],[DESIGNATION]],DE_TabR[[Sloupec2]:[ON]],2,FALSE))/(VLOOKUP(P_TabEPNP1117253036[[#This Row],[DESIGNATION]],DE_TabR[[Sloupec2]:[ON]],3,FALSE))/O_CapR*IF(K43=TRUE,1,0))=TRUE,"-",(VLOOKUP(P_TabEPNP1117253036[[#This Row],[DESIGNATION]],DE_TabR[[Sloupec2]:[ON]],2,FALSE))/(VLOOKUP(P_TabEPNP1117253036[[#This Row],[DESIGNATION]],DE_TabR[[Sloupec2]:[ON]],3,FALSE))/O_CapR*IF(K43=TRUE,1,0)) -> 1.495192308 | D43: 0 | E43: =IF(ISERROR((VLOOKUP(P_TabEPNP1117253036[[#This Row],[DESIGNATION]],DE_TabR[[Sloupec2]:[Sloupec4]],4,FALSE))*DE_EP*P_TabEPNP1117253036[[#This Row],[ENERGY]]*IF(K43=TRUE,1,0))=TRUE,"-",(VLOOKUP(P_TabEPNP1117253036[[#This Row],[DESIGNATION]],DE_TabR[[Sloupec2]:[Sloupec4]],4,FALSE))*DE_EP*P_TabEPNP1117253036[[#This Row],[ENERGY]]*IF(K43=TRUE,1,0)) -> 0 | F43: 0 | G43: =IF(ISERROR((VLOOKUP(P_TabEPNP1117253036[[#This Row],[DESIGNATION]],DE_TabR[[Sloupec2]:[Sloupec5]],5,FALSE))*DE_GP*P_TabEPNP1117253036[[#This Row],[GAS]]*IF(K43=TRUE,1,0))=TRUE,"-",(VLOOKUP(P_TabEPNP1117253036[[#This Row],[DESIGNATION]],DE_TabR[[Sloupec2]:[Sloupec5]],5,FALSE))*DE_GP*P_TabEPNP1117253036[[#This Row],[GAS]]*IF(K43=TRUE,1,0)) -> 0 | H43: =IF(ISERROR(P_TabEPNP1117253036[[#This Row],[DEPRECIATION]]+P_TabEPNP1117253036[[#This Row],[ENERGY COSTS]]+P_TabEPNP1117253036[[#This Row],[GAS COSTS]])=TRUE,0,P_TabEPNP1117253036[[#This Row],[DEPRECIATION]]+P_TabEPNP1117253036[[#This Row],[ENERGY COSTS]]+P_TabEPNP1117253036[[#This Row],[GAS COSTS]]) -> 1.495192308 | J43: 25 | K43: TRUE
B44: Software | C44: =IF(ISERROR((VLOOKUP(P_TabEPNP1117253036[[#This Row],[DESIGNATION]],DE_TabR[[Sloupec2]:[ON]],2,FALSE))/(VLOOKUP(P_TabEPNP1117253036[[#This Row],[DESIGNATION]],DE_TabR[[Sloupec2]:[ON]],3,FALSE))/O_CapR*IF(K44=TRUE,1,0))=TRUE,"-",(VLOOKUP(P_TabEPNP1117253036[[#This Row],[DESIGNATION]],DE_TabR[[Sloupec2]:[ON]],2,FALSE))/(VLOOKUP(P_TabEPNP1117253036[[#This Row],[DESIGNATION]],DE_TabR[[Sloupec2]:[ON]],3,FALSE))/O_CapR*IF(K44=TRUE,1,0)) -> 2.470192308 | D44: 0 | E44: =IF(ISERROR((VLOOKUP(P_TabEPNP1117253036[[#This Row],[DESIGNATION]],DE_TabR[[Sloupec2]:[Sloupec4]],4,FALSE))*DE_EP*P_TabEPNP1117253036[[#This Row],[ENERGY]]*IF(K44=TRUE,1,0))=TRUE,"-",(VLOOKUP(P_TabEPNP1117253036[[#This Row],[DESIGNATION]],DE_TabR[[Sloupec2]:[Sloupec4]],4,FALSE))*DE_EP*P_TabEPNP1117253036[[#This Row],[ENERGY]]*IF(K44=TRUE,1,0)) -> 0 | F44: 0 | G44: =IF(ISERROR((VLOOKUP(P_TabEPNP1117253036[[#This Row],[DESIGNATION]],DE_TabR[[Sloupec2]:[Sloupec5]],5,FALSE))*DE_GP*P_TabEPNP1117253036[[#This Row],[GAS]]*IF(K44=TRUE,1,0))=TRUE,"-",(VLOOKUP(P_TabEPNP1117253036[[#This Row],[DESIGNATION]],DE_TabR[[Sloupec2]:[Sloupec5]],5,FALSE))*DE_GP*P_TabEPNP1117253036[[#This Row],[GAS]]*IF(K44=TRUE,1,0)) -> 0 | H44: =IF(ISERROR(P_TabEPNP1117253036[[#This Row],[DEPRECIATION]]+P_TabEPNP1117253036[[#This Row],[ENERGY COSTS]]+P_TabEPNP1117253036[[#This Row],[GAS COSTS]])=TRUE,0,P_TabEPNP1117253036[[#This Row],[DEPRECIATION]]+P_TabEPNP1117253036[[#This Row],[ENERGY COSTS]]+P_TabEPNP1117253036[[#This Row],[GAS COSTS]]) -> 2.470192308 | J44: 26 | K44: TRUE
B45: DIWS | C45: =IF(ISERROR((VLOOKUP(P_TabEPNP1117253036[[#This Row],[DESIGNATION]],DE_TabR[[Sloupec2]:[ON]],2,FALSE))/(VLOOKUP(P_TabEPNP1117253036[[#This Row],[DESIGNATION]],DE_TabR[[Sloupec2]:[ON]],3,FALSE))/O_CapR*IF(K45=TRUE,1,0))=TRUE,"-",(VLOOKUP(P_TabEPNP1117253036[[#This Row],[DESIGNATION]],DE_TabR[[Sloupec2]:[ON]],2,FALSE))/(VLOOKUP(P_TabEPNP1117253036[[#This Row],[DESIGNATION]],DE_TabR[[Sloupec2]:[ON]],3,FALSE))/O_CapR*IF(K45=TRUE,1,0)) -> 4.998269231 | D45: 0 | E45: =IF(ISERROR((VLOOKUP(P_TabEPNP1117253036[[#This Row],[DESIGNATION]],DE_TabR[[Sloupec2]:[Sloupec4]],4,FALSE))*DE_EP*P_TabEPNP1117253036[[#This Row],[ENERGY]]*IF(K45=TRUE,1,0))=TRUE,"-",(VLOOKUP(P_TabEPNP1117253036[[#This Row],[DESIGNATION]],DE_TabR[[Sloupec2]:[Sloupec4]],4,FALSE))*DE_EP*P_TabEPNP1117253036[[#This Row],[ENERGY]]*IF(K45=TRUE,1,0)) -> 0 | F45: 0 | G45: =IF(ISERROR((VLOOKUP(P_TabEPNP1117253036[[#This Row],[DESIGNATION]],DE_TabR[[Sloupec2]:[Sloupec5]],5,FALSE))*DE_GP*P_TabEPNP1117253036[[#This Row],[GAS]]*IF(K45=TRUE,1,0))=TRUE,"-",(VLOOKUP(P_TabEPNP1117253036[[#This Row],[DESIGNATION]],DE_TabR[[Sloupec2]:[Sloupec5]],5,FALSE))*DE_GP*P_TabEPNP1117253036[[#This Row],[GAS]]*IF(K45=TRUE,1,0)) -> 0 | H45: =IF(ISERROR(P_TabEPNP1117253036[[#This Row],[DEPRECIATION]]+P_TabEPNP1117253036[[#This Row],[ENERGY COSTS]]+P_TabEPNP1117253036[[#This Row],[GAS COSTS]])=TRUE,0,P_TabEPNP1117253036[[#This Row],[DEPRECIATION]]+P_TabEPNP1117253036[[#This Row],[ENERGY COSTS]]+P_TabEPNP1117253036[[#This Row],[GAS COSTS]]) -> 4.998269231 | J45: 27 | K45: TRUE
B46: CWS | C46: =IF(ISERROR((VLOOKUP(P_TabEPNP1117253036[[#This Row],[DESIGNATION]],DE_TabR[[Sloupec2]:[ON]],2,FALSE))/(VLOOKUP(P_TabEPNP1117253036[[#This Row],[DESIGNATION]],DE_TabR[[Sloupec2]:[ON]],3,FALSE))/O_CapR*IF(K46=TRUE,1,0))=TRUE,"-",(VLOOKUP(P_TabEPNP1117253036[[#This Row],[DESIGNATION]],DE_TabR[[Sloupec2]:[ON]],2,FALSE))/(VLOOKUP(P_TabEPNP1117253036[[#This Row],[DESIGNATION]],DE_TabR[[Sloupec2]:[ON]],3,FALSE))/O_CapR*IF(K46=TRUE,1,0)) -> 3.899423077 | D46: 1 | E46: =IF(ISERROR((VLOOKUP(P_TabEPNP1117253036[[#This Row],[DESIGNATION]],DE_TabR[[Sloupec2]:[Sloupec4]],4,FALSE))*DE_EP*P_TabEPNP1117253036[[#This Row],[ENERGY]]*IF(K46=TRUE,1,0))=TRUE,"-",(VLOOKUP(P_TabEPNP1117253036[[#This Row],[DESIGNATION]],DE_TabR[[Sloupec2]:[Sloupec4]],4,FALSE))*DE_EP*P_TabEPNP1117253036[[#This Row],[ENERGY]]*IF(K46=TRUE,1,0)) -> 1.3195 | F46: 0 | G46: =IF(ISERROR((VLOOKUP(P_TabEPNP1117253036[[#This Row],[DESIGNATION]],DE_TabR[[Sloupec2]:[Sloupec5]],5,FALSE))*DE_GP*P_TabEPNP1117253036[[#This Row],[GAS]]*IF(K46=TRUE,1,0))=TRUE,"-",(VLOOKUP(P_TabEPNP1117253036[[#This Row],[DESIGNATION]],DE_TabR[[Sloupec2]:[Sloupec5]],5,FALSE))*DE_GP*P_TabEPNP1117253036[[#This Row],[GAS]]*IF(K46=TRUE,1,0)) -> 0 | H46: =IF(ISERROR(P_TabEPNP1117253036[[#This Row],[DEPRECIATION]]+P_TabEPNP1117253036[[#This Row],[ENERGY COSTS]]+P_TabEPNP1117253036[[#This Row],[GAS COSTS]])=TRUE,0,P_TabEPNP1117253036[[#This Row],[DEPRECIATION]]+P_TabEPNP1117253036[[#This Row],[ENERGY COSTS]]+P_TabEPNP1117253036[[#This Row],[GAS COSTS]]) -> 5.218923077 | J46: 28 | K46: TRUE
B47: Install | C47: =IF(ISERROR((VLOOKUP(P_TabEPNP1117253036[[#This Row],[DESIGNATION]],DE_TabR[[Sloupec2]:[ON]],2,FALSE))/(VLOOKUP(P_TabEPNP1117253036[[#This Row],[DESIGNATION]],DE_TabR[[Sloupec2]:[ON]],3,FALSE))/O_CapR*IF(K47=TRUE,1,0))=TRUE,"-",(VLOOKUP(P_TabEPNP1117253036[[#This Row],[DESIGNATION]],DE_TabR[[Sloupec2]:[ON]],2,FALSE))/(VLOOKUP(P_TabEPNP1117253036[[#This Row],[DESIGNATION]],DE_TabR[[Sloupec2]:[ON]],3,FALSE))/O_CapR*IF(K47=TRUE,1,0)) -> 6.41025641 | D47: 0 | E47: =IF(ISERROR((VLOOKUP(P_TabEPNP1117253036[[#This Row],[DESIGNATION]],DE_TabR[[Sloupec2]:[Sloupec4]],4,FALSE))*DE_EP*P_TabEPNP1117253036[[#This Row],[ENERGY]]*IF(K47=TRUE,1,0))=TRUE,"-",(VLOOKUP(P_TabEPNP1117253036[[#This Row],[DESIGNATION]],DE_TabR[[Sloupec2]:[Sloupec4]],4,FALSE))*DE_EP*P_TabEPNP1117253036[[#This Row],[ENERGY]]*IF(K47=TRUE,1,0)) -> 0 | F47: 0 | G47: =IF(ISERROR((VLOOKUP(P_TabEPNP1117253036[[#This Row],[DESIGNATION]],DE_TabR[[Sloupec2]:[Sloupec5]],5,FALSE))*DE_GP*P_TabEPNP1117253036[[#This Row],[GAS]]*IF(K47=TRUE,1,0))=TRUE,"-",(VLOOKUP(P_TabEPNP1117253036[[#This Row],[DESIGNATION]],DE_TabR[[Sloupec2]:[Sloupec5]],5,FALSE))*DE_GP*P_TabEPNP1117253036[[#This Row],[GAS]]*IF(K47=TRUE,1,0)) -> 0 | H47: =IF(ISERROR(P_TabEPNP1117253036[[#This Row],[DEPRECIATION]]+P_TabEPNP1117253036[[#This Row],[ENERGY COSTS]]+P_TabEPNP1117253036[[#This Row],[GAS COSTS]])=TRUE,0,P_TabEPNP1117253036[[#This Row],[DEPRECIATION]]+P_TabEPNP1117253036[[#This Row],[ENERGY COSTS]]+P_TabEPNP1117253036[[#This Row],[GAS COSTS]]) -> 6.41025641 | J47: 29 | K47: TRUE
B48: Neu-E | C48: =IF(ISERROR((VLOOKUP(P_TabEPNP1117253036[[#This Row],[DESIGNATION]],DE_TabR[[Sloupec2]:[ON]],2,FALSE))/(VLOOKUP(P_TabEPNP1117253036[[#This Row],[DESIGNATION]],DE_TabR[[Sloupec2]:[ON]],3,FALSE))/O_CapR*IF(K48=TRUE,1,0))=TRUE,"-",(VLOOKUP(P_TabEPNP1117253036[[#This Row],[DESIGNATION]],DE_TabR[[Sloupec2]:[ON]],2,FALSE))/(VLOOKUP(P_TabEPNP1117253036[[#This Row],[DESIGNATION]],DE_TabR[[Sloupec2]:[ON]],3,FALSE))/O_CapR*IF(K48=TRUE,1,0)) -> 0.6475160256 | D48: 0.067 | E48: =IF(ISERROR((VLOOKUP(P_TabEPNP1117253036[[#This Row],[DESIGNATION]],DE_TabR[[Sloupec2]:[Sloupec4]],4,FALSE))*DE_EP*P_TabEPNP1117253036[[#This Row],[ENERGY]]*IF(K48=TRUE,1,0))=TRUE,"-",(VLOOKUP(P_TabEPNP1117253036[[#This Row],[DESIGNATION]],DE_TabR[[Sloupec2]:[Sloupec4]],4,FALSE))*DE_EP*P_TabEPNP1117253036[[#This Row],[ENERGY]]*IF(K48=TRUE,1,0)) -> 0.013065 | F48: 0 | G48: =IF(ISERROR((VLOOKUP(P_TabEPNP1117253036[[#This Row],[DESIGNATION]],DE_TabR[[Sloupec2]:[Sloupec5]],5,FALSE))*DE_GP*P_TabEPNP1117253036[[#This Row],[GAS]]*IF(K48=TRUE,1,0))=TRUE,"-",(VLOOKUP(P_TabEPNP1117253036[[#This Row],[DESIGNATION]],DE_TabR[[Sloupec2]:[Sloupec5]],5,FALSE))*DE_GP*P_TabEPNP1117253036[[#This Row],[GAS]]*IF(K48=TRUE,1,0)) -> 0 | H48: =IF(ISERROR(P_TabEPNP1117253036[[#This Row],[DEPRECIATION]]+P_TabEPNP1117253036[[#This Row],[ENERGY COSTS]]+P_TabEPNP1117253036[[#This Row],[GAS COSTS]])=TRUE,0,P_TabEPNP1117253036[[#This Row],[DEPRECIATION]]+P_TabEPNP1117253036[[#This Row],[ENERGY COSTS]]+P_TabEPNP1117253036[[#This Row],[GAS COSTS]]) -> 0.6605810256 | J48: 30 | K48: TRUE
B49: P-108 | C49: =IF(ISERROR((VLOOKUP(P_TabEPNP1117253036[[#This Row],[DESIGNATION]],DE_TabR[[Sloupec2]:[ON]],2,FALSE))/(VLOOKUP(P_TabEPNP1117253036[[#This Row],[DESIGNATION]],DE_TabR[[Sloupec2]:[ON]],3,FALSE))/O_CapR*IF(K49=TRUE,1,0))=TRUE,"-",(VLOOKUP(P_TabEPNP1117253036[[#This Row],[DESIGNATION]],DE_TabR[[Sloupec2]:[ON]],2,FALSE))/(VLOOKUP(P_TabEPNP1117253036[[#This Row],[DESIGNATION]],DE_TabR[[Sloupec2]:[ON]],3,FALSE))/O_CapR*IF(K49=TRUE,1,0)) -> 7.260576923 | D49: 1 | E49: =IF(ISERROR((VLOOKUP(P_TabEPNP1117253036[[#This Row],[DESIGNATION]],DE_TabR[[Sloupec2]:[Sloupec4]],4,FALSE))*DE_EP*P_TabEPNP1117253036[[#This Row],[ENERGY]]*IF(K49=TRUE,1,0))=TRUE,"-",(VLOOKUP(P_TabEPNP1117253036[[#This Row],[DESIGNATION]],DE_TabR[[Sloupec2]:[Sloupec4]],4,FALSE))*DE_EP*P_TabEPNP1117253036[[#This Row],[ENERGY]]*IF(K49=TRUE,1,0)) -> 2.405 | F49: 0 | G49: =IF(ISERROR((VLOOKUP(P_TabEPNP1117253036[[#This Row],[DESIGNATION]],DE_TabR[[Sloupec2]:[Sloupec5]],5,FALSE))*DE_GP*P_TabEPNP1117253036[[#This Row],[GAS]]*IF(K49=TRUE,1,0))=TRUE,"-",(VLOOKUP(P_TabEPNP1117253036[[#This Row],[DESIGNATION]],DE_TabR[[Sloupec2]:[Sloupec5]],5,FALSE))*DE_GP*P_TabEPNP1117253036[[#This Row],[GAS]]*IF(K49=TRUE,1,0)) -> 0 | H49: =IF(ISERROR(P_TabEPNP1117253036[[#This Row],[DEPRECIATION]]+P_TabEPNP1117253036[[#This Row],[ENERGY COSTS]]+P_TabEPNP1117253036[[#This Row],[GAS COSTS]])=TRUE,0,P_TabEPNP1117253036[[#This Row],[DEPRECIATION]]+P_TabEPNP1117253036[[#This Row],[ENERGY COSTS]]+P_TabEPNP1117253036[[#This Row],[GAS COSTS]]) -> 9.665576923 | J49: 31 | K49: TRUE
B50: EQUIPMENT - HEATER | C50: =SUBTOTAL(109,P_TabEPNP1117253036[DEPRECIATION]) -> 77.28533654 | E50: =SUBTOTAL(109,P_TabEPNP1117253036[ENERGY COSTS]) -> 9.401665 | G50: =SUBTOTAL(109,P_TabEPNP1117253036[GAS COSTS]) -> 0 | H50: =SUBTOTAL(109,P_TabEPNP1117253036[COST]) -> 86.68700154 | J50: =(ROW(P_RemRowENP)) -> 50
B51: Heater + Contingency | C51: =IF(ISERROR(DE_TabH[Sloupec3]/DE_TabH[Sloupec4]/O_CapR)=TRUE,0,DE_TabH[Sloupec3]/DE_TabH[Sloupec4]/O_CapR) -> 44.18653846 | D51: 1 | E51: =IF(ISERROR(DE_TabH[Sloupec5]*DE_EP*D51)=TRUE,0,DE_TabH[Sloupec5]*DE_EP*D51) -> 0.52 | F51: 525 | G51: =IF(ISERROR(DE_GP*F51)=TRUE,0,DE_GP*F51) -> 22.575 | H51: =IF(ISERROR(C51+G51)=TRUE,0,C51+G51) -> 66.76153846
B52: ="The process contains "&SUBTOTAL(103,B19:B51)-1&" equipment(s)" -> The process contains 32 equipment(s) | C52: =C50+C51 -> 121.471875 | E52: =E50+E51 -> 9.921665 | G52: =G50+G51 -> 22.575 | H52: =H50+H51 -> 153.44854
B54: OUTPUTS NP | H54: OUTPUT DENSITY
B55: TiO2 (TiOS) (wt 2%) | C55: =IF(ISERROR(VLOOKUP(B55,DChO_Tab[[NAME]:[STB / UNSTB]],6,FALSE))=TRUE,"-",VLOOKUP(B55,DChO_Tab[[NAME]:[STB / UNSTB]],6,FALSE)) -> Unstable | D55: Output from NP | E55: 4500 | F55: Output NPs | G55: 59.9 | H55: 1000
B57: POST-PROCESS SEDIMENTATION | G57: SET UP TIME | H57: 0.1
B58: PROCESS FILTRATION
B59: UNIT (UN) | C59: FILTRATION TIME / UN | D59: WASHING STEPS | E59: NPs / UN | F59: Σ FILTRATION TIME / UN | G59: NPs / 1H NP | H59: Σ FILTR. TIME / 1H NP
D60: 2 | E60: =IF(ISERROR(P_OutputNPs*B60/E55)=TRUE,0,P_OutputNPs*B60/E55) -> 0 | F60: =IF(ISERROR(C60*D60)=TRUE,"-",C60*D60) -> 0 | G60: =P_OutputNPs -> 59.9 | H60: =IF(ISERROR(E55/B60*F60)=TRUE,0,E55/B60*F60) -> 0
B62: INPUTS
B63: NAME | C63: ID | D63: PRICE / UNIT | E63: TYPE | F63: CONSUPTION / 1 W. STEP | G63: COST / FILTRATION | H63: COST / KG | J63: =ROW(P_StartRowIPPF) -> 63
B64: =IF(B55="","-",B55) -> TiO2 (TiOS) (wt 2%) | C64: =IF(ISERROR(VLOOKUP(B64,DChO_Tab[[NAME]:[ID]],3,FALSE))=TRUE,"-",VLOOKUP(B64,DChO_Tab[[NAME]:[ID]],3,FALSE)) -> OCH00001 | D64: =IF(ISERROR(VLOOKUP('P4'!$C64,DChO_Tab[[ID]:[PRICE / UNIT]],7,FALSE))=TRUE,"-",VLOOKUP('P4'!$C64,DChO_Tab[[ID]:[PRICE / UNIT]],7,FALSE)) -> 0 | E64: =IF(ISERROR(VLOOKUP('P4'!$C64,DChO_Tab[[ID]:[TYPE]],3,FALSE))=TRUE,"-",VLOOKUP('P4'!$C64,DChO_Tab[[ID]:[TYPE]],3,FALSE)) -> Semi-product | F64: =B60 -> 0 | G64: =IF(ISERROR('P4'!$D64*'P4'!$F64),0,'P4'!$D64*'P4'!$F64) -> 0 | H64: =IF(ISERROR('P4'!$D64*'P4'!$F64/P_OutputNPs)=TRUE,0,'P4'!$D64*'P4'!$F64/P_OutputNPs) -> 0
B65: NAME | C65: ID | D65: PRICE / UNIT | E65: TYPE | F65: FLOW RATE | G65: Sloupec1 | H65: COST
C66: =IF(ISERROR(VLOOKUP(P_TabIPPPF1319273339[[#This Row],[NAME]],DChI_Tab[],3,FALSE))=TRUE,"-",VLOOKUP(P_TabIPPPF1319273339[[#This Row],[NAME]],DChI_Tab[],3,FALSE)) -> - | D66: =IF(ISERROR(VLOOKUP(P_TabIPPPF1319273339[[#This Row],[ID]],DChI_Tab[[ID]:[PRICE / UNIT]],6,FALSE))=TRUE,"-",VLOOKUP(P_TabIPPPF1319273339[[#This Row],[ID]],DChI_Tab[[ID]:[PRICE / UNIT]],6,FALSE)) -> - | E66: =IF(ISERROR(VLOOKUP(P_TabIPPPF1319273339[[#This Row],[ID]],DChI_Tab[[ID]:[TYPE]],3,FALSE))=TRUE,"-",VLOOKUP(P_TabIPPPF1319273339[[#This Row],[ID]],DChI_Tab[[ID]:[TYPE]],3,FALSE)) -> - | G66: =IF(ISERROR(P_TabIPPPF1319273339[[#This Row],[PRICE / UNIT]]*P_TabIPPPF1319273339[[#This Row],[FLOW RATE]]*P_WSteps)=TRUE,0,P_TabIPPPF1319273339[[#This Row],[PRICE / UNIT]]*P_TabIPPPF1319273339[[#This Row],[FLOW RATE]]*P_WSteps) -> 0 | H66: =IF(ISERROR(P_TabIPPPF1319273339[[#This Row],[PRICE / UNIT]]*P_TabIPPPF1319273339[[#This Row],[FLOW RATE]]*P_WSteps/P_OutputPPFUN)=TRUE,0,P_TabIPPPF1319273339[[#This Row],[PRICE / UNIT]]*P_TabIPPPF1319273339[[#This Row],[FLOW RATE]]*P_WSteps/P_OutputPPFUN) -> 0 | J66: 1
B67: ="The process contains "&SUBTOTAL(103,P_TabIPPPF1319273339[NAME])&" input(s)" -> The process contains 0 input(s) | G67: =SUBTOTAL(109,P_TabIPPPF1319273339[Sloupec1]) -> 0 | H67: =SUBTOTAL(109,P_TabIPPPF1319273339[COST])+H64 -> 0 | J67: =ROW(P_RemRowIPPF) -> 67
B69: EQUIPMENT
B70: DESIGNATION | C70: NUMBER OF FILTRES | D70: Sloupec1 | E70: Sloupec2 | F70: Sloupec3 | G70: Sloupec4 | H70: DEPRECIATION / 1H NP | J70: =ROW(P_StartRowEPPF) -> 70
H71: =IF(ISERROR(VLOOKUP(P_TabEPPPF1218263138[[#This Row],[DESIGNATION]],DE_TabP[[Sloupec2]:[Sloupec4]],2,FALSE)/VLOOKUP(P_TabEPPPF1218263138[[#This Row],[DESIGNATION]],DE_TabP[[Sloupec2]:[Sloupec4]],3,FALSE)*P_TabEPPPF1218263138[[#This Row],[NUMBER OF FILTRES]]*P_PPFTime)=TRUE,0,VLOOKUP(P_TabEPPPF1218263138[[#This Row],[DESIGNATION]],DE_TabP[[Sloupec2]:[Sloupec4]],2,FALSE)/VLOOKUP(P_TabEPPPF1218263138[[#This Row],[DESIGNATION]],DE_TabP[[Sloupec2]:[Sloupec4]],3,FALSE)*P_TabEPPPF1218263138[[#This Row],[NUMBER OF FILTRES]]*P_PPFTime) -> 0 | J71: 1
B72: ="The process contains "&SUBTOTAL(103,P_TabEPPPF1218263138[DESIGNATION])&" equipment(s)" -> The process contains 0 equipment(s) | H72: =SUBTOTAL(109,P_TabEPPPF1218263138[DEPRECIATION / 1H NP]) -> 0 | J72: =ROW(P_RemRowEPPF) -> 72
B74: OUTPUTS PP SEDIMENTATION
B75: Dioxozirconium (wt 8%) | D75: Output NPs / 1H PPF | E75: =IF(ISERROR(P_OutputNPs/P_PPFTime)=TRUE,0,P_OutputNPs/P_PPFTime) -> 0
B77: PROCESS SEDIMENTATION
B78: VOLUME OF TANKS (UN) | C78: SEDIMENTATION TIME / UN | D78: WASHING STEPS | E78: NPs / UN | F78: Σ SEDIMENT. TIME / UN | G78: NPs / 1H NP | H78: Σ SEDIMENT. TIME / 1H NP
B79: 6000 | C79: 0.5 | D79: 2 | E79: =IF(ISERROR(P_OutputNPs*B79/E55)=TRUE,0,P_OutputNPs*B79/E55) -> 79.86666667 | F79: =IF(ISERROR(C79*D79)=TRUE,"-",C79*D79) -> 1 | G79: =P_OutputNPs -> 59.9 | H79: =IF(ISERROR(IF(E55>B79,CEILING(E55/B79,1),1)*F79)=TRUE,0,IF(E55>B79,CEILING(E55/B79,1),1)*F79) -> 1
B81: OUTPUTS PP SEDIMENTATION
B82: TiO2 (TiOS - 250C) (wt 8%) | C82: 500 | D82: Output NPs / 1H PPS | E82: =P_OutputNPs -> 59.9
B84: NEUTRALISATION
B85: INPUTS
B86: NAME | C86: ID | D86: PRICE / UNIT | E86: TYPE | F86: CONSUMPTION | H86: COST | J86: =ROW(P_StartRowNeu) -> 86
B87: Waste water (postprocessing) | C87: - | D87: 0 | E87: Water | F87: =IF(ISERROR(E55-IF(P_PPFiltr="Stable",C75,C82))=TRUE,"-",E55-IF(P_PPFiltr="Stable",C75,C82)) -> 4000 | H87: =D87*F87 -> 0
B88: Waste water (washing) | C88: - | D88: 0 | E88: Water | F88: 1000 | H88: =D88*F88 -> 0
B89: NAME | C89: ID | D89: PRICE / UNIT | E89: TYPE | F89: FLOW RATE | G89: - | H89: COST
B90: Sodium hydroxide Solution (32%) | C90: =IF(ISERROR(VLOOKUP(P_TabINeu1423283440[[#This Row],[NAME]],DChI_Tab[],3,FALSE))=TRUE,"-",VLOOKUP(P_TabINeu1423283440[[#This Row],[NAME]],DChI_Tab[],3,FALSE)) -> ICH00004 | D90: =IF(ISERROR(VLOOKUP(P_TabINeu1423283440[[#This Row],[ID]],DChI_Tab[[ID]:[PRICE / UNIT]],6,FALSE))=TRUE,"-",VLOOKUP(P_TabINeu1423283440[[#This Row],[ID]],DChI_Tab[[ID]:[PRICE / UNIT]],6,FALSE)) -> 0.239 | E90: =IF(ISERROR(VLOOKUP(P_TabINeu1423283440[[#This Row],[ID]],DChI_Tab[[ID]:[TYPE]],3,FALSE))=TRUE,"-",VLOOKUP(P_TabINeu1423283440[[#This Row],[ID]],DChI_Tab[[ID]:[TYPE]],3,FALSE)) -> Other | F90: 53.3344 | H90: =IF(ISERROR(P_TabINeu1423283440[[#This Row],[PRICE / UNIT]]*P_TabINeu1423283440[[#This Row],[FLOW RATE]]),0,P_TabINeu1423283440[[#This Row],[PRICE / UNIT]]*P_TabINeu1423283440[[#This Row],[FLOW RATE]]) -> 12.7469216 | J90: 1
B91: Waste water disposal | C91: =IF(ISERROR(VLOOKUP(P_TabINeu1423283440[[#This Row],[NAME]],DChI_Tab[],3,FALSE))=TRUE,"-",VLOOKUP(P_TabINeu1423283440[[#This Row],[NAME]],DChI_Tab[],3,FALSE)) -> ICH00002 | D91: =IF(ISERROR(VLOOKUP(P_TabINeu1423283440[[#This Row],[ID]],DChI_Tab[[ID]:[PRICE / UNIT]],6,FALSE))=TRUE,"-",VLOOKUP(P_TabINeu1423283440[[#This Row],[ID]],DChI_Tab[[ID]:[PRICE / UNIT]],6,FALSE)) -> 0.001815 | E91: =IF(ISERROR(VLOOKUP(P_TabINeu1423283440[[#This Row],[ID]],DChI_Tab[[ID]:[TYPE]],3,FALSE))=TRUE,"-",VLOOKUP(P_TabINeu1423283440[[#This Row],[ID]],DChI_Tab[[ID]:[TYPE]],3,FALSE)) -> Water | F91: 113.3356 | H91: =IF(ISERROR(P_TabINeu1423283440[[#This Row],[PRICE / UNIT]]*P_TabINeu1423283440[[#This Row],[FLOW RATE]]),0,P_TabINeu1423283440[[#This Row],[PRICE / UNIT]]*P_TabINeu1423283440[[#This Row],[FLOW RATE]]) -> 0.205704114 | J91: 2
B92: ="The process contains "&SUBTOTAL(103,P_TabINeu1423283440[NAME])&" input(s)" -> The process contains 2 input(s) | H92: =SUBTOTAL(109,P_TabINeu1423283440[COST]) -> 12.95262571 | J92: =ROW(P_RemRowNeu) -> 92

Sheet P5
B1: ="PROCESS " & VLOOKUP(J2,INDIRECT(ADDRESS(PM!PM_StartRow+1,7,1,1,"PM"),TRUE):INDIRECT(ADDRESS(PM!PM_RemRow-1,8,1,1,"PM"),TRUE),2,FALSE) -> PROCESS P00005 | J1: Proc | K1: Prod | L1: Type | M1: OutNPs | N1: OutPPF | O1: OutPPS | P1: Den | Q1: OutF/S | R1: TPPF/S | S1: STNP | T1: STPPF | U1: InNP | V1: DepNP | W1: En | X1: Gas | Y1: InPPF | Z1: DepPPF | AA1: InNeu
J2: P5 | K2: =IF(P_PPFiltr="Stable",B75,B82) -> TiO2 (TiOS - 200C) (wt 8%) | L2: =P_PPFiltr -> Unstable | M2: =G55 -> 41.33 | N2: =P_OutputPPFUN -> 0 | O2: =E79 -> 55.10666667 | P2: =IF(ISERROR(E55/H55*1000)=TRUE,0,E55/H55*1000) -> 4500 | Q2: =IF(P_PPFiltr="-",0,IF(P_PPFiltr="Stable",C75,C82)) -> 500 | R2: =IF(P_PPFiltr="-",0,IF(P_PPFiltr="Stable",H60,(E55*H79)/(B79*P_OutputNPs))) -> 0.01814662473 | S2: =H8 -> 0.1 | T2: =H57 -> 0.1 | U2: =P_TabIPNP101524293541[[#Totals],[COST]] -> 1035.016848 | V2: =C52 -> 121.471875 | W2: =E52 -> 9.921665 | X2: =G52 -> 16.555 | Y2: =P_TabIPPPF131927333944[[#Totals],[COST]] -> 0 | Z2: =P_TabEPPPF121826313843[[#Totals],[DEPRECIATION / 1H NP]] -> 0 | AA2: =P_TabINeu142328344045[[#Totals],[COST]] -> 12.95262571
J3: 10 | K3: 11 | L3: 12 | M3: 13 | N3: 14 | O3: 15 | P3: 16 | Q3: 17 | R3: 18 | S3: 19 | T3: 20 | U3: 21 | V3: 22 | W3: 23 | X3: 24 | Y3: 25 | Z3: 26 | AA3: 27
B4: =IF(ISERROR(VLOOKUP(J2,INDIRECT(ADDRESS(PM!PM_StartRow+1,7,1,1,"PM"),TRUE):INDIRECT(ADDRESS(PM!PM_RemRow-1,9,1,1,"PM"),TRUE),3,FALSE))=TRUE,"-",IF(VLOOKUP(J2,INDIRECT(ADDRESS(PM!PM_StartRow+1,7,1,1,"PM"),TRUE):INDIRECT(ADDRESS(PM!PM_RemRow-1,9,1,1,"PM"),TRUE),3,FALSE)=0,"-",VLOOKUP(J2,INDIRECT(ADDRESS(PM!PM_StartRow+1,7,1,1,"PM"),TRUE):INDIRECT(ADDRESS(PM!PM_RemRow-1,9,1,1,"PM"),TRUE),3,FALSE))) -> TiO2 - TiOS 200C
B8: NANO PRODUCTION | G8: SET UP TIME | H8: 0.1
B9: INPUTS
B10: NAME | C10: ID | D10: PRICE / UNIT | E10: TYPE | F10: FLOW RATE | G10: - | H10: COST | J10: =ROW(P_StartRowINP) -> 10
B11: Titanium oxysulfate | C11: =IF(ISERROR(VLOOKUP(P_TabIPNP101524293541[[#This Row],[NAME]],DChI_Tab[],3,FALSE))=TRUE,"-",VLOOKUP(P_TabIPNP101524293541[[#This Row],[NAME]],DChI_Tab[],3,FALSE)) -> ICH00015 | D11: =IF(ISERROR(VLOOKUP(P_TabIPNP101524293541[[#This Row],[ID]],DChI_Tab[[ID]:[PRICE / UNIT]],6,FALSE))=TRUE,"-",VLOOKUP(P_TabIPNP101524293541[[#This Row],[ID]],DChI_Tab[[ID]:[PRICE / UNIT]],6,FALSE)) -> 1.22 | E11: =IF(ISERROR(VLOOKUP(P_TabIPNP101524293541[[#This Row],[ID]],DChI_Tab[[ID]:[TYPE]],3,FALSE))=TRUE,"-",VLOOKUP(P_TabIPNP101524293541[[#This Row],[ID]],DChI_Tab[[ID]:[TYPE]],3,FALSE)) -> Precursor | F11: 799.65 | H11: =IF(ISERROR(P_TabIPNP101524293541[[#This Row],[PRICE / UNIT]]*P_TabIPNP101524293541[[#This Row],[FLOW RATE]]),0,P_TabIPNP101524293541[[#This Row],[PRICE / UNIT]]*P_TabIPNP101524293541[[#This Row],[FLOW RATE]]) -> 975.573 | J11: 1
B12: Dionised water | C12: =IF(ISERROR(VLOOKUP(P_TabIPNP101524293541[[#This Row],[NAME]],DChI_Tab[],3,FALSE))=TRUE,"-",VLOOKUP(P_TabIPNP101524293541[[#This Row],[NAME]],DChI_Tab[],3,FALSE)) -> ICH00001 | D12: =IF(ISERROR(VLOOKUP(P_TabIPNP101524293541[[#This Row],[ID]],DChI_Tab[[ID]:[PRICE / UNIT]],6,FALSE))=TRUE,"-",VLOOKUP(P_TabIPNP101524293541[[#This Row],[ID]],DChI_Tab[[ID]:[PRICE / UNIT]],6,FALSE)) -> 0.001815 | E12: =IF(ISERROR(VLOOKUP(P_TabIPNP101524293541[[#This Row],[ID]],DChI_Tab[[ID]:[TYPE]],3,FALSE))=TRUE,"-",VLOOKUP(P_TabIPNP101524293541[[#This Row],[ID]],DChI_Tab[[ID]:[TYPE]],3,FALSE)) -> Water | F12: 5592.1525 | H12: =IF(ISERROR(P_TabIPNP101524293541[[#This Row],[PRICE / UNIT]]*P_TabIPNP101524293541[[#This Row],[FLOW RATE]]),0,P_TabIPNP101524293541[[#This Row],[PRICE / UNIT]]*P_TabIPNP101524293541[[#This Row],[FLOW RATE]]) -> 10.14975679 | J12: 2
B13: Waste water disposal | C13: =IF(ISERROR(VLOOKUP(P_TabIPNP101524293541[[#This Row],[NAME]],DChI_Tab[],3,FALSE))=TRUE,"-",VLOOKUP(P_TabIPNP101524293541[[#This Row],[NAME]],DChI_Tab[],3,FALSE)) -> ICH00002 | D13: =IF(ISERROR(VLOOKUP(P_TabIPNP101524293541[[#This Row],[ID]],DChI_Tab[[ID]:[PRICE / UNIT]],6,FALSE))=TRUE,"-",VLOOKUP(P_TabIPNP101524293541[[#This Row],[ID]],DChI_Tab[[ID]:[PRICE / UNIT]],6,FALSE)) -> 0.001815 | E13: =IF(ISERROR(VLOOKUP(P_TabIPNP101524293541[[#This Row],[ID]],DChI_Tab[[ID]:[TYPE]],3,FALSE))=TRUE,"-",VLOOKUP(P_TabIPNP101524293541[[#This Row],[ID]],DChI_Tab[[ID]:[TYPE]],3,FALSE)) -> Water | F13: 5212.1 | H13: =IF(ISERROR(P_TabIPNP101524293541[[#This Row],[PRICE / UNIT]]*P_TabIPNP101524293541[[#This Row],[FLOW RATE]]),0,P_TabIPNP101524293541[[#This Row],[PRICE / UNIT]]*P_TabIPNP101524293541[[#This Row],[FLOW RATE]]) -> 9.4599615 | J13: 3
B14: Sodium hydroxide Solution (32%) | C14: =IF(ISERROR(VLOOKUP(P_TabIPNP101524293541[[#This Row],[NAME]],DChI_Tab[],3,FALSE))=TRUE,"-",VLOOKUP(P_TabIPNP101524293541[[#This Row],[NAME]],DChI_Tab[],3,FALSE)) -> ICH00004 | D14: =IF(ISERROR(VLOOKUP(P_TabIPNP101524293541[[#This Row],[ID]],DChI_Tab[[ID]:[PRICE / UNIT]],6,FALSE))=TRUE,"-",VLOOKUP(P_TabIPNP101524293541[[#This Row],[ID]],DChI_Tab[[ID]:[PRICE / UNIT]],6,FALSE)) -> 0.239 | E14: =IF(ISERROR(VLOOKUP(P_TabIPNP101524293541[[#This Row],[ID]],DChI_Tab[[ID]:[TYPE]],3,FALSE))=TRUE,"-",VLOOKUP(P_TabIPNP101524293541[[#This Row],[ID]],DChI_Tab[[ID]:[TYPE]],3,FALSE)) -> Other | F14: 166.67 | H14: =IF(ISERROR(P_TabIPNP101524293541[[#This Row],[PRICE / UNIT]]*P_TabIPNP101524293541[[#This Row],[FLOW RATE]]),0,P_TabIPNP101524293541[[#This Row],[PRICE / UNIT]]*P_TabIPNP101524293541[[#This Row],[FLOW RATE]]) -> 39.83413 | J14: 4
B15: ="The process contains "&SUBTOTAL(103,P_TabIPNP101524293541[NAME])&" input(s)" -> The process contains 4 input(s) | H15: =SUBTOTAL(109,P_TabIPNP101524293541[COST]) -> 1035.016848 | J15: =(ROW('P5'!B15)) -> 15
B17: EQUIPMENT
B18: DESIGNATION | C18: DEPRECIATION | D18: ENERGY | E18: ENERGY COSTS | F18: GAS | G18: GAS COSTS | H18: COST | J18: =ROW(P_StartRowENP) -> 18
B19: Fitt | C19: =IF(ISERROR((VLOOKUP(P_TabEPNP111725303642[[#This Row],[DESIGNATION]],DE_TabR[[Sloupec2]:[ON]],2,FALSE))/(VLOOKUP(P_TabEPNP111725303642[[#This Row],[DESIGNATION]],DE_TabR[[Sloupec2]:[ON]],3,FALSE))/O_CapR*IF(K19=TRUE,1,0))=TRUE,"-",(VLOOKUP(P_TabEPNP111725303642[[#This Row],[DESIGNATION]],DE_TabR[[Sloupec2]:[ON]],2,FALSE))/(VLOOKUP(P_TabEPNP111725303642[[#This Row],[DESIGNATION]],DE_TabR[[Sloupec2]:[ON]],3,FALSE))/O_CapR*IF(K19=TRUE,1,0)) -> 3.334115385 | D19: 0 | E19: =IF(ISERROR((VLOOKUP(P_TabEPNP111725303642[[#This Row],[DESIGNATION]],DE_TabR[[Sloupec2]:[Sloupec4]],4,FALSE))*DE_EP*P_TabEPNP111725303642[[#This Row],[ENERGY]]*IF(K19=TRUE,1,0))=TRUE,"-",(VLOOKUP(P_TabEPNP111725303642[[#This Row],[DESIGNATION]],DE_TabR[[Sloupec2]:[Sloupec4]],4,FALSE))*DE_EP*P_TabEPNP111725303642[[#This Row],[ENERGY]]*IF(K19=TRUE,1,0)) -> 0 | F19: 0 | G19: =IF(ISERROR((VLOOKUP(P_TabEPNP111725303642[[#This Row],[DESIGNATION]],DE_TabR[[Sloupec2]:[Sloupec5]],5,FALSE))*DE_GP*P_TabEPNP111725303642[[#This Row],[GAS]]*IF(K19=TRUE,1,0))=TRUE,"-",(VLOOKUP(P_TabEPNP111725303642[[#This Row],[DESIGNATION]],DE_TabR[[Sloupec2]:[Sloupec5]],5,FALSE))*DE_GP*P_TabEPNP111725303642[[#This Row],[GAS]]*IF(K19=TRUE,1,0)) -> 0 | H19: =IF(ISERROR(P_TabEPNP111725303642[[#This Row],[DEPRECIATION]]+P_TabEPNP111725303642[[#This Row],[ENERGY COSTS]]+P_TabEPNP111725303642[[#This Row],[GAS COSTS]])=TRUE,0,P_TabEPNP111725303642[[#This Row],[DEPRECIATION]]+P_TabEPNP111725303642[[#This Row],[ENERGY COSTS]]+P_TabEPNP111725303642[[#This Row],[GAS COSTS]]) -> 3.334115385 | J19: 1 | K19: TRUE
B20: PipeW | C20: =IF(ISERROR((VLOOKUP(P_TabEPNP111725303642[[#This Row],[DESIGNATION]],DE_TabR[[Sloupec2]:[ON]],2,FALSE))/(VLOOKUP(P_TabEPNP111725303642[[#This Row],[DESIGNATION]],DE_TabR[[Sloupec2]:[ON]],3,FALSE))/O_CapR*IF(K20=TRUE,1,0))=TRUE,"-",(VLOOKUP(P_TabEPNP111725303642[[#This Row],[DESIGNATION]],DE_TabR[[Sloupec2]:[ON]],2,FALSE))/(VLOOKUP(P_TabEPNP111725303642[[#This Row],[DESIGNATION]],DE_TabR[[Sloupec2]:[ON]],3,FALSE))/O_CapR*IF(K20=TRUE,1,0)) -> 2.547826923 | D20: 0 | E20: =IF(ISERROR((VLOOKUP(P_TabEPNP111725303642[[#This Row],[DESIGNATION]],DE_TabR[[Sloupec2]:[Sloupec4]],4,FALSE))*DE_EP*P_TabEPNP111725303642[[#This Row],[ENERGY]]*IF(K20=TRUE,1,0))=TRUE,"-",(VLOOKUP(P_TabEPNP111725303642[[#This Row],[DESIGNATION]],DE_TabR[[Sloupec2]:[Sloupec4]],4,FALSE))*DE_EP*P_TabEPNP111725303642[[#This Row],[ENERGY]]*IF(K20=TRUE,1,0)) -> 0 | F20: 0 | G20: =IF(ISERROR((VLOOKUP(P_TabEPNP111725303642[[#This Row],[DESIGNATION]],DE_TabR[[Sloupec2]:[Sloupec5]],5,FALSE))*DE_GP*P_TabEPNP111725303642[[#This Row],[GAS]]*IF(K20=TRUE,1,0))=TRUE,"-",(VLOOKUP(P_TabEPNP111725303642[[#This Row],[DESIGNATION]],DE_TabR[[Sloupec2]:[Sloupec5]],5,FALSE))*DE_GP*P_TabEPNP111725303642[[#This Row],[GAS]]*IF(K20=TRUE,1,0)) -> 0 | H20: =IF(ISERROR(P_TabEPNP111725303642[[#This Row],[DEPRECIATION]]+P_TabEPNP111725303642[[#This Row],[ENERGY COSTS]]+P_TabEPNP111725303642[[#This Row],[GAS COSTS]])=TRUE,0,P_TabEPNP111725303642[[#This Row],[DEPRECIATION]]+P_TabEPNP111725303642[[#This Row],[ENERGY COSTS]]+P_TabEPNP111725303642[[#This Row],[GAS COSTS]]) -> 2.547826923 | J20: 2 | K20: TRUE
B21: Svalves | C21: =IF(ISERROR((VLOOKUP(P_TabEPNP111725303642[[#This Row],[DESIGNATION]],DE_TabR[[Sloupec2]:[ON]],2,FALSE))/(VLOOKUP(P_TabEPNP111725303642[[#This Row],[DESIGNATION]],DE_TabR[[Sloupec2]:[ON]],3,FALSE))/O_CapR*IF(K21=TRUE,1,0))=TRUE,"-",(VLOOKUP(P_TabEPNP111725303642[[#This Row],[DESIGNATION]],DE_TabR[[Sloupec2]:[ON]],2,FALSE))/(VLOOKUP(P_TabEPNP111725303642[[#This Row],[DESIGNATION]],DE_TabR[[Sloupec2]:[ON]],3,FALSE))/O_CapR*IF(K21=TRUE,1,0)) -> 4.147392628 | D21: 1 | E21: =IF(ISERROR((VLOOKUP(P_TabEPNP111725303642[[#This Row],[DESIGNATION]],DE_TabR[[Sloupec2]:[Sloupec4]],4,FALSE))*DE_EP*P_TabEPNP111725303642[[#This Row],[ENERGY]]*IF(K21=TRUE,1,0))=TRUE,"-",(VLOOKUP(P_TabEPNP111725303642[[#This Row],[DESIGNATION]],DE_TabR[[Sloupec2]:[Sloupec4]],4,FALSE))*DE_EP*P_TabEPNP111725303642[[#This Row],[ENERGY]]*IF(K21=TRUE,1,0)) -> 0.286 | F21: 0 | G21: =IF(ISERROR((VLOOKUP(P_TabEPNP111725303642[[#This Row],[DESIGNATION]],DE_TabR[[Sloupec2]:[Sloupec5]],5,FALSE))*DE_GP*P_TabEPNP111725303642[[#This Row],[GAS]]*IF(K21=TRUE,1,0))=TRUE,"-",(VLOOKUP(P_TabEPNP111725303642[[#This Row],[DESIGNATION]],DE_TabR[[Sloupec2]:[Sloupec5]],5,FALSE))*DE_GP*P_TabEPNP111725303642[[#This Row],[GAS]]*IF(K21=TRUE,1,0)) -> 0 | H21: =IF(ISERROR(P_TabEPNP111725303642[[#This Row],[DEPRECIATION]]+P_TabEPNP111725303642[[#This Row],[ENERGY COSTS]]+P_TabEPNP111725303642[[#This Row],[GAS COSTS]])=TRUE,0,P_TabEPNP111725303642[[#This Row],[DEPRECIATION]]+P_TabEPNP111725303642[[#This Row],[ENERGY COSTS]]+P_TabEPNP111725303642[[#This Row],[GAS COSTS]]) -> 4.433392628 | J21: 3 | K21: TRUE
